Workbook

Sheet DropDowns (hidden)
A1: 250 | B1: Rounds and Readings | C1: 250
A2: 104 | B2: Rounds and Readings | C2: 104
A3: 52 | B3: Rounds and Readings | C3: 52
A4: 26 | B4: Rounds and Readings | C4: 26
A5: 12 | B5: Rounds and Readings | C5: 12
A7: 250 | B7: Water Treatment | C7: 250
A8: 104 | B8: Water Treatment | C8: 104
A9: 52 | B9: Water Treatment | C9: 52
A10: 26 | B10: Water Treatment | C10: 26
A11: 12 | B11: Water Treatment | C11: 12

Sheet Summary Pricing Sheet
A1: JCC- Facility Operation and Maintenance Service Provider - Summary Pricing Sheet and Systems Matrix
A2: RFP # | B2: RFP-FS-SP-2019-03-JP
A3: Proposer | B3: Firm Name TBD
H4: System | I4: Access | J4: HVAC | V4: Electrical | AE4: Life Safety | AG4: Plumbing | AN4: Building Systems | AW4: Corporate | AZ4: Fixed Price - Facility Total Annual Cost Year 1 | BB4: Unit Pricing
H5: Subsystem | I5: Access Doors, Gates, Sally Port | J5: Air Cooled DX (Split System) | K5: Air Handling Unit (Air Cooled DX / Package) | L5: Air-Cooled Chiller | M5: Centrifugal Chiller | N5: Cooling Tower (Induced Draft) | O5: Ice Chiller Tank | P5: Geothermal System | Q5: Water Source Heat Pump | R5: Fan Coil System | S5: Supply / Return Fan and Exhaust | T5: Evaporative and Spot Coolers (swamp coolers; spot cooler) | U5: Unique HVAC System | V5: Electrical Panels | W5: Emergency Generator | X5: Motor Control Center | Y5: Automatic Transfer Switch | Z5: Building Automated Systems (BAS) | AA5: Transformer (Dry-Type) | AB5: Uninterruptible Power Supply (UPS) | AC5: Lighting and Controls (Interior and Exterior) | AD5: Unique Electrical System | AE5: Life Safety Systems | AF5: Reduced Pressure Backflow Preventer(s) | AG5: Boiler (Condensing) | AH5: Domestic Water Heater (Gas-Fired, Condensing) | AI5: Domestic Water Heater (Electric, Non- Condensing) | AJ5: Boiler (Steam, low pressure) | AK5: Steam System | AL5: Pneumatic Compressor System | AM5: Unique Plumbing System | AN5: Rounds and Readings | AO5: Vertical Transportation | AP5: Water Treatment | AQ5: Building Exterior / Hardscape (Monthly) | AR5: Fountain Maintenance (Monthly) | AS5: Above-Ground/Underground Fuel Storage Tanks (Quarterly) If applicable | AT5: Landscape Maintenance * | AU5: Pest Control (Monthly) | AV5: Photovoltaic (PV) System | AW5: Account Management and Supervision (Monthly) | AX5: Fee (Monthly) | BB5: Snow Removal - (crew hourly rate) | BC5: Unclogging Blocked Toilet - In-custody holding cell (labor) | BD5: Unclogging Blocked Toilet - Public/Court Staff (labor) | BE5: Clean up & Disposal of Biological Waste Event | BF5: Clean up & Disposal of Biological Waste Labor Rate | BG5: Hourly Rate | BH5: Markup on Materials | BI5: Markup on Subcontractors/Third-Parties
A6: JCC ID | B6: Facility Name | C6: Address | D6: City / Town | E6: Zip Code | F6: County | G6: Region | H6: System ID | I6: A1 | J6: H1 | K6: H2 | L6: H3 | M6: H4 | N6: H5 | O6: H6 | P6: H7 | Q6: H8 | R6: H9 | S6: H10 | T6: H11 | U6: H12 | V6: E1 | W6: E2 | X6: E3 | Y6: E4 | Z6: E5 | AA6: E6 | AB6: E7 | AC6: E8 | AD6: E9 | AE6: L1 | AF6: L2 | AG6: P1 | AH6: P2 | AI6: P3 | AJ6: P4 | AK6: P5 | AL6: P6 | AM6: P7 | AN6: R1 | AO6: V1 | AP6: W1 | AQ6: B1 | AR6: F1 | AS6: F2 | AT6: G1 | AU6: PC1 | AV6: PV1 | AW6: C1 | AX6: C2 | BB6: S1 | BC6: I1 | BD6: I2 | BE6: I3 | BF6: I4 | BG6: Hr 1 | BH6: M1 | BI6: Sub1
A7: =+'13-A1'!Z$6 -> 13-A1 | B7: =+'13-A1'!AA$6 -> 13-A1 Imperial County Courthouse | C7: =+'13-A1'!AB$6 -> 939 W. Main St. | D7: =+'13-A1'!AC$6 -> El Centro | E7: =+'13-A1'!AD$6 -> 92243 | F7: =+'13-A1'!AE$6 -> Imperial | G7: =+'13-A1'!AF$6 -> SRO | I7: =+'13-A1'!AH$6 -> 0 | J7: =+'13-A1'!AI$6 -> 0 | K7: =+'13-A1'!AJ$6 -> 0 | L7: =+'13-A1'!AK$6 -> 0 | M7: =+'13-A1'!AL$6 -> 0 | N7: =+'13-A1'!AM$6 -> 0 | O7: =+'13-A1'!AN$6 -> 0 | P7: =+'13-A1'!AO$6 -> 0 | Q7: =+'13-A1'!AP$6 -> 0 | R7: =+'13-A1'!AQ$6 -> 0 | S7: =+'13-A1'!AR$6 -> 0 | T7: =+'13-A1'!AS$6 -> 0 | U7: =+'13-A1'!AT$6 -> 0 | V7: =+'13-A1'!AU$6 -> 0 | W7: =+'13-A1'!AV$6 -> 0 | X7: =+'13-A1'!AW$6 -> 0 | Y7: =+'13-A1'!AX$6 -> 0 | Z7: =+'13-A1'!AY$6 -> 0 | AA7: =+'13-A1'!AZ$6 -> 0 | AB7: =+'13-A1'!BA$6 -> 0 | AC7: =+'13-A1'!BB$6 -> 0 | AD7: =+'13-A1'!BC$6 -> 0 | AE7: =+'13-A1'!BD$6 -> 0 | AF7: =+'13-A1'!BE$6 -> 0 | AG7: =+'13-A1'!BF$6 -> 0 | AH7: =+'13-A1'!BG$6 -> 0 | AI7: =+'13-A1'!BH$6 -> 0 | AJ7: =+'13-A1'!BI$6 -> 0 | AK7: =+'13-A1'!BJ$6 -> 0 | AL7: =+'13-A1'!BK$6 -> 0 | AM7: =+'13-A1'!BL$6 -> 0 | AN7: =+'13-A1'!BM$6 -> 0 | AO7: =+'13-A1'!BN$6 -> 0 | AP7: =+'13-A1'!BO$6 -> 0 | AQ7: =+'13-A1'!BP$6 -> 0 | AR7: =+'13-A1'!BQ$6 -> 0 | AS7: =+'13-A1'!BR$6 -> 0 | AT7: =+'13-A1'!BS$6 -> 0 | AU7: =+'13-A1'!BT$6 -> 0 | AV7: =+'13-A1'!BU$6 -> 0 | AW7: =+'13-A1'!BV$6 -> 0 | AX7: =+'13-A1'!BW$6 -> 0 | AZ7: =+'13-A1'!BY$6 -> 0 | BB7: =+'13-A1'!CA$6 -> 0 | BC7: =+'13-A1'!CB$6 -> 0 | BD7: =+'13-A1'!CC$6 -> 0 | BE7: =+'13-A1'!CD$6 -> 0 | BF7: =+'13-A1'!CE$6 -> 0 | BG7: =+'13-A1'!CF$6 -> 0 | BH7: =+'13-A1'!CG$6 -> 0 | BI7: =+'13-A1'!CH$6 -> 0
A8: =+'13-D1'!Z$6 -> 13-D1 | B8: =+'13-D1'!AA$6 -> 13-D1 Winterhaven Court | C8: =+'13-D1'!AB$6 -> 2124 Winterhaven Dr. | D8: =+'13-D1'!AC$6 -> Winterhaven | E8: =+'13-D1'!AD$6 -> 92283 | F8: =+'13-D1'!AE$6 -> Imperial | G8: =+'13-D1'!AF$6 -> SRO | I8: =+'13-D1'!AH$6 -> 0 | J8: =+'13-D1'!AI$6 -> 0 | K8: =+'13-D1'!AJ$6 -> 0 | L8: =+'13-D1'!AK$6 -> 0 | M8: =+'13-D1'!AL$6 -> 0 | N8: =+'13-D1'!AM$6 -> 0 | O8: =+'13-D1'!AN$6 -> 0 | P8: =+'13-D1'!AO$6 -> 0 | Q8: =+'13-D1'!AP$6 -> 0 | R8: =+'13-D1'!AQ$6 -> 0 | S8: =+'13-D1'!AR$6 -> 0 | T8: =+'13-D1'!AS$6 -> 0 | U8: =+'13-D1'!AT$6 -> 0 | V8: =+'13-D1'!AU$6 -> 0 | W8: =+'13-D1'!AV$6 -> 0 | X8: =+'13-D1'!AW$6 -> 0 | Y8: =+'13-D1'!AX$6 -> 0 | Z8: =+'13-D1'!AY$6 -> 0 | AA8: =+'13-D1'!AZ$6 -> 0 | AB8: =+'13-D1'!BA$6 -> 0 | AC8: =+'13-D1'!BB$6 -> 0 | AD8: =+'13-D1'!BC$6 -> 0 | AE8: =+'13-D1'!BD$6 -> 0 | AF8: =+'13-D1'!BE$6 -> 0 | AG8: =+'13-D1'!BF$6 -> 0 | AH8: =+'13-D1'!BG$6 -> 0 | AI8: =+'13-D1'!BH$6 -> 0 | AJ8: =+'13-D1'!BI$6 -> 0 | AK8: =+'13-D1'!BJ$6 -> 0 | AL8: =+'13-D1'!BK$6 -> 0 | AM8: =+'13-D1'!BL$6 -> 0 | AN8: =+'13-D1'!BM$6 -> 0 | AO8: =+'13-D1'!BN$6 -> 0 | AP8: =+'13-D1'!BO$6 -> 0 | AQ8: =+'13-D1'!BP$6 -> 0 | AR8: =+'13-D1'!BQ$6 -> 0 | AS8: =+'13-D1'!BR$6 -> 0 | AT8: =+'13-D1'!BS$6 -> 0 | AU8: =+'13-D1'!BT$6 -> 0 | AV8: =+'13-D1'!BU$6 -> 0 | AW8: =+'13-D1'!BV$6 -> 0 | AX8: =+'13-D1'!BW$6 -> 0 | AZ8: =+'13-D1'!BY$6 -> 0 | BB8: =+'13-D1'!CA$6 -> 0 | BC8: =+'13-D1'!CB$6 -> 0 | BD8: =+'13-D1'!CC$6 -> 0 | BE8: =+'13-D1'!CD$6 -> 0 | BF8: =+'13-D1'!CE$6 -> 0 | BG8: =+'13-D1'!CF$6 -> 0 | BH8: =+'13-D1'!CG$6 -> 0 | BI8: =+'13-D1'!CH$6 -> 0
A9: =+'15-A1'!Z$6 -> 15-A1 | B9: =+'15-A1'!AA$6 -> Bakersfield Superior Court | C9: =+'15-A1'!AB$6 -> 1315 Truxtun Ave, 1661 L Street | D9: =+'15-A1'!AC$6 -> Bakersfield | E9: =+'15-A1'!AD$6 -> 93301 | F9: =+'15-A1'!AE$6 -> Kern | G9: =+'15-A1'!AF$6 -> SRO | I9: =+'15-A1'!AH$6 -> 0 | J9: =+'15-A1'!AI$6 -> 0 | K9: =+'15-A1'!AJ$6 -> 0 | L9: =+'15-A1'!AK$6 -> 0 | M9: =+'15-A1'!AL$6 -> 0 | N9: =+'15-A1'!AM$6 -> 0 | O9: =+'15-A1'!AN$6 -> 0 | P9: =+'15-A1'!AO$6 -> 0 | Q9: =+'15-A1'!AP$6 -> 0 | R9: =+'15-A1'!AQ$6 -> 0 | S9: =+'15-A1'!AR$6 -> 0 | T9: =+'15-A1'!AS$6 -> 0 | U9: =+'15-A1'!AT$6 -> 0 | V9: =+'15-A1'!AU$6 -> 0 | W9: =+'15-A1'!AV$6 -> 0 | X9: =+'15-A1'!AW$6 -> 0 | Y9: =+'15-A1'!AX$6 -> 0 | Z9: =+'15-A1'!AY$6 -> 0 | AA9: =+'15-A1'!AZ$6 -> 0 | AB9: =+'15-A1'!BA$6 -> 0 | AC9: =+'15-A1'!BB$6 -> 0 | AD9: =+'15-A1'!BC$6 -> 0 | AE9: =+'15-A1'!BD$6 -> 0 | AF9: =+'15-A1'!BE$6 -> 0 | AG9: =+'15-A1'!BF$6 -> 0 | AH9: =+'15-A1'!BG$6 -> 0 | AI9: =+'15-A1'!BH$6 -> 0 | AJ9: =+'15-A1'!BI$6 -> 0 | AK9: =+'15-A1'!BJ$6 -> 0 | AL9: =+'15-A1'!BK$6 -> 0 | AM9: =+'15-A1'!BL$6 -> 0 | AN9: =+'15-A1'!BM$6 -> 0 | AO9: =+'15-A1'!BN$6 -> 0 | AP9: =+'15-A1'!BO$6 -> 0 | AQ9: =+'15-A1'!BP$6 -> 0 | AR9: =+'15-A1'!BQ$6 -> 0 | AS9: =+'15-A1'!BR$6 -> 0 | AT9: =+'15-A1'!BS$6 -> 0 | AU9: =+'15-A1'!BT$6 -> 0 | AV9: =+'15-A1'!BU$6 -> 0 | AW9: =+'15-A1'!BV$6 -> 0 | AX9: =+'15-A1'!BW$6 -> 0 | AZ9: =+'15-A1'!BY$6 -> 0 | BB9: =+'15-A1'!CA$6 -> 0 | BC9: =+'15-A1'!CB$6 -> 0 | BD9: =+'15-A1'!CC$6 -> 0 | BE9: =+'15-A1'!CD$6 -> 0 | BF9: =+'15-A1'!CE$6 -> 0 | BG9: =+'15-A1'!CF$6 -> 0 | BH9: =+'15-A1'!CG$6 -> 0 | BI9: =+'15-A1'!CH$6 -> 0
A10: =+'15-A2'!Z$6 -> 15-A2 | B10: =+'15-A2'!AA$6 -> Bakersfield Superior Court Modular | C10: =+'15-A2'!AB$6 -> 1415 Truxtun Avenue | D10: =+'15-A2'!AC$6 -> Bakersfield | E10: =+'15-A2'!AD$6 -> 93301 | F10: =+'15-A2'!AE$6 -> Kern | G10: =+'15-A2'!AF$6 -> SRO | I10: =+'15-A2'!AH$6 -> 0 | J10: =+'15-A2'!AI$6 -> 0 | K10: =+'15-A2'!AJ$6 -> 0 | L10: =+'15-A2'!AK$6 -> 0 | M10: =+'15-A2'!AL$6 -> 0 | N10: =+'15-A2'!AM$6 -> 0 | O10: =+'15-A2'!AN$6 -> 0 | P10: =+'15-A2'!AO$6 -> 0 | Q10: =+'15-A2'!AP$6 -> 0 | R10: =+'15-A2'!AQ$6 -> 0 | S10: =+'15-A2'!AR$6 -> 0 | T10: =+'15-A2'!AS$6 -> 0 | U10: =+'15-A2'!AT$6 -> 0 | V10: =+'15-A2'!AU$6 -> 0 | W10: =+'15-A2'!AV$6 -> 0 | X10: =+'15-A2'!AW$6 -> 0 | Y10: =+'15-A2'!AX$6 -> 0 | Z10: =+'15-A2'!AY$6 -> 0 | AA10: =+'15-A2'!AZ$6 -> 0 | AB10: =+'15-A2'!BA$6 -> 0 | AC10: =+'15-A2'!BB$6 -> 0 | AD10: =+'15-A2'!BC$6 -> 0 | AE10: =+'15-A2'!BD$6 -> 0 | AF10: =+'15-A2'!BE$6 -> 0 | AG10: =+'15-A2'!BF$6 -> 0 | AH10: =+'15-A2'!BG$6 -> 0 | AI10: =+'15-A2'!BH$6 -> 0 | AJ10: =+'15-A2'!BI$6 -> 0 | AK10: =+'15-A2'!BJ$6 -> 0 | AL10: =+'15-A2'!BK$6 -> 0 | AM10: =+'15-A2'!BL$6 -> 0 | AN10: =+'15-A2'!BM$6 -> 0 | AO10: =+'15-A2'!BN$6 -> 0 | AP10: =+'15-A2'!BO$6 -> 0 | AQ10: =+'15-A2'!BP$6 -> 0 | AR10: =+'15-A2'!BQ$6 -> 0 | AS10: =+'15-A2'!BR$6 -> 0 | AT10: =+'15-A2'!BS$6 -> 0 | AU10: =+'15-A2'!BT$6 -> 0 | AV10: =+'15-A2'!BU$6 -> 0 | AW10: =+'15-A2'!BV$6 -> 0 | AX10: =+'15-A2'!BW$6 -> 0 | AZ10: =+'15-A2'!BY$6 -> 0 | BB10: =+'15-A2'!CA$6 -> 0 | BC10: =+'15-A2'!CB$6 -> 0 | BD10: =+'15-A2'!CC$6 -> 0 | BE10: =+'15-A2'!CD$6 -> 0 | BF10: =+'15-A2'!CE$6 -> 0 | BG10: =+'15-A2'!CF$6 -> 0 | BH10: =+'15-A2'!CG$6 -> 0 | BI10: =+'15-A2'!CH$6 -> 0
A11: =+'15-C1'!Z$6 -> 15-C1 | B11: =+'15-C1'!AA$6 -> Bakersfield Juvenile Center | C11: =+'15-C1'!AB$6 -> 2100 College Ave. | D11: =+'15-C1'!AC$6 -> Bakersfield | E11: =+'15-C1'!AD$6 -> 93305 | F11: =+'15-C1'!AE$6 -> Kern | G11: =+'15-C1'!AF$6 -> SRO | I11: =+'15-C1'!AH$6 -> 0 | J11: =+'15-C1'!AI$6 -> 0 | K11: =+'15-C1'!AJ$6 -> 0 | L11: =+'15-C1'!AK$6 -> 0 | M11: =+'15-C1'!AL$6 -> 0 | N11: =+'15-C1'!AM$6 -> 0 | O11: =+'15-C1'!AN$6 -> 0 | P11: =+'15-C1'!AO$6 -> 0 | Q11: =+'15-C1'!AP$6 -> 0 | R11: =+'15-C1'!AQ$6 -> 0 | S11: =+'15-C1'!AR$6 -> 0 | T11: =+'15-C1'!AS$6 -> 0 | U11: =+'15-C1'!AT$6 -> 0 | V11: =+'15-C1'!AU$6 -> 0 | W11: =+'15-C1'!AV$6 -> 0 | X11: =+'15-C1'!AW$6 -> 0 | Y11: =+'15-C1'!AX$6 -> 0 | Z11: =+'15-C1'!AY$6 -> 0 | AA11: =+'15-C1'!AZ$6 -> 0 | AB11: =+'15-C1'!BA$6 -> 0 | AC11: =+'15-C1'!BB$6 -> 0 | AD11: =+'15-C1'!BC$6 -> 0 | AE11: =+'15-C1'!BD$6 -> 0 | AF11: =+'15-C1'!BE$6 -> 0 | AG11: =+'15-C1'!BF$6 -> 0 | AH11: =+'15-C1'!BG$6 -> 0 | AI11: =+'15-C1'!BH$6 -> 0 | AJ11: =+'15-C1'!BI$6 -> 0 | AK11: =+'15-C1'!BJ$6 -> 0 | AL11: =+'15-C1'!BK$6 -> 0 | AM11: =+'15-C1'!BL$6 -> 0 | AN11: =+'15-C1'!BM$6 -> 0 | AO11: =+'15-C1'!BN$6 -> 0 | AP11: =+'15-C1'!BO$6 -> 0 | AQ11: =+'15-C1'!BP$6 -> 0 | AR11: =+'15-C1'!BQ$6 -> 0 | AS11: =+'15-C1'!BR$6 -> 0 | AT11: =+'15-C1'!BS$6 -> 0 | AU11: =+'15-C1'!BT$6 -> 0 | AV11: =+'15-C1'!BU$6 -> 0 | AW11: =+'15-C1'!BV$6 -> 0 | AX11: =+'15-C1'!BW$6 -> 0 | AZ11: =+'15-C1'!BY$6 -> 0 | BB11: =+'15-C1'!CA$6 -> 0 | BC11: =+'15-C1'!CB$6 -> 0 | BD11: =+'15-C1'!CC$6 -> 0 | BE11: =+'15-C1'!CD$6 -> 0 | BF11: =+'15-C1'!CE$6 -> 0 | BG11: =+'15-C1'!CF$6 -> 0 | BH11: =+'15-C1'!CG$6 -> 0 | BI11: =+'15-C1'!CH$6 -> 0
A12: =+'15-D1'!Z$6 -> 15-D1 | B12: =+'15-D1'!AA$6 -> Delano/North Kern Court | C12: =+'15-D1'!AB$6 -> 1122 Jefferson St. | D12: =+'15-D1'!AC$6 -> Delano | E12: =+'15-D1'!AD$6 -> 93215 | F12: =+'15-D1'!AE$6 -> Kern | G12: =+'15-D1'!AF$6 -> SRO | I12: =+'15-D1'!AH$6 -> 0 | J12: =+'15-D1'!AI$6 -> 0 | K12: =+'15-D1'!AJ$6 -> 0 | L12: =+'15-D1'!AK$6 -> 0 | M12: =+'15-D1'!AL$6 -> 0 | N12: =+'15-D1'!AM$6 -> 0 | O12: =+'15-D1'!AN$6 -> 0 | P12: =+'15-D1'!AO$6 -> 0 | Q12: =+'15-D1'!AP$6 -> 0 | R12: =+'15-D1'!AQ$6 -> 0 | S12: =+'15-D1'!AR$6 -> 0 | T12: =+'15-D1'!AS$6 -> 0 | U12: =+'15-D1'!AT$6 -> 0 | V12: =+'15-D1'!AU$6 -> 0 | W12: =+'15-D1'!AV$6 -> 0 | X12: =+'15-D1'!AW$6 -> 0 | Y12: =+'15-D1'!AX$6 -> 0 | Z12: =+'15-D1'!AY$6 -> 0 | AA12: =+'15-D1'!AZ$6 -> 0 | AB12: =+'15-D1'!BA$6 -> 0 | AC12: =+'15-D1'!BB$6 -> 0 | AD12: =+'15-D1'!BC$6 -> 0 | AE12: =+'15-D1'!BD$6 -> 0 | AF12: =+'15-D1'!BE$6 -> 0 | AG12: =+'15-D1'!BF$6 -> 0 | AH12: =+'15-D1'!BG$6 -> 0 | AI12: =+'15-D1'!BH$6 -> 0 | AJ12: =+'15-D1'!BI$6 -> 0 | AK12: =+'15-D1'!BJ$6 -> 0 | AL12: =+'15-D1'!BK$6 -> 0 | AM12: =+'15-D1'!BL$6 -> 0 | AN12: =+'15-D1'!BM$6 -> 0 | AO12: =+'15-D1'!BN$6 -> 0 | AP12: =+'15-D1'!BO$6 -> 0 | AQ12: =+'15-D1'!BP$6 -> 0 | AR12: =+'15-D1'!BQ$6 -> 0 | AS12: =+'15-D1'!BR$6 -> 0 | AT12: =+'15-D1'!BS$6 -> 0 | AU12: =+'15-D1'!BT$6 -> 0 | AV12: =+'15-D1'!BU$6 -> 0 | AW12: =+'15-D1'!BV$6 -> 0 | AX12: =+'15-D1'!BW$6 -> 0 | AZ12: =+'15-D1'!BY$6 -> 0 | BB12: =+'15-D1'!CA$6 -> 0 | BC12: =+'15-D1'!CB$6 -> 0 | BD12: =+'15-D1'!CC$6 -> 0 | BE12: =+'15-D1'!CD$6 -> 0 | BF12: =+'15-D1'!CE$6 -> 0 | BG12: =+'15-D1'!CF$6 -> 0 | BH12: =+'15-D1'!CG$6 -> 0 | BI12: =+'15-D1'!CH$6 -> 0
A13: =+'15-E1'!Z$6 -> 15-E1 | B13: =+'15-E1'!AA$6 -> Shafter/Wasco Courts Bldg. | C13: =+'15-E1'!AB$6 -> 325 Central Valley Hwy | D13: =+'15-E1'!AC$6 -> Shafter | E13: =+'15-E1'!AD$6 -> 93263 | F13: =+'15-E1'!AE$6 -> Kern | G13: =+'15-E1'!AF$6 -> SRO | I13: =+'15-E1'!AH$6 -> 0 | J13: =+'15-E1'!AI$6 -> 0 | K13: =+'15-E1'!AJ$6 -> 0 | L13: =+'15-E1'!AK$6 -> 0 | M13: =+'15-E1'!AL$6 -> 0 | N13: =+'15-E1'!AM$6 -> 0 | O13: =+'15-E1'!AN$6 -> 0 | P13: =+'15-E1'!AO$6 -> 0 | Q13: =+'15-E1'!AP$6 -> 0 | R13: =+'15-E1'!AQ$6 -> 0 | S13: =+'15-E1'!AR$6 -> 0 | T13: =+'15-E1'!AS$6 -> 0 | U13: =+'15-E1'!AT$6 -> 0 | V13: =+'15-E1'!AU$6 -> 0 | W13: =+'15-E1'!AV$6 -> 0 | X13: =+'15-E1'!AW$6 -> 0 | Y13: =+'15-E1'!AX$6 -> 0 | Z13: =+'15-E1'!AY$6 -> 0 | AA13: =+'15-E1'!AZ$6 -> 0 | AB13: =+'15-E1'!BA$6 -> 0 | AC13: =+'15-E1'!BB$6 -> 0 | AD13: =+'15-E1'!BC$6 -> 0 | AE13: =+'15-E1'!BD$6 -> 0 | AF13: =+'15-E1'!BE$6 -> 0 | AG13: =+'15-E1'!BF$6 -> 0 | AH13: =+'15-E1'!BG$6 -> 0 | AI13: =+'15-E1'!BH$6 -> 0 | AJ13: =+'15-E1'!BI$6 -> 0 | AK13: =+'15-E1'!BJ$6 -> 0 | AL13: =+'15-E1'!BK$6 -> 0 | AM13: =+'15-E1'!BL$6 -> 0 | AN13: =+'15-E1'!BM$6 -> 0 | AO13: =+'15-E1'!BN$6 -> 0 | AP13: =+'15-E1'!BO$6 -> 0 | AQ13: =+'15-E1'!BP$6 -> 0 | AR13: =+'15-E1'!BQ$6 -> 0 | AS13: =+'15-E1'!BR$6 -> 0 | AT13: =+'15-E1'!BS$6 -> 0 | AU13: =+'15-E1'!BT$6 -> 0 | AV13: =+'15-E1'!BU$6 -> 0 | AW13: =+'15-E1'!BV$6 -> 0 | AX13: =+'15-E1'!BW$6 -> 0 | AZ13: =+'15-E1'!BY$6 -> 0 | BB13: =+'15-E1'!CA$6 -> 0 | BC13: =+'15-E1'!CB$6 -> 0 | BD13: =+'15-E1'!CC$6 -> 0 | BE13: =+'15-E1'!CD$6 -> 0 | BF13: =+'15-E1'!CE$6 -> 0 | BG13: =+'15-E1'!CF$6 -> 0 | BH13: =+'15-E1'!CG$6 -> 0 | BI13: =+'15-E1'!CH$6 -> 0
A14: =+'15-F1'!Z$6 -> 15-F1 | B14: =+'15-F1'!AA$6 -> Taft Courts Bldg. | C14: =+'15-F1'!AB$6 -> 311 N Lincoln St. | D14: =+'15-F1'!AC$6 -> Taft | E14: =+'15-F1'!AD$6 -> 93268 | F14: =+'15-F1'!AE$6 -> Kern | G14: =+'15-F1'!AF$6 -> SRO | I14: =+'15-F1'!AH$6 -> 0 | J14: =+'15-F1'!AI$6 -> 0 | K14: =+'15-F1'!AJ$6 -> 0 | L14: =+'15-F1'!AK$6 -> 0 | M14: =+'15-F1'!AL$6 -> 0 | N14: =+'15-F1'!AM$6 -> 0 | O14: =+'15-F1'!AN$6 -> 0 | P14: =+'15-F1'!AO$6 -> 0 | Q14: =+'15-F1'!AP$6 -> 0 | R14: =+'15-F1'!AQ$6 -> 0 | S14: =+'15-F1'!AR$6 -> 0 | T14: =+'15-F1'!AS$6 -> 0 | U14: =+'15-F1'!AT$6 -> 0 | V14: =+'15-F1'!AU$6 -> 0 | W14: =+'15-F1'!AV$6 -> 0 | X14: =+'15-F1'!AW$6 -> 0 | Y14: =+'15-F1'!AX$6 -> 0 | Z14: =+'15-F1'!AY$6 -> 0 | AA14: =+'15-F1'!AZ$6 -> 0 | AB14: =+'15-F1'!BA$6 -> 0 | AC14: =+'15-F1'!BB$6 -> 0 | AD14: =+'15-F1'!BC$6 -> 0 | AE14: =+'15-F1'!BD$6 -> 0 | AF14: =+'15-F1'!BE$6 -> 0 | AG14: =+'15-F1'!BF$6 -> 0 | AH14: =+'15-F1'!BG$6 -> 0 | AI14: =+'15-F1'!BH$6 -> 0 | AJ14: =+'15-F1'!BI$6 -> 0 | AK14: =+'15-F1'!BJ$6 -> 0 | AL14: =+'15-F1'!BK$6 -> 0 | AM14: =+'15-F1'!BL$6 -> 0 | AN14: =+'15-F1'!BM$6 -> 0 | AO14: =+'15-F1'!BN$6 -> 0 | AP14: =+'15-F1'!BO$6 -> 0 | AQ14: =+'15-F1'!BP$6 -> 0 | AR14: =+'15-F1'!BQ$6 -> 0 | AS14: =+'15-F1'!BR$6 -> 0 | AT14: =+'15-F1'!BS$6 -> 0 | AU14: =+'15-F1'!BT$6 -> 0 | AV14: =+'15-F1'!BU$6 -> 0 | AW14: =+'15-F1'!BV$6 -> 0 | AX14: =+'15-F1'!BW$6 -> 0 | AZ14: =+'15-F1'!BY$6 -> 0 | BB14: =+'15-F1'!CA$6 -> 0 | BC14: =+'15-F1'!CB$6 -> 0 | BD14: =+'15-F1'!CC$6 -> 0 | BE14: =+'15-F1'!CD$6 -> 0 | BF14: =+'15-F1'!CE$6 -> 0 | BG14: =+'15-F1'!CF$6 -> 0 | BH14: =+'15-F1'!CG$6 -> 0 | BI14: =+'15-F1'!CH$6 -> 0
A15: =+'15-H1'!Z$6 -> 15-H1 | B15: =+'15-H1'!AA$6 -> Arvin/ Lamont Branch | C15: =+'15-H1'!AB$6 -> 12022 Main St. | D15: =+'15-H1'!AC$6 -> Lamont | E15: =+'15-H1'!AD$6 -> 93241 | F15: =+'15-H1'!AE$6 -> Kern | G15: =+'15-H1'!AF$6 -> SRO | I15: =+'15-H1'!AH$6 -> 0 | J15: =+'15-H1'!AI$6 -> 0 | K15: =+'15-H1'!AJ$6 -> 0 | L15: =+'15-H1'!AK$6 -> 0 | M15: =+'15-H1'!AL$6 -> 0 | N15: =+'15-H1'!AM$6 -> 0 | O15: =+'15-H1'!AN$6 -> 0 | P15: =+'15-H1'!AO$6 -> 0 | Q15: =+'15-H1'!AP$6 -> 0 | R15: =+'15-H1'!AQ$6 -> 0 | S15: =+'15-H1'!AR$6 -> 0 | T15: =+'15-H1'!AS$6 -> 0 | U15: =+'15-H1'!AT$6 -> 0 | V15: =+'15-H1'!AU$6 -> 0 | W15: =+'15-H1'!AV$6 -> 0 | X15: =+'15-H1'!AW$6 -> 0 | Y15: =+'15-H1'!AX$6 -> 0 | Z15: =+'15-H1'!AY$6 -> 0 | AA15: =+'15-H1'!AZ$6 -> 0 | AB15: =+'15-H1'!BA$6 -> 0 | AC15: =+'15-H1'!BB$6 -> 0 | AD15: =+'15-H1'!BC$6 -> 0 | AE15: =+'15-H1'!BD$6 -> 0 | AF15: =+'15-H1'!BE$6 -> 0 | AG15: =+'15-H1'!BF$6 -> 0 | AH15: =+'15-H1'!BG$6 -> 0 | AI15: =+'15-H1'!BH$6 -> 0 | AJ15: =+'15-H1'!BI$6 -> 0 | AK15: =+'15-H1'!BJ$6 -> 0 | AL15: =+'15-H1'!BK$6 -> 0 | AM15: =+'15-H1'!BL$6 -> 0 | AN15: =+'15-H1'!BM$6 -> 0 | AO15: =+'15-H1'!BN$6 -> 0 | AP15: =+'15-H1'!BO$6 -> 0 | AQ15: =+'15-H1'!BP$6 -> 0 | AR15: =+'15-H1'!BQ$6 -> 0 | AS15: =+'15-H1'!BR$6 -> 0 | AT15: =+'15-H1'!BS$6 -> 0 | AU15: =+'15-H1'!BT$6 -> 0 | AV15: =+'15-H1'!BU$6 -> 0 | AW15: =+'15-H1'!BV$6 -> 0 | AX15: =+'15-H1'!BW$6 -> 0 | AZ15: =+'15-H1'!BY$6 -> 0 | BB15: =+'15-H1'!CA$6 -> 0 | BC15: =+'15-H1'!CB$6 -> 0 | BD15: =+'15-H1'!CC$6 -> 0 | BE15: =+'15-H1'!CD$6 -> 0 | BF15: =+'15-H1'!CE$6 -> 0 | BG15: =+'15-H1'!CF$6 -> 0 | BH15: =+'15-H1'!CG$6 -> 0 | BI15: =+'15-H1'!CH$6 -> 0
A16: =+'15-J2'!Z$6 -> 15-J2 | B16: =+'15-J2'!AA$6 -> Ridgecrest - Division B Courtroom | C16: =+'15-J2'!AB$6 -> 420 N China Lake Blvd. | D16: =+'15-J2'!AC$6 -> Ridgecrest | E16: =+'15-J2'!AD$6 -> 93555 | F16: =+'15-J2'!AE$6 -> Kern | G16: =+'15-J2'!AF$6 -> SRO | I16: =+'15-J2'!AH$6 -> 0 | J16: =+'15-J2'!AI$6 -> 0 | K16: =+'15-J2'!AJ$6 -> 0 | L16: =+'15-J2'!AK$6 -> 0 | M16: =+'15-J2'!AL$6 -> 0 | N16: =+'15-J2'!AM$6 -> 0 | O16: =+'15-J2'!AN$6 -> 0 | P16: =+'15-J2'!AO$6 -> 0 | Q16: =+'15-J2'!AP$6 -> 0 | R16: =+'15-J2'!AQ$6 -> 0 | S16: =+'15-J2'!AR$6 -> 0 | T16: =+'15-J2'!AS$6 -> 0 | U16: =+'15-J2'!AT$6 -> 0 | V16: =+'15-J2'!AU$6 -> 0 | W16: =+'15-J2'!AV$6 -> 0 | X16: =+'15-J2'!AW$6 -> 0 | Y16: =+'15-J2'!AX$6 -> 0 | Z16: =+'15-J2'!AY$6 -> 0 | AA16: =+'15-J2'!AZ$6 -> 0 | AB16: =+'15-J2'!BA$6 -> 0 | AC16: =+'15-J2'!BB$6 -> 0 | AD16: =+'15-J2'!BC$6 -> 0 | AE16: =+'15-J2'!BD$6 -> 0 | AF16: =+'15-J2'!BE$6 -> 0 | AG16: =+'15-J2'!BF$6 -> 0 | AH16: =+'15-J2'!BG$6 -> 0 | AI16: =+'15-J2'!BH$6 -> 0 | AJ16: =+'15-J2'!BI$6 -> 0 | AK16: =+'15-J2'!BJ$6 -> 0 | AL16: =+'15-J2'!BK$6 -> 0 | AM16: =+'15-J2'!BL$6 -> 0 | AN16: =+'15-J2'!BM$6 -> 0 | AO16: =+'15-J2'!BN$6 -> 0 | AP16: =+'15-J2'!BO$6 -> 0 | AQ16: =+'15-J2'!BP$6 -> 0 | AR16: =+'15-J2'!BQ$6 -> 0 | AS16: =+'15-J2'!BR$6 -> 0 | AT16: =+'15-J2'!BS$6 -> 0 | AU16: =+'15-J2'!BT$6 -> 0 | AV16: =+'15-J2'!BU$6 -> 0 | AW16: =+'15-J2'!BV$6 -> 0 | AX16: =+'15-J2'!BW$6 -> 0 | AZ16: =+'15-J2'!BY$6 -> 0 | BB16: =+'15-J2'!CA$6 -> 0 | BC16: =+'15-J2'!CB$6 -> 0 | BD16: =+'15-J2'!CC$6 -> 0 | BE16: =+'15-J2'!CD$6 -> 0 | BF16: =+'15-J2'!CE$6 -> 0 | BG16: =+'15-J2'!CF$6 -> 0 | BH16: =+'15-J2'!CG$6 -> 0 | BI16: =+'15-J2'!CH$6 -> 0
A17: =+'19-AC1'!Z$6 -> 19-AC1 | B17: =+'19-AC1'!AA$6 -> San Fernando Courthouse | C17: =+'19-AC1'!AB$6 -> 900 Third Street | D17: =+'19-AC1'!AC$6 -> San Fernando | E17: =+'19-AC1'!AD$6 -> 91340 | F17: =+'19-AC1'!AE$6 -> Los Angeles | G17: =+'19-AC1'!AF$6 -> SRO | I17: =+'19-AC1'!AH$6 -> 0 | J17: =+'19-AC1'!AI$6 -> 0 | K17: =+'19-AC1'!AJ$6 -> 0 | L17: =+'19-AC1'!AK$6 -> 0 | M17: =+'19-AC1'!AL$6 -> 0 | N17: =+'19-AC1'!AM$6 -> 0 | O17: =+'19-AC1'!AN$6 -> 0 | P17: =+'19-AC1'!AO$6 -> 0 | Q17: =+'19-AC1'!AP$6 -> 0 | R17: =+'19-AC1'!AQ$6 -> 0 | S17: =+'19-AC1'!AR$6 -> 0 | T17: =+'19-AC1'!AS$6 -> 0 | U17: =+'19-AC1'!AT$6 -> 0 | V17: =+'19-AC1'!AU$6 -> 0 | W17: =+'19-AC1'!AV$6 -> 0 | X17: =+'19-AC1'!AW$6 -> 0 | Y17: =+'19-AC1'!AX$6 -> 0 | Z17: =+'19-AC1'!AY$6 -> 0 | AA17: =+'19-AC1'!AZ$6 -> 0 | AB17: =+'19-AC1'!BA$6 -> 0 | AC17: =+'19-AC1'!BB$6 -> 0 | AD17: =+'19-AC1'!BC$6 -> 0 | AE17: =+'19-AC1'!BD$6 -> 0 | AF17: =+'19-AC1'!BE$6 -> 0 | AG17: =+'19-AC1'!BF$6 -> 0 | AH17: =+'19-AC1'!BG$6 -> 0 | AI17: =+'19-AC1'!BH$6 -> 0 | AJ17: =+'19-AC1'!BI$6 -> 0 | AK17: =+'19-AC1'!BJ$6 -> 0 | AL17: =+'19-AC1'!BK$6 -> 0 | AM17: =+'19-AC1'!BL$6 -> 0 | AN17: =+'19-AC1'!BM$6 -> 0 | AO17: =+'19-AC1'!BN$6 -> 0 | AP17: =+'19-AC1'!BO$6 -> 0 | AQ17: =+'19-AC1'!BP$6 -> 0 | AR17: =+'19-AC1'!BQ$6 -> 0 | AS17: =+'19-AC1'!BR$6 -> 0 | AT17: =+'19-AC1'!BS$6 -> 0 | AU17: =+'19-AC1'!BT$6 -> 0 | AV17: =+'19-AC1'!BU$6 -> 0 | AW17: =+'19-AC1'!BV$6 -> 0 | AX17: =+'19-AC1'!BW$6 -> 0 | AZ17: =+'19-AC1'!BY$6 -> 0 | BB17: =+'19-AC1'!CA$6 -> 0 | BC17: =+'19-AC1'!CB$6 -> 0 | BD17: =+'19-AC1'!CC$6 -> 0 | BE17: =+'19-AC1'!CD$6 -> 0 | BF17: =+'19-AC1'!CE$6 -> 0 | BG17: =+'19-AC1'!CF$6 -> 0 | BH17: =+'19-AC1'!CG$6 -> 0 | BI17: =+'19-AC1'!CH$6 -> 0
A18: =+'19-AG1'!Z$6 -> 19-AG1 | B18: =+'19-AG1'!AA$6 -> Compton Courthouse | C18: =+'19-AG1'!AB$6 -> 200 West Compton Boulevard | D18: =+'19-AG1'!AC$6 -> Compton | E18: =+'19-AG1'!AD$6 -> 90220 | F18: =+'19-AG1'!AE$6 -> Los Angeles | G18: =+'19-AG1'!AF$6 -> SRO | I18: =+'19-AG1'!AH$6 -> 0 | J18: =+'19-AG1'!AI$6 -> 0 | K18: =+'19-AG1'!AJ$6 -> 0 | L18: =+'19-AG1'!AK$6 -> 0 | M18: =+'19-AG1'!AL$6 -> 0 | N18: =+'19-AG1'!AM$6 -> 0 | O18: =+'19-AG1'!AN$6 -> 0 | P18: =+'19-AG1'!AO$6 -> 0 | Q18: =+'19-AG1'!AP$6 -> 0 | R18: =+'19-AG1'!AQ$6 -> 0 | S18: =+'19-AG1'!AR$6 -> 0 | T18: =+'19-AG1'!AS$6 -> 0 | U18: =+'19-AG1'!AT$6 -> 0 | V18: =+'19-AG1'!AU$6 -> 0 | W18: =+'19-AG1'!AV$6 -> 0 | X18: =+'19-AG1'!AW$6 -> 0 | Y18: =+'19-AG1'!AX$6 -> 0 | Z18: =+'19-AG1'!AY$6 -> 0 | AA18: =+'19-AG1'!AZ$6 -> 0 | AB18: =+'19-AG1'!BA$6 -> 0 | AC18: =+'19-AG1'!BB$6 -> 0 | AD18: =+'19-AG1'!BC$6 -> 0 | AE18: =+'19-AG1'!BD$6 -> 0 | AF18: =+'19-AG1'!BE$6 -> 0 | AG18: =+'19-AG1'!BF$6 -> 0 | AH18: =+'19-AG1'!BG$6 -> 0 | AI18: =+'19-AG1'!BH$6 -> 0 | AJ18: =+'19-AG1'!BI$6 -> 0 | AK18: =+'19-AG1'!BJ$6 -> 0 | AL18: =+'19-AG1'!BK$6 -> 0 | AM18: =+'19-AG1'!BL$6 -> 0 | AN18: =+'19-AG1'!BM$6 -> 0 | AO18: =+'19-AG1'!BN$6 -> 0 | AP18: =+'19-AG1'!BO$6 -> 0 | AQ18: =+'19-AG1'!BP$6 -> 0 | AR18: =+'19-AG1'!BQ$6 -> 0 | AS18: =+'19-AG1'!BR$6 -> 0 | AT18: =+'19-AG1'!BS$6 -> 0 | AU18: =+'19-AG1'!BT$6 -> 0 | AV18: =+'19-AG1'!BU$6 -> 0 | AW18: =+'19-AG1'!BV$6 -> 0 | AX18: =+'19-AG1'!BW$6 -> 0 | AZ18: =+'19-AG1'!BY$6 -> 0 | BB18: =+'19-AG1'!CA$6 -> 0 | BC18: =+'19-AG1'!CB$6 -> 0 | BD18: =+'19-AG1'!CC$6 -> 0 | BE18: =+'19-AG1'!CD$6 -> 0 | BF18: =+'19-AG1'!CE$6 -> 0 | BG18: =+'19-AG1'!CF$6 -> 0 | BH18: =+'19-AG1'!CG$6 -> 0 | BI18: =+'19-AG1'!CH$6 -> 0
A19: =+'19-AK1'!Z$6 -> 19-AK1 | B19: =+'19-AK1'!AA$6 -> Norwalk Courthouse | C19: =+'19-AK1'!AB$6 -> 12720 Norwalk Boulevard | D19: =+'19-AK1'!AC$6 -> Norwalk | E19: =+'19-AK1'!AD$6 -> 90650 | F19: =+'19-AK1'!AE$6 -> Los Angeles | G19: =+'19-AK1'!AF$6 -> SRO | I19: =+'19-AK1'!AH$6 -> 0 | J19: =+'19-AK1'!AI$6 -> 0 | K19: =+'19-AK1'!AJ$6 -> 0 | L19: =+'19-AK1'!AK$6 -> 0 | M19: =+'19-AK1'!AL$6 -> 0 | N19: =+'19-AK1'!AM$6 -> 0 | O19: =+'19-AK1'!AN$6 -> 0 | P19: =+'19-AK1'!AO$6 -> 0 | Q19: =+'19-AK1'!AP$6 -> 0 | R19: =+'19-AK1'!AQ$6 -> 0 | S19: =+'19-AK1'!AR$6 -> 0 | T19: =+'19-AK1'!AS$6 -> 0 | U19: =+'19-AK1'!AT$6 -> 0 | V19: =+'19-AK1'!AU$6 -> 0 | W19: =+'19-AK1'!AV$6 -> 0 | X19: =+'19-AK1'!AW$6 -> 0 | Y19: =+'19-AK1'!AX$6 -> 0 | Z19: =+'19-AK1'!AY$6 -> 0 | AA19: =+'19-AK1'!AZ$6 -> 0 | AB19: =+'19-AK1'!BA$6 -> 0 | AC19: =+'19-AK1'!BB$6 -> 0 | AD19: =+'19-AK1'!BC$6 -> 0 | AE19: =+'19-AK1'!BD$6 -> 0 | AF19: =+'19-AK1'!BE$6 -> 0 | AG19: =+'19-AK1'!BF$6 -> 0 | AH19: =+'19-AK1'!BG$6 -> 0 | AI19: =+'19-AK1'!BH$6 -> 0 | AJ19: =+'19-AK1'!BI$6 -> 0 | AK19: =+'19-AK1'!BJ$6 -> 0 | AL19: =+'19-AK1'!BK$6 -> 0 | AM19: =+'19-AK1'!BL$6 -> 0 | AN19: =+'19-AK1'!BM$6 -> 0 | AO19: =+'19-AK1'!BN$6 -> 0 | AP19: =+'19-AK1'!BO$6 -> 0 | AQ19: =+'19-AK1'!BP$6 -> 0 | AR19: =+'19-AK1'!BQ$6 -> 0 | AS19: =+'19-AK1'!BR$6 -> 0 | AT19: =+'19-AK1'!BS$6 -> 0 | AU19: =+'19-AK1'!BT$6 -> 0 | AV19: =+'19-AK1'!BU$6 -> 0 | AW19: =+'19-AK1'!BV$6 -> 0 | AX19: =+'19-AK1'!BW$6 -> 0 | AZ19: =+'19-AK1'!BY$6 -> 0 | BB19: =+'19-AK1'!CA$6 -> 0 | BC19: =+'19-AK1'!CB$6 -> 0 | BD19: =+'19-AK1'!CC$6 -> 0 | BE19: =+'19-AK1'!CD$6 -> 0 | BF19: =+'19-AK1'!CE$6 -> 0 | BG19: =+'19-AK1'!CF$6 -> 0 | BH19: =+'19-AK1'!CG$6 -> 0 | BI19: =+'19-AK1'!CH$6 -> 0
A20: =+'19-AL1'!Z$6 -> 19-AL1 | B20: =+'19-AL1'!AA$6 -> Bellflower Courthouse | C20: =+'19-AL1'!AB$6 -> 10025 East Flower Street | D20: =+'19-AL1'!AC$6 -> Bellflower | E20: =+'19-AL1'!AD$6 -> 90706 | F20: =+'19-AL1'!AE$6 -> Los Angeles | G20: =+'19-AL1'!AF$6 -> SRO | I20: =+'19-AL1'!AH$6 -> 0 | J20: =+'19-AL1'!AI$6 -> 0 | K20: =+'19-AL1'!AJ$6 -> 0 | L20: =+'19-AL1'!AK$6 -> 0 | M20: =+'19-AL1'!AL$6 -> 0 | N20: =+'19-AL1'!AM$6 -> 0 | O20: =+'19-AL1'!AN$6 -> 0 | P20: =+'19-AL1'!AO$6 -> 0 | Q20: =+'19-AL1'!AP$6 -> 0 | R20: =+'19-AL1'!AQ$6 -> 0 | S20: =+'19-AL1'!AR$6 -> 0 | T20: =+'19-AL1'!AS$6 -> 0 | U20: =+'19-AL1'!AT$6 -> 0 | V20: =+'19-AL1'!AU$6 -> 0 | W20: =+'19-AL1'!AV$6 -> 0 | X20: =+'19-AL1'!AW$6 -> 0 | Y20: =+'19-AL1'!AX$6 -> 0 | Z20: =+'19-AL1'!AY$6 -> 0 | AA20: =+'19-AL1'!AZ$6 -> 0 | AB20: =+'19-AL1'!BA$6 -> 0 | AC20: =+'19-AL1'!BB$6 -> 0 | AD20: =+'19-AL1'!BC$6 -> 0 | AE20: =+'19-AL1'!BD$6 -> 0 | AF20: =+'19-AL1'!BE$6 -> 0 | AG20: =+'19-AL1'!BF$6 -> 0 | AH20: =+'19-AL1'!BG$6 -> 0 | AI20: =+'19-AL1'!BH$6 -> 0 | AJ20: =+'19-AL1'!BI$6 -> 0 | AK20: =+'19-AL1'!BJ$6 -> 0 | AL20: =+'19-AL1'!BK$6 -> 0 | AM20: =+'19-AL1'!BL$6 -> 0 | AN20: =+'19-AL1'!BM$6 -> 0 | AO20: =+'19-AL1'!BN$6 -> 0 | AP20: =+'19-AL1'!BO$6 -> 0 | AQ20: =+'19-AL1'!BP$6 -> 0 | AR20: =+'19-AL1'!BQ$6 -> 0 | AS20: =+'19-AL1'!BR$6 -> 0 | AT20: =+'19-AL1'!BS$6 -> 0 | AU20: =+'19-AL1'!BT$6 -> 0 | AV20: =+'19-AL1'!BU$6 -> 0 | AW20: =+'19-AL1'!BV$6 -> 0 | AX20: =+'19-AL1'!BW$6 -> 0 | AZ20: =+'19-AL1'!BY$6 -> 0 | BB20: =+'19-AL1'!CA$6 -> 0 | BC20: =+'19-AL1'!CB$6 -> 0 | BD20: =+'19-AL1'!CC$6 -> 0 | BE20: =+'19-AL1'!CD$6 -> 0 | BF20: =+'19-AL1'!CE$6 -> 0 | BG20: =+'19-AL1'!CF$6 -> 0 | BH20: =+'19-AL1'!CG$6 -> 0 | BI20: =+'19-AL1'!CH$6 -> 0
A21: =+'19-AM1'!Z$6 -> 19-AM1 | B21: =+'19-AM1'!AA$6 -> Downey Courthouse | C21: =+'19-AM1'!AB$6 -> 7500 East Imperial Highway | D21: =+'19-AM1'!AC$6 -> Downey | E21: =+'19-AM1'!AD$6 -> 90242 | F21: =+'19-AM1'!AE$6 -> Los Angeles | G21: =+'19-AM1'!AF$6 -> SRO | I21: =+'19-AM1'!AH$6 -> 0 | J21: =+'19-AM1'!AI$6 -> 0 | K21: =+'19-AM1'!AJ$6 -> 0 | L21: =+'19-AM1'!AK$6 -> 0 | M21: =+'19-AM1'!AL$6 -> 0 | N21: =+'19-AM1'!AM$6 -> 0 | O21: =+'19-AM1'!AN$6 -> 0 | P21: =+'19-AM1'!AO$6 -> 0 | Q21: =+'19-AM1'!AP$6 -> 0 | R21: =+'19-AM1'!AQ$6 -> 0 | S21: =+'19-AM1'!AR$6 -> 0 | T21: =+'19-AM1'!AS$6 -> 0 | U21: =+'19-AM1'!AT$6 -> 0 | V21: =+'19-AM1'!AU$6 -> 0 | W21: =+'19-AM1'!AV$6 -> 0 | X21: =+'19-AM1'!AW$6 -> 0 | Y21: =+'19-AM1'!AX$6 -> 0 | Z21: =+'19-AM1'!AY$6 -> 0 | AA21: =+'19-AM1'!AZ$6 -> 0 | AB21: =+'19-AM1'!BA$6 -> 0 | AC21: =+'19-AM1'!BB$6 -> 0 | AD21: =+'19-AM1'!BC$6 -> 0 | AE21: =+'19-AM1'!BD$6 -> 0 | AF21: =+'19-AM1'!BE$6 -> 0 | AG21: =+'19-AM1'!BF$6 -> 0 | AH21: =+'19-AM1'!BG$6 -> 0 | AI21: =+'19-AM1'!BH$6 -> 0 | AJ21: =+'19-AM1'!BI$6 -> 0 | AK21: =+'19-AM1'!BJ$6 -> 0 | AL21: =+'19-AM1'!BK$6 -> 0 | AM21: =+'19-AM1'!BL$6 -> 0 | AN21: =+'19-AM1'!BM$6 -> 0 | AO21: =+'19-AM1'!BN$6 -> 0 | AP21: =+'19-AM1'!BO$6 -> 0 | AQ21: =+'19-AM1'!BP$6 -> 0 | AR21: =+'19-AM1'!BQ$6 -> 0 | AS21: =+'19-AM1'!BR$6 -> 0 | AT21: =+'19-AM1'!BS$6 -> 0 | AU21: =+'19-AM1'!BT$6 -> 0 | AV21: =+'19-AM1'!BU$6 -> 0 | AW21: =+'19-AM1'!BV$6 -> 0 | AX21: =+'19-AM1'!BW$6 -> 0 | AZ21: =+'19-AM1'!BY$6 -> 0 | BB21: =+'19-AM1'!CA$6 -> 0 | BC21: =+'19-AM1'!CB$6 -> 0 | BD21: =+'19-AM1'!CC$6 -> 0 | BE21: =+'19-AM1'!CD$6 -> 0 | BF21: =+'19-AM1'!CE$6 -> 0 | BG21: =+'19-AM1'!CF$6 -> 0 | BH21: =+'19-AM1'!CG$6 -> 0 | BI21: =+'19-AM1'!CH$6 -> 0
A22: =+'19-AO1'!Z$6 -> 19-AO1 | B22: =+'19-AO1'!AA$6 -> Whittier Courthouse | C22: =+'19-AO1'!AB$6 -> 7339 Painter Avenue | D22: =+'19-AO1'!AC$6 -> Whittier | E22: =+'19-AO1'!AD$6 -> 90602 | F22: =+'19-AO1'!AE$6 -> Los Angeles | G22: =+'19-AO1'!AF$6 -> SRO | I22: =+'19-AO1'!AH$6 -> 0 | J22: =+'19-AO1'!AI$6 -> 0 | K22: =+'19-AO1'!AJ$6 -> 0 | L22: =+'19-AO1'!AK$6 -> 0 | M22: =+'19-AO1'!AL$6 -> 0 | N22: =+'19-AO1'!AM$6 -> 0 | O22: =+'19-AO1'!AN$6 -> 0 | P22: =+'19-AO1'!AO$6 -> 0 | Q22: =+'19-AO1'!AP$6 -> 0 | R22: =+'19-AO1'!AQ$6 -> 0 | S22: =+'19-AO1'!AR$6 -> 0 | T22: =+'19-AO1'!AS$6 -> 0 | U22: =+'19-AO1'!AT$6 -> 0 | V22: =+'19-AO1'!AU$6 -> 0 | W22: =+'19-AO1'!AV$6 -> 0 | X22: =+'19-AO1'!AW$6 -> 0 | Y22: =+'19-AO1'!AX$6 -> 0 | Z22: =+'19-AO1'!AY$6 -> 0 | AA22: =+'19-AO1'!AZ$6 -> 0 | AB22: =+'19-AO1'!BA$6 -> 0 | AC22: =+'19-AO1'!BB$6 -> 0 | AD22: =+'19-AO1'!BC$6 -> 0 | AE22: =+'19-AO1'!BD$6 -> 0 | AF22: =+'19-AO1'!BE$6 -> 0 | AG22: =+'19-AO1'!BF$6 -> 0 | AH22: =+'19-AO1'!BG$6 -> 0 | AI22: =+'19-AO1'!BH$6 -> 0 | AJ22: =+'19-AO1'!BI$6 -> 0 | AK22: =+'19-AO1'!BJ$6 -> 0 | AL22: =+'19-AO1'!BK$6 -> 0 | AM22: =+'19-AO1'!BL$6 -> 0 | AN22: =+'19-AO1'!BM$6 -> 0 | AO22: =+'19-AO1'!BN$6 -> 0 | AP22: =+'19-AO1'!BO$6 -> 0 | AQ22: =+'19-AO1'!BP$6 -> 0 | AR22: =+'19-AO1'!BQ$6 -> 0 | AS22: =+'19-AO1'!BR$6 -> 0 | AT22: =+'19-AO1'!BS$6 -> 0 | AU22: =+'19-AO1'!BT$6 -> 0 | AV22: =+'19-AO1'!BU$6 -> 0 | AW22: =+'19-AO1'!BV$6 -> 0 | AX22: =+'19-AO1'!BW$6 -> 0 | AZ22: =+'19-AO1'!BY$6 -> 0 | BB22: =+'19-AO1'!CA$6 -> 0 | BC22: =+'19-AO1'!CB$6 -> 0 | BD22: =+'19-AO1'!CC$6 -> 0 | BE22: =+'19-AO1'!CD$6 -> 0 | BF22: =+'19-AO1'!CE$6 -> 0 | BG22: =+'19-AO1'!CF$6 -> 0 | BH22: =+'19-AO1'!CG$6 -> 0 | BI22: =+'19-AO1'!CH$6 -> 0
A23: =+'19-AP1'!Z$6 -> 19-AP1 | B23: =+'19-AP1'!AA$6 -> Santa Monica Courthouse | C23: =+'19-AP1'!AB$6 -> 1725 Main Street | D23: =+'19-AP1'!AC$6 -> Santa Monica | E23: =+'19-AP1'!AD$6 -> 90401 | F23: =+'19-AP1'!AE$6 -> Los Angeles | G23: =+'19-AP1'!AF$6 -> SRO | I23: =+'19-AP1'!AH$6 -> 0 | J23: =+'19-AP1'!AI$6 -> 0 | K23: =+'19-AP1'!AJ$6 -> 0 | L23: =+'19-AP1'!AK$6 -> 0 | M23: =+'19-AP1'!AL$6 -> 0 | N23: =+'19-AP1'!AM$6 -> 0 | O23: =+'19-AP1'!AN$6 -> 0 | P23: =+'19-AP1'!AO$6 -> 0 | Q23: =+'19-AP1'!AP$6 -> 0 | R23: =+'19-AP1'!AQ$6 -> 0 | S23: =+'19-AP1'!AR$6 -> 0 | T23: =+'19-AP1'!AS$6 -> 0 | U23: =+'19-AP1'!AT$6 -> 0 | V23: =+'19-AP1'!AU$6 -> 0 | W23: =+'19-AP1'!AV$6 -> 0 | X23: =+'19-AP1'!AW$6 -> 0 | Y23: =+'19-AP1'!AX$6 -> 0 | Z23: =+'19-AP1'!AY$6 -> 0 | AA23: =+'19-AP1'!AZ$6 -> 0 | AB23: =+'19-AP1'!BA$6 -> 0 | AC23: =+'19-AP1'!BB$6 -> 0 | AD23: =+'19-AP1'!BC$6 -> 0 | AE23: =+'19-AP1'!BD$6 -> 0 | AF23: =+'19-AP1'!BE$6 -> 0 | AG23: =+'19-AP1'!BF$6 -> 0 | AH23: =+'19-AP1'!BG$6 -> 0 | AI23: =+'19-AP1'!BH$6 -> 0 | AJ23: =+'19-AP1'!BI$6 -> 0 | AK23: =+'19-AP1'!BJ$6 -> 0 | AL23: =+'19-AP1'!BK$6 -> 0 | AM23: =+'19-AP1'!BL$6 -> 0 | AN23: =+'19-AP1'!BM$6 -> 0 | AO23: =+'19-AP1'!BN$6 -> 0 | AP23: =+'19-AP1'!BO$6 -> 0 | AQ23: =+'19-AP1'!BP$6 -> 0 | AR23: =+'19-AP1'!BQ$6 -> 0 | AS23: =+'19-AP1'!BR$6 -> 0 | AT23: =+'19-AP1'!BS$6 -> 0 | AU23: =+'19-AP1'!BT$6 -> 0 | AV23: =+'19-AP1'!BU$6 -> 0 | AW23: =+'19-AP1'!BV$6 -> 0 | AX23: =+'19-AP1'!BW$6 -> 0 | AZ23: =+'19-AP1'!BY$6 -> 0 | BB23: =+'19-AP1'!CA$6 -> 0 | BC23: =+'19-AP1'!CB$6 -> 0 | BD23: =+'19-AP1'!CC$6 -> 0 | BE23: =+'19-AP1'!CD$6 -> 0 | BF23: =+'19-AP1'!CE$6 -> 0 | BG23: =+'19-AP1'!CF$6 -> 0 | BH23: =+'19-AP1'!CG$6 -> 0 | BI23: =+'19-AP1'!CH$6 -> 0
A24: =+'19-AP3'!Z$6 -> 19-AP3 | B24: =+'19-AP3'!AA$6 -> Santa Monica Court Annex | C24: =+'19-AP3'!AB$6 -> 1725 Main St. | D24: =+'19-AP3'!AC$6 -> Santa Monica | E24: =+'19-AP3'!AD$6 -> 90401 | F24: =+'19-AP3'!AE$6 -> Los Angeles | G24: =+'19-AP3'!AF$6 -> SRO | I24: =+'19-AP3'!AH$6 -> 0 | J24: =+'19-AP3'!AI$6 -> 0 | K24: =+'19-AP3'!AJ$6 -> 0 | L24: =+'19-AP3'!AK$6 -> 0 | M24: =+'19-AP3'!AL$6 -> 0 | N24: =+'19-AP3'!AM$6 -> 0 | O24: =+'19-AP3'!AN$6 -> 0 | P24: =+'19-AP3'!AO$6 -> 0 | Q24: =+'19-AP3'!AP$6 -> 0 | R24: =+'19-AP3'!AQ$6 -> 0 | S24: =+'19-AP3'!AR$6 -> 0 | T24: =+'19-AP3'!AS$6 -> 0 | U24: =+'19-AP3'!AT$6 -> 0 | V24: =+'19-AP3'!AU$6 -> 0 | W24: =+'19-AP3'!AV$6 -> 0 | X24: =+'19-AP3'!AW$6 -> 0 | Y24: =+'19-AP3'!AX$6 -> 0 | Z24: =+'19-AP3'!AY$6 -> 0 | AA24: =+'19-AP3'!AZ$6 -> 0 | AB24: =+'19-AP3'!BA$6 -> 0 | AC24: =+'19-AP3'!BB$6 -> 0 | AD24: =+'19-AP3'!BC$6 -> 0 | AE24: =+'19-AP3'!BD$6 -> 0 | AF24: =+'19-AP3'!BE$6 -> 0 | AG24: =+'19-AP3'!BF$6 -> 0 | AH24: =+'19-AP3'!BG$6 -> 0 | AI24: =+'19-AP3'!BH$6 -> 0 | AJ24: =+'19-AP3'!BI$6 -> 0 | AK24: =+'19-AP3'!BJ$6 -> 0 | AL24: =+'19-AP3'!BK$6 -> 0 | AM24: =+'19-AP3'!BL$6 -> 0 | AN24: =+'19-AP3'!BM$6 -> 0 | AO24: =+'19-AP3'!BN$6 -> 0 | AP24: =+'19-AP3'!BO$6 -> 0 | AQ24: =+'19-AP3'!BP$6 -> 0 | AR24: =+'19-AP3'!BQ$6 -> 0 | AS24: =+'19-AP3'!BR$6 -> 0 | AT24: =+'19-AP3'!BS$6 -> 0 | AU24: =+'19-AP3'!BT$6 -> 0 | AV24: =+'19-AP3'!BU$6 -> 0 | AW24: =+'19-AP3'!BV$6 -> 0 | AX24: =+'19-AP3'!BW$6 -> 0 | AZ24: =+'19-AP3'!BY$6 -> 0 | BB24: =+'19-AP3'!CA$6 -> 0 | BC24: =+'19-AP3'!CB$6 -> 0 | BD24: =+'19-AP3'!CC$6 -> 0 | BE24: =+'19-AP3'!CD$6 -> 0 | BF24: =+'19-AP3'!CE$6 -> 0 | BG24: =+'19-AP3'!CF$6 -> 0 | BH24: =+'19-AP3'!CG$6 -> 0 | BI24: =+'19-AP3'!CH$6 -> 0
A25: =+'19-AQ1'!Z$6 -> 19-AQ1 | B25: =+'19-AQ1'!AA$6 -> Beverly Hills Courthouse | C25: =+'19-AQ1'!AB$6 -> 9355 Burton Way | D25: =+'19-AQ1'!AC$6 -> Beverly Hills | E25: =+'19-AQ1'!AD$6 -> 90210 | F25: =+'19-AQ1'!AE$6 -> Los Angeles | G25: =+'19-AQ1'!AF$6 -> SRO | I25: =+'19-AQ1'!AH$6 -> 0 | J25: =+'19-AQ1'!AI$6 -> 0 | K25: =+'19-AQ1'!AJ$6 -> 0 | L25: =+'19-AQ1'!AK$6 -> 0 | M25: =+'19-AQ1'!AL$6 -> 0 | N25: =+'19-AQ1'!AM$6 -> 0 | O25: =+'19-AQ1'!AN$6 -> 0 | P25: =+'19-AQ1'!AO$6 -> 0 | Q25: =+'19-AQ1'!AP$6 -> 0 | R25: =+'19-AQ1'!AQ$6 -> 0 | S25: =+'19-AQ1'!AR$6 -> 0 | T25: =+'19-AQ1'!AS$6 -> 0 | U25: =+'19-AQ1'!AT$6 -> 0 | V25: =+'19-AQ1'!AU$6 -> 0 | W25: =+'19-AQ1'!AV$6 -> 0 | X25: =+'19-AQ1'!AW$6 -> 0 | Y25: =+'19-AQ1'!AX$6 -> 0 | Z25: =+'19-AQ1'!AY$6 -> 0 | AA25: =+'19-AQ1'!AZ$6 -> 0 | AB25: =+'19-AQ1'!BA$6 -> 0 | AC25: =+'19-AQ1'!BB$6 -> 0 | AD25: =+'19-AQ1'!BC$6 -> 0 | AE25: =+'19-AQ1'!BD$6 -> 0 | AF25: =+'19-AQ1'!BE$6 -> 0 | AG25: =+'19-AQ1'!BF$6 -> 0 | AH25: =+'19-AQ1'!BG$6 -> 0 | AI25: =+'19-AQ1'!BH$6 -> 0 | AJ25: =+'19-AQ1'!BI$6 -> 0 | AK25: =+'19-AQ1'!BJ$6 -> 0 | AL25: =+'19-AQ1'!BK$6 -> 0 | AM25: =+'19-AQ1'!BL$6 -> 0 | AN25: =+'19-AQ1'!BM$6 -> 0 | AO25: =+'19-AQ1'!BN$6 -> 0 | AP25: =+'19-AQ1'!BO$6 -> 0 | AQ25: =+'19-AQ1'!BP$6 -> 0 | AR25: =+'19-AQ1'!BQ$6 -> 0 | AS25: =+'19-AQ1'!BR$6 -> 0 | AT25: =+'19-AQ1'!BS$6 -> 0 | AU25: =+'19-AQ1'!BT$6 -> 0 | AV25: =+'19-AQ1'!BU$6 -> 0 | AW25: =+'19-AQ1'!BV$6 -> 0 | AX25: =+'19-AQ1'!BW$6 -> 0 | AZ25: =+'19-AQ1'!BY$6 -> 0 | BB25: =+'19-AQ1'!CA$6 -> 0 | BC25: =+'19-AQ1'!CB$6 -> 0 | BD25: =+'19-AQ1'!CC$6 -> 0 | BE25: =+'19-AQ1'!CD$6 -> 0 | BF25: =+'19-AQ1'!CE$6 -> 0 | BG25: =+'19-AQ1'!CF$6 -> 0 | BH25: =+'19-AQ1'!CG$6 -> 0 | BI25: =+'19-AQ1'!CH$6 -> 0
A26: =+'19-AU1'!Z$6 -> 19-AU1 | B26: =+'19-AU1'!AA$6 -> Airport Courthouse | C26: =+'19-AU1'!AB$6 -> 11701 South La Cienega Boulevard | D26: =+'19-AU1'!AC$6 -> Los Angeles | E26: =+'19-AU1'!AD$6 -> 90045 | F26: =+'19-AU1'!AE$6 -> Los Angeles | G26: =+'19-AU1'!AF$6 -> SRO | I26: =+'19-AU1'!AH$6 -> 0 | J26: =+'19-AU1'!AI$6 -> 0 | K26: =+'19-AU1'!AJ$6 -> 0 | L26: =+'19-AU1'!AK$6 -> 0 | M26: =+'19-AU1'!AL$6 -> 0 | N26: =+'19-AU1'!AM$6 -> 0 | O26: =+'19-AU1'!AN$6 -> 0 | P26: =+'19-AU1'!AO$6 -> 0 | Q26: =+'19-AU1'!AP$6 -> 0 | R26: =+'19-AU1'!AQ$6 -> 0 | S26: =+'19-AU1'!AR$6 -> 0 | T26: =+'19-AU1'!AS$6 -> 0 | U26: =+'19-AU1'!AT$6 -> 0 | V26: =+'19-AU1'!AU$6 -> 0 | W26: =+'19-AU1'!AV$6 -> 0 | X26: =+'19-AU1'!AW$6 -> 0 | Y26: =+'19-AU1'!AX$6 -> 0 | Z26: =+'19-AU1'!AY$6 -> 0 | AA26: =+'19-AU1'!AZ$6 -> 0 | AB26: =+'19-AU1'!BA$6 -> 0 | AC26: =+'19-AU1'!BB$6 -> 0 | AD26: =+'19-AU1'!BC$6 -> 0 | AE26: =+'19-AU1'!BD$6 -> 0 | AF26: =+'19-AU1'!BE$6 -> 0 | AG26: =+'19-AU1'!BF$6 -> 0 | AH26: =+'19-AU1'!BG$6 -> 0 | AI26: =+'19-AU1'!BH$6 -> 0 | AJ26: =+'19-AU1'!BI$6 -> 0 | AK26: =+'19-AU1'!BJ$6 -> 0 | AL26: =+'19-AU1'!BK$6 -> 0 | AM26: =+'19-AU1'!BL$6 -> 0 | AN26: =+'19-AU1'!BM$6 -> 0 | AO26: =+'19-AU1'!BN$6 -> 0 | AP26: =+'19-AU1'!BO$6 -> 0 | AQ26: =+'19-AU1'!BP$6 -> 0 | AR26: =+'19-AU1'!BQ$6 -> 0 | AS26: =+'19-AU1'!BR$6 -> 0 | AT26: =+'19-AU1'!BS$6 -> 0 | AU26: =+'19-AU1'!BT$6 -> 0 | AV26: =+'19-AU1'!BU$6 -> 0 | AW26: =+'19-AU1'!BV$6 -> 0 | AX26: =+'19-AU1'!BW$6 -> 0 | AZ26: =+'19-AU1'!BY$6 -> 0 | BB26: =+'19-AU1'!CA$6 -> 0 | BC26: =+'19-AU1'!CB$6 -> 0 | BD26: =+'19-AU1'!CC$6 -> 0 | BE26: =+'19-AU1'!CD$6 -> 0 | BF26: =+'19-AU1'!CE$6 -> 0 | BG26: =+'19-AU1'!CF$6 -> 0 | BH26: =+'19-AU1'!CG$6 -> 0 | BI26: =+'19-AU1'!CH$6 -> 0
A27: =+'19-AU2'!Z$6 -> 19-AU2 | B27: =+'19-AU2'!AA$6 -> Parking Structure Lot 94 Airport Courthouse | C27: =+'19-AU2'!AB$6 -> 11701 So. La Cienega Blvd | D27: =+'19-AU2'!AC$6 -> Los Angeles | E27: =+'19-AU2'!AD$6 -> 90045 | F27: =+'19-AU2'!AE$6 -> Los Angeles | G27: =+'19-AU2'!AF$6 -> SRO | I27: =+'19-AU2'!AH$6 -> 0 | J27: =+'19-AU2'!AI$6 -> 0 | K27: =+'19-AU2'!AJ$6 -> 0 | L27: =+'19-AU2'!AK$6 -> 0 | M27: =+'19-AU2'!AL$6 -> 0 | N27: =+'19-AU2'!AM$6 -> 0 | O27: =+'19-AU2'!AN$6 -> 0 | P27: =+'19-AU2'!AO$6 -> 0 | Q27: =+'19-AU2'!AP$6 -> 0 | R27: =+'19-AU2'!AQ$6 -> 0 | S27: =+'19-AU2'!AR$6 -> 0 | T27: =+'19-AU2'!AS$6 -> 0 | U27: =+'19-AU2'!AT$6 -> 0 | V27: =+'19-AU2'!AU$6 -> 0 | W27: =+'19-AU2'!AV$6 -> 0 | X27: =+'19-AU2'!AW$6 -> 0 | Y27: =+'19-AU2'!AX$6 -> 0 | Z27: =+'19-AU2'!AY$6 -> 0 | AA27: =+'19-AU2'!AZ$6 -> 0 | AB27: =+'19-AU2'!BA$6 -> 0 | AC27: =+'19-AU2'!BB$6 -> 0 | AD27: =+'19-AU2'!BC$6 -> 0 | AE27: =+'19-AU2'!BD$6 -> 0 | AF27: =+'19-AU2'!BE$6 -> 0 | AG27: =+'19-AU2'!BF$6 -> 0 | AH27: =+'19-AU2'!BG$6 -> 0 | AI27: =+'19-AU2'!BH$6 -> 0 | AJ27: =+'19-AU2'!BI$6 -> 0 | AK27: =+'19-AU2'!BJ$6 -> 0 | AL27: =+'19-AU2'!BK$6 -> 0 | AM27: =+'19-AU2'!BL$6 -> 0 | AN27: =+'19-AU2'!BM$6 -> 0 | AO27: =+'19-AU2'!BN$6 -> 0 | AP27: =+'19-AU2'!BO$6 -> 0 | AQ27: =+'19-AU2'!BP$6 -> 0 | AR27: =+'19-AU2'!BQ$6 -> 0 | AS27: =+'19-AU2'!BR$6 -> 0 | AT27: =+'19-AU2'!BS$6 -> 0 | AU27: =+'19-AU2'!BT$6 -> 0 | AV27: =+'19-AU2'!BU$6 -> 0 | AW27: =+'19-AU2'!BV$6 -> 0 | AX27: =+'19-AU2'!BW$6 -> 0 | AZ27: =+'19-AU2'!BY$6 -> 0 | BB27: =+'19-AU2'!CA$6 -> 0 | BC27: =+'19-AU2'!CB$6 -> 0 | BD27: =+'19-AU2'!CC$6 -> 0 | BE27: =+'19-AU2'!CD$6 -> 0 | BF27: =+'19-AU2'!CE$6 -> 0 | BG27: =+'19-AU2'!CF$6 -> 0 | BH27: =+'19-AU2'!CG$6 -> 0 | BI27: =+'19-AU2'!CH$6 -> 0
A28: =+'19-AX1'!Z$6 -> 19-AX1 | B28: =+'19-AX1'!AA$6 -> Van Nuys Courthouse East | C28: =+'19-AX1'!AB$6 -> 6230 Sylmar Avenue | D28: =+'19-AX1'!AC$6 -> Van Nuys | E28: =+'19-AX1'!AD$6 -> 91401 | F28: =+'19-AX1'!AE$6 -> Los Angeles | G28: =+'19-AX1'!AF$6 -> SRO | I28: =+'19-AX1'!AH$6 -> 0 | J28: =+'19-AX1'!AI$6 -> 0 | K28: =+'19-AX1'!AJ$6 -> 0 | L28: =+'19-AX1'!AK$6 -> 0 | M28: =+'19-AX1'!AL$6 -> 0 | N28: =+'19-AX1'!AM$6 -> 0 | O28: =+'19-AX1'!AN$6 -> 0 | P28: =+'19-AX1'!AO$6 -> 0 | Q28: =+'19-AX1'!AP$6 -> 0 | R28: =+'19-AX1'!AQ$6 -> 0 | S28: =+'19-AX1'!AR$6 -> 0 | T28: =+'19-AX1'!AS$6 -> 0 | U28: =+'19-AX1'!AT$6 -> 0 | V28: =+'19-AX1'!AU$6 -> 0 | W28: =+'19-AX1'!AV$6 -> 0 | X28: =+'19-AX1'!AW$6 -> 0 | Y28: =+'19-AX1'!AX$6 -> 0 | Z28: =+'19-AX1'!AY$6 -> 0 | AA28: =+'19-AX1'!AZ$6 -> 0 | AB28: =+'19-AX1'!BA$6 -> 0 | AC28: =+'19-AX1'!BB$6 -> 0 | AD28: =+'19-AX1'!BC$6 -> 0 | AE28: =+'19-AX1'!BD$6 -> 0 | AF28: =+'19-AX1'!BE$6 -> 0 | AG28: =+'19-AX1'!BF$6 -> 0 | AH28: =+'19-AX1'!BG$6 -> 0 | AI28: =+'19-AX1'!BH$6 -> 0 | AJ28: =+'19-AX1'!BI$6 -> 0 | AK28: =+'19-AX1'!BJ$6 -> 0 | AL28: =+'19-AX1'!BK$6 -> 0 | AM28: =+'19-AX1'!BL$6 -> 0 | AN28: =+'19-AX1'!BM$6 -> 0 | AO28: =+'19-AX1'!BN$6 -> 0 | AP28: =+'19-AX1'!BO$6 -> 0 | AQ28: =+'19-AX1'!BP$6 -> 0 | AR28: =+'19-AX1'!BQ$6 -> 0 | AS28: =+'19-AX1'!BR$6 -> 0 | AT28: =+'19-AX1'!BS$6 -> 0 | AU28: =+'19-AX1'!BT$6 -> 0 | AV28: =+'19-AX1'!BU$6 -> 0 | AW28: =+'19-AX1'!BV$6 -> 0 | AX28: =+'19-AX1'!BW$6 -> 0 | AZ28: =+'19-AX1'!BY$6 -> 0 | BB28: =+'19-AX1'!CA$6 -> 0 | BC28: =+'19-AX1'!CB$6 -> 0 | BD28: =+'19-AX1'!CC$6 -> 0 | BE28: =+'19-AX1'!CD$6 -> 0 | BF28: =+'19-AX1'!CE$6 -> 0 | BG28: =+'19-AX1'!CF$6 -> 0 | BH28: =+'19-AX1'!CG$6 -> 0 | BI28: =+'19-AX1'!CH$6 -> 0
A29: =+'19-AX2'!Z$6 -> 19-AX2 | B29: =+'19-AX2'!AA$6 -> Van Nuys Courthouse West | C29: =+'19-AX2'!AB$6 -> 14400 Erwin Street Mall | D29: =+'19-AX2'!AC$6 -> Van Nuys | E29: =+'19-AX2'!AD$6 -> 91401 | F29: =+'19-AX2'!AE$6 -> Los Angeles | G29: =+'19-AX2'!AF$6 -> SRO | I29: =+'19-AX2'!AH$6 -> 0 | J29: =+'19-AX2'!AI$6 -> 0 | K29: =+'19-AX2'!AJ$6 -> 0 | L29: =+'19-AX2'!AK$6 -> 0 | M29: =+'19-AX2'!AL$6 -> 0 | N29: =+'19-AX2'!AM$6 -> 0 | O29: =+'19-AX2'!AN$6 -> 0 | P29: =+'19-AX2'!AO$6 -> 0 | Q29: =+'19-AX2'!AP$6 -> 0 | R29: =+'19-AX2'!AQ$6 -> 0 | S29: =+'19-AX2'!AR$6 -> 0 | T29: =+'19-AX2'!AS$6 -> 0 | U29: =+'19-AX2'!AT$6 -> 0 | V29: =+'19-AX2'!AU$6 -> 0 | W29: =+'19-AX2'!AV$6 -> 0 | X29: =+'19-AX2'!AW$6 -> 0 | Y29: =+'19-AX2'!AX$6 -> 0 | Z29: =+'19-AX2'!AY$6 -> 0 | AA29: =+'19-AX2'!AZ$6 -> 0 | AB29: =+'19-AX2'!BA$6 -> 0 | AC29: =+'19-AX2'!BB$6 -> 0 | AD29: =+'19-AX2'!BC$6 -> 0 | AE29: =+'19-AX2'!BD$6 -> 0 | AF29: =+'19-AX2'!BE$6 -> 0 | AG29: =+'19-AX2'!BF$6 -> 0 | AH29: =+'19-AX2'!BG$6 -> 0 | AI29: =+'19-AX2'!BH$6 -> 0 | AJ29: =+'19-AX2'!BI$6 -> 0 | AK29: =+'19-AX2'!BJ$6 -> 0 | AL29: =+'19-AX2'!BK$6 -> 0 | AM29: =+'19-AX2'!BL$6 -> 0 | AN29: =+'19-AX2'!BM$6 -> 0 | AO29: =+'19-AX2'!BN$6 -> 0 | AP29: =+'19-AX2'!BO$6 -> 0 | AQ29: =+'19-AX2'!BP$6 -> 0 | AR29: =+'19-AX2'!BQ$6 -> 0 | AS29: =+'19-AX2'!BR$6 -> 0 | AT29: =+'19-AX2'!BS$6 -> 0 | AU29: =+'19-AX2'!BT$6 -> 0 | AV29: =+'19-AX2'!BU$6 -> 0 | AW29: =+'19-AX2'!BV$6 -> 0 | AX29: =+'19-AX2'!BW$6 -> 0 | AZ29: =+'19-AX2'!BY$6 -> 0 | BB29: =+'19-AX2'!CA$6 -> 0 | BC29: =+'19-AX2'!CB$6 -> 0 | BD29: =+'19-AX2'!CC$6 -> 0 | BE29: =+'19-AX2'!CD$6 -> 0 | BF29: =+'19-AX2'!CE$6 -> 0 | BG29: =+'19-AX2'!CF$6 -> 0 | BH29: =+'19-AX2'!CG$6 -> 0 | BI29: =+'19-AX2'!CH$6 -> 0
A30: =+'19-AX6'!Z$6 -> 19-AX6 | B30: =+'19-AX6'!AA$6 -> Parking Structure Lot 48 Van Nuys Court Complex | C30: =+'19-AX6'!AB$6 -> 6170 Sylmar Ave / 14340 Delano St | D30: =+'19-AX6'!AC$6 -> Van Nuys | E30: =+'19-AX6'!AD$6 -> 91401 | F30: =+'19-AX6'!AE$6 -> Los Angeles | G30: =+'19-AX6'!AF$6 -> SRO | I30: =+'19-AX6'!AH$6 -> 0 | J30: =+'19-AX6'!AI$6 -> 0 | K30: =+'19-AX6'!AJ$6 -> 0 | L30: =+'19-AX6'!AK$6 -> 0 | M30: =+'19-AX6'!AL$6 -> 0 | N30: =+'19-AX6'!AM$6 -> 0 | O30: =+'19-AX6'!AN$6 -> 0 | P30: =+'19-AX6'!AO$6 -> 0 | Q30: =+'19-AX6'!AP$6 -> 0 | R30: =+'19-AX6'!AQ$6 -> 0 | S30: =+'19-AX6'!AR$6 -> 0 | T30: =+'19-AX6'!AS$6 -> 0 | U30: =+'19-AX6'!AT$6 -> 0 | V30: =+'19-AX6'!AU$6 -> 0 | W30: =+'19-AX6'!AV$6 -> 0 | X30: =+'19-AX6'!AW$6 -> 0 | Y30: =+'19-AX6'!AX$6 -> 0 | Z30: =+'19-AX6'!AY$6 -> 0 | AA30: =+'19-AX6'!AZ$6 -> 0 | AB30: =+'19-AX6'!BA$6 -> 0 | AC30: =+'19-AX6'!BB$6 -> 0 | AD30: =+'19-AX6'!BC$6 -> 0 | AE30: =+'19-AX6'!BD$6 -> 0 | AF30: =+'19-AX6'!BE$6 -> 0 | AG30: =+'19-AX6'!BF$6 -> 0 | AH30: =+'19-AX6'!BG$6 -> 0 | AI30: =+'19-AX6'!BH$6 -> 0 | AJ30: =+'19-AX6'!BI$6 -> 0 | AK30: =+'19-AX6'!BJ$6 -> 0 | AL30: =+'19-AX6'!BK$6 -> 0 | AM30: =+'19-AX6'!BL$6 -> 0 | AN30: =+'19-AX6'!BM$6 -> 0 | AO30: =+'19-AX6'!BN$6 -> 0 | AP30: =+'19-AX6'!BO$6 -> 0 | AQ30: =+'19-AX6'!BP$6 -> 0 | AR30: =+'19-AX6'!BQ$6 -> 0 | AS30: =+'19-AX6'!BR$6 -> 0 | AT30: =+'19-AX6'!BS$6 -> 0 | AU30: =+'19-AX6'!BT$6 -> 0 | AV30: =+'19-AX6'!BU$6 -> 0 | AW30: =+'19-AX6'!BV$6 -> 0 | AX30: =+'19-AX6'!BW$6 -> 0 | AZ30: =+'19-AX6'!BY$6 -> 0 | BB30: =+'19-AX6'!CA$6 -> 0 | BC30: =+'19-AX6'!CB$6 -> 0 | BD30: =+'19-AX6'!CC$6 -> 0 | BE30: =+'19-AX6'!CD$6 -> 0 | BF30: =+'19-AX6'!CE$6 -> 0 | BG30: =+'19-AX6'!CF$6 -> 0 | BH30: =+'19-AX6'!CG$6 -> 0 | BI30: =+'19-AX6'!CH$6 -> 0
A31: =+'19-AY1'!Z$6 -> 19-AY1 | B31: =+'19-AY1'!AA$6 -> Chatsworth Courthouse | C31: =+'19-AY1'!AB$6 -> 9425 Penfield Avenue | D31: =+'19-AY1'!AC$6 -> Chatsworth | E31: =+'19-AY1'!AD$6 -> 91311 | F31: =+'19-AY1'!AE$6 -> Los Angeles | G31: =+'19-AY1'!AF$6 -> SRO | I31: =+'19-AY1'!AH$6 -> 0 | J31: =+'19-AY1'!AI$6 -> 0 | K31: =+'19-AY1'!AJ$6 -> 0 | L31: =+'19-AY1'!AK$6 -> 0 | M31: =+'19-AY1'!AL$6 -> 0 | N31: =+'19-AY1'!AM$6 -> 0 | O31: =+'19-AY1'!AN$6 -> 0 | P31: =+'19-AY1'!AO$6 -> 0 | Q31: =+'19-AY1'!AP$6 -> 0 | R31: =+'19-AY1'!AQ$6 -> 0 | S31: =+'19-AY1'!AR$6 -> 0 | T31: =+'19-AY1'!AS$6 -> 0 | U31: =+'19-AY1'!AT$6 -> 0 | V31: =+'19-AY1'!AU$6 -> 0 | W31: =+'19-AY1'!AV$6 -> 0 | X31: =+'19-AY1'!AW$6 -> 0 | Y31: =+'19-AY1'!AX$6 -> 0 | Z31: =+'19-AY1'!AY$6 -> 0 | AA31: =+'19-AY1'!AZ$6 -> 0 | AB31: =+'19-AY1'!BA$6 -> 0 | AC31: =+'19-AY1'!BB$6 -> 0 | AD31: =+'19-AY1'!BC$6 -> 0 | AE31: =+'19-AY1'!BD$6 -> 0 | AF31: =+'19-AY1'!BE$6 -> 0 | AG31: =+'19-AY1'!BF$6 -> 0 | AH31: =+'19-AY1'!BG$6 -> 0 | AI31: =+'19-AY1'!BH$6 -> 0 | AJ31: =+'19-AY1'!BI$6 -> 0 | AK31: =+'19-AY1'!BJ$6 -> 0 | AL31: =+'19-AY1'!BK$6 -> 0 | AM31: =+'19-AY1'!BL$6 -> 0 | AN31: =+'19-AY1'!BM$6 -> 0 | AO31: =+'19-AY1'!BN$6 -> 0 | AP31: =+'19-AY1'!BO$6 -> 0 | AQ31: =+'19-AY1'!BP$6 -> 0 | AR31: =+'19-AY1'!BQ$6 -> 0 | AS31: =+'19-AY1'!BR$6 -> 0 | AT31: =+'19-AY1'!BS$6 -> 0 | AU31: =+'19-AY1'!BT$6 -> 0 | AV31: =+'19-AY1'!BU$6 -> 0 | AW31: =+'19-AY1'!BV$6 -> 0 | AX31: =+'19-AY1'!BW$6 -> 0 | AZ31: =+'19-AY1'!BY$6 -> 0 | BB31: =+'19-AY1'!CA$6 -> 0 | BC31: =+'19-AY1'!CB$6 -> 0 | BD31: =+'19-AY1'!CC$6 -> 0 | BE31: =+'19-AY1'!CD$6 -> 0 | BF31: =+'19-AY1'!CE$6 -> 0 | BG31: =+'19-AY1'!CF$6 -> 0 | BH31: =+'19-AY1'!CG$6 -> 0 | BI31: =+'19-AY1'!CH$6 -> 0
A32: =+'19-AZ1'!Z$6 -> 19-AZ1 | B32: =+'19-AZ1'!AA$6 -> Michael D. Antonovich Antelope Valley Courthouse | C32: =+'19-AZ1'!AB$6 -> 42011 4th Street West | D32: =+'19-AZ1'!AC$6 -> Lancaster | E32: =+'19-AZ1'!AD$6 -> 93534 | F32: =+'19-AZ1'!AE$6 -> Los Angeles | G32: =+'19-AZ1'!AF$6 -> SRO | I32: =+'19-AZ1'!AH$6 -> 0 | J32: =+'19-AZ1'!AI$6 -> 0 | K32: =+'19-AZ1'!AJ$6 -> 0 | L32: =+'19-AZ1'!AK$6 -> 0 | M32: =+'19-AZ1'!AL$6 -> 0 | N32: =+'19-AZ1'!AM$6 -> 0 | O32: =+'19-AZ1'!AN$6 -> 0 | P32: =+'19-AZ1'!AO$6 -> 0 | Q32: =+'19-AZ1'!AP$6 -> 0 | R32: =+'19-AZ1'!AQ$6 -> 0 | S32: =+'19-AZ1'!AR$6 -> 0 | T32: =+'19-AZ1'!AS$6 -> 0 | U32: =+'19-AZ1'!AT$6 -> 0 | V32: =+'19-AZ1'!AU$6 -> 0 | W32: =+'19-AZ1'!AV$6 -> 0 | X32: =+'19-AZ1'!AW$6 -> 0 | Y32: =+'19-AZ1'!AX$6 -> 0 | Z32: =+'19-AZ1'!AY$6 -> 0 | AA32: =+'19-AZ1'!AZ$6 -> 0 | AB32: =+'19-AZ1'!BA$6 -> 0 | AC32: =+'19-AZ1'!BB$6 -> 0 | AD32: =+'19-AZ1'!BC$6 -> 0 | AE32: =+'19-AZ1'!BD$6 -> 0 | AF32: =+'19-AZ1'!BE$6 -> 0 | AG32: =+'19-AZ1'!BF$6 -> 0 | AH32: =+'19-AZ1'!BG$6 -> 0 | AI32: =+'19-AZ1'!BH$6 -> 0 | AJ32: =+'19-AZ1'!BI$6 -> 0 | AK32: =+'19-AZ1'!BJ$6 -> 0 | AL32: =+'19-AZ1'!BK$6 -> 0 | AM32: =+'19-AZ1'!BL$6 -> 0 | AN32: =+'19-AZ1'!BM$6 -> 0 | AO32: =+'19-AZ1'!BN$6 -> 0 | AP32: =+'19-AZ1'!BO$6 -> 0 | AQ32: =+'19-AZ1'!BP$6 -> 0 | AR32: =+'19-AZ1'!BQ$6 -> 0 | AS32: =+'19-AZ1'!BR$6 -> 0 | AT32: =+'19-AZ1'!BS$6 -> 0 | AU32: =+'19-AZ1'!BT$6 -> 0 | AV32: =+'19-AZ1'!BU$6 -> 0 | AW32: =+'19-AZ1'!BV$6 -> 0 | AX32: =+'19-AZ1'!BW$6 -> 0 | AZ32: =+'19-AZ1'!BY$6 -> 0 | BB32: =+'19-AZ1'!CA$6 -> 0 | BC32: =+'19-AZ1'!CB$6 -> 0 | BD32: =+'19-AZ1'!CC$6 -> 0 | BE32: =+'19-AZ1'!CD$6 -> 0 | BF32: =+'19-AZ1'!CE$6 -> 0 | BG32: =+'19-AZ1'!CF$6 -> 0 | BH32: =+'19-AZ1'!CG$6 -> 0 | BI32: =+'19-AZ1'!CH$6 -> 0
A33: =+'19-C1'!Z$6 -> 19-C1 | B33: =+'19-C1'!AA$6 -> Torrance Courthouse | C33: =+'19-C1'!AB$6 -> 825 Maple Avenue | D33: =+'19-C1'!AC$6 -> Torrance | E33: =+'19-C1'!AD$6 -> 90503 | F33: =+'19-C1'!AE$6 -> Los Angeles | G33: =+'19-C1'!AF$6 -> SRO | I33: =+'19-C1'!AH$6 -> 0 | J33: =+'19-C1'!AI$6 -> 0 | K33: =+'19-C1'!AJ$6 -> 0 | L33: =+'19-C1'!AK$6 -> 0 | M33: =+'19-C1'!AL$6 -> 0 | N33: =+'19-C1'!AM$6 -> 0 | O33: =+'19-C1'!AN$6 -> 0 | P33: =+'19-C1'!AO$6 -> 0 | Q33: =+'19-C1'!AP$6 -> 0 | R33: =+'19-C1'!AQ$6 -> 0 | S33: =+'19-C1'!AR$6 -> 0 | T33: =+'19-C1'!AS$6 -> 0 | U33: =+'19-C1'!AT$6 -> 0 | V33: =+'19-C1'!AU$6 -> 0 | W33: =+'19-C1'!AV$6 -> 0 | X33: =+'19-C1'!AW$6 -> 0 | Y33: =+'19-C1'!AX$6 -> 0 | Z33: =+'19-C1'!AY$6 -> 0 | AA33: =+'19-C1'!AZ$6 -> 0 | AB33: =+'19-C1'!BA$6 -> 0 | AC33: =+'19-C1'!BB$6 -> 0 | AD33: =+'19-C1'!BC$6 -> 0 | AE33: =+'19-C1'!BD$6 -> 0 | AF33: =+'19-C1'!BE$6 -> 0 | AG33: =+'19-C1'!BF$6 -> 0 | AH33: =+'19-C1'!BG$6 -> 0 | AI33: =+'19-C1'!BH$6 -> 0 | AJ33: =+'19-C1'!BI$6 -> 0 | AK33: =+'19-C1'!BJ$6 -> 0 | AL33: =+'19-C1'!BK$6 -> 0 | AM33: =+'19-C1'!BL$6 -> 0 | AN33: =+'19-C1'!BM$6 -> 0 | AO33: =+'19-C1'!BN$6 -> 0 | AP33: =+'19-C1'!BO$6 -> 0 | AQ33: =+'19-C1'!BP$6 -> 0 | AR33: =+'19-C1'!BQ$6 -> 0 | AS33: =+'19-C1'!BR$6 -> 0 | AT33: =+'19-C1'!BS$6 -> 0 | AU33: =+'19-C1'!BT$6 -> 0 | AV33: =+'19-C1'!BU$6 -> 0 | AW33: =+'19-C1'!BV$6 -> 0 | AX33: =+'19-C1'!BW$6 -> 0 | AZ33: =+'19-C1'!BY$6 -> 0 | BB33: =+'19-C1'!CA$6 -> 0 | BC33: =+'19-C1'!CB$6 -> 0 | BD33: =+'19-C1'!CC$6 -> 0 | BE33: =+'19-C1'!CD$6 -> 0 | BF33: =+'19-C1'!CE$6 -> 0 | BG33: =+'19-C1'!CF$6 -> 0 | BH33: =+'19-C1'!CG$6 -> 0 | BI33: =+'19-C1'!CH$6 -> 0
A34: =+'19-C2'!Z$6 -> 19-C2 | B34: =+'19-C2'!AA$6 -> Torrance Annex | C34: =+'19-C2'!AB$6 -> 3221 Torrance Boulevard | D34: =+'19-C2'!AC$6 -> Torrance | E34: =+'19-C2'!AD$6 -> 90503 | F34: =+'19-C2'!AE$6 -> Los Angeles | G34: =+'19-C2'!AF$6 -> SRO | I34: =+'19-C2'!AH$6 -> 0 | J34: =+'19-C2'!AI$6 -> 0 | K34: =+'19-C2'!AJ$6 -> 0 | L34: =+'19-C2'!AK$6 -> 0 | M34: =+'19-C2'!AL$6 -> 0 | N34: =+'19-C2'!AM$6 -> 0 | O34: =+'19-C2'!AN$6 -> 0 | P34: =+'19-C2'!AO$6 -> 0 | Q34: =+'19-C2'!AP$6 -> 0 | R34: =+'19-C2'!AQ$6 -> 0 | S34: =+'19-C2'!AR$6 -> 0 | T34: =+'19-C2'!AS$6 -> 0 | U34: =+'19-C2'!AT$6 -> 0 | V34: =+'19-C2'!AU$6 -> 0 | W34: =+'19-C2'!AV$6 -> 0 | X34: =+'19-C2'!AW$6 -> 0 | Y34: =+'19-C2'!AX$6 -> 0 | Z34: =+'19-C2'!AY$6 -> 0 | AA34: =+'19-C2'!AZ$6 -> 0 | AB34: =+'19-C2'!BA$6 -> 0 | AC34: =+'19-C2'!BB$6 -> 0 | AD34: =+'19-C2'!BC$6 -> 0 | AE34: =+'19-C2'!BD$6 -> 0 | AF34: =+'19-C2'!BE$6 -> 0 | AG34: =+'19-C2'!BF$6 -> 0 | AH34: =+'19-C2'!BG$6 -> 0 | AI34: =+'19-C2'!BH$6 -> 0 | AJ34: =+'19-C2'!BI$6 -> 0 | AK34: =+'19-C2'!BJ$6 -> 0 | AL34: =+'19-C2'!BK$6 -> 0 | AM34: =+'19-C2'!BL$6 -> 0 | AN34: =+'19-C2'!BM$6 -> 0 | AO34: =+'19-C2'!BN$6 -> 0 | AP34: =+'19-C2'!BO$6 -> 0 | AQ34: =+'19-C2'!BP$6 -> 0 | AR34: =+'19-C2'!BQ$6 -> 0 | AS34: =+'19-C2'!BR$6 -> 0 | AT34: =+'19-C2'!BS$6 -> 0 | AU34: =+'19-C2'!BT$6 -> 0 | AV34: =+'19-C2'!BU$6 -> 0 | AW34: =+'19-C2'!BV$6 -> 0 | AX34: =+'19-C2'!BW$6 -> 0 | AZ34: =+'19-C2'!BY$6 -> 0 | BB34: =+'19-C2'!CA$6 -> 0 | BC34: =+'19-C2'!CB$6 -> 0 | BD34: =+'19-C2'!CC$6 -> 0 | BE34: =+'19-C2'!CD$6 -> 0 | BF34: =+'19-C2'!CE$6 -> 0 | BG34: =+'19-C2'!CF$6 -> 0 | BH34: =+'19-C2'!CG$6 -> 0 | BI34: =+'19-C2'!CH$6 -> 0
A35: =+'19-C3'!Z$6 -> 19-C3 | B35: =+'19-C3'!AA$6 -> S. Bay Muni Court Jury Assembly Trailer | C35: =+'19-C3'!AB$6 -> 825 Maple Dr. | D35: =+'19-C3'!AC$6 -> Torrance | E35: =+'19-C3'!AD$6 -> 90503 | F35: =+'19-C3'!AE$6 -> Los Angeles | G35: =+'19-C3'!AF$6 -> SRO | I35: =+'19-C3'!AH$6 -> 0 | J35: =+'19-C3'!AI$6 -> 0 | K35: =+'19-C3'!AJ$6 -> 0 | L35: =+'19-C3'!AK$6 -> 0 | M35: =+'19-C3'!AL$6 -> 0 | N35: =+'19-C3'!AM$6 -> 0 | O35: =+'19-C3'!AN$6 -> 0 | P35: =+'19-C3'!AO$6 -> 0 | Q35: =+'19-C3'!AP$6 -> 0 | R35: =+'19-C3'!AQ$6 -> 0 | S35: =+'19-C3'!AR$6 -> 0 | T35: =+'19-C3'!AS$6 -> 0 | U35: =+'19-C3'!AT$6 -> 0 | V35: =+'19-C3'!AU$6 -> 0 | W35: =+'19-C3'!AV$6 -> 0 | X35: =+'19-C3'!AW$6 -> 0 | Y35: =+'19-C3'!AX$6 -> 0 | Z35: =+'19-C3'!AY$6 -> 0 | AA35: =+'19-C3'!AZ$6 -> 0 | AB35: =+'19-C3'!BA$6 -> 0 | AC35: =+'19-C3'!BB$6 -> 0 | AD35: =+'19-C3'!BC$6 -> 0 | AE35: =+'19-C3'!BD$6 -> 0 | AF35: =+'19-C3'!BE$6 -> 0 | AG35: =+'19-C3'!BF$6 -> 0 | AH35: =+'19-C3'!BG$6 -> 0 | AI35: =+'19-C3'!BH$6 -> 0 | AJ35: =+'19-C3'!BI$6 -> 0 | AK35: =+'19-C3'!BJ$6 -> 0 | AL35: =+'19-C3'!BK$6 -> 0 | AM35: =+'19-C3'!BL$6 -> 0 | AN35: =+'19-C3'!BM$6 -> 0 | AO35: =+'19-C3'!BN$6 -> 0 | AP35: =+'19-C3'!BO$6 -> 0 | AQ35: =+'19-C3'!BP$6 -> 0 | AR35: =+'19-C3'!BQ$6 -> 0 | AS35: =+'19-C3'!BR$6 -> 0 | AT35: =+'19-C3'!BS$6 -> 0 | AU35: =+'19-C3'!BT$6 -> 0 | AV35: =+'19-C3'!BU$6 -> 0 | AW35: =+'19-C3'!BV$6 -> 0 | AX35: =+'19-C3'!BW$6 -> 0 | AZ35: =+'19-C3'!BY$6 -> 0 | BB35: =+'19-C3'!CA$6 -> 0 | BC35: =+'19-C3'!CB$6 -> 0 | BD35: =+'19-C3'!CC$6 -> 0 | BE35: =+'19-C3'!CD$6 -> 0 | BF35: =+'19-C3'!CE$6 -> 0 | BG35: =+'19-C3'!CF$6 -> 0 | BH35: =+'19-C3'!CG$6 -> 0 | BI35: =+'19-C3'!CH$6 -> 0
A36: =+'19-C4'!Z$6 -> 19-C4 | B36: =+'19-C4'!AA$6 -> S. Bay Municipal Traffic Court Trailer | C36: =+'19-C4'!AB$6 -> 825 Maple Dr. | D36: =+'19-C4'!AC$6 -> Torrance | E36: =+'19-C4'!AD$6 -> 90503 | F36: =+'19-C4'!AE$6 -> Los Angeles | G36: =+'19-C4'!AF$6 -> SRO | I36: =+'19-C4'!AH$6 -> 0 | J36: =+'19-C4'!AI$6 -> 0 | K36: =+'19-C4'!AJ$6 -> 0 | L36: =+'19-C4'!AK$6 -> 0 | M36: =+'19-C4'!AL$6 -> 0 | N36: =+'19-C4'!AM$6 -> 0 | O36: =+'19-C4'!AN$6 -> 0 | P36: =+'19-C4'!AO$6 -> 0 | Q36: =+'19-C4'!AP$6 -> 0 | R36: =+'19-C4'!AQ$6 -> 0 | S36: =+'19-C4'!AR$6 -> 0 | T36: =+'19-C4'!AS$6 -> 0 | U36: =+'19-C4'!AT$6 -> 0 | V36: =+'19-C4'!AU$6 -> 0 | W36: =+'19-C4'!AV$6 -> 0 | X36: =+'19-C4'!AW$6 -> 0 | Y36: =+'19-C4'!AX$6 -> 0 | Z36: =+'19-C4'!AY$6 -> 0 | AA36: =+'19-C4'!AZ$6 -> 0 | AB36: =+'19-C4'!BA$6 -> 0 | AC36: =+'19-C4'!BB$6 -> 0 | AD36: =+'19-C4'!BC$6 -> 0 | AE36: =+'19-C4'!BD$6 -> 0 | AF36: =+'19-C4'!BE$6 -> 0 | AG36: =+'19-C4'!BF$6 -> 0 | AH36: =+'19-C4'!BG$6 -> 0 | AI36: =+'19-C4'!BH$6 -> 0 | AJ36: =+'19-C4'!BI$6 -> 0 | AK36: =+'19-C4'!BJ$6 -> 0 | AL36: =+'19-C4'!BK$6 -> 0 | AM36: =+'19-C4'!BL$6 -> 0 | AN36: =+'19-C4'!BM$6 -> 0 | AO36: =+'19-C4'!BN$6 -> 0 | AP36: =+'19-C4'!BO$6 -> 0 | AQ36: =+'19-C4'!BP$6 -> 0 | AR36: =+'19-C4'!BQ$6 -> 0 | AS36: =+'19-C4'!BR$6 -> 0 | AT36: =+'19-C4'!BS$6 -> 0 | AU36: =+'19-C4'!BT$6 -> 0 | AV36: =+'19-C4'!BU$6 -> 0 | AW36: =+'19-C4'!BV$6 -> 0 | AX36: =+'19-C4'!BW$6 -> 0 | AZ36: =+'19-C4'!BY$6 -> 0 | BB36: =+'19-C4'!CA$6 -> 0 | BC36: =+'19-C4'!CB$6 -> 0 | BD36: =+'19-C4'!CC$6 -> 0 | BE36: =+'19-C4'!CD$6 -> 0 | BF36: =+'19-C4'!CE$6 -> 0 | BG36: =+'19-C4'!CF$6 -> 0 | BH36: =+'19-C4'!CG$6 -> 0 | BI36: =+'19-C4'!CH$6 -> 0
A37: =+'19-E1'!Z$6 -> 19-E1 | B37: =+'19-E1'!AA$6 -> Inglewood Juvenile Court | C37: =+'19-E1'!AB$6 -> 110 Regent Street | D37: =+'19-E1'!AC$6 -> Inglewood | E37: =+'19-E1'!AD$6 -> 90301 | F37: =+'19-E1'!AE$6 -> Los Angeles | G37: =+'19-E1'!AF$6 -> SRO | I37: =+'19-E1'!AH$6 -> 0 | J37: =+'19-E1'!AI$6 -> 0 | K37: =+'19-E1'!AJ$6 -> 0 | L37: =+'19-E1'!AK$6 -> 0 | M37: =+'19-E1'!AL$6 -> 0 | N37: =+'19-E1'!AM$6 -> 0 | O37: =+'19-E1'!AN$6 -> 0 | P37: =+'19-E1'!AO$6 -> 0 | Q37: =+'19-E1'!AP$6 -> 0 | R37: =+'19-E1'!AQ$6 -> 0 | S37: =+'19-E1'!AR$6 -> 0 | T37: =+'19-E1'!AS$6 -> 0 | U37: =+'19-E1'!AT$6 -> 0 | V37: =+'19-E1'!AU$6 -> 0 | W37: =+'19-E1'!AV$6 -> 0 | X37: =+'19-E1'!AW$6 -> 0 | Y37: =+'19-E1'!AX$6 -> 0 | Z37: =+'19-E1'!AY$6 -> 0 | AA37: =+'19-E1'!AZ$6 -> 0 | AB37: =+'19-E1'!BA$6 -> 0 | AC37: =+'19-E1'!BB$6 -> 0 | AD37: =+'19-E1'!BC$6 -> 0 | AE37: =+'19-E1'!BD$6 -> 0 | AF37: =+'19-E1'!BE$6 -> 0 | AG37: =+'19-E1'!BF$6 -> 0 | AH37: =+'19-E1'!BG$6 -> 0 | AI37: =+'19-E1'!BH$6 -> 0 | AJ37: =+'19-E1'!BI$6 -> 0 | AK37: =+'19-E1'!BJ$6 -> 0 | AL37: =+'19-E1'!BK$6 -> 0 | AM37: =+'19-E1'!BL$6 -> 0 | AN37: =+'19-E1'!BM$6 -> 0 | AO37: =+'19-E1'!BN$6 -> 0 | AP37: =+'19-E1'!BO$6 -> 0 | AQ37: =+'19-E1'!BP$6 -> 0 | AR37: =+'19-E1'!BQ$6 -> 0 | AS37: =+'19-E1'!BR$6 -> 0 | AT37: =+'19-E1'!BS$6 -> 0 | AU37: =+'19-E1'!BT$6 -> 0 | AV37: =+'19-E1'!BU$6 -> 0 | AW37: =+'19-E1'!BV$6 -> 0 | AX37: =+'19-E1'!BW$6 -> 0 | AZ37: =+'19-E1'!BY$6 -> 0 | BB37: =+'19-E1'!CA$6 -> 0 | BC37: =+'19-E1'!CB$6 -> 0 | BD37: =+'19-E1'!CC$6 -> 0 | BE37: =+'19-E1'!CD$6 -> 0 | BF37: =+'19-E1'!CE$6 -> 0 | BG37: =+'19-E1'!CF$6 -> 0 | BH37: =+'19-E1'!CG$6 -> 0 | BI37: =+'19-E1'!CH$6 -> 0
A38: =+'19-F1'!Z$6 -> 19-F1 | B38: =+'19-F1'!AA$6 -> Inglewood Courthouse | C38: =+'19-F1'!AB$6 -> One Regent Street | D38: =+'19-F1'!AC$6 -> Inglewood | E38: =+'19-F1'!AD$6 -> 90301 | F38: =+'19-F1'!AE$6 -> Los Angeles | G38: =+'19-F1'!AF$6 -> SRO | I38: =+'19-F1'!AH$6 -> 0 | J38: =+'19-F1'!AI$6 -> 0 | K38: =+'19-F1'!AJ$6 -> 0 | L38: =+'19-F1'!AK$6 -> 0 | M38: =+'19-F1'!AL$6 -> 0 | N38: =+'19-F1'!AM$6 -> 0 | O38: =+'19-F1'!AN$6 -> 0 | P38: =+'19-F1'!AO$6 -> 0 | Q38: =+'19-F1'!AP$6 -> 0 | R38: =+'19-F1'!AQ$6 -> 0 | S38: =+'19-F1'!AR$6 -> 0 | T38: =+'19-F1'!AS$6 -> 0 | U38: =+'19-F1'!AT$6 -> 0 | V38: =+'19-F1'!AU$6 -> 0 | W38: =+'19-F1'!AV$6 -> 0 | X38: =+'19-F1'!AW$6 -> 0 | Y38: =+'19-F1'!AX$6 -> 0 | Z38: =+'19-F1'!AY$6 -> 0 | AA38: =+'19-F1'!AZ$6 -> 0 | AB38: =+'19-F1'!BA$6 -> 0 | AC38: =+'19-F1'!BB$6 -> 0 | AD38: =+'19-F1'!BC$6 -> 0 | AE38: =+'19-F1'!BD$6 -> 0 | AF38: =+'19-F1'!BE$6 -> 0 | AG38: =+'19-F1'!BF$6 -> 0 | AH38: =+'19-F1'!BG$6 -> 0 | AI38: =+'19-F1'!BH$6 -> 0 | AJ38: =+'19-F1'!BI$6 -> 0 | AK38: =+'19-F1'!BJ$6 -> 0 | AL38: =+'19-F1'!BK$6 -> 0 | AM38: =+'19-F1'!BL$6 -> 0 | AN38: =+'19-F1'!BM$6 -> 0 | AO38: =+'19-F1'!BN$6 -> 0 | AP38: =+'19-F1'!BO$6 -> 0 | AQ38: =+'19-F1'!BP$6 -> 0 | AR38: =+'19-F1'!BQ$6 -> 0 | AS38: =+'19-F1'!BR$6 -> 0 | AT38: =+'19-F1'!BS$6 -> 0 | AU38: =+'19-F1'!BT$6 -> 0 | AV38: =+'19-F1'!BU$6 -> 0 | AW38: =+'19-F1'!BV$6 -> 0 | AX38: =+'19-F1'!BW$6 -> 0 | AZ38: =+'19-F1'!BY$6 -> 0 | BB38: =+'19-F1'!CA$6 -> 0 | BC38: =+'19-F1'!CB$6 -> 0 | BD38: =+'19-F1'!CC$6 -> 0 | BE38: =+'19-F1'!CD$6 -> 0 | BF38: =+'19-F1'!CE$6 -> 0 | BG38: =+'19-F1'!CF$6 -> 0 | BH38: =+'19-F1'!CG$6 -> 0 | BI38: =+'19-F1'!CH$6 -> 0
A39: =+'19-F2'!Z$6 -> 19-F2 | B39: =+'19-F2'!AA$6 -> East Parking Structure | C39: =+'19-F2'!AB$6 -> One E. Regent Street | D39: =+'19-F2'!AC$6 -> Inglewood | E39: =+'19-F2'!AD$6 -> 90301 | F39: =+'19-F2'!AE$6 -> Los Angeles | G39: =+'19-F2'!AF$6 -> SRO | I39: =+'19-F2'!AH$6 -> 0 | J39: =+'19-F2'!AI$6 -> 0 | K39: =+'19-F2'!AJ$6 -> 0 | L39: =+'19-F2'!AK$6 -> 0 | M39: =+'19-F2'!AL$6 -> 0 | N39: =+'19-F2'!AM$6 -> 0 | O39: =+'19-F2'!AN$6 -> 0 | P39: =+'19-F2'!AO$6 -> 0 | Q39: =+'19-F2'!AP$6 -> 0 | R39: =+'19-F2'!AQ$6 -> 0 | S39: =+'19-F2'!AR$6 -> 0 | T39: =+'19-F2'!AS$6 -> 0 | U39: =+'19-F2'!AT$6 -> 0 | V39: =+'19-F2'!AU$6 -> 0 | W39: =+'19-F2'!AV$6 -> 0 | X39: =+'19-F2'!AW$6 -> 0 | Y39: =+'19-F2'!AX$6 -> 0 | Z39: =+'19-F2'!AY$6 -> 0 | AA39: =+'19-F2'!AZ$6 -> 0 | AB39: =+'19-F2'!BA$6 -> 0 | AC39: =+'19-F2'!BB$6 -> 0 | AD39: =+'19-F2'!BC$6 -> 0 | AE39: =+'19-F2'!BD$6 -> 0 | AF39: =+'19-F2'!BE$6 -> 0 | AG39: =+'19-F2'!BF$6 -> 0 | AH39: =+'19-F2'!BG$6 -> 0 | AI39: =+'19-F2'!BH$6 -> 0 | AJ39: =+'19-F2'!BI$6 -> 0 | AK39: =+'19-F2'!BJ$6 -> 0 | AL39: =+'19-F2'!BK$6 -> 0 | AM39: =+'19-F2'!BL$6 -> 0 | AN39: =+'19-F2'!BM$6 -> 0 | AO39: =+'19-F2'!BN$6 -> 0 | AP39: =+'19-F2'!BO$6 -> 0 | AQ39: =+'19-F2'!BP$6 -> 0 | AR39: =+'19-F2'!BQ$6 -> 0 | AS39: =+'19-F2'!BR$6 -> 0 | AT39: =+'19-F2'!BS$6 -> 0 | AU39: =+'19-F2'!BT$6 -> 0 | AV39: =+'19-F2'!BU$6 -> 0 | AW39: =+'19-F2'!BV$6 -> 0 | AX39: =+'19-F2'!BW$6 -> 0 | AZ39: =+'19-F2'!BY$6 -> 0 | BB39: =+'19-F2'!CA$6 -> 0 | BC39: =+'19-F2'!CB$6 -> 0 | BD39: =+'19-F2'!CC$6 -> 0 | BE39: =+'19-F2'!CD$6 -> 0 | BF39: =+'19-F2'!CE$6 -> 0 | BG39: =+'19-F2'!CF$6 -> 0 | BH39: =+'19-F2'!CG$6 -> 0 | BI39: =+'19-F2'!CH$6 -> 0
A40: =+'19-F3'!Z$6 -> 19-F3 | B40: =+'19-F3'!AA$6 -> West Parking Structure | C40: =+'19-F3'!AB$6 -> One W. Regent Street | D40: =+'19-F3'!AC$6 -> Inglewood | E40: =+'19-F3'!AD$6 -> 90301 | F40: =+'19-F3'!AE$6 -> Los Angeles | G40: =+'19-F3'!AF$6 -> SRO | I40: =+'19-F3'!AH$6 -> 0 | J40: =+'19-F3'!AI$6 -> 0 | K40: =+'19-F3'!AJ$6 -> 0 | L40: =+'19-F3'!AK$6 -> 0 | M40: =+'19-F3'!AL$6 -> 0 | N40: =+'19-F3'!AM$6 -> 0 | O40: =+'19-F3'!AN$6 -> 0 | P40: =+'19-F3'!AO$6 -> 0 | Q40: =+'19-F3'!AP$6 -> 0 | R40: =+'19-F3'!AQ$6 -> 0 | S40: =+'19-F3'!AR$6 -> 0 | T40: =+'19-F3'!AS$6 -> 0 | U40: =+'19-F3'!AT$6 -> 0 | V40: =+'19-F3'!AU$6 -> 0 | W40: =+'19-F3'!AV$6 -> 0 | X40: =+'19-F3'!AW$6 -> 0 | Y40: =+'19-F3'!AX$6 -> 0 | Z40: =+'19-F3'!AY$6 -> 0 | AA40: =+'19-F3'!AZ$6 -> 0 | AB40: =+'19-F3'!BA$6 -> 0 | AC40: =+'19-F3'!BB$6 -> 0 | AD40: =+'19-F3'!BC$6 -> 0 | AE40: =+'19-F3'!BD$6 -> 0 | AF40: =+'19-F3'!BE$6 -> 0 | AG40: =+'19-F3'!BF$6 -> 0 | AH40: =+'19-F3'!BG$6 -> 0 | AI40: =+'19-F3'!BH$6 -> 0 | AJ40: =+'19-F3'!BI$6 -> 0 | AK40: =+'19-F3'!BJ$6 -> 0 | AL40: =+'19-F3'!BK$6 -> 0 | AM40: =+'19-F3'!BL$6 -> 0 | AN40: =+'19-F3'!BM$6 -> 0 | AO40: =+'19-F3'!BN$6 -> 0 | AP40: =+'19-F3'!BO$6 -> 0 | AQ40: =+'19-F3'!BP$6 -> 0 | AR40: =+'19-F3'!BQ$6 -> 0 | AS40: =+'19-F3'!BR$6 -> 0 | AT40: =+'19-F3'!BS$6 -> 0 | AU40: =+'19-F3'!BT$6 -> 0 | AV40: =+'19-F3'!BU$6 -> 0 | AW40: =+'19-F3'!BV$6 -> 0 | AX40: =+'19-F3'!BW$6 -> 0 | AZ40: =+'19-F3'!BY$6 -> 0 | BB40: =+'19-F3'!CA$6 -> 0 | BC40: =+'19-F3'!CB$6 -> 0 | BD40: =+'19-F3'!CC$6 -> 0 | BE40: =+'19-F3'!CD$6 -> 0 | BF40: =+'19-F3'!CE$6 -> 0 | BG40: =+'19-F3'!CF$6 -> 0 | BH40: =+'19-F3'!CG$6 -> 0 | BI40: =+'19-F3'!CH$6 -> 0
A41: =+'19-G1'!Z$6 -> 19-G1 | B41: =+'19-G1'!AA$6 -> Burbank Courthouse | C41: =+'19-G1'!AB$6 -> 300 East Olive | D41: =+'19-G1'!AC$6 -> Burbank | E41: =+'19-G1'!AD$6 -> 91502 | F41: =+'19-G1'!AE$6 -> Los Angeles | G41: =+'19-G1'!AF$6 -> SRO | I41: =+'19-G1'!AH$6 -> 0 | J41: =+'19-G1'!AI$6 -> 0 | K41: =+'19-G1'!AJ$6 -> 0 | L41: =+'19-G1'!AK$6 -> 0 | M41: =+'19-G1'!AL$6 -> 0 | N41: =+'19-G1'!AM$6 -> 0 | O41: =+'19-G1'!AN$6 -> 0 | P41: =+'19-G1'!AO$6 -> 0 | Q41: =+'19-G1'!AP$6 -> 0 | R41: =+'19-G1'!AQ$6 -> 0 | S41: =+'19-G1'!AR$6 -> 0 | T41: =+'19-G1'!AS$6 -> 0 | U41: =+'19-G1'!AT$6 -> 0 | V41: =+'19-G1'!AU$6 -> 0 | W41: =+'19-G1'!AV$6 -> 0 | X41: =+'19-G1'!AW$6 -> 0 | Y41: =+'19-G1'!AX$6 -> 0 | Z41: =+'19-G1'!AY$6 -> 0 | AA41: =+'19-G1'!AZ$6 -> 0 | AB41: =+'19-G1'!BA$6 -> 0 | AC41: =+'19-G1'!BB$6 -> 0 | AD41: =+'19-G1'!BC$6 -> 0 | AE41: =+'19-G1'!BD$6 -> 0 | AF41: =+'19-G1'!BE$6 -> 0 | AG41: =+'19-G1'!BF$6 -> 0 | AH41: =+'19-G1'!BG$6 -> 0 | AI41: =+'19-G1'!BH$6 -> 0 | AJ41: =+'19-G1'!BI$6 -> 0 | AK41: =+'19-G1'!BJ$6 -> 0 | AL41: =+'19-G1'!BK$6 -> 0 | AM41: =+'19-G1'!BL$6 -> 0 | AN41: =+'19-G1'!BM$6 -> 0 | AO41: =+'19-G1'!BN$6 -> 0 | AP41: =+'19-G1'!BO$6 -> 0 | AQ41: =+'19-G1'!BP$6 -> 0 | AR41: =+'19-G1'!BQ$6 -> 0 | AS41: =+'19-G1'!BR$6 -> 0 | AT41: =+'19-G1'!BS$6 -> 0 | AU41: =+'19-G1'!BT$6 -> 0 | AV41: =+'19-G1'!BU$6 -> 0 | AW41: =+'19-G1'!BV$6 -> 0 | AX41: =+'19-G1'!BW$6 -> 0 | AZ41: =+'19-G1'!BY$6 -> 0 | BB41: =+'19-G1'!CA$6 -> 0 | BC41: =+'19-G1'!CB$6 -> 0 | BD41: =+'19-G1'!CC$6 -> 0 | BE41: =+'19-G1'!CD$6 -> 0 | BF41: =+'19-G1'!CE$6 -> 0 | BG41: =+'19-G1'!CF$6 -> 0 | BH41: =+'19-G1'!CG$6 -> 0 | BI41: =+'19-G1'!CH$6 -> 0
A42: =+'19-H1'!Z$6 -> 19-H1 | B42: =+'19-H1'!AA$6 -> Glendale Courthouse | C42: =+'19-H1'!AB$6 -> 600 East Broadway | D42: =+'19-H1'!AC$6 -> Glendale | E42: =+'19-H1'!AD$6 -> 91206 | F42: =+'19-H1'!AE$6 -> Los Angeles | G42: =+'19-H1'!AF$6 -> SRO | I42: =+'19-H1'!AH$6 -> 0 | J42: =+'19-H1'!AI$6 -> 0 | K42: =+'19-H1'!AJ$6 -> 0 | L42: =+'19-H1'!AK$6 -> 0 | M42: =+'19-H1'!AL$6 -> 0 | N42: =+'19-H1'!AM$6 -> 0 | O42: =+'19-H1'!AN$6 -> 0 | P42: =+'19-H1'!AO$6 -> 0 | Q42: =+'19-H1'!AP$6 -> 0 | R42: =+'19-H1'!AQ$6 -> 0 | S42: =+'19-H1'!AR$6 -> 0 | T42: =+'19-H1'!AS$6 -> 0 | U42: =+'19-H1'!AT$6 -> 0 | V42: =+'19-H1'!AU$6 -> 0 | W42: =+'19-H1'!AV$6 -> 0 | X42: =+'19-H1'!AW$6 -> 0 | Y42: =+'19-H1'!AX$6 -> 0 | Z42: =+'19-H1'!AY$6 -> 0 | AA42: =+'19-H1'!AZ$6 -> 0 | AB42: =+'19-H1'!BA$6 -> 0 | AC42: =+'19-H1'!BB$6 -> 0 | AD42: =+'19-H1'!BC$6 -> 0 | AE42: =+'19-H1'!BD$6 -> 0 | AF42: =+'19-H1'!BE$6 -> 0 | AG42: =+'19-H1'!BF$6 -> 0 | AH42: =+'19-H1'!BG$6 -> 0 | AI42: =+'19-H1'!BH$6 -> 0 | AJ42: =+'19-H1'!BI$6 -> 0 | AK42: =+'19-H1'!BJ$6 -> 0 | AL42: =+'19-H1'!BK$6 -> 0 | AM42: =+'19-H1'!BL$6 -> 0 | AN42: =+'19-H1'!BM$6 -> 0 | AO42: =+'19-H1'!BN$6 -> 0 | AP42: =+'19-H1'!BO$6 -> 0 | AQ42: =+'19-H1'!BP$6 -> 0 | AR42: =+'19-H1'!BQ$6 -> 0 | AS42: =+'19-H1'!BR$6 -> 0 | AT42: =+'19-H1'!BS$6 -> 0 | AU42: =+'19-H1'!BT$6 -> 0 | AV42: =+'19-H1'!BU$6 -> 0 | AW42: =+'19-H1'!BV$6 -> 0 | AX42: =+'19-H1'!BW$6 -> 0 | AZ42: =+'19-H1'!BY$6 -> 0 | BB42: =+'19-H1'!CA$6 -> 0 | BC42: =+'19-H1'!CB$6 -> 0 | BD42: =+'19-H1'!CC$6 -> 0 | BE42: =+'19-H1'!CD$6 -> 0 | BF42: =+'19-H1'!CE$6 -> 0 | BG42: =+'19-H1'!CF$6 -> 0 | BH42: =+'19-H1'!CG$6 -> 0 | BI42: =+'19-H1'!CH$6 -> 0
A43: =+'19-I1'!Z$6 -> 19-I1 | B43: =+'19-I1'!AA$6 -> Alhambra Courthouse | C43: =+'19-I1'!AB$6 -> 150 West Commonwealth Avenue | D43: =+'19-I1'!AC$6 -> Alhambra | E43: =+'19-I1'!AD$6 -> 91801 | F43: =+'19-I1'!AE$6 -> Los Angeles | G43: =+'19-I1'!AF$6 -> SRO | I43: =+'19-I1'!AH$6 -> 0 | J43: =+'19-I1'!AI$6 -> 0 | K43: =+'19-I1'!AJ$6 -> 0 | L43: =+'19-I1'!AK$6 -> 0 | M43: =+'19-I1'!AL$6 -> 0 | N43: =+'19-I1'!AM$6 -> 0 | O43: =+'19-I1'!AN$6 -> 0 | P43: =+'19-I1'!AO$6 -> 0 | Q43: =+'19-I1'!AP$6 -> 0 | R43: =+'19-I1'!AQ$6 -> 0 | S43: =+'19-I1'!AR$6 -> 0 | T43: =+'19-I1'!AS$6 -> 0 | U43: =+'19-I1'!AT$6 -> 0 | V43: =+'19-I1'!AU$6 -> 0 | W43: =+'19-I1'!AV$6 -> 0 | X43: =+'19-I1'!AW$6 -> 0 | Y43: =+'19-I1'!AX$6 -> 0 | Z43: =+'19-I1'!AY$6 -> 0 | AA43: =+'19-I1'!AZ$6 -> 0 | AB43: =+'19-I1'!BA$6 -> 0 | AC43: =+'19-I1'!BB$6 -> 0 | AD43: =+'19-I1'!BC$6 -> 0 | AE43: =+'19-I1'!BD$6 -> 0 | AF43: =+'19-I1'!BE$6 -> 0 | AG43: =+'19-I1'!BF$6 -> 0 | AH43: =+'19-I1'!BG$6 -> 0 | AI43: =+'19-I1'!BH$6 -> 0 | AJ43: =+'19-I1'!BI$6 -> 0 | AK43: =+'19-I1'!BJ$6 -> 0 | AL43: =+'19-I1'!BK$6 -> 0 | AM43: =+'19-I1'!BL$6 -> 0 | AN43: =+'19-I1'!BM$6 -> 0 | AO43: =+'19-I1'!BN$6 -> 0 | AP43: =+'19-I1'!BO$6 -> 0 | AQ43: =+'19-I1'!BP$6 -> 0 | AR43: =+'19-I1'!BQ$6 -> 0 | AS43: =+'19-I1'!BR$6 -> 0 | AT43: =+'19-I1'!BS$6 -> 0 | AU43: =+'19-I1'!BT$6 -> 0 | AV43: =+'19-I1'!BU$6 -> 0 | AW43: =+'19-I1'!BV$6 -> 0 | AX43: =+'19-I1'!BW$6 -> 0 | AZ43: =+'19-I1'!BY$6 -> 0 | BB43: =+'19-I1'!CA$6 -> 0 | BC43: =+'19-I1'!CB$6 -> 0 | BD43: =+'19-I1'!CC$6 -> 0 | BE43: =+'19-I1'!CD$6 -> 0 | BF43: =+'19-I1'!CE$6 -> 0 | BG43: =+'19-I1'!CF$6 -> 0 | BH43: =+'19-I1'!CG$6 -> 0 | BI43: =+'19-I1'!CH$6 -> 0
A44: =+'19-J1'!Z$6 -> 19-J1 | B44: =+'19-J1'!AA$6 -> Pasadena Courthouse | C44: =+'19-J1'!AB$6 -> 300 East Walnut Street | D44: =+'19-J1'!AC$6 -> Pasadena | E44: =+'19-J1'!AD$6 -> 91101 | F44: =+'19-J1'!AE$6 -> Los Angeles | G44: =+'19-J1'!AF$6 -> SRO | I44: =+'19-J1'!AH$6 -> 0 | J44: =+'19-J1'!AI$6 -> 0 | K44: =+'19-J1'!AJ$6 -> 0 | L44: =+'19-J1'!AK$6 -> 0 | M44: =+'19-J1'!AL$6 -> 0 | N44: =+'19-J1'!AM$6 -> 0 | O44: =+'19-J1'!AN$6 -> 0 | P44: =+'19-J1'!AO$6 -> 0 | Q44: =+'19-J1'!AP$6 -> 0 | R44: =+'19-J1'!AQ$6 -> 0 | S44: =+'19-J1'!AR$6 -> 0 | T44: =+'19-J1'!AS$6 -> 0 | U44: =+'19-J1'!AT$6 -> 0 | V44: =+'19-J1'!AU$6 -> 0 | W44: =+'19-J1'!AV$6 -> 0 | X44: =+'19-J1'!AW$6 -> 0 | Y44: =+'19-J1'!AX$6 -> 0 | Z44: =+'19-J1'!AY$6 -> 0 | AA44: =+'19-J1'!AZ$6 -> 0 | AB44: =+'19-J1'!BA$6 -> 0 | AC44: =+'19-J1'!BB$6 -> 0 | AD44: =+'19-J1'!BC$6 -> 0 | AE44: =+'19-J1'!BD$6 -> 0 | AF44: =+'19-J1'!BE$6 -> 0 | AG44: =+'19-J1'!BF$6 -> 0 | AH44: =+'19-J1'!BG$6 -> 0 | AI44: =+'19-J1'!BH$6 -> 0 | AJ44: =+'19-J1'!BI$6 -> 0 | AK44: =+'19-J1'!BJ$6 -> 0 | AL44: =+'19-J1'!BK$6 -> 0 | AM44: =+'19-J1'!BL$6 -> 0 | AN44: =+'19-J1'!BM$6 -> 0 | AO44: =+'19-J1'!BN$6 -> 0 | AP44: =+'19-J1'!BO$6 -> 0 | AQ44: =+'19-J1'!BP$6 -> 0 | AR44: =+'19-J1'!BQ$6 -> 0 | AS44: =+'19-J1'!BR$6 -> 0 | AT44: =+'19-J1'!BS$6 -> 0 | AU44: =+'19-J1'!BT$6 -> 0 | AV44: =+'19-J1'!BU$6 -> 0 | AW44: =+'19-J1'!BV$6 -> 0 | AX44: =+'19-J1'!BW$6 -> 0 | AZ44: =+'19-J1'!BY$6 -> 0 | BB44: =+'19-J1'!CA$6 -> 0 | BC44: =+'19-J1'!CB$6 -> 0 | BD44: =+'19-J1'!CC$6 -> 0 | BE44: =+'19-J1'!CD$6 -> 0 | BF44: =+'19-J1'!CE$6 -> 0 | BG44: =+'19-J1'!CF$6 -> 0 | BH44: =+'19-J1'!CG$6 -> 0 | BI44: =+'19-J1'!CH$6 -> 0
A45: =+'19-J3'!Z$6 -> 19-J3 | B45: =+'19-J3'!AA$6 -> Parking Structure-Lot 53 Pasadena Court | C45: =+'19-J3'!AB$6 -> 240 Ramona St. | D45: =+'19-J3'!AC$6 -> Pasadena | E45: =+'19-J3'!AD$6 -> 91101 | F45: =+'19-J3'!AE$6 -> Los Angeles | G45: =+'19-J3'!AF$6 -> SRO | I45: =+'19-J3'!AH$6 -> 0 | J45: =+'19-J3'!AI$6 -> 0 | K45: =+'19-J3'!AJ$6 -> 0 | L45: =+'19-J3'!AK$6 -> 0 | M45: =+'19-J3'!AL$6 -> 0 | N45: =+'19-J3'!AM$6 -> 0 | O45: =+'19-J3'!AN$6 -> 0 | P45: =+'19-J3'!AO$6 -> 0 | Q45: =+'19-J3'!AP$6 -> 0 | R45: =+'19-J3'!AQ$6 -> 0 | S45: =+'19-J3'!AR$6 -> 0 | T45: =+'19-J3'!AS$6 -> 0 | U45: =+'19-J3'!AT$6 -> 0 | V45: =+'19-J3'!AU$6 -> 0 | W45: =+'19-J3'!AV$6 -> 0 | X45: =+'19-J3'!AW$6 -> 0 | Y45: =+'19-J3'!AX$6 -> 0 | Z45: =+'19-J3'!AY$6 -> 0 | AA45: =+'19-J3'!AZ$6 -> 0 | AB45: =+'19-J3'!BA$6 -> 0 | AC45: =+'19-J3'!BB$6 -> 0 | AD45: =+'19-J3'!BC$6 -> 0 | AE45: =+'19-J3'!BD$6 -> 0 | AF45: =+'19-J3'!BE$6 -> 0 | AG45: =+'19-J3'!BF$6 -> 0 | AH45: =+'19-J3'!BG$6 -> 0 | AI45: =+'19-J3'!BH$6 -> 0 | AJ45: =+'19-J3'!BI$6 -> 0 | AK45: =+'19-J3'!BJ$6 -> 0 | AL45: =+'19-J3'!BK$6 -> 0 | AM45: =+'19-J3'!BL$6 -> 0 | AN45: =+'19-J3'!BM$6 -> 0 | AO45: =+'19-J3'!BN$6 -> 0 | AP45: =+'19-J3'!BO$6 -> 0 | AQ45: =+'19-J3'!BP$6 -> 0 | AR45: =+'19-J3'!BQ$6 -> 0 | AS45: =+'19-J3'!BR$6 -> 0 | AT45: =+'19-J3'!BS$6 -> 0 | AU45: =+'19-J3'!BT$6 -> 0 | AV45: =+'19-J3'!BU$6 -> 0 | AW45: =+'19-J3'!BV$6 -> 0 | AX45: =+'19-J3'!BW$6 -> 0 | AZ45: =+'19-J3'!BY$6 -> 0 | BB45: =+'19-J3'!CA$6 -> 0 | BC45: =+'19-J3'!CB$6 -> 0 | BD45: =+'19-J3'!CC$6 -> 0 | BE45: =+'19-J3'!CD$6 -> 0 | BF45: =+'19-J3'!CE$6 -> 0 | BG45: =+'19-J3'!CF$6 -> 0 | BH45: =+'19-J3'!CG$6 -> 0 | BI45: =+'19-J3'!CH$6 -> 0
A46: =+'19-K1'!Z$6 -> 19-K1 | B46: =+'19-K1'!AA$6 -> Stanley Mosk Courthouse | C46: =+'19-K1'!AB$6 -> 111 North Hill Street | D46: =+'19-K1'!AC$6 -> Los Angeles | E46: =+'19-K1'!AD$6 -> 90012 | F46: =+'19-K1'!AE$6 -> Los Angeles | G46: =+'19-K1'!AF$6 -> SRO | I46: =+'19-K1'!AH$6 -> 0 | J46: =+'19-K1'!AI$6 -> 0 | K46: =+'19-K1'!AJ$6 -> 0 | L46: =+'19-K1'!AK$6 -> 0 | M46: =+'19-K1'!AL$6 -> 0 | N46: =+'19-K1'!AM$6 -> 0 | O46: =+'19-K1'!AN$6 -> 0 | P46: =+'19-K1'!AO$6 -> 0 | Q46: =+'19-K1'!AP$6 -> 0 | R46: =+'19-K1'!AQ$6 -> 0 | S46: =+'19-K1'!AR$6 -> 0 | T46: =+'19-K1'!AS$6 -> 0 | U46: =+'19-K1'!AT$6 -> 0 | V46: =+'19-K1'!AU$6 -> 0 | W46: =+'19-K1'!AV$6 -> 0 | X46: =+'19-K1'!AW$6 -> 0 | Y46: =+'19-K1'!AX$6 -> 0 | Z46: =+'19-K1'!AY$6 -> 0 | AA46: =+'19-K1'!AZ$6 -> 0 | AB46: =+'19-K1'!BA$6 -> 0 | AC46: =+'19-K1'!BB$6 -> 0 | AD46: =+'19-K1'!BC$6 -> 0 | AE46: =+'19-K1'!BD$6 -> 0 | AF46: =+'19-K1'!BE$6 -> 0 | AG46: =+'19-K1'!BF$6 -> 0 | AH46: =+'19-K1'!BG$6 -> 0 | AI46: =+'19-K1'!BH$6 -> 0 | AJ46: =+'19-K1'!BI$6 -> 0 | AK46: =+'19-K1'!BJ$6 -> 0 | AL46: =+'19-K1'!BK$6 -> 0 | AM46: =+'19-K1'!BL$6 -> 0 | AN46: =+'19-K1'!BM$6 -> 0 | AO46: =+'19-K1'!BN$6 -> 0 | AP46: =+'19-K1'!BO$6 -> 0 | AQ46: =+'19-K1'!BP$6 -> 0 | AR46: =+'19-K1'!BQ$6 -> 0 | AS46: =+'19-K1'!BR$6 -> 0 | AT46: =+'19-K1'!BS$6 -> 0 | AU46: =+'19-K1'!BT$6 -> 0 | AV46: =+'19-K1'!BU$6 -> 0 | AW46: =+'19-K1'!BV$6 -> 0 | AX46: =+'19-K1'!BW$6 -> 0 | AZ46: =+'19-K1'!BY$6 -> 0 | BB46: =+'19-K1'!CA$6 -> 0 | BC46: =+'19-K1'!CB$6 -> 0 | BD46: =+'19-K1'!CC$6 -> 0 | BE46: =+'19-K1'!CD$6 -> 0 | BF46: =+'19-K1'!CE$6 -> 0 | BG46: =+'19-K1'!CF$6 -> 0 | BH46: =+'19-K1'!CG$6 -> 0 | BI46: =+'19-K1'!CH$6 -> 0
A47: =+'19-L1'!Z$6 -> 19-L1 | B47: =+'19-L1'!AA$6 -> Clara Shortridge Foltz Criminal Justice Center | C47: =+'19-L1'!AB$6 -> 210 West Temple Street | D47: =+'19-L1'!AC$6 -> Los Angeles | E47: =+'19-L1'!AD$6 -> 90012 | F47: =+'19-L1'!AE$6 -> Los Angeles | G47: =+'19-L1'!AF$6 -> SRO | I47: =+'19-L1'!AH$6 -> 0 | J47: =+'19-L1'!AI$6 -> 0 | K47: =+'19-L1'!AJ$6 -> 0 | L47: =+'19-L1'!AK$6 -> 0 | M47: =+'19-L1'!AL$6 -> 0 | N47: =+'19-L1'!AM$6 -> 0 | O47: =+'19-L1'!AN$6 -> 0 | P47: =+'19-L1'!AO$6 -> 0 | Q47: =+'19-L1'!AP$6 -> 0 | R47: =+'19-L1'!AQ$6 -> 0 | S47: =+'19-L1'!AR$6 -> 0 | T47: =+'19-L1'!AS$6 -> 0 | U47: =+'19-L1'!AT$6 -> 0 | V47: =+'19-L1'!AU$6 -> 0 | W47: =+'19-L1'!AV$6 -> 0 | X47: =+'19-L1'!AW$6 -> 0 | Y47: =+'19-L1'!AX$6 -> 0 | Z47: =+'19-L1'!AY$6 -> 0 | AA47: =+'19-L1'!AZ$6 -> 0 | AB47: =+'19-L1'!BA$6 -> 0 | AC47: =+'19-L1'!BB$6 -> 0 | AD47: =+'19-L1'!BC$6 -> 0 | AE47: =+'19-L1'!BD$6 -> 0 | AF47: =+'19-L1'!BE$6 -> 0 | AG47: =+'19-L1'!BF$6 -> 0 | AH47: =+'19-L1'!BG$6 -> 0 | AI47: =+'19-L1'!BH$6 -> 0 | AJ47: =+'19-L1'!BI$6 -> 0 | AK47: =+'19-L1'!BJ$6 -> 0 | AL47: =+'19-L1'!BK$6 -> 0 | AM47: =+'19-L1'!BL$6 -> 0 | AN47: =+'19-L1'!BM$6 -> 0 | AO47: =+'19-L1'!BN$6 -> 0 | AP47: =+'19-L1'!BO$6 -> 0 | AQ47: =+'19-L1'!BP$6 -> 0 | AR47: =+'19-L1'!BQ$6 -> 0 | AS47: =+'19-L1'!BR$6 -> 0 | AT47: =+'19-L1'!BS$6 -> 0 | AU47: =+'19-L1'!BT$6 -> 0 | AV47: =+'19-L1'!BU$6 -> 0 | AW47: =+'19-L1'!BV$6 -> 0 | AX47: =+'19-L1'!BW$6 -> 0 | AZ47: =+'19-L1'!BY$6 -> 0 | BB47: =+'19-L1'!CA$6 -> 0 | BC47: =+'19-L1'!CB$6 -> 0 | BD47: =+'19-L1'!CC$6 -> 0 | BE47: =+'19-L1'!CD$6 -> 0 | BF47: =+'19-L1'!CE$6 -> 0 | BG47: =+'19-L1'!CF$6 -> 0 | BH47: =+'19-L1'!CG$6 -> 0 | BI47: =+'19-L1'!CH$6 -> 0
A48: =+'19-N1'!Z$6 -> 19-N1 | B48: =+'19-N1'!AA$6 -> Monrovia Training Center | C48: =+'19-N1'!AB$6 -> 300 W. Maple Ave. | D48: =+'19-N1'!AC$6 -> Monrovia | E48: =+'19-N1'!AD$6 -> 91016 | F48: =+'19-N1'!AE$6 -> Los Angeles | G48: =+'19-N1'!AF$6 -> SRO | I48: =+'19-N1'!AH$6 -> 0 | J48: =+'19-N1'!AI$6 -> 0 | K48: =+'19-N1'!AJ$6 -> 0 | L48: =+'19-N1'!AK$6 -> 0 | M48: =+'19-N1'!AL$6 -> 0 | N48: =+'19-N1'!AM$6 -> 0 | O48: =+'19-N1'!AN$6 -> 0 | P48: =+'19-N1'!AO$6 -> 0 | Q48: =+'19-N1'!AP$6 -> 0 | R48: =+'19-N1'!AQ$6 -> 0 | S48: =+'19-N1'!AR$6 -> 0 | T48: =+'19-N1'!AS$6 -> 0 | U48: =+'19-N1'!AT$6 -> 0 | V48: =+'19-N1'!AU$6 -> 0 | W48: =+'19-N1'!AV$6 -> 0 | X48: =+'19-N1'!AW$6 -> 0 | Y48: =+'19-N1'!AX$6 -> 0 | Z48: =+'19-N1'!AY$6 -> 0 | AA48: =+'19-N1'!AZ$6 -> 0 | AB48: =+'19-N1'!BA$6 -> 0 | AC48: =+'19-N1'!BB$6 -> 0 | AD48: =+'19-N1'!BC$6 -> 0 | AE48: =+'19-N1'!BD$6 -> 0 | AF48: =+'19-N1'!BE$6 -> 0 | AG48: =+'19-N1'!BF$6 -> 0 | AH48: =+'19-N1'!BG$6 -> 0 | AI48: =+'19-N1'!BH$6 -> 0 | AJ48: =+'19-N1'!BI$6 -> 0 | AK48: =+'19-N1'!BJ$6 -> 0 | AL48: =+'19-N1'!BK$6 -> 0 | AM48: =+'19-N1'!BL$6 -> 0 | AN48: =+'19-N1'!BM$6 -> 0 | AO48: =+'19-N1'!BN$6 -> 0 | AP48: =+'19-N1'!BO$6 -> 0 | AQ48: =+'19-N1'!BP$6 -> 0 | AR48: =+'19-N1'!BQ$6 -> 0 | AS48: =+'19-N1'!BR$6 -> 0 | AT48: =+'19-N1'!BS$6 -> 0 | AU48: =+'19-N1'!BT$6 -> 0 | AV48: =+'19-N1'!BU$6 -> 0 | AW48: =+'19-N1'!BV$6 -> 0 | AX48: =+'19-N1'!BW$6 -> 0 | AZ48: =+'19-N1'!BY$6 -> 0 | BB48: =+'19-N1'!CA$6 -> 0 | BC48: =+'19-N1'!CB$6 -> 0 | BD48: =+'19-N1'!CC$6 -> 0 | BE48: =+'19-N1'!CD$6 -> 0 | BF48: =+'19-N1'!CE$6 -> 0 | BG48: =+'19-N1'!CF$6 -> 0 | BH48: =+'19-N1'!CG$6 -> 0 | BI48: =+'19-N1'!CH$6 -> 0
A49: =+'19-O1'!Z$6 -> 19-O1 | B49: =+'19-O1'!AA$6 -> El Monte Courthouse | C49: =+'19-O1'!AB$6 -> 11234 East Valley Boulevard | D49: =+'19-O1'!AC$6 -> El Monte | E49: =+'19-O1'!AD$6 -> 91731 | F49: =+'19-O1'!AE$6 -> Los Angeles | G49: =+'19-O1'!AF$6 -> SRO | I49: =+'19-O1'!AH$6 -> 0 | J49: =+'19-O1'!AI$6 -> 0 | K49: =+'19-O1'!AJ$6 -> 0 | L49: =+'19-O1'!AK$6 -> 0 | M49: =+'19-O1'!AL$6 -> 0 | N49: =+'19-O1'!AM$6 -> 0 | O49: =+'19-O1'!AN$6 -> 0 | P49: =+'19-O1'!AO$6 -> 0 | Q49: =+'19-O1'!AP$6 -> 0 | R49: =+'19-O1'!AQ$6 -> 0 | S49: =+'19-O1'!AR$6 -> 0 | T49: =+'19-O1'!AS$6 -> 0 | U49: =+'19-O1'!AT$6 -> 0 | V49: =+'19-O1'!AU$6 -> 0 | W49: =+'19-O1'!AV$6 -> 0 | X49: =+'19-O1'!AW$6 -> 0 | Y49: =+'19-O1'!AX$6 -> 0 | Z49: =+'19-O1'!AY$6 -> 0 | AA49: =+'19-O1'!AZ$6 -> 0 | AB49: =+'19-O1'!BA$6 -> 0 | AC49: =+'19-O1'!BB$6 -> 0 | AD49: =+'19-O1'!BC$6 -> 0 | AE49: =+'19-O1'!BD$6 -> 0 | AF49: =+'19-O1'!BE$6 -> 0 | AG49: =+'19-O1'!BF$6 -> 0 | AH49: =+'19-O1'!BG$6 -> 0 | AI49: =+'19-O1'!BH$6 -> 0 | AJ49: =+'19-O1'!BI$6 -> 0 | AK49: =+'19-O1'!BJ$6 -> 0 | AL49: =+'19-O1'!BK$6 -> 0 | AM49: =+'19-O1'!BL$6 -> 0 | AN49: =+'19-O1'!BM$6 -> 0 | AO49: =+'19-O1'!BN$6 -> 0 | AP49: =+'19-O1'!BO$6 -> 0 | AQ49: =+'19-O1'!BP$6 -> 0 | AR49: =+'19-O1'!BQ$6 -> 0 | AS49: =+'19-O1'!BR$6 -> 0 | AT49: =+'19-O1'!BS$6 -> 0 | AU49: =+'19-O1'!BT$6 -> 0 | AV49: =+'19-O1'!BU$6 -> 0 | AW49: =+'19-O1'!BV$6 -> 0 | AX49: =+'19-O1'!BW$6 -> 0 | AZ49: =+'19-O1'!BY$6 -> 0 | BB49: =+'19-O1'!CA$6 -> 0 | BC49: =+'19-O1'!CB$6 -> 0 | BD49: =+'19-O1'!CC$6 -> 0 | BE49: =+'19-O1'!CD$6 -> 0 | BF49: =+'19-O1'!CE$6 -> 0 | BG49: =+'19-O1'!CF$6 -> 0 | BH49: =+'19-O1'!CG$6 -> 0 | BI49: =+'19-O1'!CH$6 -> 0
A50: =+'19-Q1'!Z$6 -> 19-Q1 | B50: =+'19-Q1'!AA$6 -> Edmund D. Edelman Children's Court | C50: =+'19-Q1'!AB$6 -> 201 Centre Plaza Drive | D50: =+'19-Q1'!AC$6 -> Monterey Park | E50: =+'19-Q1'!AD$6 -> 91754 | F50: =+'19-Q1'!AE$6 -> Los Angeles | G50: =+'19-Q1'!AF$6 -> SRO | I50: =+'19-Q1'!AH$6 -> 0 | J50: =+'19-Q1'!AI$6 -> 0 | K50: =+'19-Q1'!AJ$6 -> 0 | L50: =+'19-Q1'!AK$6 -> 0 | M50: =+'19-Q1'!AL$6 -> 0 | N50: =+'19-Q1'!AM$6 -> 0 | O50: =+'19-Q1'!AN$6 -> 0 | P50: =+'19-Q1'!AO$6 -> 0 | Q50: =+'19-Q1'!AP$6 -> 0 | R50: =+'19-Q1'!AQ$6 -> 0 | S50: =+'19-Q1'!AR$6 -> 0 | T50: =+'19-Q1'!AS$6 -> 0 | U50: =+'19-Q1'!AT$6 -> 0 | V50: =+'19-Q1'!AU$6 -> 0 | W50: =+'19-Q1'!AV$6 -> 0 | X50: =+'19-Q1'!AW$6 -> 0 | Y50: =+'19-Q1'!AX$6 -> 0 | Z50: =+'19-Q1'!AY$6 -> 0 | AA50: =+'19-Q1'!AZ$6 -> 0 | AB50: =+'19-Q1'!BA$6 -> 0 | AC50: =+'19-Q1'!BB$6 -> 0 | AD50: =+'19-Q1'!BC$6 -> 0 | AE50: =+'19-Q1'!BD$6 -> 0 | AF50: =+'19-Q1'!BE$6 -> 0 | AG50: =+'19-Q1'!BF$6 -> 0 | AH50: =+'19-Q1'!BG$6 -> 0 | AI50: =+'19-Q1'!BH$6 -> 0 | AJ50: =+'19-Q1'!BI$6 -> 0 | AK50: =+'19-Q1'!BJ$6 -> 0 | AL50: =+'19-Q1'!BK$6 -> 0 | AM50: =+'19-Q1'!BL$6 -> 0 | AN50: =+'19-Q1'!BM$6 -> 0 | AO50: =+'19-Q1'!BN$6 -> 0 | AP50: =+'19-Q1'!BO$6 -> 0 | AQ50: =+'19-Q1'!BP$6 -> 0 | AR50: =+'19-Q1'!BQ$6 -> 0 | AS50: =+'19-Q1'!BR$6 -> 0 | AT50: =+'19-Q1'!BS$6 -> 0 | AU50: =+'19-Q1'!BT$6 -> 0 | AV50: =+'19-Q1'!BU$6 -> 0 | AW50: =+'19-Q1'!BV$6 -> 0 | AX50: =+'19-Q1'!BW$6 -> 0 | AZ50: =+'19-Q1'!BY$6 -> 0 | BB50: =+'19-Q1'!CA$6 -> 0 | BC50: =+'19-Q1'!CB$6 -> 0 | BD50: =+'19-Q1'!CC$6 -> 0 | BE50: =+'19-Q1'!CD$6 -> 0 | BF50: =+'19-Q1'!CE$6 -> 0 | BG50: =+'19-Q1'!CF$6 -> 0 | BH50: =+'19-Q1'!CG$6 -> 0 | BI50: =+'19-Q1'!CH$6 -> 0
A51: =+'19-Q2'!Z$6 -> 19-Q2 | B51: =+'19-Q2'!AA$6 -> Parking Structure-Edelman Court | C51: =+'19-Q2'!AB$6 -> 201 Centre Plaza Drive | D51: =+'19-Q2'!AC$6 -> Monterey Park | E51: =+'19-Q2'!AD$6 -> 91754 | F51: =+'19-Q2'!AE$6 -> Los Angeles | G51: =+'19-Q2'!AF$6 -> SRO | I51: =+'19-Q2'!AH$6 -> 0 | J51: =+'19-Q2'!AI$6 -> 0 | K51: =+'19-Q2'!AJ$6 -> 0 | L51: =+'19-Q2'!AK$6 -> 0 | M51: =+'19-Q2'!AL$6 -> 0 | N51: =+'19-Q2'!AM$6 -> 0 | O51: =+'19-Q2'!AN$6 -> 0 | P51: =+'19-Q2'!AO$6 -> 0 | Q51: =+'19-Q2'!AP$6 -> 0 | R51: =+'19-Q2'!AQ$6 -> 0 | S51: =+'19-Q2'!AR$6 -> 0 | T51: =+'19-Q2'!AS$6 -> 0 | U51: =+'19-Q2'!AT$6 -> 0 | V51: =+'19-Q2'!AU$6 -> 0 | W51: =+'19-Q2'!AV$6 -> 0 | X51: =+'19-Q2'!AW$6 -> 0 | Y51: =+'19-Q2'!AX$6 -> 0 | Z51: =+'19-Q2'!AY$6 -> 0 | AA51: =+'19-Q2'!AZ$6 -> 0 | AB51: =+'19-Q2'!BA$6 -> 0 | AC51: =+'19-Q2'!BB$6 -> 0 | AD51: =+'19-Q2'!BC$6 -> 0 | AE51: =+'19-Q2'!BD$6 -> 0 | AF51: =+'19-Q2'!BE$6 -> 0 | AG51: =+'19-Q2'!BF$6 -> 0 | AH51: =+'19-Q2'!BG$6 -> 0 | AI51: =+'19-Q2'!BH$6 -> 0 | AJ51: =+'19-Q2'!BI$6 -> 0 | AK51: =+'19-Q2'!BJ$6 -> 0 | AL51: =+'19-Q2'!BK$6 -> 0 | AM51: =+'19-Q2'!BL$6 -> 0 | AN51: =+'19-Q2'!BM$6 -> 0 | AO51: =+'19-Q2'!BN$6 -> 0 | AP51: =+'19-Q2'!BO$6 -> 0 | AQ51: =+'19-Q2'!BP$6 -> 0 | AR51: =+'19-Q2'!BQ$6 -> 0 | AS51: =+'19-Q2'!BR$6 -> 0 | AT51: =+'19-Q2'!BS$6 -> 0 | AU51: =+'19-Q2'!BT$6 -> 0 | AV51: =+'19-Q2'!BU$6 -> 0 | AW51: =+'19-Q2'!BV$6 -> 0 | AX51: =+'19-Q2'!BW$6 -> 0 | AZ51: =+'19-Q2'!BY$6 -> 0 | BB51: =+'19-Q2'!CA$6 -> 0 | BC51: =+'19-Q2'!CB$6 -> 0 | BD51: =+'19-Q2'!CC$6 -> 0 | BE51: =+'19-Q2'!CD$6 -> 0 | BF51: =+'19-Q2'!CE$6 -> 0 | BG51: =+'19-Q2'!CF$6 -> 0 | BH51: =+'19-Q2'!CG$6 -> 0 | BI51: =+'19-Q2'!CH$6 -> 0
A52: =+'19-S1'!Z$6 -> 19-S1 | B52: =+'19-S1'!AA$6 -> Hollywood Courthouse | C52: =+'19-S1'!AB$6 -> 5925 Hollywood Boulevard | D52: =+'19-S1'!AC$6 -> Los Angeles | E52: =+'19-S1'!AD$6 -> 90028 | F52: =+'19-S1'!AE$6 -> Los Angeles | G52: =+'19-S1'!AF$6 -> SRO | I52: =+'19-S1'!AH$6 -> 0 | J52: =+'19-S1'!AI$6 -> 0 | K52: =+'19-S1'!AJ$6 -> 0 | L52: =+'19-S1'!AK$6 -> 0 | M52: =+'19-S1'!AL$6 -> 0 | N52: =+'19-S1'!AM$6 -> 0 | O52: =+'19-S1'!AN$6 -> 0 | P52: =+'19-S1'!AO$6 -> 0 | Q52: =+'19-S1'!AP$6 -> 0 | R52: =+'19-S1'!AQ$6 -> 0 | S52: =+'19-S1'!AR$6 -> 0 | T52: =+'19-S1'!AS$6 -> 0 | U52: =+'19-S1'!AT$6 -> 0 | V52: =+'19-S1'!AU$6 -> 0 | W52: =+'19-S1'!AV$6 -> 0 | X52: =+'19-S1'!AW$6 -> 0 | Y52: =+'19-S1'!AX$6 -> 0 | Z52: =+'19-S1'!AY$6 -> 0 | AA52: =+'19-S1'!AZ$6 -> 0 | AB52: =+'19-S1'!BA$6 -> 0 | AC52: =+'19-S1'!BB$6 -> 0 | AD52: =+'19-S1'!BC$6 -> 0 | AE52: =+'19-S1'!BD$6 -> 0 | AF52: =+'19-S1'!BE$6 -> 0 | AG52: =+'19-S1'!BF$6 -> 0 | AH52: =+'19-S1'!BG$6 -> 0 | AI52: =+'19-S1'!BH$6 -> 0 | AJ52: =+'19-S1'!BI$6 -> 0 | AK52: =+'19-S1'!BJ$6 -> 0 | AL52: =+'19-S1'!BK$6 -> 0 | AM52: =+'19-S1'!BL$6 -> 0 | AN52: =+'19-S1'!BM$6 -> 0 | AO52: =+'19-S1'!BN$6 -> 0 | AP52: =+'19-S1'!BO$6 -> 0 | AQ52: =+'19-S1'!BP$6 -> 0 | AR52: =+'19-S1'!BQ$6 -> 0 | AS52: =+'19-S1'!BR$6 -> 0 | AT52: =+'19-S1'!BS$6 -> 0 | AU52: =+'19-S1'!BT$6 -> 0 | AV52: =+'19-S1'!BU$6 -> 0 | AW52: =+'19-S1'!BV$6 -> 0 | AX52: =+'19-S1'!BW$6 -> 0 | AZ52: =+'19-S1'!BY$6 -> 0 | BB52: =+'19-S1'!CA$6 -> 0 | BC52: =+'19-S1'!CB$6 -> 0 | BD52: =+'19-S1'!CC$6 -> 0 | BE52: =+'19-S1'!CD$6 -> 0 | BF52: =+'19-S1'!CE$6 -> 0 | BG52: =+'19-S1'!CF$6 -> 0 | BH52: =+'19-S1'!CG$6 -> 0 | BI52: =+'19-S1'!CH$6 -> 0
A53: =+'19-T1'!Z$6 -> 19-T1 | B53: =+'19-T1'!AA$6 -> Metropolitan Courthouse | C53: =+'19-T1'!AB$6 -> 1945 South Hill Street | D53: =+'19-T1'!AC$6 -> Los Angeles | E53: =+'19-T1'!AD$6 -> 90007 | F53: =+'19-T1'!AE$6 -> Los Angeles | G53: =+'19-T1'!AF$6 -> SRO | I53: =+'19-T1'!AH$6 -> 0 | J53: =+'19-T1'!AI$6 -> 0 | K53: =+'19-T1'!AJ$6 -> 0 | L53: =+'19-T1'!AK$6 -> 0 | M53: =+'19-T1'!AL$6 -> 0 | N53: =+'19-T1'!AM$6 -> 0 | O53: =+'19-T1'!AN$6 -> 0 | P53: =+'19-T1'!AO$6 -> 0 | Q53: =+'19-T1'!AP$6 -> 0 | R53: =+'19-T1'!AQ$6 -> 0 | S53: =+'19-T1'!AR$6 -> 0 | T53: =+'19-T1'!AS$6 -> 0 | U53: =+'19-T1'!AT$6 -> 0 | V53: =+'19-T1'!AU$6 -> 0 | W53: =+'19-T1'!AV$6 -> 0 | X53: =+'19-T1'!AW$6 -> 0 | Y53: =+'19-T1'!AX$6 -> 0 | Z53: =+'19-T1'!AY$6 -> 0 | AA53: =+'19-T1'!AZ$6 -> 0 | AB53: =+'19-T1'!BA$6 -> 0 | AC53: =+'19-T1'!BB$6 -> 0 | AD53: =+'19-T1'!BC$6 -> 0 | AE53: =+'19-T1'!BD$6 -> 0 | AF53: =+'19-T1'!BE$6 -> 0 | AG53: =+'19-T1'!BF$6 -> 0 | AH53: =+'19-T1'!BG$6 -> 0 | AI53: =+'19-T1'!BH$6 -> 0 | AJ53: =+'19-T1'!BI$6 -> 0 | AK53: =+'19-T1'!BJ$6 -> 0 | AL53: =+'19-T1'!BK$6 -> 0 | AM53: =+'19-T1'!BL$6 -> 0 | AN53: =+'19-T1'!BM$6 -> 0 | AO53: =+'19-T1'!BN$6 -> 0 | AP53: =+'19-T1'!BO$6 -> 0 | AQ53: =+'19-T1'!BP$6 -> 0 | AR53: =+'19-T1'!BQ$6 -> 0 | AS53: =+'19-T1'!BR$6 -> 0 | AT53: =+'19-T1'!BS$6 -> 0 | AU53: =+'19-T1'!BT$6 -> 0 | AV53: =+'19-T1'!BU$6 -> 0 | AW53: =+'19-T1'!BV$6 -> 0 | AX53: =+'19-T1'!BW$6 -> 0 | AZ53: =+'19-T1'!BY$6 -> 0 | BB53: =+'19-T1'!CA$6 -> 0 | BC53: =+'19-T1'!CB$6 -> 0 | BD53: =+'19-T1'!CC$6 -> 0 | BE53: =+'19-T1'!CD$6 -> 0 | BF53: =+'19-T1'!CE$6 -> 0 | BG53: =+'19-T1'!CF$6 -> 0 | BH53: =+'19-T1'!CG$6 -> 0 | BI53: =+'19-T1'!CH$6 -> 0
A54: =+'19-V1'!Z$6 -> 19-V1 | B54: =+'19-V1'!AA$6 -> East Los Angeles Courthouse | C54: =+'19-V1'!AB$6 -> 4848 E. Civic Center Way | D54: =+'19-V1'!AC$6 -> East Los Angeles | E54: =+'19-V1'!AD$6 -> 90022 | F54: =+'19-V1'!AE$6 -> Los Angeles | G54: =+'19-V1'!AF$6 -> SRO | I54: =+'19-V1'!AH$6 -> 0 | J54: =+'19-V1'!AI$6 -> 0 | K54: =+'19-V1'!AJ$6 -> 0 | L54: =+'19-V1'!AK$6 -> 0 | M54: =+'19-V1'!AL$6 -> 0 | N54: =+'19-V1'!AM$6 -> 0 | O54: =+'19-V1'!AN$6 -> 0 | P54: =+'19-V1'!AO$6 -> 0 | Q54: =+'19-V1'!AP$6 -> 0 | R54: =+'19-V1'!AQ$6 -> 0 | S54: =+'19-V1'!AR$6 -> 0 | T54: =+'19-V1'!AS$6 -> 0 | U54: =+'19-V1'!AT$6 -> 0 | V54: =+'19-V1'!AU$6 -> 0 | W54: =+'19-V1'!AV$6 -> 0 | X54: =+'19-V1'!AW$6 -> 0 | Y54: =+'19-V1'!AX$6 -> 0 | Z54: =+'19-V1'!AY$6 -> 0 | AA54: =+'19-V1'!AZ$6 -> 0 | AB54: =+'19-V1'!BA$6 -> 0 | AC54: =+'19-V1'!BB$6 -> 0 | AD54: =+'19-V1'!BC$6 -> 0 | AE54: =+'19-V1'!BD$6 -> 0 | AF54: =+'19-V1'!BE$6 -> 0 | AG54: =+'19-V1'!BF$6 -> 0 | AH54: =+'19-V1'!BG$6 -> 0 | AI54: =+'19-V1'!BH$6 -> 0 | AJ54: =+'19-V1'!BI$6 -> 0 | AK54: =+'19-V1'!BJ$6 -> 0 | AL54: =+'19-V1'!BK$6 -> 0 | AM54: =+'19-V1'!BL$6 -> 0 | AN54: =+'19-V1'!BM$6 -> 0 | AO54: =+'19-V1'!BN$6 -> 0 | AP54: =+'19-V1'!BO$6 -> 0 | AQ54: =+'19-V1'!BP$6 -> 0 | AR54: =+'19-V1'!BQ$6 -> 0 | AS54: =+'19-V1'!BR$6 -> 0 | AT54: =+'19-V1'!BS$6 -> 0 | AU54: =+'19-V1'!BT$6 -> 0 | AV54: =+'19-V1'!BU$6 -> 0 | AW54: =+'19-V1'!BV$6 -> 0 | AX54: =+'19-V1'!BW$6 -> 0 | AZ54: =+'19-V1'!BY$6 -> 0 | BB54: =+'19-V1'!CA$6 -> 0 | BC54: =+'19-V1'!CB$6 -> 0 | BD54: =+'19-V1'!CC$6 -> 0 | BE54: =+'19-V1'!CD$6 -> 0 | BF54: =+'19-V1'!CE$6 -> 0 | BG54: =+'19-V1'!CF$6 -> 0 | BH54: =+'19-V1'!CG$6 -> 0 | BI54: =+'19-V1'!CH$6 -> 0
A55: =+'19-W1'!Z$6 -> 19-W1 | B55: =+'19-W1'!AA$6 -> Pomona Courthouse South | C55: =+'19-W1'!AB$6 -> 400 Civic Center Plaza | D55: =+'19-W1'!AC$6 -> Pomona | E55: =+'19-W1'!AD$6 -> 91766 | F55: =+'19-W1'!AE$6 -> Los Angeles | G55: =+'19-W1'!AF$6 -> SRO | I55: =+'19-W1'!AH$6 -> 0 | J55: =+'19-W1'!AI$6 -> 0 | K55: =+'19-W1'!AJ$6 -> 0 | L55: =+'19-W1'!AK$6 -> 0 | M55: =+'19-W1'!AL$6 -> 0 | N55: =+'19-W1'!AM$6 -> 0 | O55: =+'19-W1'!AN$6 -> 0 | P55: =+'19-W1'!AO$6 -> 0 | Q55: =+'19-W1'!AP$6 -> 0 | R55: =+'19-W1'!AQ$6 -> 0 | S55: =+'19-W1'!AR$6 -> 0 | T55: =+'19-W1'!AS$6 -> 0 | U55: =+'19-W1'!AT$6 -> 0 | V55: =+'19-W1'!AU$6 -> 0 | W55: =+'19-W1'!AV$6 -> 0 | X55: =+'19-W1'!AW$6 -> 0 | Y55: =+'19-W1'!AX$6 -> 0 | Z55: =+'19-W1'!AY$6 -> 0 | AA55: =+'19-W1'!AZ$6 -> 0 | AB55: =+'19-W1'!BA$6 -> 0 | AC55: =+'19-W1'!BB$6 -> 0 | AD55: =+'19-W1'!BC$6 -> 0 | AE55: =+'19-W1'!BD$6 -> 0 | AF55: =+'19-W1'!BE$6 -> 0 | AG55: =+'19-W1'!BF$6 -> 0 | AH55: =+'19-W1'!BG$6 -> 0 | AI55: =+'19-W1'!BH$6 -> 0 | AJ55: =+'19-W1'!BI$6 -> 0 | AK55: =+'19-W1'!BJ$6 -> 0 | AL55: =+'19-W1'!BK$6 -> 0 | AM55: =+'19-W1'!BL$6 -> 0 | AN55: =+'19-W1'!BM$6 -> 0 | AO55: =+'19-W1'!BN$6 -> 0 | AP55: =+'19-W1'!BO$6 -> 0 | AQ55: =+'19-W1'!BP$6 -> 0 | AR55: =+'19-W1'!BQ$6 -> 0 | AS55: =+'19-W1'!BR$6 -> 0 | AT55: =+'19-W1'!BS$6 -> 0 | AU55: =+'19-W1'!BT$6 -> 0 | AV55: =+'19-W1'!BU$6 -> 0 | AW55: =+'19-W1'!BV$6 -> 0 | AX55: =+'19-W1'!BW$6 -> 0 | AZ55: =+'19-W1'!BY$6 -> 0 | BB55: =+'19-W1'!CA$6 -> 0 | BC55: =+'19-W1'!CB$6 -> 0 | BD55: =+'19-W1'!CC$6 -> 0 | BE55: =+'19-W1'!CD$6 -> 0 | BF55: =+'19-W1'!CE$6 -> 0 | BG55: =+'19-W1'!CF$6 -> 0 | BH55: =+'19-W1'!CG$6 -> 0 | BI55: =+'19-W1'!CH$6 -> 0
A56: =+'19-W2'!Z$6 -> 19-W2 | B56: =+'19-W2'!AA$6 -> Pomona Courthouse North | C56: =+'19-W2'!AB$6 -> 350 West Mission Boulevard | D56: =+'19-W2'!AC$6 -> Pomona | E56: =+'19-W2'!AD$6 -> 91766 | F56: =+'19-W2'!AE$6 -> Los Angeles | G56: =+'19-W2'!AF$6 -> SRO | I56: =+'19-W2'!AH$6 -> 0 | J56: =+'19-W2'!AI$6 -> 0 | K56: =+'19-W2'!AJ$6 -> 0 | L56: =+'19-W2'!AK$6 -> 0 | M56: =+'19-W2'!AL$6 -> 0 | N56: =+'19-W2'!AM$6 -> 0 | O56: =+'19-W2'!AN$6 -> 0 | P56: =+'19-W2'!AO$6 -> 0 | Q56: =+'19-W2'!AP$6 -> 0 | R56: =+'19-W2'!AQ$6 -> 0 | S56: =+'19-W2'!AR$6 -> 0 | T56: =+'19-W2'!AS$6 -> 0 | U56: =+'19-W2'!AT$6 -> 0 | V56: =+'19-W2'!AU$6 -> 0 | W56: =+'19-W2'!AV$6 -> 0 | X56: =+'19-W2'!AW$6 -> 0 | Y56: =+'19-W2'!AX$6 -> 0 | Z56: =+'19-W2'!AY$6 -> 0 | AA56: =+'19-W2'!AZ$6 -> 0 | AB56: =+'19-W2'!BA$6 -> 0 | AC56: =+'19-W2'!BB$6 -> 0 | AD56: =+'19-W2'!BC$6 -> 0 | AE56: =+'19-W2'!BD$6 -> 0 | AF56: =+'19-W2'!BE$6 -> 0 | AG56: =+'19-W2'!BF$6 -> 0 | AH56: =+'19-W2'!BG$6 -> 0 | AI56: =+'19-W2'!BH$6 -> 0 | AJ56: =+'19-W2'!BI$6 -> 0 | AK56: =+'19-W2'!BJ$6 -> 0 | AL56: =+'19-W2'!BK$6 -> 0 | AM56: =+'19-W2'!BL$6 -> 0 | AN56: =+'19-W2'!BM$6 -> 0 | AO56: =+'19-W2'!BN$6 -> 0 | AP56: =+'19-W2'!BO$6 -> 0 | AQ56: =+'19-W2'!BP$6 -> 0 | AR56: =+'19-W2'!BQ$6 -> 0 | AS56: =+'19-W2'!BR$6 -> 0 | AT56: =+'19-W2'!BS$6 -> 0 | AU56: =+'19-W2'!BT$6 -> 0 | AV56: =+'19-W2'!BU$6 -> 0 | AW56: =+'19-W2'!BV$6 -> 0 | AX56: =+'19-W2'!BW$6 -> 0 | AZ56: =+'19-W2'!BY$6 -> 0 | BB56: =+'19-W2'!CA$6 -> 0 | BC56: =+'19-W2'!CB$6 -> 0 | BD56: =+'19-W2'!CC$6 -> 0 | BE56: =+'19-W2'!CD$6 -> 0 | BF56: =+'19-W2'!CE$6 -> 0 | BG56: =+'19-W2'!CF$6 -> 0 | BH56: =+'19-W2'!CG$6 -> 0 | BI56: =+'19-W2'!CH$6 -> 0
A57: =+'30-A1'!Z$6 -> 30-A1 | B57: =+'30-A1'!AA$6 -> 30-A1 Central Justice Center | C57: =+'30-A1'!AB$6 -> 700 Civic Center Dr W. | D57: =+'30-A1'!AC$6 -> Santa Ana | E57: =+'30-A1'!AD$6 -> 92701 | F57: =+'30-A1'!AE$6 -> Orange | G57: =+'30-A1'!AF$6 -> SRO | I57: =+'30-A1'!AH$6 -> 0 | J57: =+'30-A1'!AI$6 -> 0 | K57: =+'30-A1'!AJ$6 -> 0 | L57: =+'30-A1'!AK$6 -> 0 | M57: =+'30-A1'!AL$6 -> 0 | N57: =+'30-A1'!AM$6 -> 0 | O57: =+'30-A1'!AN$6 -> 0 | P57: =+'30-A1'!AO$6 -> 0 | Q57: =+'30-A1'!AP$6 -> 0 | R57: =+'30-A1'!AQ$6 -> 0 | S57: =+'30-A1'!AR$6 -> 0 | T57: =+'30-A1'!AS$6 -> 0 | U57: =+'30-A1'!AT$6 -> 0 | V57: =+'30-A1'!AU$6 -> 0 | W57: =+'30-A1'!AV$6 -> 0 | X57: =+'30-A1'!AW$6 -> 0 | Y57: =+'30-A1'!AX$6 -> 0 | Z57: =+'30-A1'!AY$6 -> 0 | AA57: =+'30-A1'!AZ$6 -> 0 | AB57: =+'30-A1'!BA$6 -> 0 | AC57: =+'30-A1'!BB$6 -> 0 | AD57: =+'30-A1'!BC$6 -> 0 | AE57: =+'30-A1'!BD$6 -> 0 | AF57: =+'30-A1'!BE$6 -> 0 | AG57: =+'30-A1'!BF$6 -> 0 | AH57: =+'30-A1'!BG$6 -> 0 | AI57: =+'30-A1'!BH$6 -> 0 | AJ57: =+'30-A1'!BI$6 -> 0 | AK57: =+'30-A1'!BJ$6 -> 0 | AL57: =+'30-A1'!BK$6 -> 0 | AM57: =+'30-A1'!BL$6 -> 0 | AN57: =+'30-A1'!BM$6 -> 0 | AO57: =+'30-A1'!BN$6 -> 0 | AP57: =+'30-A1'!BO$6 -> 0 | AQ57: =+'30-A1'!BP$6 -> 0 | AR57: =+'30-A1'!BQ$6 -> 0 | AS57: =+'30-A1'!BR$6 -> 0 | AT57: =+'30-A1'!BS$6 -> 0 | AU57: =+'30-A1'!BT$6 -> 0 | AV57: =+'30-A1'!BU$6 -> 0 | AW57: =+'30-A1'!BV$6 -> 0 | AX57: =+'30-A1'!BW$6 -> 0 | AZ57: =+'30-A1'!BY$6 -> 0 | BB57: =+'30-A1'!CA$6 -> 0 | BC57: =+'30-A1'!CB$6 -> 0 | BD57: =+'30-A1'!CC$6 -> 0 | BE57: =+'30-A1'!CD$6 -> 0 | BF57: =+'30-A1'!CE$6 -> 0 | BG57: =+'30-A1'!CF$6 -> 0 | BH57: =+'30-A1'!CG$6 -> 0 | BI57: =+'30-A1'!CH$6 -> 0
A58: =+'30-A3'!Z$6 -> 30-A3 | B58: =+'30-A3'!AA$6 -> Civil Complex Center ("CXC") | C58: =+'30-A3'!AB$6 -> 751 W. Santa Ana Blvd. | D58: =+'30-A3'!AC$6 -> Santa Ana | E58: =+'30-A3'!AD$6 -> 92701 | F58: =+'30-A3'!AE$6 -> Orange | G58: =+'30-A3'!AF$6 -> SRO | I58: =+'30-A3'!AH$6 -> 0 | J58: =+'30-A3'!AI$6 -> 0 | K58: =+'30-A3'!AJ$6 -> 0 | L58: =+'30-A3'!AK$6 -> 0 | M58: =+'30-A3'!AL$6 -> 0 | N58: =+'30-A3'!AM$6 -> 0 | O58: =+'30-A3'!AN$6 -> 0 | P58: =+'30-A3'!AO$6 -> 0 | Q58: =+'30-A3'!AP$6 -> 0 | R58: =+'30-A3'!AQ$6 -> 0 | S58: =+'30-A3'!AR$6 -> 0 | T58: =+'30-A3'!AS$6 -> 0 | U58: =+'30-A3'!AT$6 -> 0 | V58: =+'30-A3'!AU$6 -> 0 | W58: =+'30-A3'!AV$6 -> 0 | X58: =+'30-A3'!AW$6 -> 0 | Y58: =+'30-A3'!AX$6 -> 0 | Z58: =+'30-A3'!AY$6 -> 0 | AA58: =+'30-A3'!AZ$6 -> 0 | AB58: =+'30-A3'!BA$6 -> 0 | AC58: =+'30-A3'!BB$6 -> 0 | AD58: =+'30-A3'!BC$6 -> 0 | AE58: =+'30-A3'!BD$6 -> 0 | AF58: =+'30-A3'!BE$6 -> 0 | AG58: =+'30-A3'!BF$6 -> 0 | AH58: =+'30-A3'!BG$6 -> 0 | AI58: =+'30-A3'!BH$6 -> 0 | AJ58: =+'30-A3'!BI$6 -> 0 | AK58: =+'30-A3'!BJ$6 -> 0 | AL58: =+'30-A3'!BK$6 -> 0 | AM58: =+'30-A3'!BL$6 -> 0 | AN58: =+'30-A3'!BM$6 -> 0 | AO58: =+'30-A3'!BN$6 -> 0 | AP58: =+'30-A3'!BO$6 -> 0 | AQ58: =+'30-A3'!BP$6 -> 0 | AR58: =+'30-A3'!BQ$6 -> 0 | AS58: =+'30-A3'!BR$6 -> 0 | AT58: =+'30-A3'!BS$6 -> 0 | AU58: =+'30-A3'!BT$6 -> 0 | AV58: =+'30-A3'!BU$6 -> 0 | AW58: =+'30-A3'!BV$6 -> 0 | AX58: =+'30-A3'!BW$6 -> 0 | AZ58: =+'30-A3'!BY$6 -> 0 | BB58: =+'30-A3'!CA$6 -> 0 | BC58: =+'30-A3'!CB$6 -> 0 | BD58: =+'30-A3'!CC$6 -> 0 | BE58: =+'30-A3'!CD$6 -> 0 | BF58: =+'30-A3'!CE$6 -> 0 | BG58: =+'30-A3'!CF$6 -> 0 | BH58: =+'30-A3'!CG$6 -> 0 | BI58: =+'30-A3'!CH$6 -> 0
A59: =+'30-B1'!Z$6 -> 30-B1 | B59: =+'30-B1'!AA$6 -> Betty Lou Lamoreaux Justice Center | C59: =+'30-B1'!AB$6 -> 341 The City Dr. | D59: =+'30-B1'!AC$6 -> Orange | E59: =+'30-B1'!AD$6 -> 92868 | F59: =+'30-B1'!AE$6 -> Orange | G59: =+'30-B1'!AF$6 -> SRO | I59: =+'30-B1'!AH$6 -> 0 | J59: =+'30-B1'!AI$6 -> 0 | K59: =+'30-B1'!AJ$6 -> 0 | L59: =+'30-B1'!AK$6 -> 0 | M59: =+'30-B1'!AL$6 -> 0 | N59: =+'30-B1'!AM$6 -> 0 | O59: =+'30-B1'!AN$6 -> 0 | P59: =+'30-B1'!AO$6 -> 0 | Q59: =+'30-B1'!AP$6 -> 0 | R59: =+'30-B1'!AQ$6 -> 0 | S59: =+'30-B1'!AR$6 -> 0 | T59: =+'30-B1'!AS$6 -> 0 | U59: =+'30-B1'!AT$6 -> 0 | V59: =+'30-B1'!AU$6 -> 0 | W59: =+'30-B1'!AV$6 -> 0 | X59: =+'30-B1'!AW$6 -> 0 | Y59: =+'30-B1'!AX$6 -> 0 | Z59: =+'30-B1'!AY$6 -> 0 | AA59: =+'30-B1'!AZ$6 -> 0 | AB59: =+'30-B1'!BA$6 -> 0 | AC59: =+'30-B1'!BB$6 -> 0 | AD59: =+'30-B1'!BC$6 -> 0 | AE59: =+'30-B1'!BD$6 -> 0 | AF59: =+'30-B1'!BE$6 -> 0 | AG59: =+'30-B1'!BF$6 -> 0 | AH59: =+'30-B1'!BG$6 -> 0 | AI59: =+'30-B1'!BH$6 -> 0 | AJ59: =+'30-B1'!BI$6 -> 0 | AK59: =+'30-B1'!BJ$6 -> 0 | AL59: =+'30-B1'!BK$6 -> 0 | AM59: =+'30-B1'!BL$6 -> 0 | AN59: =+'30-B1'!BM$6 -> 0 | AO59: =+'30-B1'!BN$6 -> 0 | AP59: =+'30-B1'!BO$6 -> 0 | AQ59: =+'30-B1'!BP$6 -> 0 | AR59: =+'30-B1'!BQ$6 -> 0 | AS59: =+'30-B1'!BR$6 -> 0 | AT59: =+'30-B1'!BS$6 -> 0 | AU59: =+'30-B1'!BT$6 -> 0 | AV59: =+'30-B1'!BU$6 -> 0 | AW59: =+'30-B1'!BV$6 -> 0 | AX59: =+'30-B1'!BW$6 -> 0 | AZ59: =+'30-B1'!BY$6 -> 0 | BB59: =+'30-B1'!CA$6 -> 0 | BC59: =+'30-B1'!CB$6 -> 0 | BD59: =+'30-B1'!CC$6 -> 0 | BE59: =+'30-B1'!CD$6 -> 0 | BF59: =+'30-B1'!CE$6 -> 0 | BG59: =+'30-B1'!CF$6 -> 0 | BH59: =+'30-B1'!CG$6 -> 0 | BI59: =+'30-B1'!CH$6 -> 0
A60: =+'30-C1'!Z$6 -> 30-C1 | B60: =+'30-C1'!AA$6 -> North Justice Center | C60: =+'30-C1'!AB$6 -> 1275 N. Berkeley Ave. | D60: =+'30-C1'!AC$6 -> Fullerton | E60: =+'30-C1'!AD$6 -> 92832 | F60: =+'30-C1'!AE$6 -> Orange | G60: =+'30-C1'!AF$6 -> SRO | I60: =+'30-C1'!AH$6 -> 0 | J60: =+'30-C1'!AI$6 -> 0 | K60: =+'30-C1'!AJ$6 -> 0 | L60: =+'30-C1'!AK$6 -> 0 | M60: =+'30-C1'!AL$6 -> 0 | N60: =+'30-C1'!AM$6 -> 0 | O60: =+'30-C1'!AN$6 -> 0 | P60: =+'30-C1'!AO$6 -> 0 | Q60: =+'30-C1'!AP$6 -> 0 | R60: =+'30-C1'!AQ$6 -> 0 | S60: =+'30-C1'!AR$6 -> 0 | T60: =+'30-C1'!AS$6 -> 0 | U60: =+'30-C1'!AT$6 -> 0 | V60: =+'30-C1'!AU$6 -> 0 | W60: =+'30-C1'!AV$6 -> 0 | X60: =+'30-C1'!AW$6 -> 0 | Y60: =+'30-C1'!AX$6 -> 0 | Z60: =+'30-C1'!AY$6 -> 0 | AA60: =+'30-C1'!AZ$6 -> 0 | AB60: =+'30-C1'!BA$6 -> 0 | AC60: =+'30-C1'!BB$6 -> 0 | AD60: =+'30-C1'!BC$6 -> 0 | AE60: =+'30-C1'!BD$6 -> 0 | AF60: =+'30-C1'!BE$6 -> 0 | AG60: =+'30-C1'!BF$6 -> 0 | AH60: =+'30-C1'!BG$6 -> 0 | AI60: =+'30-C1'!BH$6 -> 0 | AJ60: =+'30-C1'!BI$6 -> 0 | AK60: =+'30-C1'!BJ$6 -> 0 | AL60: =+'30-C1'!BK$6 -> 0 | AM60: =+'30-C1'!BL$6 -> 0 | AN60: =+'30-C1'!BM$6 -> 0 | AO60: =+'30-C1'!BN$6 -> 0 | AP60: =+'30-C1'!BO$6 -> 0 | AQ60: =+'30-C1'!BP$6 -> 0 | AR60: =+'30-C1'!BQ$6 -> 0 | AS60: =+'30-C1'!BR$6 -> 0 | AT60: =+'30-C1'!BS$6 -> 0 | AU60: =+'30-C1'!BT$6 -> 0 | AV60: =+'30-C1'!BU$6 -> 0 | AW60: =+'30-C1'!BV$6 -> 0 | AX60: =+'30-C1'!BW$6 -> 0 | AZ60: =+'30-C1'!BY$6 -> 0 | BB60: =+'30-C1'!CA$6 -> 0 | BC60: =+'30-C1'!CB$6 -> 0 | BD60: =+'30-C1'!CC$6 -> 0 | BE60: =+'30-C1'!CD$6 -> 0 | BF60: =+'30-C1'!CE$6 -> 0 | BG60: =+'30-C1'!CF$6 -> 0 | BH60: =+'30-C1'!CG$6 -> 0 | BI60: =+'30-C1'!CH$6 -> 0
A61: =+'30-D1'!Z$6 -> 30-D1 | B61: =+'30-D1'!AA$6 -> West Justice Center | C61: =+'30-D1'!AB$6 -> 8141-8144 13th St. | D61: =+'30-D1'!AC$6 -> Westminster | E61: =+'30-D1'!AD$6 -> 92683 | F61: =+'30-D1'!AE$6 -> Orange | G61: =+'30-D1'!AF$6 -> SRO | I61: =+'30-D1'!AH$6 -> 0 | J61: =+'30-D1'!AI$6 -> 0 | K61: =+'30-D1'!AJ$6 -> 0 | L61: =+'30-D1'!AK$6 -> 0 | M61: =+'30-D1'!AL$6 -> 0 | N61: =+'30-D1'!AM$6 -> 0 | O61: =+'30-D1'!AN$6 -> 0 | P61: =+'30-D1'!AO$6 -> 0 | Q61: =+'30-D1'!AP$6 -> 0 | R61: =+'30-D1'!AQ$6 -> 0 | S61: =+'30-D1'!AR$6 -> 0 | T61: =+'30-D1'!AS$6 -> 0 | U61: =+'30-D1'!AT$6 -> 0 | V61: =+'30-D1'!AU$6 -> 0 | W61: =+'30-D1'!AV$6 -> 0 | X61: =+'30-D1'!AW$6 -> 0 | Y61: =+'30-D1'!AX$6 -> 0 | Z61: =+'30-D1'!AY$6 -> 0 | AA61: =+'30-D1'!AZ$6 -> 0 | AB61: =+'30-D1'!BA$6 -> 0 | AC61: =+'30-D1'!BB$6 -> 0 | AD61: =+'30-D1'!BC$6 -> 0 | AE61: =+'30-D1'!BD$6 -> 0 | AF61: =+'30-D1'!BE$6 -> 0 | AG61: =+'30-D1'!BF$6 -> 0 | AH61: =+'30-D1'!BG$6 -> 0 | AI61: =+'30-D1'!BH$6 -> 0 | AJ61: =+'30-D1'!BI$6 -> 0 | AK61: =+'30-D1'!BJ$6 -> 0 | AL61: =+'30-D1'!BK$6 -> 0 | AM61: =+'30-D1'!BL$6 -> 0 | AN61: =+'30-D1'!BM$6 -> 0 | AO61: =+'30-D1'!BN$6 -> 0 | AP61: =+'30-D1'!BO$6 -> 0 | AQ61: =+'30-D1'!BP$6 -> 0 | AR61: =+'30-D1'!BQ$6 -> 0 | AS61: =+'30-D1'!BR$6 -> 0 | AT61: =+'30-D1'!BS$6 -> 0 | AU61: =+'30-D1'!BT$6 -> 0 | AV61: =+'30-D1'!BU$6 -> 0 | AW61: =+'30-D1'!BV$6 -> 0 | AX61: =+'30-D1'!BW$6 -> 0 | AZ61: =+'30-D1'!BY$6 -> 0 | BB61: =+'30-D1'!CA$6 -> 0 | BC61: =+'30-D1'!CB$6 -> 0 | BD61: =+'30-D1'!CC$6 -> 0 | BE61: =+'30-D1'!CD$6 -> 0 | BF61: =+'30-D1'!CE$6 -> 0 | BG61: =+'30-D1'!CF$6 -> 0 | BH61: =+'30-D1'!CG$6 -> 0 | BI61: =+'30-D1'!CH$6 -> 0
A62: =+'30-E1'!Z$6 -> 30-E1 | B62: =+'30-E1'!AA$6 -> Harbor Justice Center-Newport Beach Facility | C62: =+'30-E1'!AB$6 -> 4601 Jamboree Road | D62: =+'30-E1'!AC$6 -> Newport Beach | E62: =+'30-E1'!AD$6 -> 92660 | F62: =+'30-E1'!AE$6 -> Orange | G62: =+'30-E1'!AF$6 -> SRO | I62: =+'30-E1'!AH$6 -> 0 | J62: =+'30-E1'!AI$6 -> 0 | K62: =+'30-E1'!AJ$6 -> 0 | L62: =+'30-E1'!AK$6 -> 0 | M62: =+'30-E1'!AL$6 -> 0 | N62: =+'30-E1'!AM$6 -> 0 | O62: =+'30-E1'!AN$6 -> 0 | P62: =+'30-E1'!AO$6 -> 0 | Q62: =+'30-E1'!AP$6 -> 0 | R62: =+'30-E1'!AQ$6 -> 0 | S62: =+'30-E1'!AR$6 -> 0 | T62: =+'30-E1'!AS$6 -> 0 | U62: =+'30-E1'!AT$6 -> 0 | V62: =+'30-E1'!AU$6 -> 0 | W62: =+'30-E1'!AV$6 -> 0 | X62: =+'30-E1'!AW$6 -> 0 | Y62: =+'30-E1'!AX$6 -> 0 | Z62: =+'30-E1'!AY$6 -> 0 | AA62: =+'30-E1'!AZ$6 -> 0 | AB62: =+'30-E1'!BA$6 -> 0 | AC62: =+'30-E1'!BB$6 -> 0 | AD62: =+'30-E1'!BC$6 -> 0 | AE62: =+'30-E1'!BD$6 -> 0 | AF62: =+'30-E1'!BE$6 -> 0 | AG62: =+'30-E1'!BF$6 -> 0 | AH62: =+'30-E1'!BG$6 -> 0 | AI62: =+'30-E1'!BH$6 -> 0 | AJ62: =+'30-E1'!BI$6 -> 0 | AK62: =+'30-E1'!BJ$6 -> 0 | AL62: =+'30-E1'!BK$6 -> 0 | AM62: =+'30-E1'!BL$6 -> 0 | AN62: =+'30-E1'!BM$6 -> 0 | AO62: =+'30-E1'!BN$6 -> 0 | AP62: =+'30-E1'!BO$6 -> 0 | AQ62: =+'30-E1'!BP$6 -> 0 | AR62: =+'30-E1'!BQ$6 -> 0 | AS62: =+'30-E1'!BR$6 -> 0 | AT62: =+'30-E1'!BS$6 -> 0 | AU62: =+'30-E1'!BT$6 -> 0 | AV62: =+'30-E1'!BU$6 -> 0 | AW62: =+'30-E1'!BV$6 -> 0 | AX62: =+'30-E1'!BW$6 -> 0 | AZ62: =+'30-E1'!BY$6 -> 0 | BB62: =+'30-E1'!CA$6 -> 0 | BC62: =+'30-E1'!CB$6 -> 0 | BD62: =+'30-E1'!CC$6 -> 0 | BE62: =+'30-E1'!CD$6 -> 0 | BF62: =+'30-E1'!CE$6 -> 0 | BG62: =+'30-E1'!CF$6 -> 0 | BH62: =+'30-E1'!CG$6 -> 0 | BI62: =+'30-E1'!CH$6 -> 0
A63: =+'33-A1'!Z$6 -> 33-A1 | B63: =+'33-A1'!AA$6 -> Family Law Court | C63: =+'33-A1'!AB$6 -> 4175 Main St. | D63: =+'33-A1'!AC$6 -> Riverside | E63: =+'33-A1'!AD$6 -> 92501 | F63: =+'33-A1'!AE$6 -> Riverside | G63: =+'33-A1'!AF$6 -> SRO | I63: =+'33-A1'!AH$6 -> 0 | J63: =+'33-A1'!AI$6 -> 0 | K63: =+'33-A1'!AJ$6 -> 0 | L63: =+'33-A1'!AK$6 -> 0 | M63: =+'33-A1'!AL$6 -> 0 | N63: =+'33-A1'!AM$6 -> 0 | O63: =+'33-A1'!AN$6 -> 0 | P63: =+'33-A1'!AO$6 -> 0 | Q63: =+'33-A1'!AP$6 -> 0 | R63: =+'33-A1'!AQ$6 -> 0 | S63: =+'33-A1'!AR$6 -> 0 | T63: =+'33-A1'!AS$6 -> 0 | U63: =+'33-A1'!AT$6 -> 0 | V63: =+'33-A1'!AU$6 -> 0 | W63: =+'33-A1'!AV$6 -> 0 | X63: =+'33-A1'!AW$6 -> 0 | Y63: =+'33-A1'!AX$6 -> 0 | Z63: =+'33-A1'!AY$6 -> 0 | AA63: =+'33-A1'!AZ$6 -> 0 | AB63: =+'33-A1'!BA$6 -> 0 | AC63: =+'33-A1'!BB$6 -> 0 | AD63: =+'33-A1'!BC$6 -> 0 | AE63: =+'33-A1'!BD$6 -> 0 | AF63: =+'33-A1'!BE$6 -> 0 | AG63: =+'33-A1'!BF$6 -> 0 | AH63: =+'33-A1'!BG$6 -> 0 | AI63: =+'33-A1'!BH$6 -> 0 | AJ63: =+'33-A1'!BI$6 -> 0 | AK63: =+'33-A1'!BJ$6 -> 0 | AL63: =+'33-A1'!BK$6 -> 0 | AM63: =+'33-A1'!BL$6 -> 0 | AN63: =+'33-A1'!BM$6 -> 0 | AO63: =+'33-A1'!BN$6 -> 0 | AP63: =+'33-A1'!BO$6 -> 0 | AQ63: =+'33-A1'!BP$6 -> 0 | AR63: =+'33-A1'!BQ$6 -> 0 | AS63: =+'33-A1'!BR$6 -> 0 | AT63: =+'33-A1'!BS$6 -> 0 | AU63: =+'33-A1'!BT$6 -> 0 | AV63: =+'33-A1'!BU$6 -> 0 | AW63: =+'33-A1'!BV$6 -> 0 | AX63: =+'33-A1'!BW$6 -> 0 | AZ63: =+'33-A1'!BY$6 -> 0 | BB63: =+'33-A1'!CA$6 -> 0 | BC63: =+'33-A1'!CB$6 -> 0 | BD63: =+'33-A1'!CC$6 -> 0 | BE63: =+'33-A1'!CD$6 -> 0 | BF63: =+'33-A1'!CE$6 -> 0 | BG63: =+'33-A1'!CF$6 -> 0 | BH63: =+'33-A1'!CG$6 -> 0 | BI63: =+'33-A1'!CH$6 -> 0
A64: =+'33-A3'!Z$6 -> 33-A3 | B64: =+'33-A3'!AA$6 -> Hall of Justice | C64: =+'33-A3'!AB$6 -> 4100 Main St. | D64: =+'33-A3'!AC$6 -> Riverside | E64: =+'33-A3'!AD$6 -> 92501 | F64: =+'33-A3'!AE$6 -> Riverside | G64: =+'33-A3'!AF$6 -> SRO | I64: =+'33-A3'!AH$6 -> 0 | J64: =+'33-A3'!AI$6 -> 0 | K64: =+'33-A3'!AJ$6 -> 0 | L64: =+'33-A3'!AK$6 -> 0 | M64: =+'33-A3'!AL$6 -> 0 | N64: =+'33-A3'!AM$6 -> 0 | O64: =+'33-A3'!AN$6 -> 0 | P64: =+'33-A3'!AO$6 -> 0 | Q64: =+'33-A3'!AP$6 -> 0 | R64: =+'33-A3'!AQ$6 -> 0 | S64: =+'33-A3'!AR$6 -> 0 | T64: =+'33-A3'!AS$6 -> 0 | U64: =+'33-A3'!AT$6 -> 0 | V64: =+'33-A3'!AU$6 -> 0 | W64: =+'33-A3'!AV$6 -> 0 | X64: =+'33-A3'!AW$6 -> 0 | Y64: =+'33-A3'!AX$6 -> 0 | Z64: =+'33-A3'!AY$6 -> 0 | AA64: =+'33-A3'!AZ$6 -> 0 | AB64: =+'33-A3'!BA$6 -> 0 | AC64: =+'33-A3'!BB$6 -> 0 | AD64: =+'33-A3'!BC$6 -> 0 | AE64: =+'33-A3'!BD$6 -> 0 | AF64: =+'33-A3'!BE$6 -> 0 | AG64: =+'33-A3'!BF$6 -> 0 | AH64: =+'33-A3'!BG$6 -> 0 | AI64: =+'33-A3'!BH$6 -> 0 | AJ64: =+'33-A3'!BI$6 -> 0 | AK64: =+'33-A3'!BJ$6 -> 0 | AL64: =+'33-A3'!BK$6 -> 0 | AM64: =+'33-A3'!BL$6 -> 0 | AN64: =+'33-A3'!BM$6 -> 0 | AO64: =+'33-A3'!BN$6 -> 0 | AP64: =+'33-A3'!BO$6 -> 0 | AQ64: =+'33-A3'!BP$6 -> 0 | AR64: =+'33-A3'!BQ$6 -> 0 | AS64: =+'33-A3'!BR$6 -> 0 | AT64: =+'33-A3'!BS$6 -> 0 | AU64: =+'33-A3'!BT$6 -> 0 | AV64: =+'33-A3'!BU$6 -> 0 | AW64: =+'33-A3'!BV$6 -> 0 | AX64: =+'33-A3'!BW$6 -> 0 | AZ64: =+'33-A3'!BY$6 -> 0 | BB64: =+'33-A3'!CA$6 -> 0 | BC64: =+'33-A3'!CB$6 -> 0 | BD64: =+'33-A3'!CC$6 -> 0 | BE64: =+'33-A3'!CD$6 -> 0 | BF64: =+'33-A3'!CE$6 -> 0 | BG64: =+'33-A3'!CF$6 -> 0 | BH64: =+'33-A3'!CG$6 -> 0 | BI64: =+'33-A3'!CH$6 -> 0
A65: =+'33-C1'!Z$6 -> 33-C1 | B65: =+'33-C1'!AA$6 -> Larson Justice Center | C65: =+'33-C1'!AB$6 -> 46-200 Oasis Street | D65: =+'33-C1'!AC$6 -> Indio | E65: =+'33-C1'!AD$6 -> 92201 | F65: =+'33-C1'!AE$6 -> Riverside | G65: =+'33-C1'!AF$6 -> SRO | I65: =+'33-C1'!AH$6 -> 0 | J65: =+'33-C1'!AI$6 -> 0 | K65: =+'33-C1'!AJ$6 -> 0 | L65: =+'33-C1'!AK$6 -> 0 | M65: =+'33-C1'!AL$6 -> 0 | N65: =+'33-C1'!AM$6 -> 0 | O65: =+'33-C1'!AN$6 -> 0 | P65: =+'33-C1'!AO$6 -> 0 | Q65: =+'33-C1'!AP$6 -> 0 | R65: =+'33-C1'!AQ$6 -> 0 | S65: =+'33-C1'!AR$6 -> 0 | T65: =+'33-C1'!AS$6 -> 0 | U65: =+'33-C1'!AT$6 -> 0 | V65: =+'33-C1'!AU$6 -> 0 | W65: =+'33-C1'!AV$6 -> 0 | X65: =+'33-C1'!AW$6 -> 0 | Y65: =+'33-C1'!AX$6 -> 0 | Z65: =+'33-C1'!AY$6 -> 0 | AA65: =+'33-C1'!AZ$6 -> 0 | AB65: =+'33-C1'!BA$6 -> 0 | AC65: =+'33-C1'!BB$6 -> 0 | AD65: =+'33-C1'!BC$6 -> 0 | AE65: =+'33-C1'!BD$6 -> 0 | AF65: =+'33-C1'!BE$6 -> 0 | AG65: =+'33-C1'!BF$6 -> 0 | AH65: =+'33-C1'!BG$6 -> 0 | AI65: =+'33-C1'!BH$6 -> 0 | AJ65: =+'33-C1'!BI$6 -> 0 | AK65: =+'33-C1'!BJ$6 -> 0 | AL65: =+'33-C1'!BK$6 -> 0 | AM65: =+'33-C1'!BL$6 -> 0 | AN65: =+'33-C1'!BM$6 -> 0 | AO65: =+'33-C1'!BN$6 -> 0 | AP65: =+'33-C1'!BO$6 -> 0 | AQ65: =+'33-C1'!BP$6 -> 0 | AR65: =+'33-C1'!BQ$6 -> 0 | AS65: =+'33-C1'!BR$6 -> 0 | AT65: =+'33-C1'!BS$6 -> 0 | AU65: =+'33-C1'!BT$6 -> 0 | AV65: =+'33-C1'!BU$6 -> 0 | AW65: =+'33-C1'!BV$6 -> 0 | AX65: =+'33-C1'!BW$6 -> 0 | AZ65: =+'33-C1'!BY$6 -> 0 | BB65: =+'33-C1'!CA$6 -> 0 | BC65: =+'33-C1'!CB$6 -> 0 | BD65: =+'33-C1'!CC$6 -> 0 | BE65: =+'33-C1'!CD$6 -> 0 | BF65: =+'33-C1'!CE$6 -> 0 | BG65: =+'33-C1'!CF$6 -> 0 | BH65: =+'33-C1'!CG$6 -> 0 | BI65: =+'33-C1'!CH$6 -> 0
A66: =+'33-C3'!Z$6 -> 33-C3 | B66: =+'33-C3'!AA$6 -> Indio Juvenile Court | C66: =+'33-C3'!AB$6 -> 47-671 Oasis St. | D66: =+'33-C3'!AC$6 -> Indio | E66: =+'33-C3'!AD$6 -> 92201 | F66: =+'33-C3'!AE$6 -> Riverside | G66: =+'33-C3'!AF$6 -> SRO | I66: =+'33-C3'!AH$6 -> 0 | J66: =+'33-C3'!AI$6 -> 0 | K66: =+'33-C3'!AJ$6 -> 0 | L66: =+'33-C3'!AK$6 -> 0 | M66: =+'33-C3'!AL$6 -> 0 | N66: =+'33-C3'!AM$6 -> 0 | O66: =+'33-C3'!AN$6 -> 0 | P66: =+'33-C3'!AO$6 -> 0 | Q66: =+'33-C3'!AP$6 -> 0 | R66: =+'33-C3'!AQ$6 -> 0 | S66: =+'33-C3'!AR$6 -> 0 | T66: =+'33-C3'!AS$6 -> 0 | U66: =+'33-C3'!AT$6 -> 0 | V66: =+'33-C3'!AU$6 -> 0 | W66: =+'33-C3'!AV$6 -> 0 | X66: =+'33-C3'!AW$6 -> 0 | Y66: =+'33-C3'!AX$6 -> 0 | Z66: =+'33-C3'!AY$6 -> 0 | AA66: =+'33-C3'!AZ$6 -> 0 | AB66: =+'33-C3'!BA$6 -> 0 | AC66: =+'33-C3'!BB$6 -> 0 | AD66: =+'33-C3'!BC$6 -> 0 | AE66: =+'33-C3'!BD$6 -> 0 | AF66: =+'33-C3'!BE$6 -> 0 | AG66: =+'33-C3'!BF$6 -> 0 | AH66: =+'33-C3'!BG$6 -> 0 | AI66: =+'33-C3'!BH$6 -> 0 | AJ66: =+'33-C3'!BI$6 -> 0 | AK66: =+'33-C3'!BJ$6 -> 0 | AL66: =+'33-C3'!BK$6 -> 0 | AM66: =+'33-C3'!BL$6 -> 0 | AN66: =+'33-C3'!BM$6 -> 0 | AO66: =+'33-C3'!BN$6 -> 0 | AP66: =+'33-C3'!BO$6 -> 0 | AQ66: =+'33-C3'!BP$6 -> 0 | AR66: =+'33-C3'!BQ$6 -> 0 | AS66: =+'33-C3'!BR$6 -> 0 | AT66: =+'33-C3'!BS$6 -> 0 | AU66: =+'33-C3'!BT$6 -> 0 | AV66: =+'33-C3'!BU$6 -> 0 | AW66: =+'33-C3'!BV$6 -> 0 | AX66: =+'33-C3'!BW$6 -> 0 | AZ66: =+'33-C3'!BY$6 -> 0 | BB66: =+'33-C3'!CA$6 -> 0 | BC66: =+'33-C3'!CB$6 -> 0 | BD66: =+'33-C3'!CC$6 -> 0 | BE66: =+'33-C3'!CD$6 -> 0 | BF66: =+'33-C3'!CE$6 -> 0 | BG66: =+'33-C3'!CF$6 -> 0 | BH66: =+'33-C3'!CG$6 -> 0 | BI66: =+'33-C3'!CH$6 -> 0
A67: =+'33-D1'!Z$6 -> 33-D1 | B67: =+'33-D1'!AA$6 -> Blythe Courthouse - Superior Court | C67: =+'33-D1'!AB$6 -> 265 N. Broadway | D67: =+'33-D1'!AC$6 -> Blythe | E67: =+'33-D1'!AD$6 -> 92225 | F67: =+'33-D1'!AE$6 -> Riverside | G67: =+'33-D1'!AF$6 -> SRO | I67: =+'33-D1'!AH$6 -> 0 | J67: =+'33-D1'!AI$6 -> 0 | K67: =+'33-D1'!AJ$6 -> 0 | L67: =+'33-D1'!AK$6 -> 0 | M67: =+'33-D1'!AL$6 -> 0 | N67: =+'33-D1'!AM$6 -> 0 | O67: =+'33-D1'!AN$6 -> 0 | P67: =+'33-D1'!AO$6 -> 0 | Q67: =+'33-D1'!AP$6 -> 0 | R67: =+'33-D1'!AQ$6 -> 0 | S67: =+'33-D1'!AR$6 -> 0 | T67: =+'33-D1'!AS$6 -> 0 | U67: =+'33-D1'!AT$6 -> 0 | V67: =+'33-D1'!AU$6 -> 0 | W67: =+'33-D1'!AV$6 -> 0 | X67: =+'33-D1'!AW$6 -> 0 | Y67: =+'33-D1'!AX$6 -> 0 | Z67: =+'33-D1'!AY$6 -> 0 | AA67: =+'33-D1'!AZ$6 -> 0 | AB67: =+'33-D1'!BA$6 -> 0 | AC67: =+'33-D1'!BB$6 -> 0 | AD67: =+'33-D1'!BC$6 -> 0 | AE67: =+'33-D1'!BD$6 -> 0 | AF67: =+'33-D1'!BE$6 -> 0 | AG67: =+'33-D1'!BF$6 -> 0 | AH67: =+'33-D1'!BG$6 -> 0 | AI67: =+'33-D1'!BH$6 -> 0 | AJ67: =+'33-D1'!BI$6 -> 0 | AK67: =+'33-D1'!BJ$6 -> 0 | AL67: =+'33-D1'!BK$6 -> 0 | AM67: =+'33-D1'!BL$6 -> 0 | AN67: =+'33-D1'!BM$6 -> 0 | AO67: =+'33-D1'!BN$6 -> 0 | AP67: =+'33-D1'!BO$6 -> 0 | AQ67: =+'33-D1'!BP$6 -> 0 | AR67: =+'33-D1'!BQ$6 -> 0 | AS67: =+'33-D1'!BR$6 -> 0 | AT67: =+'33-D1'!BS$6 -> 0 | AU67: =+'33-D1'!BT$6 -> 0 | AV67: =+'33-D1'!BU$6 -> 0 | AW67: =+'33-D1'!BV$6 -> 0 | AX67: =+'33-D1'!BW$6 -> 0 | AZ67: =+'33-D1'!BY$6 -> 0 | BB67: =+'33-D1'!CA$6 -> 0 | BC67: =+'33-D1'!CB$6 -> 0 | BD67: =+'33-D1'!CC$6 -> 0 | BE67: =+'33-D1'!CD$6 -> 0 | BF67: =+'33-D1'!CE$6 -> 0 | BG67: =+'33-D1'!CF$6 -> 0 | BH67: =+'33-D1'!CG$6 -> 0 | BI67: =+'33-D1'!CH$6 -> 0
A68: =+'33-F1'!Z$6 -> 33-F1 | B68: =+'33-F1'!AA$6 -> Hemet | C68: =+'33-F1'!AB$6 -> 880 N. State St. | D68: =+'33-F1'!AC$6 -> Hemet | E68: =+'33-F1'!AD$6 -> 92343 | F68: =+'33-F1'!AE$6 -> Riverside | G68: =+'33-F1'!AF$6 -> SRO | I68: =+'33-F1'!AH$6 -> 0 | J68: =+'33-F1'!AI$6 -> 0 | K68: =+'33-F1'!AJ$6 -> 0 | L68: =+'33-F1'!AK$6 -> 0 | M68: =+'33-F1'!AL$6 -> 0 | N68: =+'33-F1'!AM$6 -> 0 | O68: =+'33-F1'!AN$6 -> 0 | P68: =+'33-F1'!AO$6 -> 0 | Q68: =+'33-F1'!AP$6 -> 0 | R68: =+'33-F1'!AQ$6 -> 0 | S68: =+'33-F1'!AR$6 -> 0 | T68: =+'33-F1'!AS$6 -> 0 | U68: =+'33-F1'!AT$6 -> 0 | V68: =+'33-F1'!AU$6 -> 0 | W68: =+'33-F1'!AV$6 -> 0 | X68: =+'33-F1'!AW$6 -> 0 | Y68: =+'33-F1'!AX$6 -> 0 | Z68: =+'33-F1'!AY$6 -> 0 | AA68: =+'33-F1'!AZ$6 -> 0 | AB68: =+'33-F1'!BA$6 -> 0 | AC68: =+'33-F1'!BB$6 -> 0 | AD68: =+'33-F1'!BC$6 -> 0 | AE68: =+'33-F1'!BD$6 -> 0 | AF68: =+'33-F1'!BE$6 -> 0 | AG68: =+'33-F1'!BF$6 -> 0 | AH68: =+'33-F1'!BG$6 -> 0 | AI68: =+'33-F1'!BH$6 -> 0 | AJ68: =+'33-F1'!BI$6 -> 0 | AK68: =+'33-F1'!BJ$6 -> 0 | AL68: =+'33-F1'!BK$6 -> 0 | AM68: =+'33-F1'!BL$6 -> 0 | AN68: =+'33-F1'!BM$6 -> 0 | AO68: =+'33-F1'!BN$6 -> 0 | AP68: =+'33-F1'!BO$6 -> 0 | AQ68: =+'33-F1'!BP$6 -> 0 | AR68: =+'33-F1'!BQ$6 -> 0 | AS68: =+'33-F1'!BR$6 -> 0 | AT68: =+'33-F1'!BS$6 -> 0 | AU68: =+'33-F1'!BT$6 -> 0 | AV68: =+'33-F1'!BU$6 -> 0 | AW68: =+'33-F1'!BV$6 -> 0 | AX68: =+'33-F1'!BW$6 -> 0 | AZ68: =+'33-F1'!BY$6 -> 0 | BB68: =+'33-F1'!CA$6 -> 0 | BC68: =+'33-F1'!CB$6 -> 0 | BD68: =+'33-F1'!CC$6 -> 0 | BE68: =+'33-F1'!CD$6 -> 0 | BF68: =+'33-F1'!CE$6 -> 0 | BG68: =+'33-F1'!CF$6 -> 0 | BH68: =+'33-F1'!CG$6 -> 0 | BI68: =+'33-F1'!CH$6 -> 0
A69: =+'33-G4'!Z$6 -> 33-G4 | B69: =+'33-G4'!AA$6 -> 33-G4 New Riverside Mid-County Courthouse. | C69: =+'33-G4'!AB$6 -> 311 East Ramsey | D69: =+'33-G4'!AC$6 -> Banning | E69: =+'33-G4'!AD$6 -> 92220 | F69: =+'33-G4'!AE$6 -> Riverside | G69: =+'33-G4'!AF$6 -> SRO | I69: =+'33-G4'!AH$6 -> 0 | J69: =+'33-G4'!AI$6 -> 0 | K69: =+'33-G4'!AJ$6 -> 0 | L69: =+'33-G4'!AK$6 -> 0 | M69: =+'33-G4'!AL$6 -> 0 | N69: =+'33-G4'!AM$6 -> 0 | O69: =+'33-G4'!AN$6 -> 0 | P69: =+'33-G4'!AO$6 -> 0 | Q69: =+'33-G4'!AP$6 -> 0 | R69: =+'33-G4'!AQ$6 -> 0 | S69: =+'33-G4'!AR$6 -> 0 | T69: =+'33-G4'!AS$6 -> 0 | U69: =+'33-G4'!AT$6 -> 0 | V69: =+'33-G4'!AU$6 -> 0 | W69: =+'33-G4'!AV$6 -> 0 | X69: =+'33-G4'!AW$6 -> 0 | Y69: =+'33-G4'!AX$6 -> 0 | Z69: =+'33-G4'!AY$6 -> 0 | AA69: =+'33-G4'!AZ$6 -> 0 | AB69: =+'33-G4'!BA$6 -> 0 | AC69: =+'33-G4'!BB$6 -> 0 | AD69: =+'33-G4'!BC$6 -> 0 | AE69: =+'33-G4'!BD$6 -> 0 | AF69: =+'33-G4'!BE$6 -> 0 | AG69: =+'33-G4'!BF$6 -> 0 | AH69: =+'33-G4'!BG$6 -> 0 | AI69: =+'33-G4'!BH$6 -> 0 | AJ69: =+'33-G4'!BI$6 -> 0 | AK69: =+'33-G4'!BJ$6 -> 0 | AL69: =+'33-G4'!BK$6 -> 0 | AM69: =+'33-G4'!BL$6 -> 0 | AN69: =+'33-G4'!BM$6 -> 0 | AO69: =+'33-G4'!BN$6 -> 0 | AP69: =+'33-G4'!BO$6 -> 0 | AQ69: =+'33-G4'!BP$6 -> 0 | AR69: =+'33-G4'!BQ$6 -> 0 | AS69: =+'33-G4'!BR$6 -> 0 | AT69: =+'33-G4'!BS$6 -> 0 | AU69: =+'33-G4'!BT$6 -> 0 | AV69: =+'33-G4'!BU$6 -> 0 | AW69: =+'33-G4'!BV$6 -> 0 | AX69: =+'33-G4'!BW$6 -> 0 | AZ69: =+'33-G4'!BY$6 -> 0 | BB69: =+'33-G4'!CA$6 -> 0 | BC69: =+'33-G4'!CB$6 -> 0 | BD69: =+'33-G4'!CC$6 -> 0 | BE69: =+'33-G4'!CD$6 -> 0 | BF69: =+'33-G4'!CE$6 -> 0 | BG69: =+'33-G4'!CF$6 -> 0 | BH69: =+'33-G4'!CG$6 -> 0 | BI69: =+'33-G4'!CH$6 -> 0
A70: =+'33-M1'!Z$6 -> 33-M1 | B70: =+'33-M1'!AA$6 -> Southwest Justice Center | C70: =+'33-M1'!AB$6 -> 30755 Auld Road | D70: =+'33-M1'!AC$6 -> Murrieta | E70: =+'33-M1'!AD$6 -> 92563 | F70: =+'33-M1'!AE$6 -> Riverside | G70: =+'33-M1'!AF$6 -> SRO | I70: =+'33-M1'!AH$6 -> 0 | J70: =+'33-M1'!AI$6 -> 0 | K70: =+'33-M1'!AJ$6 -> 0 | L70: =+'33-M1'!AK$6 -> 0 | M70: =+'33-M1'!AL$6 -> 0 | N70: =+'33-M1'!AM$6 -> 0 | O70: =+'33-M1'!AN$6 -> 0 | P70: =+'33-M1'!AO$6 -> 0 | Q70: =+'33-M1'!AP$6 -> 0 | R70: =+'33-M1'!AQ$6 -> 0 | S70: =+'33-M1'!AR$6 -> 0 | T70: =+'33-M1'!AS$6 -> 0 | U70: =+'33-M1'!AT$6 -> 0 | V70: =+'33-M1'!AU$6 -> 0 | W70: =+'33-M1'!AV$6 -> 0 | X70: =+'33-M1'!AW$6 -> 0 | Y70: =+'33-M1'!AX$6 -> 0 | Z70: =+'33-M1'!AY$6 -> 0 | AA70: =+'33-M1'!AZ$6 -> 0 | AB70: =+'33-M1'!BA$6 -> 0 | AC70: =+'33-M1'!BB$6 -> 0 | AD70: =+'33-M1'!BC$6 -> 0 | AE70: =+'33-M1'!BD$6 -> 0 | AF70: =+'33-M1'!BE$6 -> 0 | AG70: =+'33-M1'!BF$6 -> 0 | AH70: =+'33-M1'!BG$6 -> 0 | AI70: =+'33-M1'!BH$6 -> 0 | AJ70: =+'33-M1'!BI$6 -> 0 | AK70: =+'33-M1'!BJ$6 -> 0 | AL70: =+'33-M1'!BK$6 -> 0 | AM70: =+'33-M1'!BL$6 -> 0 | AN70: =+'33-M1'!BM$6 -> 0 | AO70: =+'33-M1'!BN$6 -> 0 | AP70: =+'33-M1'!BO$6 -> 0 | AQ70: =+'33-M1'!BP$6 -> 0 | AR70: =+'33-M1'!BQ$6 -> 0 | AS70: =+'33-M1'!BR$6 -> 0 | AT70: =+'33-M1'!BS$6 -> 0 | AU70: =+'33-M1'!BT$6 -> 0 | AV70: =+'33-M1'!BU$6 -> 0 | AW70: =+'33-M1'!BV$6 -> 0 | AX70: =+'33-M1'!BW$6 -> 0 | AZ70: =+'33-M1'!BY$6 -> 0 | BB70: =+'33-M1'!CA$6 -> 0 | BC70: =+'33-M1'!CB$6 -> 0 | BD70: =+'33-M1'!CC$6 -> 0 | BE70: =+'33-M1'!CD$6 -> 0 | BF70: =+'33-M1'!CE$6 -> 0 | BG70: =+'33-M1'!CF$6 -> 0 | BH70: =+'33-M1'!CG$6 -> 0 | BI70: =+'33-M1'!CH$6 -> 0
A71: =+'33-M4'!Z$6 -> 33-M4 | B71: =+'33-M4'!AA$6 -> New Southwest Justice Building | C71: =+'33-M4'!AB$6 -> 30755 Auld Road | D71: =+'33-M4'!AC$6 -> Murrieta | E71: =+'33-M4'!AD$6 -> 92563 | F71: =+'33-M4'!AE$6 -> Riverside | G71: =+'33-M4'!AF$6 -> SRO | I71: =+'33-M4'!AH$6 -> 0 | J71: =+'33-M4'!AI$6 -> 0 | K71: =+'33-M4'!AJ$6 -> 0 | L71: =+'33-M4'!AK$6 -> 0 | M71: =+'33-M4'!AL$6 -> 0 | N71: =+'33-M4'!AM$6 -> 0 | O71: =+'33-M4'!AN$6 -> 0 | P71: =+'33-M4'!AO$6 -> 0 | Q71: =+'33-M4'!AP$6 -> 0 | R71: =+'33-M4'!AQ$6 -> 0 | S71: =+'33-M4'!AR$6 -> 0 | T71: =+'33-M4'!AS$6 -> 0 | U71: =+'33-M4'!AT$6 -> 0 | V71: =+'33-M4'!AU$6 -> 0 | W71: =+'33-M4'!AV$6 -> 0 | X71: =+'33-M4'!AW$6 -> 0 | Y71: =+'33-M4'!AX$6 -> 0 | Z71: =+'33-M4'!AY$6 -> 0 | AA71: =+'33-M4'!AZ$6 -> 0 | AB71: =+'33-M4'!BA$6 -> 0 | AC71: =+'33-M4'!BB$6 -> 0 | AD71: =+'33-M4'!BC$6 -> 0 | AE71: =+'33-M4'!BD$6 -> 0 | AF71: =+'33-M4'!BE$6 -> 0 | AG71: =+'33-M4'!BF$6 -> 0 | AH71: =+'33-M4'!BG$6 -> 0 | AI71: =+'33-M4'!BH$6 -> 0 | AJ71: =+'33-M4'!BI$6 -> 0 | AK71: =+'33-M4'!BJ$6 -> 0 | AL71: =+'33-M4'!BK$6 -> 0 | AM71: =+'33-M4'!BL$6 -> 0 | AN71: =+'33-M4'!BM$6 -> 0 | AO71: =+'33-M4'!BN$6 -> 0 | AP71: =+'33-M4'!BO$6 -> 0 | AQ71: =+'33-M4'!BP$6 -> 0 | AR71: =+'33-M4'!BQ$6 -> 0 | AS71: =+'33-M4'!BR$6 -> 0 | AT71: =+'33-M4'!BS$6 -> 0 | AU71: =+'33-M4'!BT$6 -> 0 | AV71: =+'33-M4'!BU$6 -> 0 | AW71: =+'33-M4'!BV$6 -> 0 | AX71: =+'33-M4'!BW$6 -> 0 | AZ71: =+'33-M4'!BY$6 -> 0 | BB71: =+'33-M4'!CA$6 -> 0 | BC71: =+'33-M4'!CB$6 -> 0 | BD71: =+'33-M4'!CC$6 -> 0 | BE71: =+'33-M4'!CD$6 -> 0 | BF71: =+'33-M4'!CE$6 -> 0 | BG71: =+'33-M4'!CF$6 -> 0 | BH71: =+'33-M4'!CG$6 -> 0 | BI71: =+'33-M4'!CH$6 -> 0
A72: =+'33-N1'!Z$6 -> 33-N1 | B72: =+'33-N1'!AA$6 -> Riverside Juvenile Court | C72: =+'33-N1'!AB$6 -> 9991 County Farm Rd. | D72: =+'33-N1'!AC$6 -> Riverside | E72: =+'33-N1'!AD$6 -> 92503 | F72: =+'33-N1'!AE$6 -> Riverside | G72: =+'33-N1'!AF$6 -> SRO | I72: =+'33-N1'!AH$6 -> 0 | J72: =+'33-N1'!AI$6 -> 0 | K72: =+'33-N1'!AJ$6 -> 0 | L72: =+'33-N1'!AK$6 -> 0 | M72: =+'33-N1'!AL$6 -> 0 | N72: =+'33-N1'!AM$6 -> 0 | O72: =+'33-N1'!AN$6 -> 0 | P72: =+'33-N1'!AO$6 -> 0 | Q72: =+'33-N1'!AP$6 -> 0 | R72: =+'33-N1'!AQ$6 -> 0 | S72: =+'33-N1'!AR$6 -> 0 | T72: =+'33-N1'!AS$6 -> 0 | U72: =+'33-N1'!AT$6 -> 0 | V72: =+'33-N1'!AU$6 -> 0 | W72: =+'33-N1'!AV$6 -> 0 | X72: =+'33-N1'!AW$6 -> 0 | Y72: =+'33-N1'!AX$6 -> 0 | Z72: =+'33-N1'!AY$6 -> 0 | AA72: =+'33-N1'!AZ$6 -> 0 | AB72: =+'33-N1'!BA$6 -> 0 | AC72: =+'33-N1'!BB$6 -> 0 | AD72: =+'33-N1'!BC$6 -> 0 | AE72: =+'33-N1'!BD$6 -> 0 | AF72: =+'33-N1'!BE$6 -> 0 | AG72: =+'33-N1'!BF$6 -> 0 | AH72: =+'33-N1'!BG$6 -> 0 | AI72: =+'33-N1'!BH$6 -> 0 | AJ72: =+'33-N1'!BI$6 -> 0 | AK72: =+'33-N1'!BJ$6 -> 0 | AL72: =+'33-N1'!BK$6 -> 0 | AM72: =+'33-N1'!BL$6 -> 0 | AN72: =+'33-N1'!BM$6 -> 0 | AO72: =+'33-N1'!BN$6 -> 0 | AP72: =+'33-N1'!BO$6 -> 0 | AQ72: =+'33-N1'!BP$6 -> 0 | AR72: =+'33-N1'!BQ$6 -> 0 | AS72: =+'33-N1'!BR$6 -> 0 | AT72: =+'33-N1'!BS$6 -> 0 | AU72: =+'33-N1'!BT$6 -> 0 | AV72: =+'33-N1'!BU$6 -> 0 | AW72: =+'33-N1'!BV$6 -> 0 | AX72: =+'33-N1'!BW$6 -> 0 | AZ72: =+'33-N1'!BY$6 -> 0 | BB72: =+'33-N1'!CA$6 -> 0 | BC72: =+'33-N1'!CB$6 -> 0 | BD72: =+'33-N1'!CC$6 -> 0 | BE72: =+'33-N1'!CD$6 -> 0 | BF72: =+'33-N1'!CE$6 -> 0 | BG72: =+'33-N1'!CF$6 -> 0 | BH72: =+'33-N1'!CG$6 -> 0 | BI72: =+'33-N1'!CH$6 -> 0
A73: =+'33-N2'!Z$6 -> 33-N2 | B73: =+'33-N2'!AA$6 -> Riverside Juvenile Justice Trailers | C73: =+'33-N2'!AB$6 -> 9991 County Farm Road | D73: =+'33-N2'!AC$6 -> Riverside | E73: =+'33-N2'!AD$6 -> 92503 | F73: =+'33-N2'!AE$6 -> Riverside | G73: =+'33-N2'!AF$6 -> SRO | I73: =+'33-N2'!AH$6 -> 0 | J73: =+'33-N2'!AI$6 -> 0 | K73: =+'33-N2'!AJ$6 -> 0 | L73: =+'33-N2'!AK$6 -> 0 | M73: =+'33-N2'!AL$6 -> 0 | N73: =+'33-N2'!AM$6 -> 0 | O73: =+'33-N2'!AN$6 -> 0 | P73: =+'33-N2'!AO$6 -> 0 | Q73: =+'33-N2'!AP$6 -> 0 | R73: =+'33-N2'!AQ$6 -> 0 | S73: =+'33-N2'!AR$6 -> 0 | T73: =+'33-N2'!AS$6 -> 0 | U73: =+'33-N2'!AT$6 -> 0 | V73: =+'33-N2'!AU$6 -> 0 | W73: =+'33-N2'!AV$6 -> 0 | X73: =+'33-N2'!AW$6 -> 0 | Y73: =+'33-N2'!AX$6 -> 0 | Z73: =+'33-N2'!AY$6 -> 0 | AA73: =+'33-N2'!AZ$6 -> 0 | AB73: =+'33-N2'!BA$6 -> 0 | AC73: =+'33-N2'!BB$6 -> 0 | AD73: =+'33-N2'!BC$6 -> 0 | AE73: =+'33-N2'!BD$6 -> 0 | AF73: =+'33-N2'!BE$6 -> 0 | AG73: =+'33-N2'!BF$6 -> 0 | AH73: =+'33-N2'!BG$6 -> 0 | AI73: =+'33-N2'!BH$6 -> 0 | AJ73: =+'33-N2'!BI$6 -> 0 | AK73: =+'33-N2'!BJ$6 -> 0 | AL73: =+'33-N2'!BK$6 -> 0 | AM73: =+'33-N2'!BL$6 -> 0 | AN73: =+'33-N2'!BM$6 -> 0 | AO73: =+'33-N2'!BN$6 -> 0 | AP73: =+'33-N2'!BO$6 -> 0 | AQ73: =+'33-N2'!BP$6 -> 0 | AR73: =+'33-N2'!BQ$6 -> 0 | AS73: =+'33-N2'!BR$6 -> 0 | AT73: =+'33-N2'!BS$6 -> 0 | AU73: =+'33-N2'!BT$6 -> 0 | AV73: =+'33-N2'!BU$6 -> 0 | AW73: =+'33-N2'!BV$6 -> 0 | AX73: =+'33-N2'!BW$6 -> 0 | AZ73: =+'33-N2'!BY$6 -> 0 | BB73: =+'33-N2'!CA$6 -> 0 | BC73: =+'33-N2'!CB$6 -> 0 | BD73: =+'33-N2'!CC$6 -> 0 | BE73: =+'33-N2'!CD$6 -> 0 | BF73: =+'33-N2'!CE$6 -> 0 | BG73: =+'33-N2'!CF$6 -> 0 | BH73: =+'33-N2'!CG$6 -> 0 | BI73: =+'33-N2'!CH$6 -> 0
A74: =+'36-A1'!Z$6 -> 36-A1 | B74: =+'36-A1'!AA$6 -> Central Courthouse | C74: =+'36-A1'!AB$6 -> 351 N. Arrowhead Ave | D74: =+'36-A1'!AC$6 -> San Bernardino | E74: =+'36-A1'!AD$6 -> 92415 | F74: =+'36-A1'!AE$6 -> San Bernardino | G74: =+'36-A1'!AF$6 -> SRO | I74: =+'36-A1'!AH$6 -> 0 | J74: =+'36-A1'!AI$6 -> 0 | K74: =+'36-A1'!AJ$6 -> 0 | L74: =+'36-A1'!AK$6 -> 0 | M74: =+'36-A1'!AL$6 -> 0 | N74: =+'36-A1'!AM$6 -> 0 | O74: =+'36-A1'!AN$6 -> 0 | P74: =+'36-A1'!AO$6 -> 0 | Q74: =+'36-A1'!AP$6 -> 0 | R74: =+'36-A1'!AQ$6 -> 0 | S74: =+'36-A1'!AR$6 -> 0 | T74: =+'36-A1'!AS$6 -> 0 | U74: =+'36-A1'!AT$6 -> 0 | V74: =+'36-A1'!AU$6 -> 0 | W74: =+'36-A1'!AV$6 -> 0 | X74: =+'36-A1'!AW$6 -> 0 | Y74: =+'36-A1'!AX$6 -> 0 | Z74: =+'36-A1'!AY$6 -> 0 | AA74: =+'36-A1'!AZ$6 -> 0 | AB74: =+'36-A1'!BA$6 -> 0 | AC74: =+'36-A1'!BB$6 -> 0 | AD74: =+'36-A1'!BC$6 -> 0 | AE74: =+'36-A1'!BD$6 -> 0 | AF74: =+'36-A1'!BE$6 -> 0 | AG74: =+'36-A1'!BF$6 -> 0 | AH74: =+'36-A1'!BG$6 -> 0 | AI74: =+'36-A1'!BH$6 -> 0 | AJ74: =+'36-A1'!BI$6 -> 0 | AK74: =+'36-A1'!BJ$6 -> 0 | AL74: =+'36-A1'!BK$6 -> 0 | AM74: =+'36-A1'!BL$6 -> 0 | AN74: =+'36-A1'!BM$6 -> 0 | AO74: =+'36-A1'!BN$6 -> 0 | AP74: =+'36-A1'!BO$6 -> 0 | AQ74: =+'36-A1'!BP$6 -> 0 | AR74: =+'36-A1'!BQ$6 -> 0 | AS74: =+'36-A1'!BR$6 -> 0 | AT74: =+'36-A1'!BS$6 -> 0 | AU74: =+'36-A1'!BT$6 -> 0 | AV74: =+'36-A1'!BU$6 -> 0 | AW74: =+'36-A1'!BV$6 -> 0 | AX74: =+'36-A1'!BW$6 -> 0 | AZ74: =+'36-A1'!BY$6 -> 0 | BB74: =+'36-A1'!CA$6 -> 0 | BC74: =+'36-A1'!CB$6 -> 0 | BD74: =+'36-A1'!CC$6 -> 0 | BE74: =+'36-A1'!CD$6 -> 0 | BF74: =+'36-A1'!CE$6 -> 0 | BG74: =+'36-A1'!CF$6 -> 0 | BH74: =+'36-A1'!CG$6 -> 0 | BI74: =+'36-A1'!CH$6 -> 0
A75: =+'36-A2'!Z$6 -> 36-A2 | B75: =+'36-A2'!AA$6 -> San Bernardino Courthouse - Annex | C75: =+'36-A2'!AB$6 -> 351 N. Arrowhead Ave | D75: =+'36-A2'!AC$6 -> San Bernardino | E75: =+'36-A2'!AD$6 -> 92415 | F75: =+'36-A2'!AE$6 -> San Bernardino | G75: =+'36-A2'!AF$6 -> SRO | I75: =+'36-A2'!AH$6 -> 0 | J75: =+'36-A2'!AI$6 -> 0 | K75: =+'36-A2'!AJ$6 -> 0 | L75: =+'36-A2'!AK$6 -> 0 | M75: =+'36-A2'!AL$6 -> 0 | N75: =+'36-A2'!AM$6 -> 0 | O75: =+'36-A2'!AN$6 -> 0 | P75: =+'36-A2'!AO$6 -> 0 | Q75: =+'36-A2'!AP$6 -> 0 | R75: =+'36-A2'!AQ$6 -> 0 | S75: =+'36-A2'!AR$6 -> 0 | T75: =+'36-A2'!AS$6 -> 0 | U75: =+'36-A2'!AT$6 -> 0 | V75: =+'36-A2'!AU$6 -> 0 | W75: =+'36-A2'!AV$6 -> 0 | X75: =+'36-A2'!AW$6 -> 0 | Y75: =+'36-A2'!AX$6 -> 0 | Z75: =+'36-A2'!AY$6 -> 0 | AA75: =+'36-A2'!AZ$6 -> 0 | AB75: =+'36-A2'!BA$6 -> 0 | AC75: =+'36-A2'!BB$6 -> 0 | AD75: =+'36-A2'!BC$6 -> 0 | AE75: =+'36-A2'!BD$6 -> 0 | AF75: =+'36-A2'!BE$6 -> 0 | AG75: =+'36-A2'!BF$6 -> 0 | AH75: =+'36-A2'!BG$6 -> 0 | AI75: =+'36-A2'!BH$6 -> 0 | AJ75: =+'36-A2'!BI$6 -> 0 | AK75: =+'36-A2'!BJ$6 -> 0 | AL75: =+'36-A2'!BK$6 -> 0 | AM75: =+'36-A2'!BL$6 -> 0 | AN75: =+'36-A2'!BM$6 -> 0 | AO75: =+'36-A2'!BN$6 -> 0 | AP75: =+'36-A2'!BO$6 -> 0 | AQ75: =+'36-A2'!BP$6 -> 0 | AR75: =+'36-A2'!BQ$6 -> 0 | AS75: =+'36-A2'!BR$6 -> 0 | AT75: =+'36-A2'!BS$6 -> 0 | AU75: =+'36-A2'!BT$6 -> 0 | AV75: =+'36-A2'!BU$6 -> 0 | AW75: =+'36-A2'!BV$6 -> 0 | AX75: =+'36-A2'!BW$6 -> 0 | AZ75: =+'36-A2'!BY$6 -> 0 | BB75: =+'36-A2'!CA$6 -> 0 | BC75: =+'36-A2'!CB$6 -> 0 | BD75: =+'36-A2'!CC$6 -> 0 | BE75: =+'36-A2'!CD$6 -> 0 | BF75: =+'36-A2'!CE$6 -> 0 | BG75: =+'36-A2'!CF$6 -> 0 | BH75: =+'36-A2'!CG$6 -> 0 | BI75: =+'36-A2'!CH$6 -> 0
A76: =+'36-C1'!Z$6 -> 36-C1 | B76: =+'36-C1'!AA$6 -> Fontana Courthouse | C76: =+'36-C1'!AB$6 -> 17780 Arrow Blvd. | D76: =+'36-C1'!AC$6 -> Fontana | E76: =+'36-C1'!AD$6 -> 92335 | F76: =+'36-C1'!AE$6 -> San Bernardino | G76: =+'36-C1'!AF$6 -> SRO | I76: =+'36-C1'!AH$6 -> 0 | J76: =+'36-C1'!AI$6 -> 0 | K76: =+'36-C1'!AJ$6 -> 0 | L76: =+'36-C1'!AK$6 -> 0 | M76: =+'36-C1'!AL$6 -> 0 | N76: =+'36-C1'!AM$6 -> 0 | O76: =+'36-C1'!AN$6 -> 0 | P76: =+'36-C1'!AO$6 -> 0 | Q76: =+'36-C1'!AP$6 -> 0 | R76: =+'36-C1'!AQ$6 -> 0 | S76: =+'36-C1'!AR$6 -> 0 | T76: =+'36-C1'!AS$6 -> 0 | U76: =+'36-C1'!AT$6 -> 0 | V76: =+'36-C1'!AU$6 -> 0 | W76: =+'36-C1'!AV$6 -> 0 | X76: =+'36-C1'!AW$6 -> 0 | Y76: =+'36-C1'!AX$6 -> 0 | Z76: =+'36-C1'!AY$6 -> 0 | AA76: =+'36-C1'!AZ$6 -> 0 | AB76: =+'36-C1'!BA$6 -> 0 | AC76: =+'36-C1'!BB$6 -> 0 | AD76: =+'36-C1'!BC$6 -> 0 | AE76: =+'36-C1'!BD$6 -> 0 | AF76: =+'36-C1'!BE$6 -> 0 | AG76: =+'36-C1'!BF$6 -> 0 | AH76: =+'36-C1'!BG$6 -> 0 | AI76: =+'36-C1'!BH$6 -> 0 | AJ76: =+'36-C1'!BI$6 -> 0 | AK76: =+'36-C1'!BJ$6 -> 0 | AL76: =+'36-C1'!BK$6 -> 0 | AM76: =+'36-C1'!BL$6 -> 0 | AN76: =+'36-C1'!BM$6 -> 0 | AO76: =+'36-C1'!BN$6 -> 0 | AP76: =+'36-C1'!BO$6 -> 0 | AQ76: =+'36-C1'!BP$6 -> 0 | AR76: =+'36-C1'!BQ$6 -> 0 | AS76: =+'36-C1'!BR$6 -> 0 | AT76: =+'36-C1'!BS$6 -> 0 | AU76: =+'36-C1'!BT$6 -> 0 | AV76: =+'36-C1'!BU$6 -> 0 | AW76: =+'36-C1'!BV$6 -> 0 | AX76: =+'36-C1'!BW$6 -> 0 | AZ76: =+'36-C1'!BY$6 -> 0 | BB76: =+'36-C1'!CA$6 -> 0 | BC76: =+'36-C1'!CB$6 -> 0 | BD76: =+'36-C1'!CC$6 -> 0 | BE76: =+'36-C1'!CD$6 -> 0 | BF76: =+'36-C1'!CE$6 -> 0 | BG76: =+'36-C1'!CF$6 -> 0 | BH76: =+'36-C1'!CG$6 -> 0 | BI76: =+'36-C1'!CH$6 -> 0
A77: =+'36-C3'!Z$6 -> 36-C3 | B77: =+'36-C3'!AA$6 -> Fontana Jury Assembly Building | C77: =+'36-C3'!AB$6 -> 17782 Arrow Blvd. | D77: =+'36-C3'!AC$6 -> Fontana | E77: =+'36-C3'!AD$6 -> 92335 | F77: =+'36-C3'!AE$6 -> San Bernardino | G77: =+'36-C3'!AF$6 -> SRO | I77: =+'36-C3'!AH$6 -> 0 | J77: =+'36-C3'!AI$6 -> 0 | K77: =+'36-C3'!AJ$6 -> 0 | L77: =+'36-C3'!AK$6 -> 0 | M77: =+'36-C3'!AL$6 -> 0 | N77: =+'36-C3'!AM$6 -> 0 | O77: =+'36-C3'!AN$6 -> 0 | P77: =+'36-C3'!AO$6 -> 0 | Q77: =+'36-C3'!AP$6 -> 0 | R77: =+'36-C3'!AQ$6 -> 0 | S77: =+'36-C3'!AR$6 -> 0 | T77: =+'36-C3'!AS$6 -> 0 | U77: =+'36-C3'!AT$6 -> 0 | V77: =+'36-C3'!AU$6 -> 0 | W77: =+'36-C3'!AV$6 -> 0 | X77: =+'36-C3'!AW$6 -> 0 | Y77: =+'36-C3'!AX$6 -> 0 | Z77: =+'36-C3'!AY$6 -> 0 | AA77: =+'36-C3'!AZ$6 -> 0 | AB77: =+'36-C3'!BA$6 -> 0 | AC77: =+'36-C3'!BB$6 -> 0 | AD77: =+'36-C3'!BC$6 -> 0 | AE77: =+'36-C3'!BD$6 -> 0 | AF77: =+'36-C3'!BE$6 -> 0 | AG77: =+'36-C3'!BF$6 -> 0 | AH77: =+'36-C3'!BG$6 -> 0 | AI77: =+'36-C3'!BH$6 -> 0 | AJ77: =+'36-C3'!BI$6 -> 0 | AK77: =+'36-C3'!BJ$6 -> 0 | AL77: =+'36-C3'!BK$6 -> 0 | AM77: =+'36-C3'!BL$6 -> 0 | AN77: =+'36-C3'!BM$6 -> 0 | AO77: =+'36-C3'!BN$6 -> 0 | AP77: =+'36-C3'!BO$6 -> 0 | AQ77: =+'36-C3'!BP$6 -> 0 | AR77: =+'36-C3'!BQ$6 -> 0 | AS77: =+'36-C3'!BR$6 -> 0 | AT77: =+'36-C3'!BS$6 -> 0 | AU77: =+'36-C3'!BT$6 -> 0 | AV77: =+'36-C3'!BU$6 -> 0 | AW77: =+'36-C3'!BV$6 -> 0 | AX77: =+'36-C3'!BW$6 -> 0 | AZ77: =+'36-C3'!BY$6 -> 0 | BB77: =+'36-C3'!CA$6 -> 0 | BC77: =+'36-C3'!CB$6 -> 0 | BD77: =+'36-C3'!CC$6 -> 0 | BE77: =+'36-C3'!CD$6 -> 0 | BF77: =+'36-C3'!CE$6 -> 0 | BG77: =+'36-C3'!CF$6 -> 0 | BH77: =+'36-C3'!CG$6 -> 0 | BI77: =+'36-C3'!CH$6 -> 0
A78: =+'36-J1'!Z$6 -> 36-J1 | B78: =+'36-J1'!AA$6 -> Barstow Courthouse | C78: =+'36-J1'!AB$6 -> 235 East Mountain View Street | D78: =+'36-J1'!AC$6 -> Barstow | E78: =+'36-J1'!AD$6 -> 92311 | F78: =+'36-J1'!AE$6 -> San Bernardino | G78: =+'36-J1'!AF$6 -> SRO | I78: =+'36-J1'!AH$6 -> 0 | J78: =+'36-J1'!AI$6 -> 0 | K78: =+'36-J1'!AJ$6 -> 0 | L78: =+'36-J1'!AK$6 -> 0 | M78: =+'36-J1'!AL$6 -> 0 | N78: =+'36-J1'!AM$6 -> 0 | O78: =+'36-J1'!AN$6 -> 0 | P78: =+'36-J1'!AO$6 -> 0 | Q78: =+'36-J1'!AP$6 -> 0 | R78: =+'36-J1'!AQ$6 -> 0 | S78: =+'36-J1'!AR$6 -> 0 | T78: =+'36-J1'!AS$6 -> 0 | U78: =+'36-J1'!AT$6 -> 0 | V78: =+'36-J1'!AU$6 -> 0 | W78: =+'36-J1'!AV$6 -> 0 | X78: =+'36-J1'!AW$6 -> 0 | Y78: =+'36-J1'!AX$6 -> 0 | Z78: =+'36-J1'!AY$6 -> 0 | AA78: =+'36-J1'!AZ$6 -> 0 | AB78: =+'36-J1'!BA$6 -> 0 | AC78: =+'36-J1'!BB$6 -> 0 | AD78: =+'36-J1'!BC$6 -> 0 | AE78: =+'36-J1'!BD$6 -> 0 | AF78: =+'36-J1'!BE$6 -> 0 | AG78: =+'36-J1'!BF$6 -> 0 | AH78: =+'36-J1'!BG$6 -> 0 | AI78: =+'36-J1'!BH$6 -> 0 | AJ78: =+'36-J1'!BI$6 -> 0 | AK78: =+'36-J1'!BJ$6 -> 0 | AL78: =+'36-J1'!BK$6 -> 0 | AM78: =+'36-J1'!BL$6 -> 0 | AN78: =+'36-J1'!BM$6 -> 0 | AO78: =+'36-J1'!BN$6 -> 0 | AP78: =+'36-J1'!BO$6 -> 0 | AQ78: =+'36-J1'!BP$6 -> 0 | AR78: =+'36-J1'!BQ$6 -> 0 | AS78: =+'36-J1'!BR$6 -> 0 | AT78: =+'36-J1'!BS$6 -> 0 | AU78: =+'36-J1'!BT$6 -> 0 | AV78: =+'36-J1'!BU$6 -> 0 | AW78: =+'36-J1'!BV$6 -> 0 | AX78: =+'36-J1'!BW$6 -> 0 | AZ78: =+'36-J1'!BY$6 -> 0 | BB78: =+'36-J1'!CA$6 -> 0 | BC78: =+'36-J1'!CB$6 -> 0 | BD78: =+'36-J1'!CC$6 -> 0 | BE78: =+'36-J1'!CD$6 -> 0 | BF78: =+'36-J1'!CE$6 -> 0 | BG78: =+'36-J1'!CF$6 -> 0 | BH78: =+'36-J1'!CG$6 -> 0 | BI78: =+'36-J1'!CH$6 -> 0
A79: =+'36-P1'!Z$6 -> 36-P1 | B79: =+'36-P1'!AA$6 -> Juvenile Dependency Courthouse | C79: =+'36-P1'!AB$6 -> 860 E. Gilbert Street | D79: =+'36-P1'!AC$6 -> San Bernardino | E79: =+'36-P1'!AD$6 -> 92415 | F79: =+'36-P1'!AE$6 -> San Bernardino | G79: =+'36-P1'!AF$6 -> SRO | I79: =+'36-P1'!AH$6 -> 0 | J79: =+'36-P1'!AI$6 -> 0 | K79: =+'36-P1'!AJ$6 -> 0 | L79: =+'36-P1'!AK$6 -> 0 | M79: =+'36-P1'!AL$6 -> 0 | N79: =+'36-P1'!AM$6 -> 0 | O79: =+'36-P1'!AN$6 -> 0 | P79: =+'36-P1'!AO$6 -> 0 | Q79: =+'36-P1'!AP$6 -> 0 | R79: =+'36-P1'!AQ$6 -> 0 | S79: =+'36-P1'!AR$6 -> 0 | T79: =+'36-P1'!AS$6 -> 0 | U79: =+'36-P1'!AT$6 -> 0 | V79: =+'36-P1'!AU$6 -> 0 | W79: =+'36-P1'!AV$6 -> 0 | X79: =+'36-P1'!AW$6 -> 0 | Y79: =+'36-P1'!AX$6 -> 0 | Z79: =+'36-P1'!AY$6 -> 0 | AA79: =+'36-P1'!AZ$6 -> 0 | AB79: =+'36-P1'!BA$6 -> 0 | AC79: =+'36-P1'!BB$6 -> 0 | AD79: =+'36-P1'!BC$6 -> 0 | AE79: =+'36-P1'!BD$6 -> 0 | AF79: =+'36-P1'!BE$6 -> 0 | AG79: =+'36-P1'!BF$6 -> 0 | AH79: =+'36-P1'!BG$6 -> 0 | AI79: =+'36-P1'!BH$6 -> 0 | AJ79: =+'36-P1'!BI$6 -> 0 | AK79: =+'36-P1'!BJ$6 -> 0 | AL79: =+'36-P1'!BK$6 -> 0 | AM79: =+'36-P1'!BL$6 -> 0 | AN79: =+'36-P1'!BM$6 -> 0 | AO79: =+'36-P1'!BN$6 -> 0 | AP79: =+'36-P1'!BO$6 -> 0 | AQ79: =+'36-P1'!BP$6 -> 0 | AR79: =+'36-P1'!BQ$6 -> 0 | AS79: =+'36-P1'!BR$6 -> 0 | AT79: =+'36-P1'!BS$6 -> 0 | AU79: =+'36-P1'!BT$6 -> 0 | AV79: =+'36-P1'!BU$6 -> 0 | AW79: =+'36-P1'!BV$6 -> 0 | AX79: =+'36-P1'!BW$6 -> 0 | AZ79: =+'36-P1'!BY$6 -> 0 | BB79: =+'36-P1'!CA$6 -> 0 | BC79: =+'36-P1'!CB$6 -> 0 | BD79: =+'36-P1'!CC$6 -> 0 | BE79: =+'36-P1'!CD$6 -> 0 | BF79: =+'36-P1'!CE$6 -> 0 | BG79: =+'36-P1'!CF$6 -> 0 | BH79: =+'36-P1'!CG$6 -> 0 | BI79: =+'36-P1'!CH$6 -> 0
A80: =+'36-R1'!Z$6 -> 36-R1 | B80: =+'36-R1'!AA$6 -> San Bernardino Justice Center | C80: =+'36-R1'!AB$6 -> 247 West Third Street | D80: =+'36-R1'!AC$6 -> San Bernardino | E80: =+'36-R1'!AD$6 -> 92415 | F80: =+'36-R1'!AE$6 -> San Bernardino | G80: =+'36-R1'!AF$6 -> SRO | I80: =+'36-R1'!AH$6 -> 0 | J80: =+'36-R1'!AI$6 -> 0 | K80: =+'36-R1'!AJ$6 -> 0 | L80: =+'36-R1'!AK$6 -> 0 | M80: =+'36-R1'!AL$6 -> 0 | N80: =+'36-R1'!AM$6 -> 0 | O80: =+'36-R1'!AN$6 -> 0 | P80: =+'36-R1'!AO$6 -> 0 | Q80: =+'36-R1'!AP$6 -> 0 | R80: =+'36-R1'!AQ$6 -> 0 | S80: =+'36-R1'!AR$6 -> 0 | T80: =+'36-R1'!AS$6 -> 0 | U80: =+'36-R1'!AT$6 -> 0 | V80: =+'36-R1'!AU$6 -> 0 | W80: =+'36-R1'!AV$6 -> 0 | X80: =+'36-R1'!AW$6 -> 0 | Y80: =+'36-R1'!AX$6 -> 0 | Z80: =+'36-R1'!AY$6 -> 0 | AA80: =+'36-R1'!AZ$6 -> 0 | AB80: =+'36-R1'!BA$6 -> 0 | AC80: =+'36-R1'!BB$6 -> 0 | AD80: =+'36-R1'!BC$6 -> 0 | AE80: =+'36-R1'!BD$6 -> 0 | AF80: =+'36-R1'!BE$6 -> 0 | AG80: =+'36-R1'!BF$6 -> 0 | AH80: =+'36-R1'!BG$6 -> 0 | AI80: =+'36-R1'!BH$6 -> 0 | AJ80: =+'36-R1'!BI$6 -> 0 | AK80: =+'36-R1'!BJ$6 -> 0 | AL80: =+'36-R1'!BK$6 -> 0 | AM80: =+'36-R1'!BL$6 -> 0 | AN80: =+'36-R1'!BM$6 -> 0 | AO80: =+'36-R1'!BN$6 -> 0 | AP80: =+'36-R1'!BO$6 -> 0 | AQ80: =+'36-R1'!BP$6 -> 0 | AR80: =+'36-R1'!BQ$6 -> 0 | AS80: =+'36-R1'!BR$6 -> 0 | AT80: =+'36-R1'!BS$6 -> 0 | AU80: =+'36-R1'!BT$6 -> 0 | AV80: =+'36-R1'!BU$6 -> 0 | AW80: =+'36-R1'!BV$6 -> 0 | AX80: =+'36-R1'!BW$6 -> 0 | AZ80: =+'36-R1'!BY$6 -> 0 | BB80: =+'36-R1'!CA$6 -> 0 | BC80: =+'36-R1'!CB$6 -> 0 | BD80: =+'36-R1'!CC$6 -> 0 | BE80: =+'36-R1'!CD$6 -> 0 | BF80: =+'36-R1'!CE$6 -> 0 | BG80: =+'36-R1'!CF$6 -> 0 | BH80: =+'36-R1'!CG$6 -> 0 | BI80: =+'36-R1'!CH$6 -> 0
A81: =+'37-C1'!Z$6 -> 37-C1 | B81: =+'37-C1'!AA$6 -> Kearny Mesa Court | C81: =+'37-C1'!AB$6 -> 8950 Clairemont Mesa Blvd. | D81: =+'37-C1'!AC$6 -> San Diego | E81: =+'37-C1'!AD$6 -> 92123 | F81: =+'37-C1'!AE$6 -> San Diego | G81: =+'37-C1'!AF$6 -> SRO | I81: =+'37-C1'!AH$6 -> 0 | J81: =+'37-C1'!AI$6 -> 0 | K81: =+'37-C1'!AJ$6 -> 0 | L81: =+'37-C1'!AK$6 -> 0 | M81: =+'37-C1'!AL$6 -> 0 | N81: =+'37-C1'!AM$6 -> 0 | O81: =+'37-C1'!AN$6 -> 0 | P81: =+'37-C1'!AO$6 -> 0 | Q81: =+'37-C1'!AP$6 -> 0 | R81: =+'37-C1'!AQ$6 -> 0 | S81: =+'37-C1'!AR$6 -> 0 | T81: =+'37-C1'!AS$6 -> 0 | U81: =+'37-C1'!AT$6 -> 0 | V81: =+'37-C1'!AU$6 -> 0 | W81: =+'37-C1'!AV$6 -> 0 | X81: =+'37-C1'!AW$6 -> 0 | Y81: =+'37-C1'!AX$6 -> 0 | Z81: =+'37-C1'!AY$6 -> 0 | AA81: =+'37-C1'!AZ$6 -> 0 | AB81: =+'37-C1'!BA$6 -> 0 | AC81: =+'37-C1'!BB$6 -> 0 | AD81: =+'37-C1'!BC$6 -> 0 | AE81: =+'37-C1'!BD$6 -> 0 | AF81: =+'37-C1'!BE$6 -> 0 | AG81: =+'37-C1'!BF$6 -> 0 | AH81: =+'37-C1'!BG$6 -> 0 | AI81: =+'37-C1'!BH$6 -> 0 | AJ81: =+'37-C1'!BI$6 -> 0 | AK81: =+'37-C1'!BJ$6 -> 0 | AL81: =+'37-C1'!BK$6 -> 0 | AM81: =+'37-C1'!BL$6 -> 0 | AN81: =+'37-C1'!BM$6 -> 0 | AO81: =+'37-C1'!BN$6 -> 0 | AP81: =+'37-C1'!BO$6 -> 0 | AQ81: =+'37-C1'!BP$6 -> 0 | AR81: =+'37-C1'!BQ$6 -> 0 | AS81: =+'37-C1'!BR$6 -> 0 | AT81: =+'37-C1'!BS$6 -> 0 | AU81: =+'37-C1'!BT$6 -> 0 | AV81: =+'37-C1'!BU$6 -> 0 | AW81: =+'37-C1'!BV$6 -> 0 | AX81: =+'37-C1'!BW$6 -> 0 | AZ81: =+'37-C1'!BY$6 -> 0 | BB81: =+'37-C1'!CA$6 -> 0 | BC81: =+'37-C1'!CB$6 -> 0 | BD81: =+'37-C1'!CC$6 -> 0 | BE81: =+'37-C1'!CD$6 -> 0 | BF81: =+'37-C1'!CE$6 -> 0 | BG81: =+'37-C1'!CF$6 -> 0 | BH81: =+'37-C1'!CG$6 -> 0 | BI81: =+'37-C1'!CH$6 -> 0
A82: =+'37-C2'!Z$6 -> 37-C2 | B82: =+'37-C2'!AA$6 -> Kearny Mesa Traffic Court KM3 Trailer | C82: =+'37-C2'!AB$6 -> 8950 Clairemont Mesa Blvd. | D82: =+'37-C2'!AC$6 -> San Diego | E82: =+'37-C2'!AD$6 -> 92123 | F82: =+'37-C2'!AE$6 -> San Diego | G82: =+'37-C2'!AF$6 -> SRO | I82: =+'37-C2'!AH$6 -> 0 | J82: =+'37-C2'!AI$6 -> 0 | K82: =+'37-C2'!AJ$6 -> 0 | L82: =+'37-C2'!AK$6 -> 0 | M82: =+'37-C2'!AL$6 -> 0 | N82: =+'37-C2'!AM$6 -> 0 | O82: =+'37-C2'!AN$6 -> 0 | P82: =+'37-C2'!AO$6 -> 0 | Q82: =+'37-C2'!AP$6 -> 0 | R82: =+'37-C2'!AQ$6 -> 0 | S82: =+'37-C2'!AR$6 -> 0 | T82: =+'37-C2'!AS$6 -> 0 | U82: =+'37-C2'!AT$6 -> 0 | V82: =+'37-C2'!AU$6 -> 0 | W82: =+'37-C2'!AV$6 -> 0 | X82: =+'37-C2'!AW$6 -> 0 | Y82: =+'37-C2'!AX$6 -> 0 | Z82: =+'37-C2'!AY$6 -> 0 | AA82: =+'37-C2'!AZ$6 -> 0 | AB82: =+'37-C2'!BA$6 -> 0 | AC82: =+'37-C2'!BB$6 -> 0 | AD82: =+'37-C2'!BC$6 -> 0 | AE82: =+'37-C2'!BD$6 -> 0 | AF82: =+'37-C2'!BE$6 -> 0 | AG82: =+'37-C2'!BF$6 -> 0 | AH82: =+'37-C2'!BG$6 -> 0 | AI82: =+'37-C2'!BH$6 -> 0 | AJ82: =+'37-C2'!BI$6 -> 0 | AK82: =+'37-C2'!BJ$6 -> 0 | AL82: =+'37-C2'!BK$6 -> 0 | AM82: =+'37-C2'!BL$6 -> 0 | AN82: =+'37-C2'!BM$6 -> 0 | AO82: =+'37-C2'!BN$6 -> 0 | AP82: =+'37-C2'!BO$6 -> 0 | AQ82: =+'37-C2'!BP$6 -> 0 | AR82: =+'37-C2'!BQ$6 -> 0 | AS82: =+'37-C2'!BR$6 -> 0 | AT82: =+'37-C2'!BS$6 -> 0 | AU82: =+'37-C2'!BT$6 -> 0 | AV82: =+'37-C2'!BU$6 -> 0 | AW82: =+'37-C2'!BV$6 -> 0 | AX82: =+'37-C2'!BW$6 -> 0 | AZ82: =+'37-C2'!BY$6 -> 0 | BB82: =+'37-C2'!CA$6 -> 0 | BC82: =+'37-C2'!CB$6 -> 0 | BD82: =+'37-C2'!CC$6 -> 0 | BE82: =+'37-C2'!CD$6 -> 0 | BF82: =+'37-C2'!CE$6 -> 0 | BG82: =+'37-C2'!CF$6 -> 0 | BH82: =+'37-C2'!CG$6 -> 0 | BI82: =+'37-C2'!CH$6 -> 0
A83: =+'37-C3'!Z$6 -> 37-C3 | B83: =+'37-C3'!AA$6 -> Kearny Mesa Traffic Court KM4 Trailer | C83: =+'37-C3'!AB$6 -> 8950 Clairemont Mesa Blvd. | D83: =+'37-C3'!AC$6 -> San Diego | E83: =+'37-C3'!AD$6 -> 92123 | F83: =+'37-C3'!AE$6 -> San Diego | G83: =+'37-C3'!AF$6 -> SRO | I83: =+'37-C3'!AH$6 -> 0 | J83: =+'37-C3'!AI$6 -> 0 | K83: =+'37-C3'!AJ$6 -> 0 | L83: =+'37-C3'!AK$6 -> 0 | M83: =+'37-C3'!AL$6 -> 0 | N83: =+'37-C3'!AM$6 -> 0 | O83: =+'37-C3'!AN$6 -> 0 | P83: =+'37-C3'!AO$6 -> 0 | Q83: =+'37-C3'!AP$6 -> 0 | R83: =+'37-C3'!AQ$6 -> 0 | S83: =+'37-C3'!AR$6 -> 0 | T83: =+'37-C3'!AS$6 -> 0 | U83: =+'37-C3'!AT$6 -> 0 | V83: =+'37-C3'!AU$6 -> 0 | W83: =+'37-C3'!AV$6 -> 0 | X83: =+'37-C3'!AW$6 -> 0 | Y83: =+'37-C3'!AX$6 -> 0 | Z83: =+'37-C3'!AY$6 -> 0 | AA83: =+'37-C3'!AZ$6 -> 0 | AB83: =+'37-C3'!BA$6 -> 0 | AC83: =+'37-C3'!BB$6 -> 0 | AD83: =+'37-C3'!BC$6 -> 0 | AE83: =+'37-C3'!BD$6 -> 0 | AF83: =+'37-C3'!BE$6 -> 0 | AG83: =+'37-C3'!BF$6 -> 0 | AH83: =+'37-C3'!BG$6 -> 0 | AI83: =+'37-C3'!BH$6 -> 0 | AJ83: =+'37-C3'!BI$6 -> 0 | AK83: =+'37-C3'!BJ$6 -> 0 | AL83: =+'37-C3'!BK$6 -> 0 | AM83: =+'37-C3'!BL$6 -> 0 | AN83: =+'37-C3'!BM$6 -> 0 | AO83: =+'37-C3'!BN$6 -> 0 | AP83: =+'37-C3'!BO$6 -> 0 | AQ83: =+'37-C3'!BP$6 -> 0 | AR83: =+'37-C3'!BQ$6 -> 0 | AS83: =+'37-C3'!BR$6 -> 0 | AT83: =+'37-C3'!BS$6 -> 0 | AU83: =+'37-C3'!BT$6 -> 0 | AV83: =+'37-C3'!BU$6 -> 0 | AW83: =+'37-C3'!BV$6 -> 0 | AX83: =+'37-C3'!BW$6 -> 0 | AZ83: =+'37-C3'!BY$6 -> 0 | BB83: =+'37-C3'!CA$6 -> 0 | BC83: =+'37-C3'!CB$6 -> 0 | BD83: =+'37-C3'!CC$6 -> 0 | BE83: =+'37-C3'!CD$6 -> 0 | BF83: =+'37-C3'!CE$6 -> 0 | BG83: =+'37-C3'!CF$6 -> 0 | BH83: =+'37-C3'!CG$6 -> 0 | BI83: =+'37-C3'!CH$6 -> 0
A84: =+'37-C4'!Z$6 -> 37-C4 | B84: =+'37-C4'!AA$6 -> Kearny Mesa Traffic Court KM5 & KM6 Trailer | C84: =+'37-C4'!AB$6 -> 8950 Clairemont Mesa Blvd. | D84: =+'37-C4'!AC$6 -> San Diego | E84: =+'37-C4'!AD$6 -> 92123 | F84: =+'37-C4'!AE$6 -> San Diego | G84: =+'37-C4'!AF$6 -> SRO | I84: =+'37-C4'!AH$6 -> 0 | J84: =+'37-C4'!AI$6 -> 0 | K84: =+'37-C4'!AJ$6 -> 0 | L84: =+'37-C4'!AK$6 -> 0 | M84: =+'37-C4'!AL$6 -> 0 | N84: =+'37-C4'!AM$6 -> 0 | O84: =+'37-C4'!AN$6 -> 0 | P84: =+'37-C4'!AO$6 -> 0 | Q84: =+'37-C4'!AP$6 -> 0 | R84: =+'37-C4'!AQ$6 -> 0 | S84: =+'37-C4'!AR$6 -> 0 | T84: =+'37-C4'!AS$6 -> 0 | U84: =+'37-C4'!AT$6 -> 0 | V84: =+'37-C4'!AU$6 -> 0 | W84: =+'37-C4'!AV$6 -> 0 | X84: =+'37-C4'!AW$6 -> 0 | Y84: =+'37-C4'!AX$6 -> 0 | Z84: =+'37-C4'!AY$6 -> 0 | AA84: =+'37-C4'!AZ$6 -> 0 | AB84: =+'37-C4'!BA$6 -> 0 | AC84: =+'37-C4'!BB$6 -> 0 | AD84: =+'37-C4'!BC$6 -> 0 | AE84: =+'37-C4'!BD$6 -> 0 | AF84: =+'37-C4'!BE$6 -> 0 | AG84: =+'37-C4'!BF$6 -> 0 | AH84: =+'37-C4'!BG$6 -> 0 | AI84: =+'37-C4'!BH$6 -> 0 | AJ84: =+'37-C4'!BI$6 -> 0 | AK84: =+'37-C4'!BJ$6 -> 0 | AL84: =+'37-C4'!BK$6 -> 0 | AM84: =+'37-C4'!BL$6 -> 0 | AN84: =+'37-C4'!BM$6 -> 0 | AO84: =+'37-C4'!BN$6 -> 0 | AP84: =+'37-C4'!BO$6 -> 0 | AQ84: =+'37-C4'!BP$6 -> 0 | AR84: =+'37-C4'!BQ$6 -> 0 | AS84: =+'37-C4'!BR$6 -> 0 | AT84: =+'37-C4'!BS$6 -> 0 | AU84: =+'37-C4'!BT$6 -> 0 | AV84: =+'37-C4'!BU$6 -> 0 | AW84: =+'37-C4'!BV$6 -> 0 | AX84: =+'37-C4'!BW$6 -> 0 | AZ84: =+'37-C4'!BY$6 -> 0 | BB84: =+'37-C4'!CA$6 -> 0 | BC84: =+'37-C4'!CB$6 -> 0 | BD84: =+'37-C4'!CC$6 -> 0 | BE84: =+'37-C4'!CD$6 -> 0 | BF84: =+'37-C4'!CE$6 -> 0 | BG84: =+'37-C4'!CF$6 -> 0 | BH84: =+'37-C4'!CG$6 -> 0 | BI84: =+'37-C4'!CH$6 -> 0
A85: =+'37-E1'!Z$6 -> 37-E1 | B85: =+'37-E1'!AA$6 -> Juvenile Court | C85: =+'37-E1'!AB$6 -> 2851 Meadow Lark Dr. | D85: =+'37-E1'!AC$6 -> San Diego | E85: =+'37-E1'!AD$6 -> 92123 | F85: =+'37-E1'!AE$6 -> San Diego | G85: =+'37-E1'!AF$6 -> SRO | I85: =+'37-E1'!AH$6 -> 0 | J85: =+'37-E1'!AI$6 -> 0 | K85: =+'37-E1'!AJ$6 -> 0 | L85: =+'37-E1'!AK$6 -> 0 | M85: =+'37-E1'!AL$6 -> 0 | N85: =+'37-E1'!AM$6 -> 0 | O85: =+'37-E1'!AN$6 -> 0 | P85: =+'37-E1'!AO$6 -> 0 | Q85: =+'37-E1'!AP$6 -> 0 | R85: =+'37-E1'!AQ$6 -> 0 | S85: =+'37-E1'!AR$6 -> 0 | T85: =+'37-E1'!AS$6 -> 0 | U85: =+'37-E1'!AT$6 -> 0 | V85: =+'37-E1'!AU$6 -> 0 | W85: =+'37-E1'!AV$6 -> 0 | X85: =+'37-E1'!AW$6 -> 0 | Y85: =+'37-E1'!AX$6 -> 0 | Z85: =+'37-E1'!AY$6 -> 0 | AA85: =+'37-E1'!AZ$6 -> 0 | AB85: =+'37-E1'!BA$6 -> 0 | AC85: =+'37-E1'!BB$6 -> 0 | AD85: =+'37-E1'!BC$6 -> 0 | AE85: =+'37-E1'!BD$6 -> 0 | AF85: =+'37-E1'!BE$6 -> 0 | AG85: =+'37-E1'!BF$6 -> 0 | AH85: =+'37-E1'!BG$6 -> 0 | AI85: =+'37-E1'!BH$6 -> 0 | AJ85: =+'37-E1'!BI$6 -> 0 | AK85: =+'37-E1'!BJ$6 -> 0 | AL85: =+'37-E1'!BK$6 -> 0 | AM85: =+'37-E1'!BL$6 -> 0 | AN85: =+'37-E1'!BM$6 -> 0 | AO85: =+'37-E1'!BN$6 -> 0 | AP85: =+'37-E1'!BO$6 -> 0 | AQ85: =+'37-E1'!BP$6 -> 0 | AR85: =+'37-E1'!BQ$6 -> 0 | AS85: =+'37-E1'!BR$6 -> 0 | AT85: =+'37-E1'!BS$6 -> 0 | AU85: =+'37-E1'!BT$6 -> 0 | AV85: =+'37-E1'!BU$6 -> 0 | AW85: =+'37-E1'!BV$6 -> 0 | AX85: =+'37-E1'!BW$6 -> 0 | AZ85: =+'37-E1'!BY$6 -> 0 | BB85: =+'37-E1'!CA$6 -> 0 | BC85: =+'37-E1'!CB$6 -> 0 | BD85: =+'37-E1'!CC$6 -> 0 | BE85: =+'37-E1'!CD$6 -> 0 | BF85: =+'37-E1'!CE$6 -> 0 | BG85: =+'37-E1'!CF$6 -> 0 | BH85: =+'37-E1'!CG$6 -> 0 | BI85: =+'37-E1'!CH$6 -> 0
A86: =+'37-E3'!Z$6 -> 37-E3 | B86: =+'37-E3'!AA$6 -> Department 9 Trailer | C86: =+'37-E3'!AB$6 -> 2851 Meadow Lark Dr. | D86: =+'37-E3'!AC$6 -> San Diego | E86: =+'37-E3'!AD$6 -> 92123 | F86: =+'37-E3'!AE$6 -> San Diego | G86: =+'37-E3'!AF$6 -> SRO | I86: =+'37-E3'!AH$6 -> 0 | J86: =+'37-E3'!AI$6 -> 0 | K86: =+'37-E3'!AJ$6 -> 0 | L86: =+'37-E3'!AK$6 -> 0 | M86: =+'37-E3'!AL$6 -> 0 | N86: =+'37-E3'!AM$6 -> 0 | O86: =+'37-E3'!AN$6 -> 0 | P86: =+'37-E3'!AO$6 -> 0 | Q86: =+'37-E3'!AP$6 -> 0 | R86: =+'37-E3'!AQ$6 -> 0 | S86: =+'37-E3'!AR$6 -> 0 | T86: =+'37-E3'!AS$6 -> 0 | U86: =+'37-E3'!AT$6 -> 0 | V86: =+'37-E3'!AU$6 -> 0 | W86: =+'37-E3'!AV$6 -> 0 | X86: =+'37-E3'!AW$6 -> 0 | Y86: =+'37-E3'!AX$6 -> 0 | Z86: =+'37-E3'!AY$6 -> 0 | AA86: =+'37-E3'!AZ$6 -> 0 | AB86: =+'37-E3'!BA$6 -> 0 | AC86: =+'37-E3'!BB$6 -> 0 | AD86: =+'37-E3'!BC$6 -> 0 | AE86: =+'37-E3'!BD$6 -> 0 | AF86: =+'37-E3'!BE$6 -> 0 | AG86: =+'37-E3'!BF$6 -> 0 | AH86: =+'37-E3'!BG$6 -> 0 | AI86: =+'37-E3'!BH$6 -> 0 | AJ86: =+'37-E3'!BI$6 -> 0 | AK86: =+'37-E3'!BJ$6 -> 0 | AL86: =+'37-E3'!BK$6 -> 0 | AM86: =+'37-E3'!BL$6 -> 0 | AN86: =+'37-E3'!BM$6 -> 0 | AO86: =+'37-E3'!BN$6 -> 0 | AP86: =+'37-E3'!BO$6 -> 0 | AQ86: =+'37-E3'!BP$6 -> 0 | AR86: =+'37-E3'!BQ$6 -> 0 | AS86: =+'37-E3'!BR$6 -> 0 | AT86: =+'37-E3'!BS$6 -> 0 | AU86: =+'37-E3'!BT$6 -> 0 | AV86: =+'37-E3'!BU$6 -> 0 | AW86: =+'37-E3'!BV$6 -> 0 | AX86: =+'37-E3'!BW$6 -> 0 | AZ86: =+'37-E3'!BY$6 -> 0 | BB86: =+'37-E3'!CA$6 -> 0 | BC86: =+'37-E3'!CB$6 -> 0 | BD86: =+'37-E3'!CC$6 -> 0 | BE86: =+'37-E3'!CD$6 -> 0 | BF86: =+'37-E3'!CE$6 -> 0 | BG86: =+'37-E3'!CF$6 -> 0 | BH86: =+'37-E3'!CG$6 -> 0 | BI86: =+'37-E3'!CH$6 -> 0
A87: =+'37-E4'!Z$6 -> 37-E4 | B87: =+'37-E4'!AA$6 -> Department 10 Trailer | C87: =+'37-E4'!AB$6 -> 2851 Meadow Lark Dr. | D87: =+'37-E4'!AC$6 -> San Diego | E87: =+'37-E4'!AD$6 -> 92123 | F87: =+'37-E4'!AE$6 -> San Diego | G87: =+'37-E4'!AF$6 -> SRO | I87: =+'37-E4'!AH$6 -> 0 | J87: =+'37-E4'!AI$6 -> 0 | K87: =+'37-E4'!AJ$6 -> 0 | L87: =+'37-E4'!AK$6 -> 0 | M87: =+'37-E4'!AL$6 -> 0 | N87: =+'37-E4'!AM$6 -> 0 | O87: =+'37-E4'!AN$6 -> 0 | P87: =+'37-E4'!AO$6 -> 0 | Q87: =+'37-E4'!AP$6 -> 0 | R87: =+'37-E4'!AQ$6 -> 0 | S87: =+'37-E4'!AR$6 -> 0 | T87: =+'37-E4'!AS$6 -> 0 | U87: =+'37-E4'!AT$6 -> 0 | V87: =+'37-E4'!AU$6 -> 0 | W87: =+'37-E4'!AV$6 -> 0 | X87: =+'37-E4'!AW$6 -> 0 | Y87: =+'37-E4'!AX$6 -> 0 | Z87: =+'37-E4'!AY$6 -> 0 | AA87: =+'37-E4'!AZ$6 -> 0 | AB87: =+'37-E4'!BA$6 -> 0 | AC87: =+'37-E4'!BB$6 -> 0 | AD87: =+'37-E4'!BC$6 -> 0 | AE87: =+'37-E4'!BD$6 -> 0 | AF87: =+'37-E4'!BE$6 -> 0 | AG87: =+'37-E4'!BF$6 -> 0 | AH87: =+'37-E4'!BG$6 -> 0 | AI87: =+'37-E4'!BH$6 -> 0 | AJ87: =+'37-E4'!BI$6 -> 0 | AK87: =+'37-E4'!BJ$6 -> 0 | AL87: =+'37-E4'!BK$6 -> 0 | AM87: =+'37-E4'!BL$6 -> 0 | AN87: =+'37-E4'!BM$6 -> 0 | AO87: =+'37-E4'!BN$6 -> 0 | AP87: =+'37-E4'!BO$6 -> 0 | AQ87: =+'37-E4'!BP$6 -> 0 | AR87: =+'37-E4'!BQ$6 -> 0 | AS87: =+'37-E4'!BR$6 -> 0 | AT87: =+'37-E4'!BS$6 -> 0 | AU87: =+'37-E4'!BT$6 -> 0 | AV87: =+'37-E4'!BU$6 -> 0 | AW87: =+'37-E4'!BV$6 -> 0 | AX87: =+'37-E4'!BW$6 -> 0 | AZ87: =+'37-E4'!BY$6 -> 0 | BB87: =+'37-E4'!CA$6 -> 0 | BC87: =+'37-E4'!CB$6 -> 0 | BD87: =+'37-E4'!CC$6 -> 0 | BE87: =+'37-E4'!CD$6 -> 0 | BF87: =+'37-E4'!CE$6 -> 0 | BG87: =+'37-E4'!CF$6 -> 0 | BH87: =+'37-E4'!CG$6 -> 0 | BI87: =+'37-E4'!CH$6 -> 0
A88: =+'37-F2'!Z$6 -> 37-F2 | B88: =+'37-F2'!AA$6 -> North County Regional Center - North | C88: =+'37-F2'!AB$6 -> 325 South Melrose Drive | D88: =+'37-F2'!AC$6 -> Vista | E88: =+'37-F2'!AD$6 -> 92081 | F88: =+'37-F2'!AE$6 -> San Diego | G88: =+'37-F2'!AF$6 -> SRO | I88: =+'37-F2'!AH$6 -> 0 | J88: =+'37-F2'!AI$6 -> 0 | K88: =+'37-F2'!AJ$6 -> 0 | L88: =+'37-F2'!AK$6 -> 0 | M88: =+'37-F2'!AL$6 -> 0 | N88: =+'37-F2'!AM$6 -> 0 | O88: =+'37-F2'!AN$6 -> 0 | P88: =+'37-F2'!AO$6 -> 0 | Q88: =+'37-F2'!AP$6 -> 0 | R88: =+'37-F2'!AQ$6 -> 0 | S88: =+'37-F2'!AR$6 -> 0 | T88: =+'37-F2'!AS$6 -> 0 | U88: =+'37-F2'!AT$6 -> 0 | V88: =+'37-F2'!AU$6 -> 0 | W88: =+'37-F2'!AV$6 -> 0 | X88: =+'37-F2'!AW$6 -> 0 | Y88: =+'37-F2'!AX$6 -> 0 | Z88: =+'37-F2'!AY$6 -> 0 | AA88: =+'37-F2'!AZ$6 -> 0 | AB88: =+'37-F2'!BA$6 -> 0 | AC88: =+'37-F2'!BB$6 -> 0 | AD88: =+'37-F2'!BC$6 -> 0 | AE88: =+'37-F2'!BD$6 -> 0 | AF88: =+'37-F2'!BE$6 -> 0 | AG88: =+'37-F2'!BF$6 -> 0 | AH88: =+'37-F2'!BG$6 -> 0 | AI88: =+'37-F2'!BH$6 -> 0 | AJ88: =+'37-F2'!BI$6 -> 0 | AK88: =+'37-F2'!BJ$6 -> 0 | AL88: =+'37-F2'!BK$6 -> 0 | AM88: =+'37-F2'!BL$6 -> 0 | AN88: =+'37-F2'!BM$6 -> 0 | AO88: =+'37-F2'!BN$6 -> 0 | AP88: =+'37-F2'!BO$6 -> 0 | AQ88: =+'37-F2'!BP$6 -> 0 | AR88: =+'37-F2'!BQ$6 -> 0 | AS88: =+'37-F2'!BR$6 -> 0 | AT88: =+'37-F2'!BS$6 -> 0 | AU88: =+'37-F2'!BT$6 -> 0 | AV88: =+'37-F2'!BU$6 -> 0 | AW88: =+'37-F2'!BV$6 -> 0 | AX88: =+'37-F2'!BW$6 -> 0 | AZ88: =+'37-F2'!BY$6 -> 0 | BB88: =+'37-F2'!CA$6 -> 0 | BC88: =+'37-F2'!CB$6 -> 0 | BD88: =+'37-F2'!CC$6 -> 0 | BE88: =+'37-F2'!CD$6 -> 0 | BF88: =+'37-F2'!CE$6 -> 0 | BG88: =+'37-F2'!CF$6 -> 0 | BH88: =+'37-F2'!CG$6 -> 0 | BI88: =+'37-F2'!CH$6 -> 0
A89: =+'37-F3'!Z$6 -> 37-F3 | B89: =+'37-F3'!AA$6 -> North County Regional Center - Annex | C89: =+'37-F3'!AB$6 -> 325 South Melrose Drive | D89: =+'37-F3'!AC$6 -> Vista | E89: =+'37-F3'!AD$6 -> 92081 | F89: =+'37-F3'!AE$6 -> San Diego | G89: =+'37-F3'!AF$6 -> SRO | I89: =+'37-F3'!AH$6 -> 0 | J89: =+'37-F3'!AI$6 -> 0 | K89: =+'37-F3'!AJ$6 -> 0 | L89: =+'37-F3'!AK$6 -> 0 | M89: =+'37-F3'!AL$6 -> 0 | N89: =+'37-F3'!AM$6 -> 0 | O89: =+'37-F3'!AN$6 -> 0 | P89: =+'37-F3'!AO$6 -> 0 | Q89: =+'37-F3'!AP$6 -> 0 | R89: =+'37-F3'!AQ$6 -> 0 | S89: =+'37-F3'!AR$6 -> 0 | T89: =+'37-F3'!AS$6 -> 0 | U89: =+'37-F3'!AT$6 -> 0 | V89: =+'37-F3'!AU$6 -> 0 | W89: =+'37-F3'!AV$6 -> 0 | X89: =+'37-F3'!AW$6 -> 0 | Y89: =+'37-F3'!AX$6 -> 0 | Z89: =+'37-F3'!AY$6 -> 0 | AA89: =+'37-F3'!AZ$6 -> 0 | AB89: =+'37-F3'!BA$6 -> 0 | AC89: =+'37-F3'!BB$6 -> 0 | AD89: =+'37-F3'!BC$6 -> 0 | AE89: =+'37-F3'!BD$6 -> 0 | AF89: =+'37-F3'!BE$6 -> 0 | AG89: =+'37-F3'!BF$6 -> 0 | AH89: =+'37-F3'!BG$6 -> 0 | AI89: =+'37-F3'!BH$6 -> 0 | AJ89: =+'37-F3'!BI$6 -> 0 | AK89: =+'37-F3'!BJ$6 -> 0 | AL89: =+'37-F3'!BK$6 -> 0 | AM89: =+'37-F3'!BL$6 -> 0 | AN89: =+'37-F3'!BM$6 -> 0 | AO89: =+'37-F3'!BN$6 -> 0 | AP89: =+'37-F3'!BO$6 -> 0 | AQ89: =+'37-F3'!BP$6 -> 0 | AR89: =+'37-F3'!BQ$6 -> 0 | AS89: =+'37-F3'!BR$6 -> 0 | AT89: =+'37-F3'!BS$6 -> 0 | AU89: =+'37-F3'!BT$6 -> 0 | AV89: =+'37-F3'!BU$6 -> 0 | AW89: =+'37-F3'!BV$6 -> 0 | AX89: =+'37-F3'!BW$6 -> 0 | AZ89: =+'37-F3'!BY$6 -> 0 | BB89: =+'37-F3'!CA$6 -> 0 | BC89: =+'37-F3'!CB$6 -> 0 | BD89: =+'37-F3'!CC$6 -> 0 | BE89: =+'37-F3'!CD$6 -> 0 | BF89: =+'37-F3'!CE$6 -> 0 | BG89: =+'37-F3'!CF$6 -> 0 | BH89: =+'37-F3'!CG$6 -> 0 | BI89: =+'37-F3'!CH$6 -> 0
A90: =+'37-F4'!Z$6 -> 37-F4 | B90: =+'37-F4'!AA$6 -> Trailer - Dept 34 | C90: =+'37-F4'!AB$6 -> 325 South Melrose Drive | D90: =+'37-F4'!AC$6 -> Vista | E90: =+'37-F4'!AD$6 -> 92081 | F90: =+'37-F4'!AE$6 -> San Diego | G90: =+'37-F4'!AF$6 -> SRO | I90: =+'37-F4'!AH$6 -> 0 | J90: =+'37-F4'!AI$6 -> 0 | K90: =+'37-F4'!AJ$6 -> 0 | L90: =+'37-F4'!AK$6 -> 0 | M90: =+'37-F4'!AL$6 -> 0 | N90: =+'37-F4'!AM$6 -> 0 | O90: =+'37-F4'!AN$6 -> 0 | P90: =+'37-F4'!AO$6 -> 0 | Q90: =+'37-F4'!AP$6 -> 0 | R90: =+'37-F4'!AQ$6 -> 0 | S90: =+'37-F4'!AR$6 -> 0 | T90: =+'37-F4'!AS$6 -> 0 | U90: =+'37-F4'!AT$6 -> 0 | V90: =+'37-F4'!AU$6 -> 0 | W90: =+'37-F4'!AV$6 -> 0 | X90: =+'37-F4'!AW$6 -> 0 | Y90: =+'37-F4'!AX$6 -> 0 | Z90: =+'37-F4'!AY$6 -> 0 | AA90: =+'37-F4'!AZ$6 -> 0 | AB90: =+'37-F4'!BA$6 -> 0 | AC90: =+'37-F4'!BB$6 -> 0 | AD90: =+'37-F4'!BC$6 -> 0 | AE90: =+'37-F4'!BD$6 -> 0 | AF90: =+'37-F4'!BE$6 -> 0 | AG90: =+'37-F4'!BF$6 -> 0 | AH90: =+'37-F4'!BG$6 -> 0 | AI90: =+'37-F4'!BH$6 -> 0 | AJ90: =+'37-F4'!BI$6 -> 0 | AK90: =+'37-F4'!BJ$6 -> 0 | AL90: =+'37-F4'!BK$6 -> 0 | AM90: =+'37-F4'!BL$6 -> 0 | AN90: =+'37-F4'!BM$6 -> 0 | AO90: =+'37-F4'!BN$6 -> 0 | AP90: =+'37-F4'!BO$6 -> 0 | AQ90: =+'37-F4'!BP$6 -> 0 | AR90: =+'37-F4'!BQ$6 -> 0 | AS90: =+'37-F4'!BR$6 -> 0 | AT90: =+'37-F4'!BS$6 -> 0 | AU90: =+'37-F4'!BT$6 -> 0 | AV90: =+'37-F4'!BU$6 -> 0 | AW90: =+'37-F4'!BV$6 -> 0 | AX90: =+'37-F4'!BW$6 -> 0 | AZ90: =+'37-F4'!BY$6 -> 0 | BB90: =+'37-F4'!CA$6 -> 0 | BC90: =+'37-F4'!CB$6 -> 0 | BD90: =+'37-F4'!CC$6 -> 0 | BE90: =+'37-F4'!CD$6 -> 0 | BF90: =+'37-F4'!CE$6 -> 0 | BG90: =+'37-F4'!CF$6 -> 0 | BH90: =+'37-F4'!CG$6 -> 0 | BI90: =+'37-F4'!CH$6 -> 0
A91: =+'37-F5'!Z$6 -> 37-F5 | B91: =+'37-F5'!AA$6 -> Trailer - Dept 35 | C91: =+'37-F5'!AB$6 -> 325 South Melrose Drive | D91: =+'37-F5'!AC$6 -> Vista | E91: =+'37-F5'!AD$6 -> 92081 | F91: =+'37-F5'!AE$6 -> San Diego | G91: =+'37-F5'!AF$6 -> SRO | I91: =+'37-F5'!AH$6 -> 0 | J91: =+'37-F5'!AI$6 -> 0 | K91: =+'37-F5'!AJ$6 -> 0 | L91: =+'37-F5'!AK$6 -> 0 | M91: =+'37-F5'!AL$6 -> 0 | N91: =+'37-F5'!AM$6 -> 0 | O91: =+'37-F5'!AN$6 -> 0 | P91: =+'37-F5'!AO$6 -> 0 | Q91: =+'37-F5'!AP$6 -> 0 | R91: =+'37-F5'!AQ$6 -> 0 | S91: =+'37-F5'!AR$6 -> 0 | T91: =+'37-F5'!AS$6 -> 0 | U91: =+'37-F5'!AT$6 -> 0 | V91: =+'37-F5'!AU$6 -> 0 | W91: =+'37-F5'!AV$6 -> 0 | X91: =+'37-F5'!AW$6 -> 0 | Y91: =+'37-F5'!AX$6 -> 0 | Z91: =+'37-F5'!AY$6 -> 0 | AA91: =+'37-F5'!AZ$6 -> 0 | AB91: =+'37-F5'!BA$6 -> 0 | AC91: =+'37-F5'!BB$6 -> 0 | AD91: =+'37-F5'!BC$6 -> 0 | AE91: =+'37-F5'!BD$6 -> 0 | AF91: =+'37-F5'!BE$6 -> 0 | AG91: =+'37-F5'!BF$6 -> 0 | AH91: =+'37-F5'!BG$6 -> 0 | AI91: =+'37-F5'!BH$6 -> 0 | AJ91: =+'37-F5'!BI$6 -> 0 | AK91: =+'37-F5'!BJ$6 -> 0 | AL91: =+'37-F5'!BK$6 -> 0 | AM91: =+'37-F5'!BL$6 -> 0 | AN91: =+'37-F5'!BM$6 -> 0 | AO91: =+'37-F5'!BN$6 -> 0 | AP91: =+'37-F5'!BO$6 -> 0 | AQ91: =+'37-F5'!BP$6 -> 0 | AR91: =+'37-F5'!BQ$6 -> 0 | AS91: =+'37-F5'!BR$6 -> 0 | AT91: =+'37-F5'!BS$6 -> 0 | AU91: =+'37-F5'!BT$6 -> 0 | AV91: =+'37-F5'!BU$6 -> 0 | AW91: =+'37-F5'!BV$6 -> 0 | AX91: =+'37-F5'!BW$6 -> 0 | AZ91: =+'37-F5'!BY$6 -> 0 | BB91: =+'37-F5'!CA$6 -> 0 | BC91: =+'37-F5'!CB$6 -> 0 | BD91: =+'37-F5'!CC$6 -> 0 | BE91: =+'37-F5'!CD$6 -> 0 | BF91: =+'37-F5'!CE$6 -> 0 | BG91: =+'37-F5'!CF$6 -> 0 | BH91: =+'37-F5'!CG$6 -> 0 | BI91: =+'37-F5'!CH$6 -> 0
A92: =+'37-F6'!Z$6 -> 37-F6 | B92: =+'37-F6'!AA$6 -> Trailer - Storage A | C92: =+'37-F6'!AB$6 -> 325 South Melrose Drive | D92: =+'37-F6'!AC$6 -> Vista | E92: =+'37-F6'!AD$6 -> 92081 | F92: =+'37-F6'!AE$6 -> San Diego | G92: =+'37-F6'!AF$6 -> SRO | I92: =+'37-F6'!AH$6 -> 0 | J92: =+'37-F6'!AI$6 -> 0 | K92: =+'37-F6'!AJ$6 -> 0 | L92: =+'37-F6'!AK$6 -> 0 | M92: =+'37-F6'!AL$6 -> 0 | N92: =+'37-F6'!AM$6 -> 0 | O92: =+'37-F6'!AN$6 -> 0 | P92: =+'37-F6'!AO$6 -> 0 | Q92: =+'37-F6'!AP$6 -> 0 | R92: =+'37-F6'!AQ$6 -> 0 | S92: =+'37-F6'!AR$6 -> 0 | T92: =+'37-F6'!AS$6 -> 0 | U92: =+'37-F6'!AT$6 -> 0 | V92: =+'37-F6'!AU$6 -> 0 | W92: =+'37-F6'!AV$6 -> 0 | X92: =+'37-F6'!AW$6 -> 0 | Y92: =+'37-F6'!AX$6 -> 0 | Z92: =+'37-F6'!AY$6 -> 0 | AA92: =+'37-F6'!AZ$6 -> 0 | AB92: =+'37-F6'!BA$6 -> 0 | AC92: =+'37-F6'!BB$6 -> 0 | AD92: =+'37-F6'!BC$6 -> 0 | AE92: =+'37-F6'!BD$6 -> 0 | AF92: =+'37-F6'!BE$6 -> 0 | AG92: =+'37-F6'!BF$6 -> 0 | AH92: =+'37-F6'!BG$6 -> 0 | AI92: =+'37-F6'!BH$6 -> 0 | AJ92: =+'37-F6'!BI$6 -> 0 | AK92: =+'37-F6'!BJ$6 -> 0 | AL92: =+'37-F6'!BK$6 -> 0 | AM92: =+'37-F6'!BL$6 -> 0 | AN92: =+'37-F6'!BM$6 -> 0 | AO92: =+'37-F6'!BN$6 -> 0 | AP92: =+'37-F6'!BO$6 -> 0 | AQ92: =+'37-F6'!BP$6 -> 0 | AR92: =+'37-F6'!BQ$6 -> 0 | AS92: =+'37-F6'!BR$6 -> 0 | AT92: =+'37-F6'!BS$6 -> 0 | AU92: =+'37-F6'!BT$6 -> 0 | AV92: =+'37-F6'!BU$6 -> 0 | AW92: =+'37-F6'!BV$6 -> 0 | AX92: =+'37-F6'!BW$6 -> 0 | AZ92: =+'37-F6'!BY$6 -> 0 | BB92: =+'37-F6'!CA$6 -> 0 | BC92: =+'37-F6'!CB$6 -> 0 | BD92: =+'37-F6'!CC$6 -> 0 | BE92: =+'37-F6'!CD$6 -> 0 | BF92: =+'37-F6'!CE$6 -> 0 | BG92: =+'37-F6'!CF$6 -> 0 | BH92: =+'37-F6'!CG$6 -> 0 | BI92: =+'37-F6'!CH$6 -> 0
A93: =+'37-F7'!Z$6 -> 37-F7 | B93: =+'37-F7'!AA$6 -> Trailer - Family Support | C93: =+'37-F7'!AB$6 -> 325 South Melrose Drive | D93: =+'37-F7'!AC$6 -> Vista | E93: =+'37-F7'!AD$6 -> 92081 | F93: =+'37-F7'!AE$6 -> San Diego | G93: =+'37-F7'!AF$6 -> SRO | I93: =+'37-F7'!AH$6 -> 0 | J93: =+'37-F7'!AI$6 -> 0 | K93: =+'37-F7'!AJ$6 -> 0 | L93: =+'37-F7'!AK$6 -> 0 | M93: =+'37-F7'!AL$6 -> 0 | N93: =+'37-F7'!AM$6 -> 0 | O93: =+'37-F7'!AN$6 -> 0 | P93: =+'37-F7'!AO$6 -> 0 | Q93: =+'37-F7'!AP$6 -> 0 | R93: =+'37-F7'!AQ$6 -> 0 | S93: =+'37-F7'!AR$6 -> 0 | T93: =+'37-F7'!AS$6 -> 0 | U93: =+'37-F7'!AT$6 -> 0 | V93: =+'37-F7'!AU$6 -> 0 | W93: =+'37-F7'!AV$6 -> 0 | X93: =+'37-F7'!AW$6 -> 0 | Y93: =+'37-F7'!AX$6 -> 0 | Z93: =+'37-F7'!AY$6 -> 0 | AA93: =+'37-F7'!AZ$6 -> 0 | AB93: =+'37-F7'!BA$6 -> 0 | AC93: =+'37-F7'!BB$6 -> 0 | AD93: =+'37-F7'!BC$6 -> 0 | AE93: =+'37-F7'!BD$6 -> 0 | AF93: =+'37-F7'!BE$6 -> 0 | AG93: =+'37-F7'!BF$6 -> 0 | AH93: =+'37-F7'!BG$6 -> 0 | AI93: =+'37-F7'!BH$6 -> 0 | AJ93: =+'37-F7'!BI$6 -> 0 | AK93: =+'37-F7'!BJ$6 -> 0 | AL93: =+'37-F7'!BK$6 -> 0 | AM93: =+'37-F7'!BL$6 -> 0 | AN93: =+'37-F7'!BM$6 -> 0 | AO93: =+'37-F7'!BN$6 -> 0 | AP93: =+'37-F7'!BO$6 -> 0 | AQ93: =+'37-F7'!BP$6 -> 0 | AR93: =+'37-F7'!BQ$6 -> 0 | AS93: =+'37-F7'!BR$6 -> 0 | AT93: =+'37-F7'!BS$6 -> 0 | AU93: =+'37-F7'!BT$6 -> 0 | AV93: =+'37-F7'!BU$6 -> 0 | AW93: =+'37-F7'!BV$6 -> 0 | AX93: =+'37-F7'!BW$6 -> 0 | AZ93: =+'37-F7'!BY$6 -> 0 | BB93: =+'37-F7'!CA$6 -> 0 | BC93: =+'37-F7'!CB$6 -> 0 | BD93: =+'37-F7'!CC$6 -> 0 | BE93: =+'37-F7'!CD$6 -> 0 | BF93: =+'37-F7'!CE$6 -> 0 | BG93: =+'37-F7'!CF$6 -> 0 | BH93: =+'37-F7'!CG$6 -> 0 | BI93: =+'37-F7'!CH$6 -> 0
A94: =+'37-I1'!Z$6 -> 37-I1 | B94: =+'37-I1'!AA$6 -> East County Regional Center | C94: =+'37-I1'!AB$6 -> 250 E. Main St. | D94: =+'37-I1'!AC$6 -> El Cajon | E94: =+'37-I1'!AD$6 -> 92020 | F94: =+'37-I1'!AE$6 -> San Diego | G94: =+'37-I1'!AF$6 -> SRO | I94: =+'37-I1'!AH$6 -> 0 | J94: =+'37-I1'!AI$6 -> 0 | K94: =+'37-I1'!AJ$6 -> 0 | L94: =+'37-I1'!AK$6 -> 0 | M94: =+'37-I1'!AL$6 -> 0 | N94: =+'37-I1'!AM$6 -> 0 | O94: =+'37-I1'!AN$6 -> 0 | P94: =+'37-I1'!AO$6 -> 0 | Q94: =+'37-I1'!AP$6 -> 0 | R94: =+'37-I1'!AQ$6 -> 0 | S94: =+'37-I1'!AR$6 -> 0 | T94: =+'37-I1'!AS$6 -> 0 | U94: =+'37-I1'!AT$6 -> 0 | V94: =+'37-I1'!AU$6 -> 0 | W94: =+'37-I1'!AV$6 -> 0 | X94: =+'37-I1'!AW$6 -> 0 | Y94: =+'37-I1'!AX$6 -> 0 | Z94: =+'37-I1'!AY$6 -> 0 | AA94: =+'37-I1'!AZ$6 -> 0 | AB94: =+'37-I1'!BA$6 -> 0 | AC94: =+'37-I1'!BB$6 -> 0 | AD94: =+'37-I1'!BC$6 -> 0 | AE94: =+'37-I1'!BD$6 -> 0 | AF94: =+'37-I1'!BE$6 -> 0 | AG94: =+'37-I1'!BF$6 -> 0 | AH94: =+'37-I1'!BG$6 -> 0 | AI94: =+'37-I1'!BH$6 -> 0 | AJ94: =+'37-I1'!BI$6 -> 0 | AK94: =+'37-I1'!BJ$6 -> 0 | AL94: =+'37-I1'!BK$6 -> 0 | AM94: =+'37-I1'!BL$6 -> 0 | AN94: =+'37-I1'!BM$6 -> 0 | AO94: =+'37-I1'!BN$6 -> 0 | AP94: =+'37-I1'!BO$6 -> 0 | AQ94: =+'37-I1'!BP$6 -> 0 | AR94: =+'37-I1'!BQ$6 -> 0 | AS94: =+'37-I1'!BR$6 -> 0 | AT94: =+'37-I1'!BS$6 -> 0 | AU94: =+'37-I1'!BT$6 -> 0 | AV94: =+'37-I1'!BU$6 -> 0 | AW94: =+'37-I1'!BV$6 -> 0 | AX94: =+'37-I1'!BW$6 -> 0 | AZ94: =+'37-I1'!BY$6 -> 0 | BB94: =+'37-I1'!CA$6 -> 0 | BC94: =+'37-I1'!CB$6 -> 0 | BD94: =+'37-I1'!CC$6 -> 0 | BE94: =+'37-I1'!CD$6 -> 0 | BF94: =+'37-I1'!CE$6 -> 0 | BG94: =+'37-I1'!CF$6 -> 0 | BH94: =+'37-I1'!CG$6 -> 0 | BI94: =+'37-I1'!CH$6 -> 0
A95: =+'37-L1'!Z$6 -> 37-L1 | B95: =+'37-L1'!AA$6 -> Central Courthouse | C95: =+'37-L1'!AB$6 -> 1100 Union Street | D95: =+'37-L1'!AC$6 -> San Diego | E95: =+'37-L1'!AD$6 -> 92101 | F95: =+'37-L1'!AE$6 -> San Diego | G95: =+'37-L1'!AF$6 -> SRO | I95: =+'37-L1'!AH$6 -> 0 | J95: =+'37-L1'!AI$6 -> 0 | K95: =+'37-L1'!AJ$6 -> 0 | L95: =+'37-L1'!AK$6 -> 0 | M95: =+'37-L1'!AL$6 -> 0 | N95: =+'37-L1'!AM$6 -> 0 | O95: =+'37-L1'!AN$6 -> 0 | P95: =+'37-L1'!AO$6 -> 0 | Q95: =+'37-L1'!AP$6 -> 0 | R95: =+'37-L1'!AQ$6 -> 0 | S95: =+'37-L1'!AR$6 -> 0 | T95: =+'37-L1'!AS$6 -> 0 | U95: =+'37-L1'!AT$6 -> 0 | V95: =+'37-L1'!AU$6 -> 0 | W95: =+'37-L1'!AV$6 -> 0 | X95: =+'37-L1'!AW$6 -> 0 | Y95: =+'37-L1'!AX$6 -> 0 | Z95: =+'37-L1'!AY$6 -> 0 | AA95: =+'37-L1'!AZ$6 -> 0 | AB95: =+'37-L1'!BA$6 -> 0 | AC95: =+'37-L1'!BB$6 -> 0 | AD95: =+'37-L1'!BC$6 -> 0 | AE95: =+'37-L1'!BD$6 -> 0 | AF95: =+'37-L1'!BE$6 -> 0 | AG95: =+'37-L1'!BF$6 -> 0 | AH95: =+'37-L1'!BG$6 -> 0 | AI95: =+'37-L1'!BH$6 -> 0 | AJ95: =+'37-L1'!BI$6 -> 0 | AK95: =+'37-L1'!BJ$6 -> 0 | AL95: =+'37-L1'!BK$6 -> 0 | AM95: =+'37-L1'!BL$6 -> 0 | AN95: =+'37-L1'!BM$6 -> 0 | AO95: =+'37-L1'!BN$6 -> 0 | AP95: =+'37-L1'!BO$6 -> 0 | AQ95: =+'37-L1'!BP$6 -> 0 | AR95: =+'37-L1'!BQ$6 -> 0 | AS95: =+'37-L1'!BR$6 -> 0 | AT95: =+'37-L1'!BS$6 -> 0 | AU95: =+'37-L1'!BT$6 -> 0 | AV95: =+'37-L1'!BU$6 -> 0 | AW95: =+'37-L1'!BV$6 -> 0 | AX95: =+'37-L1'!BW$6 -> 0 | AZ95: =+'37-L1'!BY$6 -> 0 | BB95: =+'37-L1'!CA$6 -> 0 | BC95: =+'37-L1'!CB$6 -> 0 | BD95: =+'37-L1'!CC$6 -> 0 | BE95: =+'37-L1'!CD$6 -> 0 | BF95: =+'37-L1'!CE$6 -> 0 | BG95: =+'37-L1'!CF$6 -> 0 | BH95: =+'37-L1'!CG$6 -> 0 | BI95: =+'37-L1'!CH$6 -> 0
A96: =+'40-E2'!Z$6 -> 40-E2 | B96: =+'40-E2'!AA$6 -> Grover Beach Clerk's Office | C96: =+'40-E2'!AB$6 -> 214 S 16th St. | D96: =+'40-E2'!AC$6 -> Grover Beach | E96: =+'40-E2'!AD$6 -> 93433 | F96: =+'40-E2'!AE$6 -> San Luis Obispo | G96: =+'40-E2'!AF$6 -> SRO | I96: =+'40-E2'!AH$6 -> 0 | J96: =+'40-E2'!AI$6 -> 0 | K96: =+'40-E2'!AJ$6 -> 0 | L96: =+'40-E2'!AK$6 -> 0 | M96: =+'40-E2'!AL$6 -> 0 | N96: =+'40-E2'!AM$6 -> 0 | O96: =+'40-E2'!AN$6 -> 0 | P96: =+'40-E2'!AO$6 -> 0 | Q96: =+'40-E2'!AP$6 -> 0 | R96: =+'40-E2'!AQ$6 -> 0 | S96: =+'40-E2'!AR$6 -> 0 | T96: =+'40-E2'!AS$6 -> 0 | U96: =+'40-E2'!AT$6 -> 0 | V96: =+'40-E2'!AU$6 -> 0 | W96: =+'40-E2'!AV$6 -> 0 | X96: =+'40-E2'!AW$6 -> 0 | Y96: =+'40-E2'!AX$6 -> 0 | Z96: =+'40-E2'!AY$6 -> 0 | AA96: =+'40-E2'!AZ$6 -> 0 | AB96: =+'40-E2'!BA$6 -> 0 | AC96: =+'40-E2'!BB$6 -> 0 | AD96: =+'40-E2'!BC$6 -> 0 | AE96: =+'40-E2'!BD$6 -> 0 | AF96: =+'40-E2'!BE$6 -> 0 | AG96: =+'40-E2'!BF$6 -> 0 | AH96: =+'40-E2'!BG$6 -> 0 | AI96: =+'40-E2'!BH$6 -> 0 | AJ96: =+'40-E2'!BI$6 -> 0 | AK96: =+'40-E2'!BJ$6 -> 0 | AL96: =+'40-E2'!BK$6 -> 0 | AM96: =+'40-E2'!BL$6 -> 0 | AN96: =+'40-E2'!BM$6 -> 0 | AO96: =+'40-E2'!BN$6 -> 0 | AP96: =+'40-E2'!BO$6 -> 0 | AQ96: =+'40-E2'!BP$6 -> 0 | AR96: =+'40-E2'!BQ$6 -> 0 | AS96: =+'40-E2'!BR$6 -> 0 | AT96: =+'40-E2'!BS$6 -> 0 | AU96: =+'40-E2'!BT$6 -> 0 | AV96: =+'40-E2'!BU$6 -> 0 | AW96: =+'40-E2'!BV$6 -> 0 | AX96: =+'40-E2'!BW$6 -> 0 | AZ96: =+'40-E2'!BY$6 -> 0 | BB96: =+'40-E2'!CA$6 -> 0 | BC96: =+'40-E2'!CB$6 -> 0 | BD96: =+'40-E2'!CC$6 -> 0 | BE96: =+'40-E2'!CD$6 -> 0 | BF96: =+'40-E2'!CE$6 -> 0 | BG96: =+'40-E2'!CF$6 -> 0 | BH96: =+'40-E2'!CG$6 -> 0 | BI96: =+'40-E2'!CH$6 -> 0
A97: =+'42-B1'!Z$6 -> 42-B1 | B97: =+'42-B1'!AA$6 -> Figueroa Division | C97: =+'42-B1'!AB$6 -> 118 E. Figueroa St. | D97: =+'42-B1'!AC$6 -> Santa Barbara | E97: =+'42-B1'!AD$6 -> 93101 | F97: =+'42-B1'!AE$6 -> Santa Barbara | G97: =+'42-B1'!AF$6 -> SRO | I97: =+'42-B1'!AH$6 -> 0 | J97: =+'42-B1'!AI$6 -> 0 | K97: =+'42-B1'!AJ$6 -> 0 | L97: =+'42-B1'!AK$6 -> 0 | M97: =+'42-B1'!AL$6 -> 0 | N97: =+'42-B1'!AM$6 -> 0 | O97: =+'42-B1'!AN$6 -> 0 | P97: =+'42-B1'!AO$6 -> 0 | Q97: =+'42-B1'!AP$6 -> 0 | R97: =+'42-B1'!AQ$6 -> 0 | S97: =+'42-B1'!AR$6 -> 0 | T97: =+'42-B1'!AS$6 -> 0 | U97: =+'42-B1'!AT$6 -> 0 | V97: =+'42-B1'!AU$6 -> 0 | W97: =+'42-B1'!AV$6 -> 0 | X97: =+'42-B1'!AW$6 -> 0 | Y97: =+'42-B1'!AX$6 -> 0 | Z97: =+'42-B1'!AY$6 -> 0 | AA97: =+'42-B1'!AZ$6 -> 0 | AB97: =+'42-B1'!BA$6 -> 0 | AC97: =+'42-B1'!BB$6 -> 0 | AD97: =+'42-B1'!BC$6 -> 0 | AE97: =+'42-B1'!BD$6 -> 0 | AF97: =+'42-B1'!BE$6 -> 0 | AG97: =+'42-B1'!BF$6 -> 0 | AH97: =+'42-B1'!BG$6 -> 0 | AI97: =+'42-B1'!BH$6 -> 0 | AJ97: =+'42-B1'!BI$6 -> 0 | AK97: =+'42-B1'!BJ$6 -> 0 | AL97: =+'42-B1'!BK$6 -> 0 | AM97: =+'42-B1'!BL$6 -> 0 | AN97: =+'42-B1'!BM$6 -> 0 | AO97: =+'42-B1'!BN$6 -> 0 | AP97: =+'42-B1'!BO$6 -> 0 | AQ97: =+'42-B1'!BP$6 -> 0 | AR97: =+'42-B1'!BQ$6 -> 0 | AS97: =+'42-B1'!BR$6 -> 0 | AT97: =+'42-B1'!BS$6 -> 0 | AU97: =+'42-B1'!BT$6 -> 0 | AV97: =+'42-B1'!BU$6 -> 0 | AW97: =+'42-B1'!BV$6 -> 0 | AX97: =+'42-B1'!BW$6 -> 0 | AZ97: =+'42-B1'!BY$6 -> 0 | BB97: =+'42-B1'!CA$6 -> 0 | BC97: =+'42-B1'!CB$6 -> 0 | BD97: =+'42-B1'!CC$6 -> 0 | BE97: =+'42-B1'!CD$6 -> 0 | BF97: =+'42-B1'!CE$6 -> 0 | BG97: =+'42-B1'!CF$6 -> 0 | BH97: =+'42-B1'!CG$6 -> 0 | BI97: =+'42-B1'!CH$6 -> 0
A98: =+'42-F1'!Z$6 -> 42-F1 | B98: =+'42-F1'!AA$6 -> Santa Maria Courts Bldgs C + D | C98: =+'42-F1'!AB$6 -> 312 E. Cook St. | D98: =+'42-F1'!AC$6 -> Santa Maria | E98: =+'42-F1'!AD$6 -> 93454 | F98: =+'42-F1'!AE$6 -> Santa Barbara | G98: =+'42-F1'!AF$6 -> SRO | I98: =+'42-F1'!AH$6 -> 0 | J98: =+'42-F1'!AI$6 -> 0 | K98: =+'42-F1'!AJ$6 -> 0 | L98: =+'42-F1'!AK$6 -> 0 | M98: =+'42-F1'!AL$6 -> 0 | N98: =+'42-F1'!AM$6 -> 0 | O98: =+'42-F1'!AN$6 -> 0 | P98: =+'42-F1'!AO$6 -> 0 | Q98: =+'42-F1'!AP$6 -> 0 | R98: =+'42-F1'!AQ$6 -> 0 | S98: =+'42-F1'!AR$6 -> 0 | T98: =+'42-F1'!AS$6 -> 0 | U98: =+'42-F1'!AT$6 -> 0 | V98: =+'42-F1'!AU$6 -> 0 | W98: =+'42-F1'!AV$6 -> 0 | X98: =+'42-F1'!AW$6 -> 0 | Y98: =+'42-F1'!AX$6 -> 0 | Z98: =+'42-F1'!AY$6 -> 0 | AA98: =+'42-F1'!AZ$6 -> 0 | AB98: =+'42-F1'!BA$6 -> 0 | AC98: =+'42-F1'!BB$6 -> 0 | AD98: =+'42-F1'!BC$6 -> 0 | AE98: =+'42-F1'!BD$6 -> 0 | AF98: =+'42-F1'!BE$6 -> 0 | AG98: =+'42-F1'!BF$6 -> 0 | AH98: =+'42-F1'!BG$6 -> 0 | AI98: =+'42-F1'!BH$6 -> 0 | AJ98: =+'42-F1'!BI$6 -> 0 | AK98: =+'42-F1'!BJ$6 -> 0 | AL98: =+'42-F1'!BK$6 -> 0 | AM98: =+'42-F1'!BL$6 -> 0 | AN98: =+'42-F1'!BM$6 -> 0 | AO98: =+'42-F1'!BN$6 -> 0 | AP98: =+'42-F1'!BO$6 -> 0 | AQ98: =+'42-F1'!BP$6 -> 0 | AR98: =+'42-F1'!BQ$6 -> 0 | AS98: =+'42-F1'!BR$6 -> 0 | AT98: =+'42-F1'!BS$6 -> 0 | AU98: =+'42-F1'!BT$6 -> 0 | AV98: =+'42-F1'!BU$6 -> 0 | AW98: =+'42-F1'!BV$6 -> 0 | AX98: =+'42-F1'!BW$6 -> 0 | AZ98: =+'42-F1'!BY$6 -> 0 | BB98: =+'42-F1'!CA$6 -> 0 | BC98: =+'42-F1'!CB$6 -> 0 | BD98: =+'42-F1'!CC$6 -> 0 | BE98: =+'42-F1'!CD$6 -> 0 | BF98: =+'42-F1'!CE$6 -> 0 | BG98: =+'42-F1'!CF$6 -> 0 | BH98: =+'42-F1'!CG$6 -> 0 | BI98: =+'42-F1'!CH$6 -> 0
A99: =+'42-F3'!Z$6 -> 42-F3 | B99: =+'42-F3'!AA$6 -> Santa Maria Courts, Bldgs. A + B | C99: =+'42-F3'!AB$6 -> 312 E. Cook St. | D99: =+'42-F3'!AC$6 -> Santa Maria | E99: =+'42-F3'!AD$6 -> 93454 | F99: =+'42-F3'!AE$6 -> Santa Barbara | G99: =+'42-F3'!AF$6 -> SRO | I99: =+'42-F3'!AH$6 -> 0 | J99: =+'42-F3'!AI$6 -> 0 | K99: =+'42-F3'!AJ$6 -> 0 | L99: =+'42-F3'!AK$6 -> 0 | M99: =+'42-F3'!AL$6 -> 0 | N99: =+'42-F3'!AM$6 -> 0 | O99: =+'42-F3'!AN$6 -> 0 | P99: =+'42-F3'!AO$6 -> 0 | Q99: =+'42-F3'!AP$6 -> 0 | R99: =+'42-F3'!AQ$6 -> 0 | S99: =+'42-F3'!AR$6 -> 0 | T99: =+'42-F3'!AS$6 -> 0 | U99: =+'42-F3'!AT$6 -> 0 | V99: =+'42-F3'!AU$6 -> 0 | W99: =+'42-F3'!AV$6 -> 0 | X99: =+'42-F3'!AW$6 -> 0 | Y99: =+'42-F3'!AX$6 -> 0 | Z99: =+'42-F3'!AY$6 -> 0 | AA99: =+'42-F3'!AZ$6 -> 0 | AB99: =+'42-F3'!BA$6 -> 0 | AC99: =+'42-F3'!BB$6 -> 0 | AD99: =+'42-F3'!BC$6 -> 0 | AE99: =+'42-F3'!BD$6 -> 0 | AF99: =+'42-F3'!BE$6 -> 0 | AG99: =+'42-F3'!BF$6 -> 0 | AH99: =+'42-F3'!BG$6 -> 0 | AI99: =+'42-F3'!BH$6 -> 0 | AJ99: =+'42-F3'!BI$6 -> 0 | AK99: =+'42-F3'!BJ$6 -> 0 | AL99: =+'42-F3'!BK$6 -> 0 | AM99: =+'42-F3'!BL$6 -> 0 | AN99: =+'42-F3'!BM$6 -> 0 | AO99: =+'42-F3'!BN$6 -> 0 | AP99: =+'42-F3'!BO$6 -> 0 | AQ99: =+'42-F3'!BP$6 -> 0 | AR99: =+'42-F3'!BQ$6 -> 0 | AS99: =+'42-F3'!BR$6 -> 0 | AT99: =+'42-F3'!BS$6 -> 0 | AU99: =+'42-F3'!BT$6 -> 0 | AV99: =+'42-F3'!BU$6 -> 0 | AW99: =+'42-F3'!BV$6 -> 0 | AX99: =+'42-F3'!BW$6 -> 0 | AZ99: =+'42-F3'!BY$6 -> 0 | BB99: =+'42-F3'!CA$6 -> 0 | BC99: =+'42-F3'!CB$6 -> 0 | BD99: =+'42-F3'!CC$6 -> 0 | BE99: =+'42-F3'!CD$6 -> 0 | BF99: =+'42-F3'!CE$6 -> 0 | BG99: =+'42-F3'!CF$6 -> 0 | BH99: =+'42-F3'!CG$6 -> 0 | BI99: =+'42-F3'!CH$6 -> 0
A100: =+'42-F4'!Z$6 -> 42-F4 | B100: =+'42-F4'!AA$6 -> Santa Maria Courts, Bldg F | C100: =+'42-F4'!AB$6 -> 312 E. Cook St. | D100: =+'42-F4'!AC$6 -> Santa Maria | E100: =+'42-F4'!AD$6 -> 93454 | F100: =+'42-F4'!AE$6 -> Santa Barbara | G100: =+'42-F4'!AF$6 -> SRO | I100: =+'42-F4'!AH$6 -> 0 | J100: =+'42-F4'!AI$6 -> 0 | K100: =+'42-F4'!AJ$6 -> 0 | L100: =+'42-F4'!AK$6 -> 0 | M100: =+'42-F4'!AL$6 -> 0 | N100: =+'42-F4'!AM$6 -> 0 | O100: =+'42-F4'!AN$6 -> 0 | P100: =+'42-F4'!AO$6 -> 0 | Q100: =+'42-F4'!AP$6 -> 0 | R100: =+'42-F4'!AQ$6 -> 0 | S100: =+'42-F4'!AR$6 -> 0 | T100: =+'42-F4'!AS$6 -> 0 | U100: =+'42-F4'!AT$6 -> 0 | V100: =+'42-F4'!AU$6 -> 0 | W100: =+'42-F4'!AV$6 -> 0 | X100: =+'42-F4'!AW$6 -> 0 | Y100: =+'42-F4'!AX$6 -> 0 | Z100: =+'42-F4'!AY$6 -> 0 | AA100: =+'42-F4'!AZ$6 -> 0 | AB100: =+'42-F4'!BA$6 -> 0 | AC100: =+'42-F4'!BB$6 -> 0 | AD100: =+'42-F4'!BC$6 -> 0 | AE100: =+'42-F4'!BD$6 -> 0 | AF100: =+'42-F4'!BE$6 -> 0 | AG100: =+'42-F4'!BF$6 -> 0 | AH100: =+'42-F4'!BG$6 -> 0 | AI100: =+'42-F4'!BH$6 -> 0 | AJ100: =+'42-F4'!BI$6 -> 0 | AK100: =+'42-F4'!BJ$6 -> 0 | AL100: =+'42-F4'!BK$6 -> 0 | AM100: =+'42-F4'!BL$6 -> 0 | AN100: =+'42-F4'!BM$6 -> 0 | AO100: =+'42-F4'!BN$6 -> 0 | AP100: =+'42-F4'!BO$6 -> 0 | AQ100: =+'42-F4'!BP$6 -> 0 | AR100: =+'42-F4'!BQ$6 -> 0 | AS100: =+'42-F4'!BR$6 -> 0 | AT100: =+'42-F4'!BS$6 -> 0 | AU100: =+'42-F4'!BT$6 -> 0 | AV100: =+'42-F4'!BU$6 -> 0 | AW100: =+'42-F4'!BV$6 -> 0 | AX100: =+'42-F4'!BW$6 -> 0 | AZ100: =+'42-F4'!BY$6 -> 0 | BB100: =+'42-F4'!CA$6 -> 0 | BC100: =+'42-F4'!CB$6 -> 0 | BD100: =+'42-F4'!CC$6 -> 0 | BE100: =+'42-F4'!CD$6 -> 0 | BF100: =+'42-F4'!CE$6 -> 0 | BG100: =+'42-F4'!CF$6 -> 0 | BH100: =+'42-F4'!CG$6 -> 0 | BI100: =+'42-F4'!CH$6 -> 0
A101: =+'42-F5'!Z$6 -> 42-F5 | B101: =+'42-F5'!AA$6 -> Santa Maria Courts, Bldg G | C101: =+'42-F5'!AB$6 -> 312 E. Cook St. | D101: =+'42-F5'!AC$6 -> Santa Maria | E101: =+'42-F5'!AD$6 -> 93454 | F101: =+'42-F5'!AE$6 -> Santa Barbara | G101: =+'42-F5'!AF$6 -> SRO | I101: =+'42-F5'!AH$6 -> 0 | J101: =+'42-F5'!AI$6 -> 0 | K101: =+'42-F5'!AJ$6 -> 0 | L101: =+'42-F5'!AK$6 -> 0 | M101: =+'42-F5'!AL$6 -> 0 | N101: =+'42-F5'!AM$6 -> 0 | O101: =+'42-F5'!AN$6 -> 0 | P101: =+'42-F5'!AO$6 -> 0 | Q101: =+'42-F5'!AP$6 -> 0 | R101: =+'42-F5'!AQ$6 -> 0 | S101: =+'42-F5'!AR$6 -> 0 | T101: =+'42-F5'!AS$6 -> 0 | U101: =+'42-F5'!AT$6 -> 0 | V101: =+'42-F5'!AU$6 -> 0 | W101: =+'42-F5'!AV$6 -> 0 | X101: =+'42-F5'!AW$6 -> 0 | Y101: =+'42-F5'!AX$6 -> 0 | Z101: =+'42-F5'!AY$6 -> 0 | AA101: =+'42-F5'!AZ$6 -> 0 | AB101: =+'42-F5'!BA$6 -> 0 | AC101: =+'42-F5'!BB$6 -> 0 | AD101: =+'42-F5'!BC$6 -> 0 | AE101: =+'42-F5'!BD$6 -> 0 | AF101: =+'42-F5'!BE$6 -> 0 | AG101: =+'42-F5'!BF$6 -> 0 | AH101: =+'42-F5'!BG$6 -> 0 | AI101: =+'42-F5'!BH$6 -> 0 | AJ101: =+'42-F5'!BI$6 -> 0 | AK101: =+'42-F5'!BJ$6 -> 0 | AL101: =+'42-F5'!BK$6 -> 0 | AM101: =+'42-F5'!BL$6 -> 0 | AN101: =+'42-F5'!BM$6 -> 0 | AO101: =+'42-F5'!BN$6 -> 0 | AP101: =+'42-F5'!BO$6 -> 0 | AQ101: =+'42-F5'!BP$6 -> 0 | AR101: =+'42-F5'!BQ$6 -> 0 | AS101: =+'42-F5'!BR$6 -> 0 | AT101: =+'42-F5'!BS$6 -> 0 | AU101: =+'42-F5'!BT$6 -> 0 | AV101: =+'42-F5'!BU$6 -> 0 | AW101: =+'42-F5'!BV$6 -> 0 | AX101: =+'42-F5'!BW$6 -> 0 | AZ101: =+'42-F5'!BY$6 -> 0 | BB101: =+'42-F5'!CA$6 -> 0 | BC101: =+'42-F5'!CB$6 -> 0 | BD101: =+'42-F5'!CC$6 -> 0 | BE101: =+'42-F5'!CD$6 -> 0 | BF101: =+'42-F5'!CE$6 -> 0 | BG101: =+'42-F5'!CF$6 -> 0 | BH101: =+'42-F5'!CG$6 -> 0 | BI101: =+'42-F5'!CH$6 -> 0
A102: =+'42-F7'!Z$6 -> 42-F7 | B102: =+'42-F7'!AA$6 -> Santa Maria Clerks, Bldg E | C102: =+'42-F7'!AB$6 -> 312 E. Cook St. | D102: =+'42-F7'!AC$6 -> Santa Maria | E102: =+'42-F7'!AD$6 -> 93454 | F102: =+'42-F7'!AE$6 -> Santa Barbara | G102: =+'42-F7'!AF$6 -> SRO | I102: =+'42-F7'!AH$6 -> 0 | J102: =+'42-F7'!AI$6 -> 0 | K102: =+'42-F7'!AJ$6 -> 0 | L102: =+'42-F7'!AK$6 -> 0 | M102: =+'42-F7'!AL$6 -> 0 | N102: =+'42-F7'!AM$6 -> 0 | O102: =+'42-F7'!AN$6 -> 0 | P102: =+'42-F7'!AO$6 -> 0 | Q102: =+'42-F7'!AP$6 -> 0 | R102: =+'42-F7'!AQ$6 -> 0 | S102: =+'42-F7'!AR$6 -> 0 | T102: =+'42-F7'!AS$6 -> 0 | U102: =+'42-F7'!AT$6 -> 0 | V102: =+'42-F7'!AU$6 -> 0 | W102: =+'42-F7'!AV$6 -> 0 | X102: =+'42-F7'!AW$6 -> 0 | Y102: =+'42-F7'!AX$6 -> 0 | Z102: =+'42-F7'!AY$6 -> 0 | AA102: =+'42-F7'!AZ$6 -> 0 | AB102: =+'42-F7'!BA$6 -> 0 | AC102: =+'42-F7'!BB$6 -> 0 | AD102: =+'42-F7'!BC$6 -> 0 | AE102: =+'42-F7'!BD$6 -> 0 | AF102: =+'42-F7'!BE$6 -> 0 | AG102: =+'42-F7'!BF$6 -> 0 | AH102: =+'42-F7'!BG$6 -> 0 | AI102: =+'42-F7'!BH$6 -> 0 | AJ102: =+'42-F7'!BI$6 -> 0 | AK102: =+'42-F7'!BJ$6 -> 0 | AL102: =+'42-F7'!BK$6 -> 0 | AM102: =+'42-F7'!BL$6 -> 0 | AN102: =+'42-F7'!BM$6 -> 0 | AO102: =+'42-F7'!BN$6 -> 0 | AP102: =+'42-F7'!BO$6 -> 0 | AQ102: =+'42-F7'!BP$6 -> 0 | AR102: =+'42-F7'!BQ$6 -> 0 | AS102: =+'42-F7'!BR$6 -> 0 | AT102: =+'42-F7'!BS$6 -> 0 | AU102: =+'42-F7'!BT$6 -> 0 | AV102: =+'42-F7'!BU$6 -> 0 | AW102: =+'42-F7'!BV$6 -> 0 | AX102: =+'42-F7'!BW$6 -> 0 | AZ102: =+'42-F7'!BY$6 -> 0 | BB102: =+'42-F7'!CA$6 -> 0 | BC102: =+'42-F7'!CB$6 -> 0 | BD102: =+'42-F7'!CC$6 -> 0 | BE102: =+'42-F7'!CD$6 -> 0 | BF102: =+'42-F7'!CE$6 -> 0 | BG102: =+'42-F7'!CF$6 -> 0 | BH102: =+'42-F7'!CG$6 -> 0 | BI102: =+'42-F7'!CH$6 -> 0
A103: =+'42-G1'!Z$6 -> 42-G1 | B103: =+'42-G1'!AA$6 -> Santa Barbara Jury Assembly Bldg. | C103: =+'42-G1'!AB$6 -> 1108 Santa Barbara | D103: =+'42-G1'!AC$6 -> Santa Barbara | E103: =+'42-G1'!AD$6 -> 93101 | F103: =+'42-G1'!AE$6 -> Santa Barbara | G103: =+'42-G1'!AF$6 -> SRO | I103: =+'42-G1'!AH$6 -> 0 | J103: =+'42-G1'!AI$6 -> 0 | K103: =+'42-G1'!AJ$6 -> 0 | L103: =+'42-G1'!AK$6 -> 0 | M103: =+'42-G1'!AL$6 -> 0 | N103: =+'42-G1'!AM$6 -> 0 | O103: =+'42-G1'!AN$6 -> 0 | P103: =+'42-G1'!AO$6 -> 0 | Q103: =+'42-G1'!AP$6 -> 0 | R103: =+'42-G1'!AQ$6 -> 0 | S103: =+'42-G1'!AR$6 -> 0 | T103: =+'42-G1'!AS$6 -> 0 | U103: =+'42-G1'!AT$6 -> 0 | V103: =+'42-G1'!AU$6 -> 0 | W103: =+'42-G1'!AV$6 -> 0 | X103: =+'42-G1'!AW$6 -> 0 | Y103: =+'42-G1'!AX$6 -> 0 | Z103: =+'42-G1'!AY$6 -> 0 | AA103: =+'42-G1'!AZ$6 -> 0 | AB103: =+'42-G1'!BA$6 -> 0 | AC103: =+'42-G1'!BB$6 -> 0 | AD103: =+'42-G1'!BC$6 -> 0 | AE103: =+'42-G1'!BD$6 -> 0 | AF103: =+'42-G1'!BE$6 -> 0 | AG103: =+'42-G1'!BF$6 -> 0 | AH103: =+'42-G1'!BG$6 -> 0 | AI103: =+'42-G1'!BH$6 -> 0 | AJ103: =+'42-G1'!BI$6 -> 0 | AK103: =+'42-G1'!BJ$6 -> 0 | AL103: =+'42-G1'!BK$6 -> 0 | AM103: =+'42-G1'!BL$6 -> 0 | AN103: =+'42-G1'!BM$6 -> 0 | AO103: =+'42-G1'!BN$6 -> 0 | AP103: =+'42-G1'!BO$6 -> 0 | AQ103: =+'42-G1'!BP$6 -> 0 | AR103: =+'42-G1'!BQ$6 -> 0 | AS103: =+'42-G1'!BR$6 -> 0 | AT103: =+'42-G1'!BS$6 -> 0 | AU103: =+'42-G1'!BT$6 -> 0 | AV103: =+'42-G1'!BU$6 -> 0 | AW103: =+'42-G1'!BV$6 -> 0 | AX103: =+'42-G1'!BW$6 -> 0 | AZ103: =+'42-G1'!BY$6 -> 0 | BB103: =+'42-G1'!CA$6 -> 0 | BC103: =+'42-G1'!CB$6 -> 0 | BD103: =+'42-G1'!CC$6 -> 0 | BE103: =+'42-G1'!CD$6 -> 0 | BF103: =+'42-G1'!CE$6 -> 0 | BG103: =+'42-G1'!CF$6 -> 0 | BH103: =+'42-G1'!CG$6 -> 0 | BI103: =+'42-G1'!CH$6 -> 0
A104: =+'42-H1'!Z$6 -> 42-H1 | B104: =+'42-H1'!AA$6 -> Santa Maria Juvenile Court (new) | C104: =+'42-H1'!AB$6 -> 4285 California Blvd. | D104: =+'42-H1'!AC$6 -> Santa Maria | E104: =+'42-H1'!AD$6 -> 93455 | F104: =+'42-H1'!AE$6 -> Santa Barbara | G104: =+'42-H1'!AF$6 -> SRO | I104: =+'42-H1'!AH$6 -> 0 | J104: =+'42-H1'!AI$6 -> 0 | K104: =+'42-H1'!AJ$6 -> 0 | L104: =+'42-H1'!AK$6 -> 0 | M104: =+'42-H1'!AL$6 -> 0 | N104: =+'42-H1'!AM$6 -> 0 | O104: =+'42-H1'!AN$6 -> 0 | P104: =+'42-H1'!AO$6 -> 0 | Q104: =+'42-H1'!AP$6 -> 0 | R104: =+'42-H1'!AQ$6 -> 0 | S104: =+'42-H1'!AR$6 -> 0 | T104: =+'42-H1'!AS$6 -> 0 | U104: =+'42-H1'!AT$6 -> 0 | V104: =+'42-H1'!AU$6 -> 0 | W104: =+'42-H1'!AV$6 -> 0 | X104: =+'42-H1'!AW$6 -> 0 | Y104: =+'42-H1'!AX$6 -> 0 | Z104: =+'42-H1'!AY$6 -> 0 | AA104: =+'42-H1'!AZ$6 -> 0 | AB104: =+'42-H1'!BA$6 -> 0 | AC104: =+'42-H1'!BB$6 -> 0 | AD104: =+'42-H1'!BC$6 -> 0 | AE104: =+'42-H1'!BD$6 -> 0 | AF104: =+'42-H1'!BE$6 -> 0 | AG104: =+'42-H1'!BF$6 -> 0 | AH104: =+'42-H1'!BG$6 -> 0 | AI104: =+'42-H1'!BH$6 -> 0 | AJ104: =+'42-H1'!BI$6 -> 0 | AK104: =+'42-H1'!BJ$6 -> 0 | AL104: =+'42-H1'!BK$6 -> 0 | AM104: =+'42-H1'!BL$6 -> 0 | AN104: =+'42-H1'!BM$6 -> 0 | AO104: =+'42-H1'!BN$6 -> 0 | AP104: =+'42-H1'!BO$6 -> 0 | AQ104: =+'42-H1'!BP$6 -> 0 | AR104: =+'42-H1'!BQ$6 -> 0 | AS104: =+'42-H1'!BR$6 -> 0 | AT104: =+'42-H1'!BS$6 -> 0 | AU104: =+'42-H1'!BT$6 -> 0 | AV104: =+'42-H1'!BU$6 -> 0 | AW104: =+'42-H1'!BV$6 -> 0 | AX104: =+'42-H1'!BW$6 -> 0 | AZ104: =+'42-H1'!BY$6 -> 0 | BB104: =+'42-H1'!CA$6 -> 0 | BC104: =+'42-H1'!CB$6 -> 0 | BD104: =+'42-H1'!CC$6 -> 0 | BE104: =+'42-H1'!CD$6 -> 0 | BF104: =+'42-H1'!CE$6 -> 0 | BG104: =+'42-H1'!CF$6 -> 0 | BH104: =+'42-H1'!CG$6 -> 0 | BI104: =+'42-H1'!CH$6 -> 0
A105: =+'56-B1'!Z$6 -> 56-B1 | B105: =+'56-B1'!AA$6 -> East County Courthouse | C105: =+'56-B1'!AB$6 -> 3855 Alamo Street | D105: =+'56-B1'!AC$6 -> Simi Valley | E105: =+'56-B1'!AD$6 -> 93063 | F105: =+'56-B1'!AE$6 -> Ventura | G105: =+'56-B1'!AF$6 -> SRO | I105: =+'56-B1'!AH$6 -> 0 | J105: =+'56-B1'!AI$6 -> 0 | K105: =+'56-B1'!AJ$6 -> 0 | L105: =+'56-B1'!AK$6 -> 0 | M105: =+'56-B1'!AL$6 -> 0 | N105: =+'56-B1'!AM$6 -> 0 | O105: =+'56-B1'!AN$6 -> 0 | P105: =+'56-B1'!AO$6 -> 0 | Q105: =+'56-B1'!AP$6 -> 0 | R105: =+'56-B1'!AQ$6 -> 0 | S105: =+'56-B1'!AR$6 -> 0 | T105: =+'56-B1'!AS$6 -> 0 | U105: =+'56-B1'!AT$6 -> 0 | V105: =+'56-B1'!AU$6 -> 0 | W105: =+'56-B1'!AV$6 -> 0 | X105: =+'56-B1'!AW$6 -> 0 | Y105: =+'56-B1'!AX$6 -> 0 | Z105: =+'56-B1'!AY$6 -> 0 | AA105: =+'56-B1'!AZ$6 -> 0 | AB105: =+'56-B1'!BA$6 -> 0 | AC105: =+'56-B1'!BB$6 -> 0 | AD105: =+'56-B1'!BC$6 -> 0 | AE105: =+'56-B1'!BD$6 -> 0 | AF105: =+'56-B1'!BE$6 -> 0 | AG105: =+'56-B1'!BF$6 -> 0 | AH105: =+'56-B1'!BG$6 -> 0 | AI105: =+'56-B1'!BH$6 -> 0 | AJ105: =+'56-B1'!BI$6 -> 0 | AK105: =+'56-B1'!BJ$6 -> 0 | AL105: =+'56-B1'!BK$6 -> 0 | AM105: =+'56-B1'!BL$6 -> 0 | AN105: =+'56-B1'!BM$6 -> 0 | AO105: =+'56-B1'!BN$6 -> 0 | AP105: =+'56-B1'!BO$6 -> 0 | AQ105: =+'56-B1'!BP$6 -> 0 | AR105: =+'56-B1'!BQ$6 -> 0 | AS105: =+'56-B1'!BR$6 -> 0 | AT105: =+'56-B1'!BS$6 -> 0 | AU105: =+'56-B1'!BT$6 -> 0 | AV105: =+'56-B1'!BU$6 -> 0 | AW105: =+'56-B1'!BV$6 -> 0 | AX105: =+'56-B1'!BW$6 -> 0 | AZ105: =+'56-B1'!BY$6 -> 0 | BB105: =+'56-B1'!CA$6 -> 0 | BC105: =+'56-B1'!CB$6 -> 0 | BD105: =+'56-B1'!CC$6 -> 0 | BE105: =+'56-B1'!CD$6 -> 0 | BF105: =+'56-B1'!CE$6 -> 0 | BG105: =+'56-B1'!CF$6 -> 0 | BH105: =+'56-B1'!CG$6 -> 0 | BI105: =+'56-B1'!CH$6 -> 0
A106: =+'56-F1'!Z$6 -> 56-F1 | B106: =+'56-F1'!AA$6 -> Juvenile Courthouse | C106: =+'56-F1'!AB$6 -> 4353 Vineyard Ave. | D106: =+'56-F1'!AC$6 -> Oxnard | E106: =+'56-F1'!AD$6 -> 93036 | F106: =+'56-F1'!AE$6 -> Ventura | G106: =+'56-F1'!AF$6 -> SRO | I106: =+'56-F1'!AH$6 -> 0 | J106: =+'56-F1'!AI$6 -> 0 | K106: =+'56-F1'!AJ$6 -> 0 | L106: =+'56-F1'!AK$6 -> 0 | M106: =+'56-F1'!AL$6 -> 0 | N106: =+'56-F1'!AM$6 -> 0 | O106: =+'56-F1'!AN$6 -> 0 | P106: =+'56-F1'!AO$6 -> 0 | Q106: =+'56-F1'!AP$6 -> 0 | R106: =+'56-F1'!AQ$6 -> 0 | S106: =+'56-F1'!AR$6 -> 0 | T106: =+'56-F1'!AS$6 -> 0 | U106: =+'56-F1'!AT$6 -> 0 | V106: =+'56-F1'!AU$6 -> 0 | W106: =+'56-F1'!AV$6 -> 0 | X106: =+'56-F1'!AW$6 -> 0 | Y106: =+'56-F1'!AX$6 -> 0 | Z106: =+'56-F1'!AY$6 -> 0 | AA106: =+'56-F1'!AZ$6 -> 0 | AB106: =+'56-F1'!BA$6 -> 0 | AC106: =+'56-F1'!BB$6 -> 0 | AD106: =+'56-F1'!BC$6 -> 0 | AE106: =+'56-F1'!BD$6 -> 0 | AF106: =+'56-F1'!BE$6 -> 0 | AG106: =+'56-F1'!BF$6 -> 0 | AH106: =+'56-F1'!BG$6 -> 0 | AI106: =+'56-F1'!BH$6 -> 0 | AJ106: =+'56-F1'!BI$6 -> 0 | AK106: =+'56-F1'!BJ$6 -> 0 | AL106: =+'56-F1'!BK$6 -> 0 | AM106: =+'56-F1'!BL$6 -> 0 | AN106: =+'56-F1'!BM$6 -> 0 | AO106: =+'56-F1'!BN$6 -> 0 | AP106: =+'56-F1'!BO$6 -> 0 | AQ106: =+'56-F1'!BP$6 -> 0 | AR106: =+'56-F1'!BQ$6 -> 0 | AS106: =+'56-F1'!BR$6 -> 0 | AT106: =+'56-F1'!BS$6 -> 0 | AU106: =+'56-F1'!BT$6 -> 0 | AV106: =+'56-F1'!BU$6 -> 0 | AW106: =+'56-F1'!BV$6 -> 0 | AX106: =+'56-F1'!BW$6 -> 0 | AZ106: =+'56-F1'!BY$6 -> 0 | BB106: =+'56-F1'!CA$6 -> 0 | BC106: =+'56-F1'!CB$6 -> 0 | BD106: =+'56-F1'!CC$6 -> 0 | BE106: =+'56-F1'!CD$6 -> 0 | BF106: =+'56-F1'!CE$6 -> 0 | BG106: =+'56-F1'!CF$6 -> 0 | BH106: =+'56-F1'!CG$6 -> 0 | BI106: =+'56-F1'!CH$6 -> 0
A107: =+'64-E1'!Z$6 -> 64-E1 | B107: =+'64-E1'!AA$6 -> 601 W. Santa Ana Blvd - 4 DCA 3 | C107: =+'64-E1'!AB$6 -> 601 W. Santa Ana Blvd | D107: =+'64-E1'!AC$6 -> Santa Ana | E107: =+'64-E1'!AD$6 -> 92701 | F107: =+'64-E1'!AE$6 -> Orange | G107: =+'64-E1'!AF$6 -> SRO | I107: =+'64-E1'!AH$6 -> 0 | J107: =+'64-E1'!AI$6 -> 0 | K107: =+'64-E1'!AJ$6 -> 0 | L107: =+'64-E1'!AK$6 -> 0 | M107: =+'64-E1'!AL$6 -> 0 | N107: =+'64-E1'!AM$6 -> 0 | O107: =+'64-E1'!AN$6 -> 0 | P107: =+'64-E1'!AO$6 -> 0 | Q107: =+'64-E1'!AP$6 -> 0 | R107: =+'64-E1'!AQ$6 -> 0 | S107: =+'64-E1'!AR$6 -> 0 | T107: =+'64-E1'!AS$6 -> 0 | U107: =+'64-E1'!AT$6 -> 0 | V107: =+'64-E1'!AU$6 -> 0 | W107: =+'64-E1'!AV$6 -> 0 | X107: =+'64-E1'!AW$6 -> 0 | Y107: =+'64-E1'!AX$6 -> 0 | Z107: =+'64-E1'!AY$6 -> 0 | AA107: =+'64-E1'!AZ$6 -> 0 | AB107: =+'64-E1'!BA$6 -> 0 | AC107: =+'64-E1'!BB$6 -> 0 | AD107: =+'64-E1'!BC$6 -> 0 | AE107: =+'64-E1'!BD$6 -> 0 | AF107: =+'64-E1'!BE$6 -> 0 | AG107: =+'64-E1'!BF$6 -> 0 | AH107: =+'64-E1'!BG$6 -> 0 | AI107: =+'64-E1'!BH$6 -> 0 | AJ107: =+'64-E1'!BI$6 -> 0 | AK107: =+'64-E1'!BJ$6 -> 0 | AL107: =+'64-E1'!BK$6 -> 0 | AM107: =+'64-E1'!BL$6 -> 0 | AN107: =+'64-E1'!BM$6 -> 0 | AO107: =+'64-E1'!BN$6 -> 0 | AP107: =+'64-E1'!BO$6 -> 0 | AQ107: =+'64-E1'!BP$6 -> 0 | AR107: =+'64-E1'!BQ$6 -> 0 | AS107: =+'64-E1'!BR$6 -> 0 | AT107: =+'64-E1'!BS$6 -> 0 | AU107: =+'64-E1'!BT$6 -> 0 | AV107: =+'64-E1'!BU$6 -> 0 | AW107: =+'64-E1'!BV$6 -> 0 | AX107: =+'64-E1'!BW$6 -> 0 | AZ107: =+'64-E1'!BY$6 -> 0 | BB107: =+'64-E1'!CA$6 -> 0 | BC107: =+'64-E1'!CB$6 -> 0 | BD107: =+'64-E1'!CC$6 -> 0 | BE107: =+'64-E1'!CD$6 -> 0 | BF107: =+'64-E1'!CE$6 -> 0 | BG107: =+'64-E1'!CF$6 -> 0 | BH107: =+'64-E1'!CG$6 -> 0 | BI107: =+'64-E1'!CH$6 -> 0
AZ108: =SUM(AZ7:AZ107) -> 0 | BB108: =SUM(BB7:BB107)/C109 -> 0 | BC108: =SUM(BC7:BC107)/C109 -> 0 | BD108: =SUM(BD7:BD107)/C109 -> 0 | BE108: =SUM(BE7:BE107)/C109 -> 0 | BF108: =SUM(BF7:BF107)/C109 -> 0 | BG108: =SUM(BG7:BG107)/C109 -> 0 | BH108: =SUM(BH7:BH107)/C109 -> 0 | BI108: =SUM(BI7:BI107)/C109 -> 0
B109: Number of Facilities in Region | C109: =COUNTIF(A7:A107,"*") -> 101
A110: 1 | B110: Year One Firm Fixed Price | C110: =+AZ108 -> 0 | D110: 1. Sum of Fixed Price - Facility Total Annual Cost Year 1 in Region = Year One Firm Fixed Price value
A111: 2 | B111: Evaluated Hourly Cost | C111: =+(BG108*C109)*1000 -> 0 | D111: 2. Average Hourly Rate for all facilities in region: Total of Hourly Rates proposed in cost proposal, divided by the Number of Facilities in Region (to establish Average Hourly Rate),multiplied by the Number of Facilities in Region, multiplied by 1,000 hours = Evaluated Hourly Cost evaluation value.
A112: 3 | B112: Mark-up On Materials Value | C112: =+C111*0.3*BH108 -> 0 | D112: 3. Markup on Materials: Evaluated Hourly Cost value for Region, multiplied by 0.3 (to establish the Materials value), multiplied by the average proposed Mark Up on Materials percentage = Markup on Materials evaluation value.
A113: 4 | B113: Mark-up On Subcontractor/Third-Parties Value | C113: =+C111*0.25*BI108 -> 0 | D113: 4. Markup on Subcontractor/Third-Parties: Evaluated Hourly Cost value, multiplied by 0.25 (to establish the Materials value), multiplied by the average proposed Mark Up on Subcontractor/Third-Parties percentage = Markup on Subcontractor/Third-Parties evaluation value.
A114: 5 | B114: Snow Removal | C114: =+BB108*4*C109 -> 0 | D114: 5. Snow Removal (crew hourly rate); Average Snow Removal (crew hourly rate) in Region, multiplied by the Number of Facilities in Region, multiplied by four (4) events per facility = Snow Removal evaluation value.
A115: 6 | B115: Unclogging Blocked Toilet – In-custody holding cell | C115: =+BC108*26*C109 -> 0 | D115: 6. Unclogging Blocked Toilet – In-custody holding cell (labor only); Average Unclogging Blocked Toilet – In-custody holding cell costs in Region, multiplied by the Number of Facilities in Region, multiplied by twenty-six (26) events per facility = Unclogging Blocked Toilet – In-custody holding cell evaluation value.
A116: 7 | B116: Unclogging Blocked Toilet – Public / Court Staff | C116: =+BD108*104*C109 -> 0 | D116: 7. Unclogging Blocked Toilet – Public / Court Staff (labor only); Average Unclogging Blocked Toilet – Public / Court Staff costs in Region, multiplied by the Number of Facilities in Region, multiplied by one hundred and four (104) events per facility = Unclogging Blocked Toilet – Public / Court Staff evaluation value.
A117: 8 | B117: Clean up & Disposal of Biological Waste Per Event | C117: =+BE108*C109*12 -> 0 | D117: 8. Cleanup and Disposal of Biological Waste; Average Cleanup and Disposal of Biological Waste cost in region, multiplied by the number of facilities in the region, multiplied by twelve (12) events per facility = Cleanup and Disposal of Biological Waste evaluation value.
A118: 9 | B118: Clean up & Disposal of Biological Waste Labor Rate | C118: =+BF108*C109*20 -> 0 | D118: 9. Clean-up & Disposal of Biological Waste Labor Rate (for hours over four (4) per Clean-up & Disposal of Biological Waste Event) Average costs throughout the Region, multiplied by the Number of Facilities per Region, multiplied by twenty (20) hours per facility = Clean-up & Disposal of Biological Waste Labor Rate evaluation value.
A119: 10 | B119: Phase-In Costs | C119: 0 | D119: 10. Phase-In Costs - Lump Sum Amount
A120: 11 | B120: Phase-Out Costs | C120: 0 | D120: 11. Phase-Out Costs - Lump Sum Amount at end of Contract Term
A121: 12 | B121: Total Evaluated Price | C121: =SUM(C110:C120) -> 0 | D121: 12. Each of the values for items 1 through 10 above will be calculated and added together to establish the Total Evaluated Price value.

Sheet Equipment List Template (hidden)
H1: =COUNTIF($A$3:$A$803,"*") -> 101 | I1: Subsystem | J1: Access Doors, Gates, Sally Port | K1: Air Cooled DX (Split System) | L1: Air Handling Unit (Air Cooled DX / Package) | M1: Air-Cooled Chiller | N1: Centrifugal Chiller | O1: Cooling Tower (Induced Draft) | P1: Ice Chiller Tank | Q1: Geothermal System | R1: Water Source Heat Pump | S1: Fan Coil System | T1: Supply / Return Fan and Exhaust | U1: Evaporative and Spot Coolers (swamp coolers; spot cooler) | V1: Unique HVAC System | W1: Electrical Panels | X1: Emergency Generator | Y1: Motor Control Center | Z1: Automatic Transfer Switch | AA1: Building Automated Systems (BAS) | AB1: Transformer (Dry-Type) | AC1: Uninterruptible Power Supply (UPS) | AD1: Lighting and Controls (Interior and Exterior) | AE1: Unique Electrical System | AF1: Life Safety Systems | AG1: Reduced Pressure Backflow Preventer(s) | AH1: Boiler (Condensing) | AI1: Domestic Water Heater (Gas-Fired, Condensing) | AJ1: Domestic Water Heater (Electric, Non- Condensing) | AK1: Boiler (Steam, low pressure) | AL1: Steam System | AM1: Pneumatic Compressor System | AN1: Unique Plumbing System | AO1: Rounds and Readings | AP1: Vertical Transportation | AQ1: Water Treatment | AR1: Building Exterior / Hardscape (Monthly) | AS1: Fountain Maintenance (Monthly) | AT1: Above-Ground/Underground Fuel Storage Tanks (Quarterly) If applicable | AU1: Landscape Maintenance * | AV1: Pest Control (Monthly) | AW1: Photovoltaic (PV) System | AX1: Account Management and Supervision (Monthly) | AY1: Fee (Monthly)
A2: JCC ID | B2: Facility Name | C2: Address | D2: City / Town | E2: Zip Code | F2: County | G2: Region | H2: Notes | I2: System ID | J2: A1 | K2: H1 | L2: H2 | M2: H3 | N2: H4 | O2: H5 | P2: H6 | Q2: H7 | R2: H8 | S2: H9 | T2: H10 | U2: H11 | V2: H12 | W2: E1 | X2: E2 | Y2: E3 | Z2: E4 | AA2: E5 | AB2: E6 | AC2: E7 | AD2: E8 | AE2: E9 | AF2: L1 | AG2: L2 | AH2: P1 | AI2: P2 | AJ2: P3 | AK2: P4 | AL2: P5 | AM2: P6 | AN2: P7 | AO2: R1 | AP2: V1 | AQ2: W1 | AR2: B1 | AS2: F1 | AT2: F2 | AU2: G1 | AV2: PC1 | AW2: PV1 | AX2: C1 | AY2: C2
A3: 13-A1 | B3: 13-A1 Imperial County Courthouse | C3: 939 W. Main St. | D3: El Centro | E3: 92243 | F3: Imperial | G3: SRO | H3: Not in RFP, No Costing Sheet | J3: 4 | K3: 10 | L3: 9 | M3: 0 | N3: 2 | O3: 2 | P3: 0 | Q3: 0 | R3: 0 | S3: 47 | T3: 0 | U3: 1 | V3: 0 | W3: 1 | X3: 0 | Y3: 0 | Z3: 0 | AA3: 0 | AB3: 0 | AC3: 0 | AD3: 0 | AE3: 0 | AF3: 2 | AG3: 2 | AH3: 1 | AI3: 0 | AJ3: 1 | AK3: 0 | AL3: 0 | AM3: 0 | AN3: 0 | AO3: 248 | AP3: 1 | AQ3: 248 | AR3: 0 | AS3: 0 | AT3: 0 | AU3: 1
A4: 13-D1 | B4: 13-D1 Winterhaven Court | C4: 2124 Winterhaven Dr. | D4: Winterhaven | E4: 92283 | F4: Imperial | G4: SRO | H4: Not in RFP, No Costing Sheet | J4: 0 | K4: 2 | L4: 0 | M4: 0 | N4: 0 | O4: 0 | P4: 0 | Q4: 0 | R4: 0 | S4: 0 | T4: 0 | U4: 0 | V4: 0 | W4: 1 | X4: 0 | Y4: 0 | Z4: 0 | AA4: 0 | AB4: 0 | AC4: 0 | AD4: 0 | AE4: 0 | AF4: 2 | AG4: 0 | AH4: 0 | AI4: 0 | AJ4: 0 | AK4: 0 | AL4: 0 | AM4: 0 | AN4: 0 | AO4: 40 | AP4: 0 | AQ4: 40 | AR4: 0 | AS4: 0 | AT4: 0 | AU4: 1
A5: 15-A1 | B5: Bakersfield Superior Court | C5: 1315 Truxtun Ave, 1661 L Street | D5: Bakersfield | E5: 93301 | F5: Kern | G5: SRO | H5: SF & RF LISTED SEPERATLY | J5: 5 | K5: 4 | L5: 10 | M5: 0 | N5: 1 | O5: 0 | P5: 0 | Q5: 0 | R5: 0 | S5: 0 | T5: 9 | U5: 0 | V5: 0 | W5: 1 | X5: 1 | Y5: 3 | Z5: 1 | AA5: 0 | AB5: 0 | AC5: 0 | AD5: 0 | AE5: 0 | AF5: 9 | AG5: 2 | AH5: 0 | AI5: 0 | AJ5: 0 | AK5: 0 | AL5: 0 | AM5: 0 | AN5: 0 | AO5: 248 | AP5: 9 | AQ5: 248 | AR5: 1 | AS5: 0 | AT5: 0 | AU5: 1
A6: 15-A2 | B6: Bakersfield Superior Court Modular | C6: 1415 Truxtun Avenue | D6: Bakersfield | E6: 93301 | F6: Kern | G6: SRO | J6: 0 | K6: 6 | L6: 0 | M6: 0 | N6: 0 | O6: 0 | P6: 0 | Q6: 0 | R6: 0 | S6: 0 | T6: 0 | U6: 0 | V6: 0 | W6: 0 | X6: 0 | Y6: 0 | Z6: 0 | AA6: 0 | AB6: 0 | AC6: 0 | AD6: 1 | AE6: 0 | AF6: 1 | AG6: 0 | AH6: 0 | AI6: 0 | AJ6: 0 | AK6: 0 | AL6: 0 | AM6: 0 | AN6: 0 | AO6: 248 | AP6: 0 | AQ6: 40 | AR6: 1 | AS6: 0 | AT6: 0 | AU6: 1
A7: 15-C1 | B7: Bakersfield Juvenile Center | C7: 2100 College Ave. | D7: Bakersfield | E7: 93305 | F7: Kern | G7: SRO | J7: 4 | K7: 7 | L7: 5 | M7: 0 | N7: 2 | O7: 1 | P7: 0 | Q7: 0 | R7: 0 | S7: 0 | T7: 6 | U7: 0 | V7: 0 | W7: 0 | X7: 1 | Y7: 3 | Z7: 2 | AA7: 1 | AB7: 0 | AC7: 0 | AD7: 1 | AE7: 0 | AF7: 6 | AG7: 5 | AH7: 2 | AI7: 1 | AJ7: 0 | AK7: 0 | AL7: 0 | AM7: 0 | AN7: 0 | AO7: 248 | AP7: 4 | AQ7: 248 | AR7: 1 | AS7: 0 | AT7: 0 | AU7: 1
A8: 15-D1 | B8: Delano/North Kern Court | C8: 1122 Jefferson St. | D8: Delano | E8: 93215 | F8: Kern | G8: SRO | J8: 1 | K8: 10 | L8: 0 | M8: 0 | N8: 0 | O8: 0 | P8: 0 | Q8: 0 | R8: 0 | S8: 0 | T8: 2 | U8: 0 | V8: 0 | W8: 1 | X8: 0 | Y8: 0 | Z8: 0 | AA8: 0 | AB8: 0 | AC8: 0 | AD8: 1 | AE8: 0 | AF8: 3 | AG8: 0 | AH8: 0 | AI8: 1 | AJ8: 0 | AK8: 0 | AL8: 0 | AM8: 0 | AN8: 0 | AO8: 40 | AP8: 0 | AQ8: 40 | AR8: 1 | AS8: 0 | AT8: 0 | AU8: 1
A9: 15-E1 | B9: Shafter/Wasco Courts Bldg. | C9: 325 Central Valley Hwy | D9: Shafter | E9: 93263 | F9: Kern | G9: SRO | J9: 2 | K9: 15 | L9: 0 | M9: 0 | N9: 0 | O9: 0 | P9: 0 | Q9: 0 | R9: 0 | S9: 0 | T9: 3 | U9: 0 | V9: 0 | W9: 1 | X9: 0 | Y9: 0 | Z9: 0 | AA9: 0 | AB9: 0 | AC9: 0 | AD9: 2 | AE9: 0 | AF9: 3 | AG9: 2 | AH9: 0 | AI9: 0 | AJ9: 1 | AK9: 0 | AL9: 0 | AM9: 0 | AN9: 0 | AO9: 40 | AP9: 0 | AQ9: 40 | AR9: 1 | AS9: 0 | AT9: 0 | AU9: 1
A10: 15-F1 | B10: Taft Courts Bldg. | C10: 311 N Lincoln St. | D10: Taft | E10: 93268 | F10: Kern | G10: SRO | J10: 4 | K10: 7 | L10: 0 | M10: 0 | N10: 0 | O10: 0 | P10: 0 | Q10: 0 | R10: 0 | S10: 0 | T10: 3 | U10: 0 | V10: 0 | W10: 1 | X10: 0 | Y10: 0 | Z10: 0 | AA10: 0 | AB10: 0 | AC10: 0 | AD10: 1 | AE10: 0 | AF10: 2 | AG10: 0 | AH10: 0 | AI10: 0 | AJ10: 1 | AK10: 0 | AL10: 0 | AM10: 0 | AN10: 0 | AO10: 40 | AP10: 0 | AQ10: 40 | AR10: 1 | AS10: 0 | AT10: 0 | AU10: 1
A11: 15-H1 | B11: Arvin/ Lamont Branch | C11: 12022 Main St. | D11: Lamont | E11: 93241 | F11: Kern | G11: SRO | J11: 0 | K11: 18 | L11: 0 | M11: 0 | N11: 0 | O11: 0 | P11: 0 | Q11: 0 | R11: 0 | S11: 0 | T11: 4 | U11: 0 | V11: 0 | W11: 1 | X11: 1 | Y11: 0 | Z11: 1 | AA11: 0 | AB11: 0 | AC11: 0 | AD11: 1 | AE11: 0 | AF11: 3 | AG11: 0 | AH11: 0 | AI11: 1 | AJ11: 0 | AK11: 0 | AL11: 0 | AM11: 0 | AN11: 0 | AO11: 40 | AP11: 0 | AQ11: 40 | AR11: 1 | AS11: 0 | AT11: 0 | AU11: 1
A12: 15-J2 | B12: Ridgecrest - Division B Courtroom | C12: 420 N China Lake Blvd. | D12: Ridgecrest | E12: 93555 | F12: Kern | G12: SRO | J12: 1 | K12: 3 | L12: 0 | M12: 0 | N12: 0 | O12: 0 | P12: 0 | Q12: 0 | R12: 0 | S12: 0 | T12: 0 | U12: 0 | V12: 0 | W12: 0 | X12: 0 | Y12: 0 | Z12: 0 | AA12: 0 | AB12: 0 | AC12: 0 | AD12: 1 | AE12: 0 | AF12: 1 | AG12: 0 | AH12: 0 | AI12: 1 | AJ12: 3 | AK12: 0 | AL12: 0 | AM12: 0 | AN12: 0 | AO12: 40 | AP12: 0 | AQ12: 40 | AR12: 1 | AS12: 0 | AT12: 0 | AU12: 1
A13: 19-AC1 | B13: San Fernando Courthouse | C13: 900 Third Street | D13: San Fernando | E13: 91340 | F13: Los Angeles | G13: SRO | H13: SF & RF LISTED SEPERATLY | J13: 3 | K13: 4 | L13: 18 | M13: 0 | N13: 2 | O13: 2 | P13: 0 | Q13: 0 | R13: 0 | S13: 0 | T13: 12 | U13: 2 | V13: 0 | W13: 5 | X13: 1 | Y13: 0 | Z13: 2 | AA13: 0 | AB13: 3 | AC13: 0 | AD13: 2 | AE13: 0 | AF13: 7 | AG13: 6 | AH13: 2 | AI13: 4 | AJ13: 0 | AK13: 0 | AL13: 0 | AM13: 0 | AN13: 0 | AO13: 248 | AP13: 9 | AQ13: 248 | AR13: 1 | AS13: 0 | AT13: 2 | AU13: 1
A14: 19-AG1 | B14: Compton Courthouse | C14: 200 West Compton Boulevard | D14: Compton | E14: 90220 | F14: Los Angeles | G14: SRO | H14: SF & RF LISTED SEPERATLY | J14: 8 | K14: 0 | L14: 15 | M14: 0 | N14: 2 | O14: 2 | P14: 0 | Q14: 0 | R14: 0 | S14: 0 | T14: 16 | U14: 0 | V14: 0 | W14: 13 | X14: 2 | Y14: 16 | Z14: 3 | AA14: 1 | AB14: 5 | AC14: 0 | AD14: 0 | AE14: 0 | AF14: 13 | AG14: 13 | AH14: 10 | AI14: 0 | AJ14: 1 | AK14: 0 | AL14: 7 | AM14: 0 | AN14: 0 | AO14: 248 | AP14: 13 | AQ14: 248 | AR14: 1 | AS14: 0 | AT14: 5 | AU14: 1
A15: 19-AK1 | B15: Norwalk Courthouse | C15: 12720 Norwalk Boulevard | D15: Norwalk | E15: 90650 | F15: Los Angeles | G15: SRO | H15: RF LISTED SEPERATLY | J15: 3 | K15: 3 | L15: 7 | M15: 0 | N15: 2 | O15: 2 | P15: 0 | Q15: 0 | R15: 0 | S15: 0 | T15: 4 | U15: 0 | V15: 0 | W15: 3 | X15: 1 | Y15: 2 | Z15: 2 | AA15: 0 | AB15: 1 | AC15: 0 | AD15: 1 | AE15: 0 | AF15: 3 | AG15: 12 | AH15: 4 | AI15: 0 | AJ15: 1 | AK15: 0 | AL15: 0 | AM15: 0 | AN15: 0 | AO15: 248 | AP15: 7 | AQ15: 248 | AR15: 1 | AS15: 0 | AT15: 2 | AU15: 1
A16: 19-AL1 | B16: Bellflower Courthouse | C16: 10025 East Flower Street | D16: Bellflower | E16: 90706 | F16: Los Angeles | G16: SRO | J16: 6 | K16: 6 | L16: 9 | M16: 0 | N16: 2 | O16: 2 | P16: 0 | Q16: 0 | R16: 0 | S16: 0 | T16: 12 | U16: 0 | V16: 0 | W16: 5 | X16: 1 | Y16: 3 | Z16: 1 | AA16: 0 | AB16: 2 | AC16: 0 | AD16: 1 | AE16: 0 | AF16: 5 | AG16: 8 | AH16: 2 | AI16: 2 | AJ16: 0 | AK16: 0 | AL16: 0 | AM16: 0 | AN16: 0 | AO16: 248 | AP16: 11 | AQ16: 248 | AR16: 1 | AS16: 0 | AT16: 2 | AU16: 1
A17: 19-AM1 | B17: Downey Courthouse | C17: 7500 East Imperial Highway | D17: Downey | E17: 90242 | F17: Los Angeles | G17: SRO | J17: 7 | K17: 7 | L17: 3 | M17: 0 | N17: 2 | O17: 2 | P17: 0 | Q17: 0 | R17: 0 | S17: 0 | T17: 13 | U17: 0 | V17: 0 | W17: 11 | X17: 1 | Y17: 4 | Z17: 2 | AA17: 0 | AB17: 1 | AC17: 0 | AD17: 0 | AE17: 0 | AF17: 7 | AG17: 6 | AH17: 2 | AI17: 2 | AJ17: 0 | AK17: 0 | AL17: 0 | AM17: 0 | AN17: 0 | AO17: 248 | AP17: 12 | AQ17: 248 | AR17: 1 | AS17: 0 | AT17: 2 | AU17: 1
A18: 19-AO1 | B18: Whittier Courthouse | C18: 7339 Painter Avenue | D18: Whittier | E18: 90602 | F18: Los Angeles | G18: SRO | J18: 3 | K18: 0 | L18: 4 | M18: 0 | N18: 2 | O18: 2 | P18: 0 | Q18: 0 | R18: 0 | S18: 1 | T18: 8 | U18: 0 | V18: 0 | W18: 7 | X18: 1 | Y18: 1 | Z18: 2 | AA18: 0 | AB18: 2 | AC18: 0 | AD18: 1 | AE18: 0 | AF18: 3 | AG18: 5 | AH18: 2 | AI18: 2 | AJ18: 1 | AK18: 0 | AL18: 0 | AM18: 0 | AN18: 0 | AO18: 248 | AP18: 5 | AQ18: 248 | AR18: 1 | AS18: 0 | AT18: 2 | AU18: 1
A19: 19-AP1 | B19: Santa Monica Courthouse | C19: 1725 Main Street | D19: Santa Monica | E19: 90401 | F19: Los Angeles | G19: SRO | J19: 5 | K19: 3 | L19: 4 | M19: 0 | N19: 2 | O19: 2 | P19: 0 | Q19: 0 | R19: 0 | S19: 0 | T19: 9 | U19: 0 | V19: 0 | W19: 5 | X19: 0 | Y19: 2 | Z19: 0 | AA19: 0 | AB19: 5 | AC19: 0 | AD19: 2 | AE19: 0 | AF19: 2 | AG19: 8 | AH19: 2 | AI19: 0 | AJ19: 0 | AK19: 0 | AL19: 0 | AM19: 0 | AN19: 0 | AO19: 248 | AP19: 3 | AQ19: 248 | AR19: 1 | AS19: 0 | AT19: 0 | AU19: 1
A20: 19-AP3 | B20: Santa Monica Court Annex | C20: 1725 Main St. | D20: Santa Monica | E20: 90401 | F20: Los Angeles | G20: SRO | J20: 0 | K20: 5 | L20: 0 | M20: 0 | N20: 0 | O20: 0 | P20: 0 | Q20: 0 | R20: 0 | S20: 0 | T20: 8 | U20: 0 | V20: 0 | W20: 1 | X20: 0 | Y20: 0 | Z20: 0 | AA20: 1 | AB20: 1 | AC20: 1 | AD20: 2 | AE20: 0 | AF20: 2 | AG20: 1 | AH20: 0 | AI20: 0 | AJ20: 1 | AK20: 0 | AL20: 0 | AM20: 0 | AN20: 0 | AO20: 248 | AP20: 2 | AQ20: 40 | AR20: 1 | AS20: 0 | AT20: 0 | AU20: 1
A21: 19-AQ1 | B21: Beverly Hills Courthouse | C21: 9355 Burton Way | D21: Beverly Hills | E21: 90210 | F21: Los Angeles | G21: SRO | J21: 6 | K21: 0 | L21: 3 | M21: 0 | N21: 2 | O21: 2 | P21: 0 | Q21: 0 | R21: 1 | S21: 1 | T21: 7 | U21: 0 | V21: 0 | W21: 1 | X21: 1 | Y21: 0 | Z21: 2 | AA21: 0 | AB21: 2 | AC21: 0 | AD21: 2 | AE21: 0 | AF21: 3 | AG21: 4 | AH21: 2 | AI21: 1 | AJ21: 0 | AK21: 0 | AL21: 0 | AM21: 0 | AN21: 0 | AO21: 248 | AP21: 5 | AQ21: 248 | AR21: 1 | AS21: 0 | AT21: 2 | AU21: 1
A22: 19-AU1 | B22: Airport Courthouse | C22: 11701 South La Cienega Boulevard | D22: Los Angeles | E22: 90045 | F22: Los Angeles | G22: SRO | J22: 7 | K22: 6 | L22: 4 | M22: 0 | N22: 2 | O22: 2 | P22: 0 | Q22: 0 | R22: 4 | S22: 1 | T22: 10 | U22: 4 | V22: 0 | W22: 6 | X22: 1 | Y22: 0 | Z22: 3 | AA22: 1 | AB22: 27 | AC22: 0 | AD22: 0 | AE22: 0 | AF22: 10 | AG22: 4 | AH22: 2 | AI22: 4 | AJ22: 0 | AK22: 0 | AL22: 0 | AM22: 0 | AN22: 0 | AO22: 248 | AP22: 26 | AQ22: 248 | AR22: 1 | AS22: 0 | AT22: 3 | AU22: 1
A23: 19-AU2 | B23: Parking Structure Lot 94 Airport Courthouse | C23: 11701 So. La Cienega Blvd | D23: Los Angeles | E23: 90045 | F23: Los Angeles | G23: SRO | H23: Landscaping and lighting only | J23: 3 | K23: 0 | L23: 0 | M23: 0 | N23: 0 | O23: 0 | P23: 0 | Q23: 0 | R23: 0 | S23: 0 | T23: 1 | U23: 0 | V23: 0 | W23: 1 | X23: 0 | Y23: 0 | Z23: 0 | AA23: 0 | AB23: 1 | AC23: 1 | AD23: 0 | AE23: 0 | AF23: 3 | AG23: 4 | AH23: 0 | AI23: 0 | AJ23: 0 | AK23: 0 | AL23: 0 | AM23: 0 | AN23: 0 | AO23: 40 | AP23: 2 | AQ23: 40 | AR23: 1 | AS23: 0 | AT23: 0 | AU23: 1
A24: 19-AX1 | B24: Van Nuys Courthouse East | C24: 6230 Sylmar Avenue | D24: Van Nuys | E24: 91401 | F24: Los Angeles | G24: SRO | J24: 0 | K24: 0 | L24: 10 | M24: 0 | N24: 0 | O24: 0 | P24: 0 | Q24: 0 | R24: 0 | S24: 0 | T24: 3 | U24: 0 | V24: 0 | W24: 1 | X24: 1 | Y24: 5 | Z24: 2 | AA24: 0 | AB24: 7 | AC24: 0 | AD24: 1 | AE24: 0 | AF24: 7 | AG24: 5 | AH24: 4 | AI24: 0 | AJ24: 0 | AK24: 0 | AL24: 0 | AM24: 0 | AN24: 0 | AO24: 248 | AP24: 8 | AQ24: 40 | AR24: 1 | AS24: 0 | AT24: 2 | AU24: 1
A25: 19-AX2 | B25: Van Nuys Courthouse West | C25: 14400 Erwin Street Mall | D25: Van Nuys | E25: 91401 | F25: Los Angeles | G25: SRO | H25: supply & return fans listed separate | J25: 5 | K25: 3 | L25: 29 | M25: 0 | N25: 2 | O25: 4 | P25: 0 | Q25: 0 | R25: 0 | S25: 7 | T25: 17 | U25: 0 | V25: 0 | W25: 7 | X25: 1 | Y25: 14 | Z25: 3 | AA25: 0 | AB25: 6 | AC25: 0 | AD25: 2 | AE25: 0 | AF25: 9 | AG25: 11 | AH25: 4 | AI25: 0 | AJ25: 0 | AK25: 0 | AL25: 0 | AM25: 0 | AN25: 0 | AO25: 248 | AP25: 36 | AQ25: 248 | AR25: 1 | AS25: 0 | AT25: 5 | AU25: 1
A26: 19-AX6 | B26: Parking Structure Lot 48 Van Nuys Court Complex | C26: 6170 Sylmar Ave / 14340 Delano St | D26: Van Nuys | E26: 91401 | F26: Los Angeles | G26: SRO | J26: 11 | K26: 0 | L26: 0 | M26: 0 | N26: 0 | O26: 0 | P26: 0 | Q26: 0 | R26: 0 | S26: 0 | T26: 0 | U26: 0 | V26: 0 | W26: 1 | X26: 0 | Y26: 0 | Z26: 0 | AA26: 0 | AB26: 2 | AC26: 1 | AD26: 2 | AE26: 0 | AF26: 2 | AG26: 3 | AH26: 0 | AI26: 0 | AJ26: 0 | AK26: 0 | AL26: 0 | AM26: 0 | AN26: 0 | AO26: 40 | AP26: 0 | AQ26: 40 | AR26: 1 | AS26: 0 | AT26: 0 | AU26: 1
A27: 19-AY1 | B27: Chatsworth Courthouse | C27: 9425 Penfield Avenue | D27: Chatsworth | E27: 91311 | F27: Los Angeles | G27: SRO | H27: supply & return fans listed separate | J27: 13 | K27: 7 | L27: 5 | M27: 0 | N27: 2 | O27: 2 | P27: 0 | Q27: 0 | R27: 4 | S27: 1 | T27: 37 | U27: 0 | V27: 0 | W27: 6 | X27: 1 | Y27: 20 | Z27: 2 | AA27: 1 | AB27: 1 | AC27: 2 | AD27: 2 | AE27: 0 | AF27: 3 | AG27: 5 | AH27: 2 | AI27: 2 | AJ27: 1 | AK27: 0 | AL27: 0 | AM27: 0 | AN27: 0 | AO27: 248 | AP27: 13 | AQ27: 248 | AR27: 1 | AS27: 0 | AT27: 3 | AU27: 1
A28: 19-AZ1 | B28: Michael D. Antonovich Antelope Valley Courthouse | C28: 42011 4th Street West | D28: Lancaster | E28: 93534 | F28: Los Angeles | G28: SRO | J28: 14 | K28: 4 | L28: 6 | M28: 0 | N28: 2 | O28: 2 | P28: 0 | Q28: 0 | R28: 5 | S28: 5 | T28: 19 | U28: 0 | V28: 0 | W28: 4 | X28: 1 | Y28: 5 | Z28: 1 | AA28: 1 | AB28: 4 | AC28: 0 | AD28: 2 | AE28: 0 | AF28: 13 | AG28: 7 | AH28: 5 | AI28: 0 | AJ28: 1 | AK28: 0 | AL28: 0 | AM28: 0 | AN28: 0 | AO28: 248 | AP28: 12 | AQ28: 248 | AR28: 1 | AS28: 0 | AT28: 2 | AU28: 1
A29: 19-C1 | B29: Torrance Courthouse | C29: 825 Maple Avenue | D29: Torrance | E29: 90503 | F29: Los Angeles | G29: SRO | J29: 3 | K29: 3 | L29: 12 | M29: 0 | N29: 2 | O29: 2 | P29: 0 | Q29: 0 | R29: 0 | S29: 0 | T29: 9 | U29: 0 | V29: 0 | W29: 2 | X29: 1 | Y29: 2 | Z29: 1 | AA29: 0 | AB29: 7 | AC29: 0 | AD29: 2 | AE29: 0 | AF29: 5 | AG29: 4 | AH29: 2 | AI29: 0 | AJ29: 2 | AK29: 0 | AL29: 0 | AM29: 0 | AN29: 0 | AO29: 248 | AP29: 5 | AQ29: 248 | AR29: 1 | AS29: 0 | AT29: 2 | AU29: 1
A30: 19-C2 | B30: Torrance Annex | C30: 3221 Torrance Boulevard | D30: Torrance | E30: 90503 | F30: Los Angeles | G30: SRO | J30: 1 | K30: 0 | L30: 1 | M30: 0 | N30: 0 | O30: 0 | P30: 0 | Q30: 0 | R30: 0 | S30: 0 | T30: 1 | U30: 0 | V30: 0 | W30: 2 | X30: 0 | Y30: 0 | Z30: 0 | AA30: 0 | AB30: 1 | AC30: 0 | AD30: 1 | AE30: 0 | AF30: 1 | AG30: 0 | AH30: 0 | AI30: 0 | AJ30: 0 | AK30: 0 | AL30: 0 | AM30: 0 | AN30: 0 | AO30: 248 | AP30: 0 | AQ30: 40 | AR30: 1 | AS30: 0 | AT30: 0 | AU30: 1
A31: 19-C3 | B31: S. Bay Muni Court Jury Assembly Trailer | C31: 825 Maple Dr. | D31: Torrance | E31: 90503 | F31: Los Angeles | G31: SRO | J31: 0 | K31: 4 | L31: 0 | M31: 0 | N31: 0 | O31: 0 | P31: 0 | Q31: 0 | R31: 0 | S31: 0 | T31: 0 | U31: 0 | V31: 0 | W31: 0 | X31: 0 | Y31: 0 | Z31: 0 | AA31: 0 | AB31: 0 | AC31: 0 | AD31: 1 | AE31: 0 | AF31: 2 | AG31: 0 | AH31: 0 | AI31: 0 | AJ31: 0 | AK31: 0 | AL31: 0 | AM31: 0 | AN31: 0 | AO31: 248 | AP31: 0 | AQ31: 40 | AR31: 1 | AS31: 0 | AT31: 0 | AU31: 1
A32: 19-C4 | B32: S. Bay Municipal Traffic Court Trailer | C32: 825 Maple Dr. | D32: Torrance | E32: 90503 | F32: Los Angeles | G32: SRO | J32: 0 | K32: 4 | L32: 0 | M32: 0 | N32: 0 | O32: 0 | P32: 0 | Q32: 0 | R32: 0 | S32: 0 | T32: 0 | U32: 0 | V32: 0 | W32: 0 | X32: 0 | Y32: 0 | Z32: 0 | AA32: 0 | AB32: 0 | AC32: 0 | AD32: 1 | AE32: 0 | AF32: 1 | AG32: 0 | AH32: 0 | AI32: 0 | AJ32: 0 | AK32: 0 | AL32: 0 | AM32: 0 | AN32: 0 | AO32: 248 | AP32: 0 | AQ32: 40 | AR32: 1 | AS32: 0 | AT32: 0 | AU32: 1
A33: 19-E1 | B33: Inglewood Juvenile Court | C33: 110 Regent Street | D33: Inglewood | E33: 90301 | F33: Los Angeles | G33: SRO | J33: 1 | K33: 0 | L33: 0 | M33: 0 | N33: 1 | O33: 0 | P33: 0 | Q33: 0 | R33: 0 | S33: 0 | T33: 1 | U33: 0 | V33: 0 | W33: 3 | X33: 0 | Y33: 0 | Z33: 0 | AA33: 0 | AB33: 0 | AC33: 0 | AD33: 0 | AE33: 0 | AF33: 1 | AG33: 2 | AH33: 2 | AI33: 1 | AJ33: 0 | AK33: 0 | AL33: 0 | AM33: 0 | AN33: 0 | AO33: 248 | AP33: 1 | AQ33: 248 | AR33: 1 | AS33: 0 | AT33: 0 | AU33: 1
A34: 19-F1 | B34: Inglewood Courthouse | C34: One Regent Street | D34: Inglewood | E34: 90301 | F34: Los Angeles | G34: SRO | H34: supply & return fans listed separate | J34: 10 | K34: 1 | L34: 4 | M34: 0 | N34: 2 | O34: 2 | P34: 0 | Q34: 0 | R34: 0 | S34: 0 | T34: 5 | U34: 0 | V34: 0 | W34: 12 | X34: 1 | Y34: 1 | Z34: 4 | AA34: 1 | AB34: 0 | AC34: 0 | AD34: 1 | AE34: 0 | AF34: 8 | AG34: 9 | AH34: 4 | AI34: 1 | AJ34: 0 | AK34: 0 | AL34: 0 | AM34: 0 | AN34: 0 | AO34: 248 | AP34: 7 | AQ34: 248 | AR34: 1 | AS34: 0 | AT34: 2 | AU34: 1
A35: 19-F2 | B35: East Parking Structure | C35: One E. Regent Street | D35: Inglewood | E35: 90301 | F35: Los Angeles | G35: SRO | H35: Landscaping and lighting only | J35: 0 | K35: 0 | L35: 0 | M35: 0 | N35: 0 | O35: 0 | P35: 0 | Q35: 0 | R35: 0 | S35: 0 | T35: 0 | U35: 0 | V35: 0 | W35: 0 | X35: 0 | Y35: 0 | Z35: 0 | AA35: 0 | AB35: 0 | AC35: 0 | AD35: 0 | AE35: 0 | AF35: 0 | AG35: 0 | AH35: 0 | AI35: 0 | AJ35: 0 | AK35: 0 | AL35: 0 | AM35: 0 | AN35: 0 | AO35: 40 | AP35: 1 | AQ35: 40 | AR35: 1 | AS35: 0 | AT35: 0 | AU35: 1
A36: 19-F3 | B36: West Parking Structure | C36: One W. Regent Street | D36: Inglewood | E36: 90301 | F36: Los Angeles | G36: SRO | H36: Landscaping and lighting only | J36: 0 | K36: 0 | L36: 0 | M36: 0 | N36: 0 | O36: 0 | P36: 0 | Q36: 0 | R36: 0 | S36: 0 | T36: 0 | U36: 0 | V36: 0 | W36: 0 | X36: 0 | Y36: 0 | Z36: 0 | AA36: 0 | AB36: 0 | AC36: 0 | AD36: 0 | AE36: 0 | AF36: 0 | AG36: 0 | AH36: 0 | AI36: 0 | AJ36: 0 | AK36: 0 | AL36: 0 | AM36: 0 | AN36: 0 | AO36: 40 | AP36: 0 | AQ36: 40 | AR36: 0 | AS36: 0 | AT36: 0 | AU36: 0
A37: 19-G1 | B37: Burbank Courthouse | C37: 300 East Olive | D37: Burbank | E37: 91502 | F37: Los Angeles | G37: SRO | J37: 2 | K37: 2 | L37: 7 | M37: 0 | N37: 2 | O37: 1 | P37: 0 | Q37: 0 | R37: 0 | S37: 0 | T37: 3 | U37: 0 | V37: 0 | W37: 2 | X37: 1 | Y37: 1 | Z37: 1 | AA37: 1 | AB37: 4 | AC37: 0 | AD37: 1 | AE37: 0 | AF37: 4 | AG37: 8 | AH37: 2 | AI37: 2 | AJ37: 0 | AK37: 0 | AL37: 0 | AM37: 0 | AN37: 0 | AO37: 248 | AP37: 5 | AQ37: 248 | AR37: 1 | AS37: 0 | AT37: 0 | AU37: 1
A38: 19-H1 | B38: Glendale Courthouse | C38: 600 East Broadway | D38: Glendale | E38: 91206 | F38: Los Angeles | G38: SRO | J38: 0 | K38: 6 | L38: 3 | M38: 0 | N38: 0 | O38: 0 | P38: 0 | Q38: 0 | R38: 0 | S38: 0 | T38: 4 | U38: 0 | V38: 0 | W38: 2 | X38: 0 | Y38: 5 | Z38: 0 | AA38: 0 | AB38: 0 | AC38: 0 | AD38: 2 | AE38: 0 | AF38: 2 | AG38: 3 | AH38: 2 | AI38: 2 | AJ38: 1 | AK38: 0 | AL38: 0 | AM38: 0 | AN38: 0 | AO38: 248 | AP38: 1 | AQ38: 40 | AR38: 1 | AS38: 0 | AT38: 0 | AU38: 1
A39: 19-I1 | B39: Alhambra Courthouse | C39: 150 West Commonwealth Avenue | D39: Alhambra | E39: 91801 | F39: Los Angeles | G39: SRO | J39: 4 | K39: 6 | L39: 5 | M39: 0 | N39: 2 | O39: 2 | P39: 0 | Q39: 0 | R39: 0 | S39: 0 | T39: 10 | U39: 0 | V39: 0 | W39: 6 | X39: 1 | Y39: 4 | Z39: 2 | AA39: 0 | AB39: 6 | AC39: 0 | AD39: 0 | AE39: 0 | AF39: 3 | AG39: 5 | AH39: 4 | AI39: 0 | AJ39: 0 | AK39: 0 | AL39: 0 | AM39: 0 | AN39: 0 | AO39: 248 | AP39: 8 | AQ39: 248 | AR39: 1 | AS39: 0 | AT39: 1 | AU39: 1
A40: 19-J1 | B40: Pasadena Courthouse | C40: 300 East Walnut Street | D40: Pasadena | E40: 91101 | F40: Los Angeles | G40: SRO | J40: 4 | K40: 1 | L40: 8 | M40: 0 | N40: 2 | O40: 2 | P40: 0 | Q40: 0 | R40: 0 | S40: 1 | T40: 15 | U40: 0 | V40: 0 | W40: 11 | X40: 1 | Y40: 5 | Z40: 2 | AA40: 0 | AB40: 1 | AC40: 0 | AD40: 2 | AE40: 0 | AF40: 8 | AG40: 6 | AH40: 3 | AI40: 0 | AJ40: 3 | AK40: 0 | AL40: 0 | AM40: 0 | AN40: 0 | AO40: 248 | AP40: 8 | AQ40: 248 | AR40: 1 | AS40: 0 | AT40: 2 | AU40: 1
A41: 19-J3 | B41: Parking Structure-Lot 53 Pasadena Court | C41: 240 Ramona St. | D41: Pasadena | E41: 91101 | F41: Los Angeles | G41: SRO | H41: Landscaping, lighting,elevator and PMs | J41: 4 | K41: 0 | L41: 0 | M41: 0 | N41: 0 | O41: 0 | P41: 0 | Q41: 0 | R41: 0 | S41: 0 | T41: 2 | U41: 0 | V41: 0 | W41: 1 | X41: 1 | Y41: 0 | Z41: 1 | AA41: 0 | AB41: 2 | AC41: 0 | AD41: 0 | AE41: 0 | AF41: 3 | AG41: 1 | AH41: 0 | AI41: 0 | AJ41: 0 | AK41: 0 | AL41: 0 | AM41: 0 | AN41: 0 | AO41: 40 | AP41: 1 | AQ41: 40 | AR41: 1 | AS41: 0 | AT41: 0 | AU41: 1
A42: 19-K1 | B42: Stanley Mosk Courthouse | C42: 111 North Hill Street | D42: Los Angeles | E42: 90012 | F42: Los Angeles | G42: SRO | H42: supply & return fans listed separate | J42: 4 | K42: 1 | L42: 31 | M42: 0 | N42: 0 | O42: 0 | P42: 0 | Q42: 0 | R42: 0 | S42: 24 | T42: 23 | U42: 0 | V42: 0 | W42: 3 | X42: 3 | Y42: 1 | Z42: 3 | AA42: 0 | AB42: 20 | AC42: 0 | AD42: 2 | AE42: 0 | AF42: 20 | AG42: 5 | AH42: 0 | AI42: 0 | AJ42: 0 | AK42: 0 | AL42: 6 | AM42: 0 | AN42: 0 | AO42: 248 | AP42: 35 | AQ42: 40 | AR42: 1 | AS42: 0 | AT42: 3 | AU42: 1
A43: 19-L1 | B43: Clara Shortridge Foltz Criminal Justice Center | C43: 210 West Temple Street | D43: Los Angeles | E43: 90012 | F43: Los Angeles | G43: SRO | H43: cooling tower for generator? | J43: 11 | K43: 0 | L43: 42 | M43: 0 | N43: 0 | O43: 1 | P43: 0 | Q43: 0 | R43: 0 | S43: 2 | T43: 25 | U43: 0 | V43: 0 | W43: 8 | X43: 2 | Y43: 4 | Z43: 4 | AA43: 0 | AB43: 0 | AC43: 0 | AD43: 2 | AE43: 0 | AF43: 8 | AG43: 10 | AH43: 0 | AI43: 0 | AJ43: 0 | AK43: 0 | AL43: 5 | AM43: 0 | AN43: 0 | AO43: 248 | AP43: 21 | AQ43: 248 | AR43: 1 | AS43: 0 | AT43: 2 | AU43: 1
A44: 19-N1 | B44: Monrovia Training Center | C44: 300 W. Maple Ave. | D44: Monrovia | E44: 91016 | F44: Los Angeles | G44: SRO | J44: 1 | K44: 11 | L44: 1 | M44: 0 | N44: 0 | O44: 0 | P44: 0 | Q44: 0 | R44: 0 | S44: 1 | T44: 2 | U44: 0 | V44: 0 | W44: 2 | X44: 0 | Y44: 0 | Z44: 0 | AA44: 0 | AB44: 0 | AC44: 0 | AD44: 2 | AE44: 0 | AF44: 2 | AG44: 1 | AH44: 1 | AI44: 2 | AJ44: 0 | AK44: 0 | AL44: 0 | AM44: 0 | AN44: 0 | AO44: 248 | AP44: 0 | AQ44: 40 | AR44: 1 | AS44: 0 | AT44: 0 | AU44: 1
A45: 19-O1 | B45: El Monte Courthouse | C45: 11234 East Valley Boulevard | D45: El Monte | E45: 91731 | F45: Los Angeles | G45: SRO | J45: 5 | K45: 1 | L45: 3 | M45: 0 | N45: 2 | O45: 2 | P45: 0 | Q45: 0 | R45: 0 | S45: 2 | T45: 3 | U45: 0 | V45: 0 | W45: 4 | X45: 1 | Y45: 2 | Z45: 2 | AA45: 0 | AB45: 2 | AC45: 0 | AD45: 2 | AE45: 0 | AF45: 5 | AG45: 7 | AH45: 2 | AI45: 1 | AJ45: 0 | AK45: 0 | AL45: 0 | AM45: 0 | AN45: 0 | AO45: 248 | AP45: 5 | AQ45: 248 | AR45: 1 | AS45: 0 | AT45: 2 | AU45: 1
A46: 19-Q1 | B46: Edmund D. Edelman Children's Court | C46: 201 Centre Plaza Drive | D46: Monterey Park | E46: 91754 | F46: Los Angeles | G46: SRO | H46: Not in RFP, No Costing Sheet | J46: 2 | K46: 5 | L46: 2 | M46: 0 | N46: 2 | O46: 2 | P46: 0 | Q46: 0 | R46: 0 | S46: 0 | T46: 9 | U46: 0 | V46: 0 | W46: 8 | X46: 1 | Y46: 5 | Z46: 1 | AA46: 1 | AB46: 6 | AC46: 0 | AD46: 1 | AE46: 0 | AF46: 7 | AG46: 6 | AH46: 5 | AI46: 2 | AJ46: 0 | AK46: 0 | AL46: 0 | AM46: 0 | AN46: 0 | AO46: 248 | AP46: 18 | AQ46: 248 | AR46: 1 | AS46: 0 | AT46: 2 | AU46: 1
A47: 19-Q2 | B47: Parking Structure-Edelman Court | C47: 201 Centre Plaza Drive | D47: Monterey Park | E47: 91754 | F47: Los Angeles | G47: SRO | H47: Landscaping,lighting,elevators (3) and PMs | J47: 7 | K47: 1 | L47: 0 | M47: 0 | N47: 0 | O47: 0 | P47: 0 | Q47: 0 | R47: 0 | S47: 0 | T47: 4 | U47: 0 | V47: 0 | W47: 0 | X47: 0 | Y47: 0 | Z47: 0 | AA47: 0 | AB47: 0 | AC47: 0 | AD47: 0 | AE47: 0 | AF47: 1 | AG47: 0 | AH47: 0 | AI47: 0 | AJ47: 0 | AK47: 0 | AL47: 0 | AM47: 0 | AN47: 0 | AO47: 40 | AP47: 3 | AQ47: 40 | AR47: 1 | AS47: 0 | AT47: 0 | AU47: 1
A48: 19-S1 | B48: Hollywood Courthouse | C48: 5925 Hollywood Boulevard | D48: Los Angeles | E48: 90028 | F48: Los Angeles | G48: SRO | J48: 2 | K48: 3 | L48: 0 | M48: 0 | N48: 0 | O48: 0 | P48: 0 | Q48: 0 | R48: 0 | S48: 0 | T48: 8 | U48: 0 | V48: 0 | W48: 2 | X48: 1 | Y48: 1 | Z48: 1 | AA48: 0 | AB48: 3 | AC48: 0 | AD48: 1 | AE48: 0 | AF48: 3 | AG48: 1 | AH48: 1 | AI48: 1 | AJ48: 0 | AK48: 0 | AL48: 1 | AM48: 0 | AN48: 0 | AO48: 248 | AP48: 3 | AQ48: 40 | AR48: 1 | AS48: 0 | AT48: 0 | AU48: 1
A49: 19-T1 | B49: Metropolitan Courthouse | C49: 1945 South Hill Street | D49: Los Angeles | E49: 90007 | F49: Los Angeles | G49: SRO | J49: 35 | K49: 6 | L49: 9 | M49: 0 | N49: 2 | O49: 2 | P49: 0 | Q49: 0 | R49: 0 | S49: 0 | T49: 34 | U49: 0 | V49: 0 | W49: 6 | X49: 1 | Y49: 4 | Z49: 2 | AA49: 0 | AB49: 3 | AC49: 0 | AD49: 2 | AE49: 0 | AF49: 7 | AG49: 6 | AH49: 4 | AI49: 1 | AJ49: 0 | AK49: 0 | AL49: 0 | AM49: 0 | AN49: 0 | AO49: 248 | AP49: 13 | AQ49: 248 | AR49: 1 | AS49: 0 | AT49: 2 | AU49: 1
A50: 19-V1 | B50: East Los Angeles Courthouse | C50: 4848 E. Civic Center Way | D50: East Los Angeles | E50: 90022 | F50: Los Angeles | G50: SRO | J50: 3 | K50: 3 | L50: 6 | M50: 0 | N50: 2 | O50: 2 | P50: 0 | Q50: 0 | R50: 0 | S50: 2 | T50: 8 | U50: 0 | V50: 0 | W50: 8 | X50: 1 | Y50: 4 | Z50: 1 | AA50: 0 | AB50: 0 | AC50: 0 | AD50: 2 | AE50: 0 | AF50: 7 | AG50: 7 | AH50: 4 | AI50: 0 | AJ50: 0 | AK50: 0 | AL50: 0 | AM50: 0 | AN50: 0 | AO50: 248 | AP50: 12 | AQ50: 248 | AR50: 1 | AS50: 0 | AT50: 3 | AU50: 1
A51: 19-W1 | B51: Pomona Courthouse South | C51: 400 Civic Center Plaza | D51: Pomona | E51: 91766 | F51: Los Angeles | G51: SRO | J51: 4 | K51: 5 | L51: 6 | M51: 0 | N51: 2 | O51: 2 | P51: 0 | Q51: 0 | R51: 0 | S51: 0 | T51: 2 | U51: 0 | V51: 0 | W51: 8 | X51: 1 | Y51: 1 | Z51: 2 | AA51: 0 | AB51: 3 | AC51: 0 | AD51: 1 | AE51: 0 | AF51: 7 | AG51: 9 | AH51: 2 | AI51: 0 | AJ51: 1 | AK51: 0 | AL51: 0 | AM51: 0 | AN51: 0 | AO51: 248 | AP51: 10 | AQ51: 248 | AR51: 1 | AS51: 0 | AT51: 2 | AU51: 1
A52: 19-W2 | B52: Pomona Courthouse North | C52: 350 West Mission Boulevard | D52: Pomona | E52: 91766 | F52: Los Angeles | G52: SRO | J52: 2 | K52: 5 | L52: 2 | M52: 0 | N52: 0 | O52: 0 | P52: 0 | Q52: 0 | R52: 0 | S52: 0 | T52: 8 | U52: 0 | V52: 0 | W52: 4 | X52: 0 | Y52: 1 | Z52: 0 | AA52: 0 | AB52: 1 | AC52: 0 | AD52: 0 | AE52: 0 | AF52: 5 | AG52: 3 | AH52: 3 | AI52: 1 | AJ52: 0 | AK52: 0 | AL52: 0 | AM52: 0 | AN52: 0 | AO52: 248 | AP52: 5 | AQ52: 40 | AR52: 1 | AS52: 0 | AT52: 0 | AU52: 1
A53: 30-A1 | B53: 30-A1 Central Justice Center | C53: 700 Civic Center Dr W. | D53: Santa Ana | E53: 92701 | F53: Orange | G53: SRO | H53: Not in RFP, No Costing Sheet | J53: 6 | K53: 20 | L53: 36 | M53: 0 | N53: 0 | O53: 0 | P53: 0 | Q53: 0 | R53: 7 | S53: 0 | T53: 20 | U53: 0 | V53: 0 | W53: 1 | X53: 1 | Y53: 0 | Z53: 1 | AA53: 1 | AB53: 17 | AC53: 0 | AD53: 1 | AE53: 0 | AF53: 8 | AG53: 4 | AH53: 0 | AI53: 0 | AJ53: 0 | AK53: 0 | AL53: 3 | AM53: 0 | AN53: 0 | AO53: 248 | AP53: 19 | AQ53: 40 | AR53: 1 | AS53: 0 | AT53: 0 | AU53: 1
A54: 30-A3 | B54: Civil Complex Center ("CXC") | C54: 751 W. Santa Ana Blvd. | D54: Santa Ana | E54: 92701 | F54: Orange | G54: SRO | H54: Not in RFP, No Costing Sheet | J54: 2 | K54: 5 | L54: 0 | M54: 0 | N54: 0 | O54: 0 | P54: 0 | Q54: 0 | R54: 22 | S54: 0 | T54: 6 | U54: 0 | V54: 0 | W54: 1 | X54: 0 | Y54: 0 | Z54: 1 | AA54: 0 | AB54: 0 | AC54: 0 | AD54: 1 | AE54: 0 | AF54: 3 | AG54: 1 | AH54: 0 | AI54: 0 | AJ54: 0 | AK54: 0 | AL54: 0 | AM54: 0 | AN54: 0 | AO54: 248 | AP54: 0 | AQ54: 40 | AR54: 1 | AS54: 0 | AT54: 0 | AU54: 1
A55: 30-B1 | B55: Betty Lou Lamoreaux Justice Center | C55: 341 The City Dr. | D55: Orange | E55: 92868 | F55: Orange | G55: SRO | J55: 4 | K55: 5 | L55: 8 | M55: 0 | N55: 3 | O55: 1 | P55: 0 | Q55: 0 | R55: 2 | S55: 0 | T55: 16 | U55: 2 | V55: 0 | W55: 3 | X55: 1 | Y55: 0 | Z55: 2 | AA55: 1 | AB55: 0 | AC55: 0 | AD55: 1 | AE55: 0 | AF55: 5 | AG55: 7 | AH55: 2 | AI55: 1 | AJ55: 1 | AK55: 0 | AL55: 0 | AM55: 0 | AN55: 0 | AO55: 248 | AP55: 11 | AQ55: 248 | AR55: 1 | AS55: 0 | AT55: 3 | AU55: 1
A56: 30-C1 | B56: North Justice Center | C56: 1275 N. Berkeley Ave. | D56: Fullerton | E56: 92832 | F56: Orange | G56: SRO | J56: 3 | K56: 10 | L56: 8 | M56: 0 | N56: 5 | O56: 3 | P56: 0 | Q56: 0 | R56: 0 | S56: 0 | T56: 9 | U56: 0 | V56: 0 | W56: 2 | X56: 1 | Y56: 0 | Z56: 1 | AA56: 1 | AB56: 0 | AC56: 0 | AD56: 2 | AE56: 0 | AF56: 3 | AG56: 10 | AH56: 4 | AI56: 2 | AJ56: 0 | AK56: 0 | AL56: 0 | AM56: 0 | AN56: 0 | AO56: 248 | AP56: 4 | AQ56: 248 | AR56: 1 | AS56: 0 | AT56: 0 | AU56: 1
A57: 30-D1 | B57: West Justice Center | C57: 8141-8144 13th St. | D57: Westminster | E57: 92683 | F57: Orange | G57: SRO | J57: 4 | K57: 10 | L57: 7 | M57: 0 | N57: 3 | O57: 2 | P57: 0 | Q57: 0 | R57: 3 | S57: 0 | T57: 12 | U57: 0 | V57: 0 | W57: 2 | X57: 1 | Y57: 4 | Z57: 1 | AA57: 1 | AB57: 0 | AC57: 6 | AD57: 1 | AE57: 0 | AF57: 3 | AG57: 12 | AH57: 2 | AI57: 3 | AJ57: 0 | AK57: 0 | AL57: 0 | AM57: 0 | AN57: 0 | AO57: 248 | AP57: 3 | AQ57: 248 | AR57: 1 | AS57: 0 | AT57: 1 | AU57: 1
A58: 30-E1 | B58: Harbor Justice Center-Newport Beach Facility | C58: 4601 Jamboree Road | D58: Newport Beach | E58: 92660 | F58: Orange | G58: SRO | J58: 3 | K58: 8 | L58: 4 | M58: 0 | N58: 2 | O58: 1 | P58: 0 | Q58: 0 | R58: 0 | S58: 0 | T58: 28 | U58: 0 | V58: 0 | W58: 1 | X58: 1 | Y58: 0 | Z58: 1 | AA58: 1 | AB58: 0 | AC58: 0 | AD58: 1 | AE58: 0 | AF58: 3 | AG58: 4 | AH58: 2 | AI58: 2 | AJ58: 0 | AK58: 0 | AL58: 0 | AM58: 0 | AN58: 0 | AO58: 248 | AP58: 4 | AQ58: 248 | AR58: 1 | AS58: 0 | AT58: 0 | AU58: 1
A59: 33-A1 | B59: Family Law Court | C59: 4175 Main St. | D59: Riverside | E59: 92501 | F59: Riverside | G59: SRO | J59: 2 | K59: 4 | L59: 1 | M59: 0 | N59: 1 | O59: 0 | P59: 0 | Q59: 0 | R59: 2 | S59: 0 | T59: 2 | U59: 0 | V59: 0 | W59: 1 | X59: 1 | Y59: 0 | Z59: 2 | AA59: 0 | AB59: 1 | AC59: 0 | AD59: 0 | AE59: 0 | AF59: 6 | AG59: 4 | AH59: 2 | AI59: 1 | AJ59: 0 | AK59: 0 | AL59: 0 | AM59: 0 | AN59: 0 | AO59: 248 | AP59: 3 | AQ59: 248 | AR59: 1 | AS59: 0 | AT59: 0 | AU59: 1
A60: 33-A3 | B60: Hall of Justice | C60: 4100 Main St. | D60: Riverside | E60: 92501 | F60: Riverside | G60: SRO | J60: 4 | K60: 5 | L60: 7 | M60: 0 | N60: 3 | O60: 2 | P60: 0 | Q60: 0 | R60: 2 | S60: 4 | T60: 5 | U60: 0 | V60: 0 | W60: 1 | X60: 1 | Y60: 0 | Z60: 0 | AA60: 1 | AB60: 0 | AC60: 0 | AD60: 0 | AE60: 0 | AF60: 6 | AG60: 5 | AH60: 3 | AI60: 1 | AJ60: 0 | AK60: 0 | AL60: 0 | AM60: 0 | AN60: 0 | AO60: 248 | AP60: 11 | AQ60: 248 | AR60: 1 | AS60: 0 | AT60: 3 | AU60: 1
A61: 33-C1 | B61: Larson Justice Center | C61: 46-200 Oasis Street | D61: Indio | E61: 92201 | F61: Riverside | G61: SRO | J61: 3 | K61: 6 | L61: 10 | M61: 0 | N61: 2 | O61: 2 | P61: 0 | Q61: 0 | R61: 0 | S61: 0 | T61: 16 | U61: 0 | V61: 0 | W61: 0 | X61: 1 | Y61: 0 | Z61: 1 | AA61: 0 | AB61: 0 | AC61: 0 | AD61: 1 | AE61: 0 | AF61: 6 | AG61: 6 | AH61: 3 | AI61: 1 | AJ61: 0 | AK61: 0 | AL61: 0 | AM61: 0 | AN61: 0 | AO61: 248 | AP61: 10 | AQ61: 248 | AR61: 0 | AS61: 0 | AT61: 2 | AU61: 0
A62: 33-C3 | B62: Indio Juvenile Court | C62: 47-671 Oasis St. | D62: Indio | E62: 92201 | F62: Riverside | G62: SRO | H62: Not in RFP, No Costing Sheet | J62: 0 | K62: 10 | L62: 0 | M62: 0 | N62: 0 | O62: 0 | P62: 0 | Q62: 0 | R62: 0 | S62: 0 | T62: 0 | U62: 0 | V62: 0 | W62: 1 | X62: 0 | Y62: 0 | Z62: 0 | AA62: 0 | AB62: 0 | AC62: 0 | AD62: 0 | AE62: 0 | AF62: 3 | AG62: 1 | AH62: 0 | AI62: 0 | AJ62: 1 | AK62: 0 | AL62: 0 | AM62: 0 | AN62: 0 | AO62: 40 | AP62: 1 | AQ62: 40 | AR62: 1 | AS62: 0 | AT62: 0 | AU62: 1
A63: 33-D1 | B63: Blythe Courthouse - Superior Court | C63: 265 N. Broadway | D63: Blythe | E63: 92225 | F63: Riverside | G63: SRO | J63: 0 | K63: 7 | L63: 0 | M63: 0 | N63: 0 | O63: 0 | P63: 0 | Q63: 0 | R63: 0 | S63: 0 | T63: 9 | U63: 0 | V63: 0 | W63: 1 | X63: 0 | Y63: 0 | Z63: 0 | AA63: 0 | AB63: 0 | AC63: 0 | AD63: 0 | AE63: 0 | AF63: 3 | AG63: 3 | AH63: 0 | AI63: 1 | AJ63: 0 | AK63: 0 | AL63: 0 | AM63: 0 | AN63: 0 | AO63: 40 | AP63: 0 | AQ63: 40 | AR63: 1 | AS63: 0 | AT63: 0 | AU63: 1
A64: 33-F1 | B64: Hemet | C64: 880 N. State St. | D64: Hemet | E64: 92343 | F64: Riverside | G64: SRO | J64: 1 | K64: 14 | L64: 0 | M64: 0 | N64: 0 | O64: 0 | P64: 0 | Q64: 0 | R64: 1 | S64: 0 | T64: 13 | U64: 0 | V64: 0 | W64: 1 | X64: 0 | Y64: 0 | Z64: 0 | AA64: 0 | AB64: 1 | AC64: 0 | AD64: 0 | AE64: 0 | AF64: 3 | AG64: 2 | AH64: 0 | AI64: 0 | AJ64: 5 | AK64: 0 | AL64: 0 | AM64: 0 | AN64: 0 | AO64: 248 | AP64: 0 | AQ64: 40 | AR64: 1 | AS64: 0 | AT64: 0 | AU64: 1
A65: 33-G4 | B65: 33-G4 New Riverside Mid-County Courthouse. | C65: 311 East Ramsey | D65: Banning | E65: 92220 | F65: Riverside | G65: SRO | H65: Not in RFP, No Costing Sheet | J65: 10 | K65: 1 | L65: 3 | M65: 0 | N65: 2 | O65: 2 | P65: 0 | Q65: 0 | R65: 1 | S65: 21 | T65: 6 | U65: 3 | V65: 0 | W65: 0 | X65: 0 | Y65: 0 | Z65: 0 | AA65: 0 | AB65: 4 | AC65: 6 | AD65: 1 | AE65: 0 | AF65: 3 | AG65: 7 | AH65: 1 | AI65: 2 | AJ65: 0 | AK65: 0 | AL65: 0 | AM65: 0 | AN65: 0 | AO65: 248 | AP65: 4 | AQ65: 248 | AR65: 1 | AS65: 0 | AT65: 0 | AU65: 1
A66: 33-M1 | B66: Southwest Justice Center | C66: 30755 Auld Road | D66: Murrieta | E66: 92563 | F66: Riverside | G66: SRO | J66: 3 | K66: 1 | L66: 4 | M66: 0 | N66: 0 | O66: 0 | P66: 0 | Q66: 0 | R66: 0 | S66: 14 | T66: 9 | U66: 0 | V66: 0 | W66: 1 | X66: 1 | Y66: 0 | Z66: 1 | AA66: 0 | AB66: 0 | AC66: 0 | AD66: 1 | AE66: 0 | AF66: 6 | AG66: 6 | AH66: 0 | AI66: 0 | AJ66: 2 | AK66: 0 | AL66: 0 | AM66: 0 | AN66: 0 | AO66: 248 | AP66: 20 | AQ66: 40 | AR66: 1 | AS66: 0 | AT66: 2 | AU66: 1
A67: 33-M4 | B67: New Southwest Justice Building | C67: 30755 Auld Road | D67: Murrieta | E67: 92563 | F67: Riverside | G67: SRO | J67: 3 | K67: 5 | L67: 0 | M67: 0 | N67: 0 | O67: 0 | P67: 0 | Q67: 0 | R67: 0 | S67: 0 | T67: 0 | U67: 0 | V67: 0 | W67: 0 | X67: 0 | Y67: 0 | Z67: 0 | AA67: 0 | AB67: 0 | AC67: 1 | AD67: 0 | AE67: 0 | AF67: 3 | AG67: 5 | AH67: 1 | AI67: 1 | AJ67: 0 | AK67: 0 | AL67: 0 | AM67: 0 | AN67: 0 | AO67: 248 | AP67: 0 | AQ67: 40 | AR67: 1 | AS67: 0 | AT67: 0 | AU67: 1
A68: 33-N1 | B68: Riverside Juvenile Court | C68: 9991 County Farm Rd. | D68: Riverside | E68: 92503 | F68: Riverside | G68: SRO | J68: 3 | K68: 3 | L68: 10 | M68: 0 | N68: 2 | O68: 2 | P68: 0 | Q68: 0 | R68: 2 | S68: 5 | T68: 14 | U68: 0 | V68: 0 | W68: 1 | X68: 0 | Y68: 1 | Z68: 0 | AA68: 0 | AB68: 0 | AC68: 0 | AD68: 0 | AE68: 0 | AF68: 3 | AG68: 5 | AH68: 1 | AI68: 1 | AJ68: 0 | AK68: 0 | AL68: 0 | AM68: 0 | AN68: 0 | AO68: 248 | AP68: 0 | AQ68: 248 | AR68: 1 | AS68: 0 | AT68: 0 | AU68: 1
A69: 33-N2 | B69: Riverside Juvenile Justice Trailers | C69: 9991 County Farm Road | D69: Riverside | E69: 92503 | F69: Riverside | G69: SRO | J69: 0 | K69: 0 | L69: 0 | M69: 0 | N69: 0 | O69: 0 | P69: 0 | Q69: 0 | R69: 0 | S69: 0 | T69: 0 | U69: 0 | V69: 0 | W69: 0 | X69: 0 | Y69: 0 | Z69: 0 | AA69: 0 | AB69: 0 | AC69: 0 | AD69: 0 | AE69: 0 | AF69: 0 | AG69: 0 | AH69: 0 | AI69: 0 | AJ69: 0 | AK69: 0 | AL69: 0 | AM69: 0 | AN69: 0 | AO69: 40 | AP69: 0 | AQ69: 40 | AR69: 0 | AS69: 0 | AT69: 0 | AU69: 0
A70: 36-A1 | B70: Central Courthouse | C70: 351 N. Arrowhead Ave | D70: San Bernardino | E70: 92415 | F70: San Bernardino | G70: SRO | J70: 0 | K70: 8 | L70: 6 | M70: 0 | N70: 0 | O70: 0 | P70: 0 | Q70: 0 | R70: 1 | S70: 0 | T70: 1 | U70: 0 | V70: 0 | W70: 2 | X70: 0 | Y70: 0 | Z70: 0 | AA70: 0 | AB70: 0 | AC70: 0 | AD70: 2 | AE70: 0 | AF70: 3 | AG70: 4 | AH70: 0 | AI70: 0 | AJ70: 1 | AK70: 0 | AL70: 0 | AM70: 0 | AN70: 0 | AO70: 248 | AP70: 3 | AQ70: 40 | AR70: 1 | AS70: 0 | AT70: 0 | AU70: 1
A71: 36-A2 | B71: San Bernardino Courthouse - Annex | C71: 351 N. Arrowhead Ave | D71: San Bernardino | E71: 92415 | F71: San Bernardino | G71: SRO | J71: 0 | K71: 1 | L71: 1 | M71: 0 | N71: 0 | O71: 0 | P71: 0 | Q71: 0 | R71: 1 | S71: 0 | T71: 3 | U71: 0 | V71: 0 | W71: 1 | X71: 0 | Y71: 0 | Z71: 0 | AA71: 0 | AB71: 4 | AC71: 0 | AD71: 2 | AE71: 0 | AF71: 3 | AG71: 2 | AH71: 0 | AI71: 0 | AJ71: 0 | AK71: 0 | AL71: 0 | AM71: 0 | AN71: 0 | AO71: 248 | AP71: 2 | AQ71: 40 | AR71: 1 | AS71: 0 | AT71: 0 | AU71: 1
A72: 36-C1 | B72: Fontana Courthouse | C72: 17780 Arrow Blvd. | D72: Fontana | E72: 92335 | F72: San Bernardino | G72: SRO | J72: 0 | K72: 8 | L72: 2 | M72: 0 | N72: 0 | O72: 0 | P72: 0 | Q72: 0 | R72: 1 | S72: 0 | T72: 7 | U72: 0 | V72: 0 | W72: 0 | X72: 0 | Y72: 0 | Z72: 0 | AA72: 0 | AB72: 0 | AC72: 0 | AD72: 2 | AE72: 0 | AF72: 3 | AG72: 0 | AH72: 0 | AI72: 2 | AJ72: 0 | AK72: 0 | AL72: 0 | AM72: 0 | AN72: 0 | AO72: 248 | AP72: 2 | AQ72: 40 | AR72: 1 | AS72: 0 | AT72: 0 | AU72: 1
A73: 36-C3 | B73: Fontana Jury Assembly Building | C73: 17782 Arrow Blvd. | D73: Fontana | E73: 92335 | F73: San Bernardino | G73: SRO | J73: 0 | K73: 2 | L73: 0 | M73: 0 | N73: 0 | O73: 0 | P73: 0 | Q73: 0 | R73: 0 | S73: 0 | T73: 2 | U73: 0 | V73: 0 | W73: 0 | X73: 0 | Y73: 0 | Z73: 0 | AA73: 0 | AB73: 1 | AC73: 0 | AD73: 2 | AE73: 0 | AF73: 2 | AG73: 0 | AH73: 0 | AI73: 1 | AJ73: 0 | AK73: 0 | AL73: 0 | AM73: 0 | AN73: 0 | AO73: 248 | AP73: 0 | AQ73: 40 | AR73: 1 | AS73: 0 | AT73: 0 | AU73: 1
A74: 36-J1 | B74: Barstow Courthouse | C74: 235 East Mountain View Street | D74: Barstow | E74: 92311 | F74: San Bernardino | G74: SRO | J74: 0 | K74: 2 | L74: 2 | M74: 0 | N74: 2 | O74: 0 | P74: 0 | Q74: 0 | R74: 0 | S74: 0 | T74: 2 | U74: 0 | V74: 0 | W74: 1 | X74: 0 | Y74: 1 | Z74: 0 | AA74: 0 | AB74: 0 | AC74: 0 | AD74: 0 | AE74: 0 | AF74: 1 | AG74: 1 | AH74: 1 | AI74: 1 | AJ74: 0 | AK74: 0 | AL74: 0 | AM74: 0 | AN74: 0 | AO74: 248 | AP74: 1 | AQ74: 248 | AR74: 1 | AS74: 0 | AT74: 0 | AU74: 1
A75: 36-P1 | B75: Juvenile Dependency Courthouse | C75: 860 E. Gilbert Street | D75: San Bernardino | E75: 92415 | F75: San Bernardino | G75: SRO | J75: 2 | K75: 20 | L75: 0 | M75: 0 | N75: 0 | O75: 0 | P75: 0 | Q75: 0 | R75: 0 | S75: 0 | T75: 9 | U75: 0 | V75: 0 | W75: 1 | X75: 0 | Y75: 0 | Z75: 0 | AA75: 0 | AB75: 1 | AC75: 0 | AD75: 1 | AE75: 0 | AF75: 3 | AG75: 0 | AH75: 0 | AI75: 2 | AJ75: 0 | AK75: 0 | AL75: 0 | AM75: 0 | AN75: 0 | AO75: 248 | AP75: 0 | AQ75: 40 | AR75: 1 | AS75: 0 | AT75: 0 | AU75: 1
A76: 36-R1 | B76: San Bernardino Justice Center | C76: 247 West Third Street | D76: San Bernardino | E76: 92415 | F76: San Bernardino | G76: SRO | J76: 7 | K76: 0 | L76: 8 | M76: 0 | N76: 3 | O76: 2 | P76: 0 | Q76: 0 | R76: 0 | S76: 51 | T76: 31 | U76: 0 | V76: 0 | W76: 4 | X76: 1 | Y76: 0 | Z76: 11 | AA76: 1 | AB76: 0 | AC76: 1 | AD76: 2 | AE76: 0 | AF76: 9 | AG76: 9 | AH76: 4 | AI76: 0 | AJ76: 2 | AK76: 0 | AL76: 1 | AM76: 0 | AN76: 0 | AO76: 248 | AP76: 13 | AQ76: 248 | AR76: 1 | AS76: 0 | AT76: 0 | AU76: 1
A77: 37-C1 | B77: Kearny Mesa Court | C77: 8950 Clairemont Mesa Blvd. | D77: San Diego | E77: 92123 | F77: San Diego | G77: SRO | J77: 3 | K77: 17 | L77: 0 | M77: 0 | N77: 0 | O77: 0 | P77: 0 | Q77: 0 | R77: 0 | S77: 0 | T77: 6 | U77: 0 | V77: 0 | W77: 1 | X77: 0 | Y77: 0 | Z77: 0 | AA77: 0 | AB77: 0 | AC77: 0 | AD77: 1 | AE77: 0 | AF77: 3 | AG77: 3 | AH77: 0 | AI77: 1 | AJ77: 0 | AK77: 0 | AL77: 0 | AM77: 0 | AN77: 0 | AO77: 248 | AP77: 2 | AQ77: 40 | AR77: 1 | AS77: 0 | AT77: 0 | AU77: 1
A78: 37-C2 | B78: Kearny Mesa Traffic Court KM3 Trailer | C78: 8950 Clairemont Mesa Blvd. | D78: San Diego | E78: 92123 | F78: San Diego | G78: SRO | J78: 0 | K78: 2 | L78: 0 | M78: 0 | N78: 0 | O78: 0 | P78: 0 | Q78: 0 | R78: 0 | S78: 0 | T78: 0 | U78: 0 | V78: 0 | W78: 0 | X78: 0 | Y78: 0 | Z78: 0 | AA78: 0 | AB78: 0 | AC78: 0 | AD78: 1 | AE78: 0 | AF78: 1 | AG78: 0 | AH78: 0 | AI78: 0 | AJ78: 0 | AK78: 0 | AL78: 0 | AM78: 0 | AN78: 0 | AO78: 248 | AP78: 0 | AQ78: 40 | AR78: 1 | AS78: 0 | AT78: 0 | AU78: 1
A79: 37-C3 | B79: Kearny Mesa Traffic Court KM4 Trailer | C79: 8950 Clairemont Mesa Blvd. | D79: San Diego | E79: 92123 | F79: San Diego | G79: SRO | J79: 0 | K79: 2 | L79: 0 | M79: 0 | N79: 0 | O79: 0 | P79: 0 | Q79: 0 | R79: 0 | S79: 0 | T79: 0 | U79: 0 | V79: 0 | W79: 0 | X79: 0 | Y79: 0 | Z79: 0 | AA79: 0 | AB79: 0 | AC79: 0 | AD79: 1 | AE79: 0 | AF79: 1 | AG79: 0 | AH79: 0 | AI79: 0 | AJ79: 0 | AK79: 0 | AL79: 0 | AM79: 0 | AN79: 0 | AO79: 248 | AP79: 0 | AQ79: 40 | AR79: 1 | AS79: 0 | AT79: 0 | AU79: 1
A80: 37-C4 | B80: Kearny Mesa Traffic Court KM5 & KM6 Trailer | C80: 8950 Clairemont Mesa Blvd. | D80: San Diego | E80: 92123 | F80: San Diego | G80: SRO | J80: 0 | K80: 2 | L80: 0 | M80: 0 | N80: 0 | O80: 0 | P80: 0 | Q80: 0 | R80: 0 | S80: 0 | T80: 0 | U80: 0 | V80: 0 | W80: 0 | X80: 0 | Y80: 0 | Z80: 0 | AA80: 0 | AB80: 0 | AC80: 0 | AD80: 1 | AE80: 0 | AF80: 1 | AG80: 0 | AH80: 0 | AI80: 0 | AJ80: 0 | AK80: 0 | AL80: 0 | AM80: 0 | AN80: 0 | AO80: 248 | AP80: 0 | AQ80: 40 | AR80: 1 | AS80: 0 | AT80: 0 | AU80: 1
A81: 37-E1 | B81: Juvenile Court | C81: 2851 Meadow Lark Dr. | D81: San Diego | E81: 92123 | F81: San Diego | G81: SRO | J81: 1 | K81: 8 | L81: 4 | M81: 0 | N81: 0 | O81: 0 | P81: 0 | Q81: 0 | R81: 0 | S81: 0 | T81: 4 | U81: 0 | V81: 0 | W81: 1 | X81: 0 | Y81: 1 | Z81: 0 | AA81: 1 | AB81: 0 | AC81: 0 | AD81: 0 | AE81: 0 | AF81: 2 | AG81: 4 | AH81: 2 | AI81: 1 | AJ81: 0 | AK81: 0 | AL81: 0 | AM81: 0 | AN81: 0 | AO81: 248 | AP81: 2 | AQ81: 40 | AR81: 1 | AS81: 0 | AT81: 0 | AU81: 1
A82: 37-E3 | B82: Department 9 Trailer | C82: 2851 Meadow Lark Dr. | D82: San Diego | E82: 92123 | F82: San Diego | G82: SRO | J82: 0 | K82: 1 | L82: 0 | M82: 0 | N82: 0 | O82: 0 | P82: 0 | Q82: 0 | R82: 0 | S82: 0 | T82: 0 | U82: 0 | V82: 0 | W82: 0 | X82: 0 | Y82: 0 | Z82: 0 | AA82: 0 | AB82: 0 | AC82: 0 | AD82: 0 | AE82: 0 | AF82: 1 | AG82: 0 | AH82: 0 | AI82: 0 | AJ82: 0 | AK82: 0 | AL82: 0 | AM82: 0 | AN82: 0 | AO82: 248 | AP82: 0 | AQ82: 40 | AR82: 1 | AS82: 0 | AT82: 0 | AU82: 1
A83: 37-E4 | B83: Department 10 Trailer | C83: 2851 Meadow Lark Dr. | D83: San Diego | E83: 92123 | F83: San Diego | G83: SRO | J83: 0 | K83: 1 | L83: 0 | M83: 0 | N83: 0 | O83: 0 | P83: 0 | Q83: 0 | R83: 0 | S83: 0 | T83: 0 | U83: 0 | V83: 0 | W83: 0 | X83: 0 | Y83: 0 | Z83: 0 | AA83: 0 | AB83: 0 | AC83: 0 | AD83: 0 | AE83: 0 | AF83: 1 | AG83: 0 | AH83: 0 | AI83: 0 | AJ83: 0 | AK83: 0 | AL83: 0 | AM83: 0 | AN83: 0 | AO83: 248 | AP83: 0 | AQ83: 40 | AR83: 1 | AS83: 0 | AT83: 0 | AU83: 1
A84: 37-F2 | B84: North County Regional Center - North | C84: 325 South Melrose Drive | D84: Vista | E84: 92081 | F84: San Diego | G84: SRO | H84: supply & return fans listed separate | J84: 0 | K84: 1 | L84: 8 | M84: 0 | N84: 0 | O84: 0 | P84: 0 | Q84: 0 | R84: 0 | S84: 0 | T84: 14 | U84: 0 | V84: 0 | W84: 0 | X84: 0 | Y84: 0 | Z84: 0 | AA84: 1 | AB84: 0 | AC84: 0 | AD84: 0 | AE84: 0 | AF84: 3 | AG84: 0 | AH84: 0 | AI84: 0 | AJ84: 0 | AK84: 0 | AL84: 0 | AM84: 0 | AN84: 0 | AO84: 248 | AP84: 1 | AQ84: 40 | AR84: 1 | AS84: 0 | AT84: 0 | AU84: 1
A85: 37-F3 | B85: North County Regional Center - Annex | C85: 325 South Melrose Drive | D85: Vista | E85: 92081 | F85: San Diego | G85: SRO | J85: 0 | K85: 0 | L85: 2 | M85: 0 | N85: 0 | O85: 0 | P85: 0 | Q85: 0 | R85: 0 | S85: 0 | T85: 6 | U85: 0 | V85: 0 | W85: 2 | X85: 0 | Y85: 0 | Z85: 0 | AA85: 0 | AB85: 0 | AC85: 0 | AD85: 0 | AE85: 0 | AF85: 2 | AG85: 0 | AH85: 1 | AI85: 0 | AJ85: 1 | AK85: 0 | AL85: 0 | AM85: 0 | AN85: 0 | AO85: 248 | AP85: 2 | AQ85: 40 | AR85: 1 | AS85: 0 | AT85: 0 | AU85: 1
A86: 37-F4 | B86: Trailer - Dept 34 | C86: 325 South Melrose Drive | D86: Vista | E86: 92081 | F86: San Diego | G86: SRO | J86: 0 | K86: 2 | L86: 0 | M86: 0 | N86: 0 | O86: 0 | P86: 0 | Q86: 0 | R86: 0 | S86: 0 | T86: 0 | U86: 0 | V86: 0 | W86: 0 | X86: 0 | Y86: 0 | Z86: 0 | AA86: 0 | AB86: 0 | AC86: 0 | AD86: 0 | AE86: 0 | AF86: 1 | AG86: 0 | AH86: 0 | AI86: 1 | AJ86: 0 | AK86: 0 | AL86: 0 | AM86: 0 | AN86: 0 | AO86: 248 | AP86: 0 | AQ86: 40 | AR86: 1 | AS86: 0 | AT86: 0 | AU86: 1
A87: 37-F5 | B87: Trailer - Dept 35 | C87: 325 South Melrose Drive | D87: Vista | E87: 92081 | F87: San Diego | G87: SRO | J87: 0 | K87: 2 | L87: 0 | M87: 0 | N87: 0 | O87: 0 | P87: 0 | Q87: 0 | R87: 0 | S87: 0 | T87: 0 | U87: 0 | V87: 0 | W87: 0 | X87: 0 | Y87: 0 | Z87: 0 | AA87: 0 | AB87: 0 | AC87: 0 | AD87: 0 | AE87: 0 | AF87: 1 | AG87: 0 | AH87: 0 | AI87: 1 | AJ87: 0 | AK87: 0 | AL87: 0 | AM87: 0 | AN87: 0 | AO87: 248 | AP87: 0 | AQ87: 40 | AR87: 1 | AS87: 0 | AT87: 0 | AU87: 1
A88: 37-F6 | B88: Trailer - Storage A | C88: 325 South Melrose Drive | D88: Vista | E88: 92081 | F88: San Diego | G88: SRO | J88: 0 | K88: 2 | L88: 0 | M88: 0 | N88: 0 | O88: 0 | P88: 0 | Q88: 0 | R88: 0 | S88: 0 | T88: 0 | U88: 0 | V88: 0 | W88: 0 | X88: 0 | Y88: 0 | Z88: 0 | AA88: 0 | AB88: 0 | AC88: 0 | AD88: 0 | AE88: 0 | AF88: 1 | AG88: 0 | AH88: 0 | AI88: 1 | AJ88: 0 | AK88: 0 | AL88: 0 | AM88: 0 | AN88: 0 | AO88: 248 | AP88: 0 | AQ88: 40 | AR88: 1 | AS88: 0 | AT88: 0 | AU88: 1
A89: 37-F7 | B89: Trailer - Family Support | C89: 325 South Melrose Drive | D89: Vista | E89: 92081 | F89: San Diego | G89: SRO | J89: 0 | K89: 2 | L89: 0 | M89: 0 | N89: 0 | O89: 0 | P89: 0 | Q89: 0 | R89: 0 | S89: 0 | T89: 0 | U89: 0 | V89: 0 | W89: 0 | X89: 0 | Y89: 0 | Z89: 0 | AA89: 0 | AB89: 0 | AC89: 0 | AD89: 0 | AE89: 0 | AF89: 1 | AG89: 0 | AH89: 0 | AI89: 0 | AJ89: 0 | AK89: 0 | AL89: 0 | AM89: 0 | AN89: 0 | AO89: 248 | AP89: 0 | AQ89: 40 | AR89: 1 | AS89: 0 | AT89: 0 | AU89: 1
A90: 37-I1 | B90: East County Regional Center | C90: 250 E. Main St. | D90: El Cajon | E90: 92020 | F90: San Diego | G90: SRO | J90: 9 | K90: 5 | L90: 23 | M90: 0 | N90: 2 | O90: 2 | P90: 0 | Q90: 0 | R90: 0 | S90: 0 | T90: 26 | U90: 0 | V90: 0 | W90: 5 | X90: 1 | Y90: 0 | Z90: 2 | AA90: 1 | AB90: 1 | AC90: 0 | AD90: 0 | AE90: 0 | AF90: 9 | AG90: 6 | AH90: 5 | AI90: 0 | AJ90: 0 | AK90: 0 | AL90: 0 | AM90: 0 | AN90: 0 | AO90: 248 | AP90: 15 | AQ90: 248 | AR90: 1 | AS90: 0 | AT90: 3 | AU90: 1
A91: 37-L1 | B91: Central Courthouse | C91: 1100 Union Street | D91: San Diego | E91: 92101 | F91: San Diego | G91: SRO | J91: 9 | K91: 0 | L91: 17 | M91: 0 | N91: 0 | O91: 0 | P91: 0 | Q91: 0 | R91: 0 | S91: 84 | T91: 31 | U91: 0 | V91: 0 | W91: 6 | X91: 1 | Y91: 0 | Z91: 5 | AA91: 1 | AB91: 48 | AC91: 1 | AD91: 1 | AE91: 0 | AF91: 17 | AG91: 46 | AH91: 2 | AI91: 0 | AJ91: 0 | AK91: 0 | AL91: 2 | AM91: 0 | AN91: 0 | AO91: 248 | AP91: 28 | AQ91: 40 | AR91: 1 | AS91: 0 | AT91: 2 | AU91: 1
A92: 40-E2 | B92: Grover Beach Clerk's Office | C92: 214 S 16th St. | D92: Grover Beach | E92: 93433 | F92: San Luis Obispo | G92: SRO | H92: missing from list | J92: 0 | K92: 0 | L92: 0 | M92: 0 | N92: 0 | O92: 0 | P92: 0 | Q92: 0 | R92: 0 | S92: 0 | T92: 0 | U92: 0 | V92: 0 | W92: 0 | X92: 0 | Y92: 0 | Z92: 0 | AA92: 0 | AB92: 0 | AC92: 0 | AD92: 0 | AE92: 0 | AF92: 0 | AG92: 0 | AH92: 0 | AI92: 0 | AJ92: 0 | AK92: 0 | AL92: 0 | AM92: 0 | AN92: 0 | AO92: 40 | AP92: 0 | AQ92: 40 | AR92: 0 | AS92: 0 | AT92: 0 | AU92: 1
A93: 42-B1 | B93: Figueroa Division | C93: 118 E. Figueroa St. | D93: Santa Barbara | E93: 93101 | F93: Santa Barbara | G93: SRO | J93: 2 | K93: 3 | L93: 9 | M93: 0 | N93: 2 | O93: 0 | P93: 0 | Q93: 0 | R93: 0 | S93: 0 | T93: 4 | U93: 0 | V93: 0 | W93: 1 | X93: 0 | Y93: 0 | Z93: 0 | AA93: 1 | AB93: 0 | AC93: 0 | AD93: 1 | AE93: 0 | AF93: 3 | AG93: 5 | AH93: 2 | AI93: 2 | AJ93: 0 | AK93: 0 | AL93: 0 | AM93: 0 | AN93: 0 | AO93: 248 | AP93: 2 | AQ93: 248 | AR93: 1 | AS93: 0 | AT93: 0 | AU93: 1
A94: 42-F1 | B94: Santa Maria Courts Bldgs C + D | C94: 312 E. Cook St. | D94: Santa Maria | E94: 93454 | F94: Santa Barbara | G94: SRO | J94: 0 | K94: 11 | L94: 0 | M94: 0 | N94: 0 | O94: 0 | P94: 0 | Q94: 0 | R94: 0 | S94: 0 | T94: 0 | U94: 0 | V94: 0 | W94: 1 | X94: 0 | Y94: 0 | Z94: 0 | AA94: 0 | AB94: 1 | AC94: 0 | AD94: 2 | AE94: 0 | AF94: 1 | AG94: 4 | AH94: 0 | AI94: 2 | AJ94: 0 | AK94: 0 | AL94: 0 | AM94: 0 | AN94: 0 | AO94: 248 | AP94: 1 | AQ94: 40 | AR94: 1 | AS94: 0 | AT94: 0 | AU94: 1
A95: 42-F3 | B95: Santa Maria Courts, Bldgs. A + B | C95: 312 E. Cook St. | D95: Santa Maria | E95: 93454 | F95: Santa Barbara | G95: SRO | J95: 0 | K95: 1 | L95: 0 | M95: 0 | N95: 0 | O95: 0 | P95: 0 | Q95: 0 | R95: 0 | S95: 0 | T95: 0 | U95: 0 | V95: 0 | W95: 0 | X95: 0 | Y95: 0 | Z95: 0 | AA95: 0 | AB95: 0 | AC95: 0 | AD95: 2 | AE95: 0 | AF95: 1 | AG95: 0 | AH95: 0 | AI95: 0 | AJ95: 0 | AK95: 0 | AL95: 0 | AM95: 0 | AN95: 0 | AO95: 248 | AP95: 0 | AQ95: 40 | AR95: 1 | AS95: 0 | AT95: 0 | AU95: 1
A96: 42-F4 | B96: Santa Maria Courts, Bldg F | C96: 312 E. Cook St. | D96: Santa Maria | E96: 93454 | F96: Santa Barbara | G96: SRO | J96: 0 | K96: 5 | L96: 0 | M96: 0 | N96: 0 | O96: 0 | P96: 0 | Q96: 0 | R96: 0 | S96: 0 | T96: 0 | U96: 0 | V96: 0 | W96: 1 | X96: 0 | Y96: 0 | Z96: 0 | AA96: 0 | AB96: 0 | AC96: 0 | AD96: 2 | AE96: 0 | AF96: 3 | AG96: 5 | AH96: 0 | AI96: 0 | AJ96: 1 | AK96: 0 | AL96: 0 | AM96: 0 | AN96: 0 | AO96: 248 | AP96: 0 | AQ96: 40 | AR96: 1 | AS96: 0 | AT96: 0 | AU96: 1
A97: 42-F5 | B97: Santa Maria Courts, Bldg G | C97: 312 E. Cook St. | D97: Santa Maria | E97: 93454 | F97: Santa Barbara | G97: SRO | J97: 1 | K97: 14 | L97: 0 | M97: 0 | N97: 0 | O97: 0 | P97: 0 | Q97: 0 | R97: 3 | S97: 0 | T97: 14 | U97: 0 | V97: 0 | W97: 3 | X97: 1 | Y97: 0 | Z97: 1 | AA97: 1 | AB97: 0 | AC97: 0 | AD97: 2 | AE97: 0 | AF97: 3 | AG97: 0 | AH97: 0 | AI97: 1 | AJ97: 0 | AK97: 0 | AL97: 0 | AM97: 0 | AN97: 0 | AO97: 248 | AP97: 4 | AQ97: 40 | AR97: 1 | AS97: 0 | AT97: 0 | AU97: 1
A98: 42-F7 | B98: Santa Maria Clerks, Bldg E | C98: 312 E. Cook St. | D98: Santa Maria | E98: 93454 | F98: Santa Barbara | G98: SRO | J98: 0 | K98: 10 | L98: 0 | M98: 0 | N98: 0 | O98: 0 | P98: 0 | Q98: 0 | R98: 0 | S98: 0 | T98: 3 | U98: 0 | V98: 0 | W98: 1 | X98: 0 | Y98: 0 | Z98: 0 | AA98: 1 | AB98: 0 | AC98: 0 | AD98: 1 | AE98: 0 | AF98: 3 | AG98: 1 | AH98: 0 | AI98: 0 | AJ98: 10 | AK98: 0 | AL98: 0 | AM98: 0 | AN98: 0 | AO98: 248 | AP98: 1 | AQ98: 40 | AR98: 1 | AS98: 0 | AT98: 0 | AU98: 1
A99: 42-G1 | B99: Santa Barbara Jury Assembly Bldg. | C99: 1108 Santa Barbara | D99: Santa Barbara | E99: 93101 | F99: Santa Barbara | G99: SRO | J99: 0 | K99: 4 | L99: 0 | M99: 0 | N99: 0 | O99: 0 | P99: 0 | Q99: 0 | R99: 0 | S99: 0 | T99: 0 | U99: 0 | V99: 0 | W99: 1 | X99: 0 | Y99: 0 | Z99: 0 | AA99: 0 | AB99: 0 | AC99: 0 | AD99: 1 | AE99: 0 | AF99: 3 | AG99: 3 | AH99: 0 | AI99: 1 | AJ99: 0 | AK99: 0 | AL99: 0 | AM99: 0 | AN99: 0 | AO99: 248 | AP99: 1 | AQ99: 40 | AR99: 1 | AS99: 0 | AT99: 0 | AU99: 1
A100: 42-H1 | B100: Santa Maria Juvenile Court (new) | C100: 4285 California Blvd. | D100: Santa Maria | E100: 93455 | F100: Santa Barbara | G100: SRO | J100: 1 | K100: 9 | L100: 0 | M100: 0 | N100: 0 | O100: 0 | P100: 0 | Q100: 0 | R100: 0 | S100: 0 | T100: 5 | U100: 0 | V100: 0 | W100: 1 | X100: 0 | Y100: 0 | Z100: 0 | AA100: 0 | AB100: 0 | AC100: 0 | AD100: 1 | AE100: 0 | AF100: 2 | AG100: 4 | AH100: 0 | AI100: 0 | AJ100: 7 | AK100: 0 | AL100: 0 | AM100: 0 | AN100: 0 | AO100: 40 | AP100: 0 | AQ100: 40 | AR100: 1 | AS100: 0 | AT100: 0 | AU100: 1
A101: 56-B1 | B101: East County Courthouse | C101: 3855 Alamo Street | D101: Simi Valley | E101: 93063 | F101: Ventura | G101: SRO | J101: 4 | K101: 3 | L101: 8 | M101: 0 | N101: 1 | O101: 2 | P101: 0 | Q101: 0 | R101: 0 | S101: 0 | T101: 9 | U101: 0 | V101: 0 | W101: 1 | X101: 1 | Y101: 0 | Z101: 2 | AA101: 0 | AB101: 1 | AC101: 0 | AD101: 0 | AE101: 0 | AF101: 3 | AG101: 3 | AH101: 2 | AI101: 1 | AJ101: 0 | AK101: 0 | AL101: 0 | AM101: 0 | AN101: 0 | AO101: 248 | AP101: 2 | AQ101: 248 | AR101: 1 | AS101: 0 | AT101: 0 | AU101: 1
A102: 56-F1 | B102: Juvenile Courthouse | C102: 4353 Vineyard Ave. | D102: Oxnard | E102: 93036 | F102: Ventura | G102: SRO | J102: 0 | K102: 2 | L102: 1 | M102: 0 | N102: 1 | O102: 0 | P102: 0 | Q102: 0 | R102: 0 | S102: 0 | T102: 7 | U102: 0 | V102: 0 | W102: 1 | X102: 1 | Y102: 1 | Z102: 1 | AA102: 0 | AB102: 1 | AC102: 0 | AD102: 0 | AE102: 0 | AF102: 5 | AG102: 0 | AH102: 1 | AI102: 1 | AJ102: 0 | AK102: 0 | AL102: 0 | AM102: 0 | AN102: 0 | AO102: 248 | AP102: 4 | AQ102: 248 | AR102: 1 | AS102: 0 | AT102: 0 | AU102: 1
A103: 64-E1 | B103: 601 W. Santa Ana Blvd - 4 DCA 3 | C103: 601 W. Santa Ana Blvd | D103: Santa Ana | E103: 92701 | F103: Orange | G103: SRO | J103: 4 | K103: 9 | L103: 0 | M103: 0 | N103: 0 | O103: 0 | P103: 0 | Q103: 0 | R103: 0 | S103: 0 | T103: 0 | U103: 1 | V103: 0 | W103: 2 | X103: 0 | Y103: 0 | Z103: 0 | AA103: 0 | AB103: 0 | AC103: 0 | AD103: 1 | AE103: 0 | AF103: 6 | AG103: 6 | AH103: 2 | AI103: 0 | AJ103: 0 | AK103: 0 | AL103: 0 | AM103: 0 | AN103: 0 | AO103: 248 | AP103: 2 | AQ103: 40 | AR103: 1 | AS103: 0 | AT103: 0 | AU103: 1

Sheet Master Template (hidden)
B1: JCC ID | C1: Facility Name | D1: Address | F1: City / Town | H1: Zip Code | J1: County | L1: Region | N1: RFP | P1: Proposer
C2: =IFERROR(VLOOKUP($B$2,'Equipment List Template'!$1:$1048576,2,FALSE),"") ->  | D2: =IFERROR(VLOOKUP($B$2,'Equipment List Template'!$1:$1048576,3,FALSE),"") ->  | F2: =IFERROR(VLOOKUP($B$2,'Equipment List Template'!$1:$1048576,4,FALSE),"") ->  | H2: =IFERROR(VLOOKUP($B$2,'Equipment List Template'!$1:$1048576,5,FALSE),"") ->  | J2: =IFERROR(VLOOKUP($B$2,'Equipment List Template'!$1:$1048576,6,FALSE),"") ->  | L2: =IFERROR(VLOOKUP($B$2,'Equipment List Template'!$1:$1048576,7,FALSE),"") ->  | N2: ='Summary Pricing Sheet'!B2 -> RFP-FS-SP-2019-03-JP | P2: ='Summary Pricing Sheet'!B3 -> Firm Name TBD
D3: Daily Activity | G3: Weekly Activity | J3: Monthly Activity | M3: Quarterly Activity | P3: Annual Activity | U3: Summary | AG3: System | AH3: HVAC | AS3: Electrical | BA3: Plumbing | BE3: Building Systems | BP3: Corporate | BU3: Fixed Price - Facility Total Annual Cost Year 1
B4: System ID | C4: Subsystem | D4: Quantity | E4: Cost | F4: Daily Total | G4: Quantity | H4: Cost | I4: Weekly Total | J4: Monthly Quantity | K4: Cost | L4: Monthly Total | M4: Quarterly Quantity | N4: Cost | O4: Quarterly Total | P4: Annual Quantity | Q4: Cost | R4: Annual PM Total | T4: Number of PM's | U4: Annual Cost | V4: Quantity | W4: Total Annual Cost | AG4: Subsystem | AH4: Air Cooled DX (Package / Split System) | AI4: Air Handling Unit (Air-cooled DX) | AJ4: Air-Cooled Chiller | AK4: Centrifugal Chiller | AL4: Cooling Tower (Induced Draft) | AM4: Ice Chiller | AN4: Multitask (Geothermal) | AO4: Water Source Heat Pump | AP4: Fan Coil System | AQ4: Exhaust Fan | AR4: HVAC Unique System | AS4: Electrical Panels | AT4: Emergency Generator | AU4: Motor Control Center | AV4: Primary Switch (High) | AW4: Primary Switch (Low) | AX4: Transformer (Dry-Type) | AY4: Uninterruptible Power Supply (UPS) | AZ4: Electrical Unique System | BA4: Hot Water Boiler | BB4: Condensing Water Heater | BC4: Electric Water Heater | BD4: Plumbing Unique System | BE4: Steam System | BF4: Pneumatic Compressor | BG4: Vertical Transportation | BH4: Life Safety | BI4: Backflow Preventor | BJ4: Rounds and Readings | BK4: Access Doors, Gates, Sally Port | BL4: Water Treatment | BM4: Building Exterior / Hardscape (Monthly) | BN4: Fountain Maintenance (Monthly) | BO4: Fuel Storage Tanks (Quarterly) If applicable | BP4: Landscape Maintenance * | BQ4: Pest Control (Monthly) | BR4: Account Management and Supervision (Monthly) | BS4: Fee (Monthly) | BW4: Snow Removal - (crew hourly rate) | BX4: Unclogging Blocked Toilet - In-custody holding cell (labor) | BY4: Unclogging Blocked Toilet - Public/Court Staff (labor) | BZ4: Clean up & Disposal of Biological Waste Event | CA4: Clean up & Disposal of Biological Waste Labor Rate | CB4: Hourly Rate | CC4: Markup on Materials | CD4: Markup on Subcontractors/Third-Parties
A5: =$B$2 -> 0 | B5: A1 | C5: Access Doors, Gates, Sally Port | J5: 11 | K5: 0 | L5: =+K5*J5 -> 0 | M5: 0 | N5: 0 | O5: =+N5*M5 -> 0 | P5: 1 | Q5: 0 | R5: =+Q5*P5 -> 0 | S5: =+$J5+$M5+$P5 -> 12 | T5: =IF($V5>0,$S5,0) -> 12 | U5: =+R5+O5+L5+I5+F5 -> 0 | V5: =IFERROR(VLOOKUP($A$5,'Equipment List Template'!$1:$1048576,10,FALSE),"0") -> 0 | W5: =+U5*V5 -> 0 | Z5: JCC ID | AA5: Facility Name | AB5: Address | AC5: City / Town | AD5: County | AE5: Region | AF5: Region | AG5: System ID | AH5: H1 | AI5: H2 | AJ5: H3 | AK5: H4 | AL5: H5 | AM5: H6 | AN5: H7 | AO5: H8 | AP5: H9 | AQ5: H10 | AR5: H11 | AS5: E1 | AT5: E2 | AU5: E3 | AV5: E4 | AW5: E5 | AX5: E6 | AY5: E7 | AZ5: E8 | BA5: P1 | BB5: P2 | BC5: P3 | BD5: P4 | BE5: P5 | BF5: P6 | BG5: V1 | BH5: L1 | BI5: L2 | BJ5: R1 | BK5: A1 | BL5: W1 | BM5: B1 | BN5: F1 | BO5: F2 | BP5: G1 | BQ5: PC1 | BR5: C1 | BS5: C2 | BW5: S1 | BX5: I1 | BY5: I2 | BZ5: I3 | CA5: I4 | CB5: Hr 1 | CC5: M1 | CD5: Sub1
A6: =$B$2 -> 0 | B6: H1 | C6: Air Cooled DX (Package / Split System) | J6: 0 | K6: 0 | L6: =+K6*J6 -> 0 | M6: 3 | N6: 0 | O6: =+N6*M6 -> 0 | P6: 1 | Q6: 0 | R6: =+Q6*P6 -> 0 | S6: =+$J6+$M6+$P6 -> 4 | T6: =IF($V6>0,$S6,0) -> 4 | U6: =+R6+O6+L6+I6+F6 -> 0 | V6: =IFERROR(VLOOKUP($A$5,'Equipment List Template'!$1:$1048576,11,FALSE),"0") -> 0 | W6: =+U6*V6 -> 0 | Z6: =B2 -> 0 | AA6: =IFERROR(VLOOKUP($Z$6,'Equipment List Template'!$1:$1048576,2,FALSE),"") ->  | AB6: =IFERROR(VLOOKUP($Z$6,'Equipment List Template'!$1:$1048576,3,FALSE),"") ->  | AC6: =IFERROR(VLOOKUP($Z$6,'Equipment List Template'!$1:$1048576,4,FALSE),"") ->  | AD6: =IFERROR(VLOOKUP($Z$6,'Equipment List Template'!$1:$1048576,5,FALSE),"") ->  | AE6: =IFERROR(VLOOKUP($Z$6,'Equipment List Template'!$1:$1048576,6,FALSE),"") ->  | AF6: =IFERROR(VLOOKUP($Z$6,'Equipment List Template'!$1:$1048576,7,FALSE),"") ->  | AH6: =+$W5 -> 0 | AI6: =+$W6 -> 0 | AJ6: =+$W7 -> 0 | AK6: =+$W8 -> 0 | AL6: =+$W9 -> 0 | AM6: =+$W10 -> 0 | AN6: =+$W11 -> 0 | AO6: =+$W12 -> 0 | AP6: =+$W13 -> 0 | AQ6: =+$W14 -> 0 | AR6: =+$W15 -> 0 | AS6: =+$W16 -> 0 | AT6: =+$W17 -> 0 | AU6: =+$W18 -> 0 | AV6: =+$W19 -> 0 | AW6: =+$W20 -> 0 | AX6: =+$W21 -> 0 | AY6: =+$W22 -> 0 | AZ6: =+$W23 -> 0 | BA6: =+$W24 -> 0 | BB6: =+$W25 -> 0 | BC6: =+$W26 -> 0 | BD6: =+$W27 -> 0 | BE6: =+$W28 -> 0 | BF6: =+$W29 -> 0 | BG6: =+$W30 -> 0 | BH6: =+$W31 -> 0 | BI6: =+$W32 -> 0 | BJ6: =+$W33 -> 0 | BK6: =+$W34 -> 0 | BL6: =+$W35 -> 0 | BM6: =+$W36 -> 0 | BN6: =+$W37 -> 0 | BO6: =+$W38 -> 0 | BP6: =+$W39 -> 0 | BQ6: =+$W40 -> 0 | BR6: =+$W41 -> 0 | BS6: =+$W42 -> 0 | BU6: =+W43 -> 0 | BW6: =+D44 -> 0 | BX6: =+D45 -> 0 | BY6: =+D46 -> 0 | BZ6: =+D47 -> 0 | CA6: =+D48 -> 0 | CB6: =+D49 -> 0 | CC6: =+D50 -> 0 | CD6: =+D51 -> 0
A7: 0 | B7: H2 | C7: Air Handling Unit (Air-cooled DX) | J7: 0 | K7: 0 | L7: 0 | M7: 3 | N7: 0 | O7: 0 | P7: 1 | Q7: 0 | R7: 0 | S7: 4 | T7: 4 | U7: 0 | V7: =IFERROR(VLOOKUP($A$5,'Equipment List Template'!$1:$1048576,12,FALSE),"0") -> 0 | W7: =+U7*V7 -> 0
A8: 0 | B8: H3 | C8: Air-Cooled Chiller | G8: 40 | H8: 0 | I8: =+H8*G8 -> 0 | J8: 8 | K8: 0 | L8: 0 | M8: 3 | N8: 0 | O8: 0 | P8: 1 | Q8: 0 | R8: 0 | S8: 12 | T8: 12 | U8: 0 | V8: =IFERROR(VLOOKUP($A$5,'Equipment List Template'!$1:$1048576,13,FALSE),"0") -> 0 | W8: 0
A9: 0 | B9: H4 | C9: Centrifugal Chiller | J9: 11 | K9: 0 | L9: 0 | M9: 0 | N9: 0 | O9: 0 | P9: 1 | Q9: 0 | R9: 0 | S9: 12 | T9: 12 | U9: 0 | V9: =IFERROR(VLOOKUP($A$5,'Equipment List Template'!$1:$1048576,14,FALSE),"0") -> 0 | W9: 0
A10: 0 | B10: H5 | C10: Cooling Tower (Induced Draft) | J10: 8 | K10: 0 | L10: 0 | M10: 3 | N10: 0 | O10: 0 | P10: 1 | Q10: 0 | R10: 0 | S10: 12 | T10: 12 | U10: 0 | V10: =IFERROR(VLOOKUP($A$5,'Equipment List Template'!$1:$1048576,15,FALSE),"0") -> 0 | W10: 0
A11: 0 | B11: H6 | C11: Ice Chiller | J11: 8 | K11: 0 | L11: 0 | M11: 3 | N11: 0 | O11: 0 | P11: 1 | Q11: 0 | R11: 0 | S11: 12 | T11: 12 | U11: 0 | V11: =IFERROR(VLOOKUP($A$5,'Equipment List Template'!$1:$1048576,16,FALSE),"0") -> 0 | W11: 0
A12: 0 | B12: H7 | C12: MultiStack (Geothermal) | J12: 0 | K12: 0 | L12: 0 | M12: 0 | N12: 0 | O12: 0 | P12: 1 | Q12: 0 | R12: 0 | S12: 1 | T12: 1 | U12: 0 | V12: =IFERROR(VLOOKUP($A$5,'Equipment List Template'!$1:$1048576,17,FALSE),"0") -> 0 | W12: 0
A13: 0 | B13: H8 | C13: Water Source Heat Pump | J13: 8 | K13: 0 | L13: 0 | M13: 3 | N13: 0 | O13: 0 | P13: 1 | Q13: 0 | R13: 0 | S13: 12 | T13: 12 | U13: 0 | V13: =IFERROR(VLOOKUP($A$5,'Equipment List Template'!$1:$1048576,18,FALSE),"0") -> 0 | W13: 0
A14: 0 | B14: H9 | C14: Fan Coil System | J14: 0 | K14: 0 | L14: 0 | M14: 3 | N14: 0 | O14: 0 | P14: 1 | Q14: 0 | R14: 0 | S14: 4 | T14: 4 | U14: 0 | V14: =IFERROR(VLOOKUP($A$5,'Equipment List Template'!$1:$1048576,19,FALSE),"0") -> 0 | W14: 0
A15: 0 | B15: H10 | C15: Exhaust Fan | J15: 0 | K15: 0 | L15: 0 | M15: 3 | N15: 0 | O15: 0 | P15: 1 | Q15: 0 | R15: 0 | S15: 4 | T15: 4 | U15: 0 | V15: =IFERROR(VLOOKUP($A$5,'Equipment List Template'!$1:$1048576,20,FALSE),"0") -> 0 | W15: 0
A16: 0 | B16: H11 | C16: HVAC Unique System | J16: 8 | K16: 0 | L16: 0 | M16: 3 | N16: 0 | O16: 0 | P16: 1 | Q16: 0 | R16: 0 | S16: 12 | T16: 12 | U16: 0 | V16: =IFERROR(VLOOKUP($A$5,'Equipment List Template'!$1:$1048576,21,FALSE),"0") -> 0 | W16: 0
A17: 0 | B17: E1 | C17: Electrical Panels | J17: 0 | K17: 0 | L17: 0 | M17: 3 | N17: 0 | O17: 0 | P17: 1 | Q17: 0 | R17: 0 | S17: 4 | T17: 4 | U17: 0 | V17: =IFERROR(VLOOKUP($A$5,'Equipment List Template'!$1:$1048576,22,FALSE),"0") -> 0 | W17: 0
A18: 0 | B18: E2 | C18: Emergency Generator | J18: 8 | K18: 0 | L18: 0 | M18: 3 | N18: 0 | O18: 0 | P18: 1 | Q18: 0 | R18: 0 | S18: 12 | T18: 12 | U18: 0 | V18: =IFERROR(VLOOKUP($A$5,'Equipment List Template'!$1:$1048576,23,FALSE),"0") -> 0 | W18: 0
A19: 0 | B19: E3 | C19: Motor Control Center | J19: 0 | K19: 0 | L19: 0 | M19: 4 | N19: 0 | O19: 0 | P19: 0 | Q19: 0 | R19: 0 | S19: 4 | T19: 4 | U19: 0 | V19: =IFERROR(VLOOKUP($A$5,'Equipment List Template'!$1:$1048576,24,FALSE),"0") -> 0 | W19: 0
A20: 0 | B20: E4 | C20: Automatic Switch Gear | J20: 8 | K20: 0 | L20: 0 | M20: 3 | N20: 0 | O20: 0 | P20: 1 | Q20: 0 | R20: 0 | S20: 12 | T20: 12 | U20: 0 | V20: =IFERROR(VLOOKUP($A$5,'Equipment List Template'!$1:$1048576,25,FALSE),"0") -> 0 | W20: 0
A21: 0 | B21: E5 | C21: Not Used | J21: 8 | K21: 0 | L21: 0 | M21: 3 | N21: 0 | O21: 0 | P21: 1 | Q21: 0 | R21: 0 | S21: 12 | T21: 12 | U21: 0 | V21: =IFERROR(VLOOKUP($A$5,'Equipment List Template'!$1:$1048576,26,FALSE),"0") -> 0 | W21: 0
A22: 0 | B22: E6 | C22: Transformer (Dry-Type) | J22: 0 | K22: 0 | L22: 0 | M22: 3 | N22: 0 | O22: 0 | P22: 1 | Q22: 0 | R22: 0 | S22: 4 | T22: 4 | U22: 0 | V22: =IFERROR(VLOOKUP($A$5,'Equipment List Template'!$1:$1048576,27,FALSE),"0") -> 0 | W22: 0
A23: 0 | B23: E7 | C23: Uninterruptible Power Supply (UPS) | J23: 0 | K23: 0 | L23: 0 | M23: 0 | N23: 0 | O23: 0 | P23: 1 | Q23: 0 | R23: 0 | S23: 1 | T23: 1 | U23: 0 | V23: =IFERROR(VLOOKUP($A$5,'Equipment List Template'!$1:$1048576,28,FALSE),"0") -> 0 | W23: 0
A24: 0 | B24: E8 | C24: Electrical Unique System | J24: 8 | K24: 0 | L24: 0 | M24: 3 | N24: 0 | O24: 0 | P24: 1 | Q24: 0 | R24: 0 | S24: 12 | T24: 12 | U24: 0 | V24: =IFERROR(VLOOKUP($A$5,'Equipment List Template'!$1:$1048576,29,FALSE),"0") -> 0 | W24: 0
A25: 0 | B25: L1 | C25: Life Safety | J25: 0 | K25: 0 | L25: 0 | M25: 3 | N25: 0 | O25: 0 | P25: 1 | Q25: 0 | R25: 0 | S25: 4 | T25: 4 | U25: 0 | V25: =IFERROR(VLOOKUP($A$5,'Equipment List Template'!$1:$1048576,30,FALSE),"0") -> 0 | W25: =+U25*V25 -> 0
A26: 0 | B26: L2 | C26: Backflow Preventer(s) | J26: 0 | K26: 0 | L26: 0 | M26: 0 | N26: 0 | O26: 0 | P26: 1 | Q26: 0 | R26: 0 | S26: 1 | T26: 1 | U26: 0 | V26: =IFERROR(VLOOKUP($A$5,'Equipment List Template'!$1:$1048576,31,FALSE),"0") -> 0 | W26: =+U26*V26 -> 0
A27: 0 | B27: P1 | C27: Hot Water Boiler | J27: 8 | K27: 0 | L27: 0 | M27: 3 | N27: 0 | O27: 0 | P27: 1 | Q27: 0 | R27: 0 | S27: 12 | T27: 12 | U27: 0 | V27: =IFERROR(VLOOKUP($A$5,'Equipment List Template'!$1:$1048576,32,FALSE),"0") -> 0 | W27: 0
A28: 0 | B28: P2 | C28: Gas Water Heater | J28: 0 | K28: 0 | L28: 0 | M28: 0 | N28: 0 | O28: 0 | P28: 1 | Q28: 0 | R28: 0 | S28: 1 | T28: 1 | U28: 0 | V28: =IFERROR(VLOOKUP($A$5,'Equipment List Template'!$1:$1048576,33,FALSE),"0") -> 0 | W28: 0
A29: 0 | B29: P3 | C29: Electric Water Heater | J29: 0 | K29: 0 | L29: 0 | M29: 0 | N29: 0 | O29: 0 | P29: 1 | Q29: 0 | R29: 0 | S29: 1 | T29: 1 | U29: 0 | V29: =IFERROR(VLOOKUP($A$5,'Equipment List Template'!$1:$1048576,34,FALSE),"0") -> 0 | W29: 0
A30: 0 | B30: P4 | C30: Plumbing Unique System | J30: 0 | K30: 0 | L30: 0 | M30: 3 | N30: 0 | O30: 0 | P30: 1 | Q30: 0 | R30: 0 | S30: 4 | T30: 4 | U30: 0 | V30: =IFERROR(VLOOKUP($A$5,'Equipment List Template'!$1:$1048576,35,FALSE),"0") -> 0 | W30: 0
A31: 0 | B31: P5 | C31: Steam System | J31: 0 | K31: 0 | L31: 0 | M31: 3 | N31: 0 | O31: 0 | P31: 1 | Q31: 0 | R31: 0 | S31: 4 | T31: 4 | U31: 0 | V31: =IFERROR(VLOOKUP($A$5,'Equipment List Template'!$1:$1048576,36,FALSE),"0") -> 0 | W31: 0
A32: 0 | B32: P6 | C32: Pneumatic Compressor | J32: 11 | K32: 0 | L32: 0 | M32: 0 | N32: 0 | O32: 0 | P32: 1 | Q32: 0 | R32: 0 | S32: 12 | T32: 12 | U32: 0 | V32: =IFERROR(VLOOKUP($A$5,'Equipment List Template'!$1:$1048576,37,FALSE),"0") -> 0 | W32: 0
A33: 0 | B33: R1 | C33: Rounds and Readings | D33: =IFERROR(IF(VLOOKUP($A33,'Equipment List Template'!$1:$1048576,38,FALSE)=248,248,0),0) -> 0 | E33: 0 | F33: =+E33*D33 -> 0 | G33: =IFERROR(IF(VLOOKUP($A33,'Equipment List Template'!$1:$1048576,38,FALSE)=40,40,0),0) -> 0 | H33: 0 | I33: =+H33*G33 -> 0 | J33: 12 | K33: 0 | L33: 0 | S33: 12 | T33: 12 | U33: =+R33+O33+L33+I33+F33 -> 0 | V33: 1 | W33: =+U33*V33 -> 0
A34: 0 | B34: V1 | C34: Vertical Transportation | J34: 8 | K34: 0 | L34: =+K34*J34 -> 0 | M34: 3 | N34: 0 | O34: =+N34*M34 -> 0 | P34: 1 | Q34: 0 | R34: =+Q34*P34 -> 0 | S34: 12 | T34: 12 | U34: =+R34+O34+L34 -> 0 | V34: =IFERROR(VLOOKUP($A$5,'Equipment List Template'!$1:$1048576,39,FALSE),"0") -> 0 | W34: =+U34*V34 -> 0
A35: 0 | B35: W1 | C35: Water Treatment | D35: =IFERROR(IF(VLOOKUP($A35,'Equipment List Template'!$1:$1048576,40,FALSE)=248,260,0),0) -> 0 | E35: 0 | F35: =+E35*D35 -> 0 | S35: 0 | T35: 0 | U35: =+R35+O35+L35+I35+F35 -> 0 | V35: 1 | W35: 0
A36: 0 | B36: B1 | C36: Building Exterior / Hardscape (Monthly) | J36: 12 | K36: 0 | L36: =+K36*J36 -> 0 | S36: 12 | T36: 12 | U36: 0 | V36: =IFERROR(VLOOKUP($A$5,'Equipment List Template'!$1:$1048576,41,FALSE),"0") -> 0 | W36: 0
A37: 0 | B37: F1 | C37: Fountain Maintenance (Monthly) | J37: 12 | K37: 0 | L37: =+K37*J37 -> 0 | S37: 12 | T37: 12 | U37: 0 | V37: =IFERROR(VLOOKUP($A$5,'Equipment List Template'!$1:$1048576,42,FALSE),"0") -> 0 | W37: 0
A38: 0 | B38: F2 | C38: Fuel Storage Tanks (Quarterly) If applicable | M38: 4 | N38: 0 | O38: =+N38*M38 -> 0 | S38: 4 | T38: 4 | U38: 0 | V38: =IFERROR(VLOOKUP($A$5,'Equipment List Template'!$1:$1048576,43,FALSE),"0") -> 0 | W38: 0
A39: 0 | B39: G1 | C39: Landscape Maintenance * | G39: 40 | H39: 0 | I39: =+H39*G39 -> 0 | S39: 0 | T39: 0 | U39: 0 | V39: =IFERROR(VLOOKUP($A$5,'Equipment List Template'!$1:$1048576,44,FALSE),"0") -> 0 | W39: 0
B40: PC1 | C40: Pest Control (Monthly) | J40: 12 | K40: 0 | S40: 12 | T40: 12 | U40: 0 | V40: 1 | W40: 0
A41: 0 | B41: C1 | C41: Account Management and Supervision (Monthly) | J41: 12 | K41: 0 | L41: =+K41*J41 -> 0 | S41: 12 | T41: 12 | U41: 0 | V41: 1 | W41: 0
A42: 0 | B42: C2 | C42: Fee (Monthly) | J42: 12 | K42: 0 | L42: =+K42*J42 -> 0 | S42: 12 | T42: 12 | U42: 0 | V42: 1 | W42: 0
Q43: JCC ID | R43: =B2 -> 0 | U43: Total | W43: =SUM(W6:W42) -> 0
B44: S1 | C44: Snow Removal - (crew hourly rate) | D44: 0 | U44: Total # of PM's | W44: =SUM(T5:T42) -> 289
B45: I1 | C45: Unclogging Blocked Toilet - In-custody cell (labor-only) | D45: 0
B46: I2 | C46: Unclogging Blocked Toilet - Public/Court Staff (labor-only) | D46: 0
B47: I3 | C47: Clean up & Disposal of Biological Waste Event | D47: 0
B48: I4 | C48: Clean up & Disposal of Biological Waste Labor Rate | D48: 0
B49: Hr 1 | C49: Hourly Rate (All Labor categories) | D49: 0
B50: M1 | C50: Markup on Materials (Percentage) | D50: 0
B51: Sub1 | C51: Markup on Subcontractors/Third-Parties (Percentage) | D51: 0
B53: * Landscape Maintenance varies by location on the number of weeks per year it can be preformed. For the purpose of the RFP, all facilities are pre-established at 40 weeks of service. The actual amount paid by facility will be based upon the actual weeks that service has been performed, validated and invoiced.

Sheet 13-A1
B1: JCC ID | C1: Facility Name | D1: Address | F1: City / Town | H1: Zip Code | J1: County | L1: Region | N1: RFP | P1: Proposer
B2: 13-A1 | C2: =IFERROR(VLOOKUP($B$2,'Equipment List Template'!$1:$1048576,2,FALSE),"") -> 13-A1 Imperial County Courthouse | D2: =IFERROR(VLOOKUP($B$2,'Equipment List Template'!$1:$1048576,3,FALSE),"") -> 939 W. Main St. | F2: =IFERROR(VLOOKUP($B$2,'Equipment List Template'!$1:$1048576,4,FALSE),"") -> El Centro | H2: =IFERROR(VLOOKUP($B$2,'Equipment List Template'!$1:$1048576,5,FALSE),"") -> 92243 | J2: =IFERROR(VLOOKUP($B$2,'Equipment List Template'!$1:$1048576,6,FALSE),"") -> Imperial | L2: =IFERROR(VLOOKUP($B$2,'Equipment List Template'!$1:$1048576,7,FALSE),"") -> SRO | N2: ='Summary Pricing Sheet'!B2 -> RFP-FS-SP-2019-03-JP | P2: ='Summary Pricing Sheet'!B3 -> Firm Name TBD
D3: Daily Activity | G3: Weekly Activity | J3: Monthly Activity | M3: Quarterly Activity | P3: Annual Activity | U3: Summary | AG3: System | AH3: Access | AI3: HVAC | AU3: Electrical | BD3: Life Safety | BF3: Plumbing | BM3: Building Systems | BV3: Corporate | BY3: Fixed Price - Facility Total Annual Cost Year 1 | CA3: Unit Pricing
B4: System ID | C4: Subsystem | D4: Quantity | E4: Cost | F4: Daily Total | G4: Quantity | H4: Cost | I4: Weekly Total | J4: Monthly Quantity | K4: Cost | L4: Monthly Total | M4: Quarterly Quantity | N4: Cost | O4: Quarterly Total | P4: Annual Quantity | Q4: Cost | R4: Annual PM Total | T4: Number of PM's | U4: Annual Cost | V4: Quantity | W4: Total Annual Cost | AG4: Subsystem | AH4: Access Doors, Gates, Sally Port | AI4: Air Cooled DX (Split System) | AJ4: Air Handling Unit (Air Cooled DX / Package) | AK4: Air-Cooled Chiller | AL4: Centrifugal Chiller | AM4: Cooling Tower (Induced Draft) | AN4: Ice Chiller Tank | AO4: Geothermal System | AP4: Water Source Heat Pump | AQ4: Fan Coil System | AR4: Supply / Return Fan and Exhaust | AS4: Evaporative and Spot Coolers (swamp coolers; spot cooler) | AT4: Unique HVAC System | AU4: Electrical Panels | AV4: Emergency Generator | AW4: Motor Control Center | AX4: Automatic Transfer Switch | AY4: Building Automated Systems (BAS) | AZ4: Transformer (Dry-Type) | BA4: Uninterruptible Power Supply (UPS) | BB4: Lighting and Controls (Interior and Exterior) | BC4: Unique Electrical System | BD4: Life Safety Systems | BE4: Reduced Pressure Backflow Preventer(s) | BF4: Boiler (Condensing) | BG4: Domestic Water Heater (Gas-Fired, Condensing) | BH4: Domestic Water Heater (Electric, Non- Condensing) | BI4: Boiler (Steam, low pressure) | BJ4: Steam System | BK4: Pneumatic Compressor System | BL4: Unique Plumbing System | BM4: Rounds and Readings | BN4: Vertical Transportation | BO4: Water Treatment | BP4: Building Exterior / Hardscape (Monthly) | BQ4: Fountain Maintenance (Monthly) | BR4: Above-Ground/Underground Fuel Storage Tanks (Quarterly) If applicable | BS4: Landscape Maintenance * | BT4: Pest Control (Monthly) | BU4: Photovoltaic (PV) System | BV4: Account Management and Supervision (Monthly) | BW4: Fee (Monthly) | CA4: Snow Removal - (crew hourly rate) | CB4: Unclogging Blocked Toilet - In-custody holding cell (labor) | CC4: Unclogging Blocked Toilet - Public/Court Staff (labor) | CD4: Clean up & Disposal of Biological Waste Event | CE4: Clean up & Disposal of Biological Waste Labor Rate | CF4: Hourly Rate | CG4: Markup on Materials | CH4: Markup on Subcontractors/Third-Parties
A5: =$B$2 -> 13-A1 | B5: A1 | C5: Access Doors, Gates, Sally Port | J5: 11 | K5: 0 | L5: =+K5*J5 -> 0 | M5: 0 | N5: 0 | O5: =+N5*M5 -> 0 | P5: 1 | Q5: 0 | R5: =+Q5*P5 -> 0 | S5: =+$J5+$M5+$P5 -> 12 | T5: =IF($V5>0,$S5,0) -> 12 | U5: =+R5+O5+L5+I5+F5 -> 0 | V5: =IFERROR(VLOOKUP($A$5,'Equipment List Template'!$1:$1048576,10,FALSE),"0") -> 4 | W5: =+U5*V5 -> 0 | X5: =$T5*$V5 -> 48 | Z5: JCC ID | AA5: Facility Name | AB5: Address | AC5: City / Town | AD5: County | AE5: Region | AF5: Region | AG5: System ID | AH5: A1 | AI5: H1 | AJ5: H2 | AK5: H3 | AL5: H4 | AM5: H5 | AN5: H6 | AO5: H7 | AP5: H8 | AQ5: H9 | AR5: H10 | AS5: H11 | AT5: H12 | AU5: E1 | AV5: E2 | AW5: E3 | AX5: E4 | AY5: E5 | AZ5: E6 | BA5: E7 | BB5: E8 | BC5: E9 | BD5: L1 | BE5: L2 | BF5: P1 | BG5: P2 | BH5: P3 | BI5: P4 | BJ5: P5 | BK5: P6 | BL5: P7 | BM5: R1 | BN5: V1 | BO5: W1 | BP5: B1 | BQ5: F1 | BR5: F2 | BS5: G1 | BT5: PC1 | BU5: PV1 | BV5: C1 | BW5: C2 | CA5: S1 | CB5: I1 | CC5: I2 | CD5: I3 | CE5: I4 | CF5: Hr 1 | CG5: M1 | CH5: Sub1
A6: =$B$2 -> 13-A1 | B6: H1 | C6: Air Cooled DX (Split System) | J6: 0 | K6: 0 | L6: =+K6*J6 -> 0 | M6: 3 | N6: 0 | O6: =+N6*M6 -> 0 | P6: 1 | Q6: 0 | R6: =+Q6*P6 -> 0 | S6: =+$J6+$M6+$P6 -> 4 | T6: =IF($V6>0,$S6,0) -> 4 | U6: =+R6+O6+L6+I6+F6 -> 0 | V6: =IFERROR(VLOOKUP($A$5,'Equipment List Template'!$1:$1048576,11,FALSE),"0") -> 10 | W6: =+U6*V6 -> 0 | X6: =$T6*$V6 -> 40 | Z6: =B2 -> 13-A1 | AA6: =IFERROR(VLOOKUP($Z$6,'Equipment List Template'!$1:$1048576,2,FALSE),"") -> 13-A1 Imperial County Courthouse | AB6: =IFERROR(VLOOKUP($Z$6,'Equipment List Template'!$1:$1048576,3,FALSE),"") -> 939 W. Main St. | AC6: =IFERROR(VLOOKUP($Z$6,'Equipment List Template'!$1:$1048576,4,FALSE),"") -> El Centro | AD6: =IFERROR(VLOOKUP($Z$6,'Equipment List Template'!$1:$1048576,5,FALSE),"") -> 92243 | AE6: =IFERROR(VLOOKUP($Z$6,'Equipment List Template'!$1:$1048576,6,FALSE),"") -> Imperial | AF6: =IFERROR(VLOOKUP($Z$6,'Equipment List Template'!$1:$1048576,7,FALSE),"") -> SRO | AH6: =+$W5 -> 0 | AI6: =+$W6 -> 0 | AJ6: =+$W7 -> 0 | AK6: =+$W8 -> 0 | AL6: =+$W9 -> 0 | AM6: =+$W10 -> 0 | AN6: =+$W11 -> 0 | AO6: =+$W12 -> 0 | AP6: =+$W13 -> 0 | AQ6: =+$W14 -> 0 | AR6: =+$W15 -> 0 | AS6: =+$W16 -> 0 | AT6: =+$W17 -> 0 | AU6: =+$W18 -> 0 | AV6: =+$W19 -> 0 | AW6: =+$W20 -> 0 | AX6: =+$W21 -> 0 | AY6: =+$W22 -> 0 | AZ6: =+$W23 -> 0 | BA6: =+$W24 -> 0 | BB6: =+$W25 -> 0 | BC6: =+$W26 -> 0 | BD6: =+$W27 -> 0 | BE6: =+$W28 -> 0 | BF6: =+$W29 -> 0 | BG6: =+$W30 -> 0 | BH6: =+$W31 -> 0 | BI6: =+$W32 -> 0 | BJ6: =+$W33 -> 0 | BK6: =+$W34 -> 0 | BL6: =+$W35 -> 0 | BM6: =+$W36 -> 0 | BN6: =+$W37 -> 0 | BO6: =+$W38 -> 0 | BP6: =+$W39 -> 0 | BQ6: =+$W40 -> 0 | BR6: =+$W41 -> 0 | BS6: =+$W42 -> 0 | BT6: =+$W43 -> 0 | BU6: =+$W44 -> 0 | BV6: =+$W45 -> 0 | BW6: =+$W46 -> 0 | BY6: =+$W47 -> 0 | CA6: =+$D48 -> 0 | CB6: =+$D49 -> 0 | CC6: =+$D50 -> 0 | CD6: =+$D51 -> 0 | CE6: =+$D52 -> 0 | CF6: =+$D53 -> 0 | CG6: =+$D54 -> 0 | CH6: =+$D55 -> 0
A7: 13-A1 | B7: H2 | C7: Air Handling Unit (Air Cooled DX / Package) | J7: 0 | K7: 0 | L7: 0 | M7: 3 | N7: 0 | O7: 0 | P7: 1 | Q7: 0 | R7: 0 | S7: 4 | T7: 4 | U7: 0 | V7: =IFERROR(VLOOKUP($A$5,'Equipment List Template'!$1:$1048576,12,FALSE),"0") -> 9 | W7: =+U7*V7 -> 0 | X7: 36
A8: 13-A1 | B8: H3 | C8: Air-Cooled Chiller | J8: 11 | K8: 0 | L8: 0 | M8: 0 | N8: 0 | O8: 0 | P8: 1 | Q8: 0 | R8: 0 | S8: 12 | T8: 0 | U8: 0 | V8: =IFERROR(VLOOKUP($A$5,'Equipment List Template'!$1:$1048576,13,FALSE),"0") -> 0 | W8: 0 | X8: 0
A9: 13-A1 | B9: H4 | C9: Centrifugal Chiller | J9: 11 | K9: 0 | L9: 0 | M9: 0 | N9: 0 | O9: 0 | P9: 1 | Q9: 0 | R9: 0 | S9: 12 | T9: 12 | U9: 0 | V9: =IFERROR(VLOOKUP($A$5,'Equipment List Template'!$1:$1048576,14,FALSE),"0") -> 2 | W9: 0 | X9: 24
A10: 13-A1 | B10: H5 | C10: Cooling Tower (Induced Draft) | J10: 8 | K10: 0 | L10: 0 | M10: 3 | N10: 0 | O10: 0 | P10: 1 | Q10: 0 | R10: 0 | S10: 12 | T10: 12 | U10: 0 | V10: =IFERROR(VLOOKUP($A$5,'Equipment List Template'!$1:$1048576,15,FALSE),"0") -> 2 | W10: 0 | X10: 24
A11: 13-A1 | B11: H6 | C11: Ice Chiller Tank | J11: 8 | K11: 0 | L11: 0 | M11: 3 | N11: 0 | O11: 0 | P11: 1 | Q11: 0 | R11: 0 | S11: 12 | T11: 0 | U11: 0 | V11: =IFERROR(VLOOKUP($A$5,'Equipment List Template'!$1:$1048576,16,FALSE),"0") -> 0 | W11: 0 | X11: 0
A12: 13-A1 | B12: H7 | C12: Geothermal System | J12: 11 | K12: 0 | L12: 0 | M12: 0 | N12: 0 | O12: 0 | P12: 1 | Q12: 0 | R12: 0 | S12: 12 | T12: 0 | U12: 0 | V12: =IFERROR(VLOOKUP($A$5,'Equipment List Template'!$1:$1048576,17,FALSE),"0") -> 0 | W12: 0 | X12: 0
A13: 13-A1 | B13: H8 | C13: Water Source Heat Pump | J13: 8 | K13: 0 | L13: 0 | M13: 3 | N13: 0 | O13: 0 | P13: 1 | Q13: 0 | R13: 0 | S13: 12 | T13: 0 | U13: 0 | V13: =IFERROR(VLOOKUP($A$5,'Equipment List Template'!$1:$1048576,18,FALSE),"0") -> 0 | W13: 0 | X13: 0
A14: 13-A1 | B14: H9 | C14: Fan Coil System | J14: 0 | K14: 0 | L14: 0 | M14: 3 | N14: 0 | O14: 0 | P14: 1 | Q14: 0 | R14: 0 | S14: 4 | T14: 4 | U14: 0 | V14: =IFERROR(VLOOKUP($A$5,'Equipment List Template'!$1:$1048576,19,FALSE),"0") -> 47 | W14: 0 | X14: 188
A15: 13-A1 | B15: H10 | C15: Supply / Return Fan and Exhaust | J15: 0 | K15: 0 | L15: 0 | M15: 3 | N15: 0 | O15: 0 | P15: 1 | Q15: 0 | R15: 0 | S15: 4 | T15: 0 | U15: 0 | V15: =IFERROR(VLOOKUP($A$5,'Equipment List Template'!$1:$1048576,20,FALSE),"0") -> 0 | W15: 0 | X15: 0
A16: 13-A1 | B16: H11 | C16: Evaporative and Spot Coolers (swamp coolers; spot cooler) | J16: 8 | K16: 0 | L16: 0 | M16: 3 | N16: 0 | O16: 0 | P16: 1 | Q16: 0 | R16: 0 | S16: 12 | T16: 12 | U16: 0 | V16: =IFERROR(VLOOKUP($A$5,'Equipment List Template'!$1:$1048576,21,FALSE),"0") -> 1 | W16: 0 | X16: 12
B17: H12 | C17: Unique HVAC System | J17: 0 | K17: 0 | L17: 0 | M17: 0 | N17: 0 | O17: 0 | P17: 0 | Q17: 0 | R17: 0 | S17: 0 | T17: 0 | V17: 0 | W17: 0
A18: 13-A1 | B18: E1 | C18: Electrical Panels | J18: 0 | K18: 0 | L18: 0 | M18: 3 | N18: 0 | O18: 0 | P18: 1 | Q18: 0 | R18: 0 | S18: 4 | T18: 4 | U18: 0 | V18: =IFERROR(VLOOKUP($A$5,'Equipment List Template'!$1:$1048576,23,FALSE),"0") -> 1 | W18: 0 | X18: 4
A19: 13-A1 | B19: E2 | C19: Emergency Generator | J19: 8 | K19: 0 | L19: 0 | M19: 3 | N19: 0 | O19: 0 | P19: 1 | Q19: 0 | R19: 0 | S19: 12 | T19: 0 | U19: 0 | V19: =IFERROR(VLOOKUP($A$5,'Equipment List Template'!$1:$1048576,24,FALSE),"0") -> 0 | W19: 0 | X19: 0
A20: 13-A1 | B20: E3 | C20: Motor Control Center | J20: 0 | K20: 0 | L20: 0 | M20: 3 | N20: 0 | O20: 0 | P20: 1 | Q20: 0 | R20: 0 | S20: 4 | T20: 0 | U20: 0 | V20: =IFERROR(VLOOKUP($A$5,'Equipment List Template'!$1:$1048576,25,FALSE),"0") -> 0 | W20: 0 | X20: 0
A21: 13-A1 | B21: E4 | C21: Automatic Transfer Switch | J21: 8 | K21: 0 | L21: 0 | M21: 3 | N21: 0 | O21: 0 | P21: 1 | Q21: 0 | R21: 0 | S21: 12 | T21: 0 | U21: 0 | V21: =IFERROR(VLOOKUP($A$5,'Equipment List Template'!$1:$1048576,26,FALSE),"0") -> 0 | W21: 0 | X21: 0
A22: 13-A1 | B22: E5 | C22: Building Automated Systems (BAS) | J22: 0 | K22: 0 | L22: 0 | M22: 0 | N22: 0 | O22: 0 | P22: 1 | Q22: 0 | R22: 0 | S22: 1 | T22: 0 | U22: 0 | V22: =IFERROR(VLOOKUP($A$5,'Equipment List Template'!$1:$1048576,27,FALSE),"0") -> 0 | W22: 0 | X22: 0
A23: 13-A1 | B23: E6 | C23: Transformer (Dry-Type) | J23: 0 | K23: 0 | L23: 0 | M23: 3 | N23: 0 | O23: 0 | P23: 1 | Q23: 0 | R23: 0 | S23: 4 | T23: 0 | U23: 0 | V23: =IFERROR(VLOOKUP($A$5,'Equipment List Template'!$1:$1048576,28,FALSE),"0") -> 0 | W23: 0 | X23: 0
A24: 13-A1 | B24: E7 | C24: Uninterruptible Power Supply (UPS) | J24: 0 | K24: 0 | L24: 0 | M24: 0 | N24: 0 | O24: 0 | P24: 1 | Q24: 0 | R24: 0 | S24: 1 | T24: 0 | U24: 0 | V24: =IFERROR(VLOOKUP($A$5,'Equipment List Template'!$1:$1048576,29,FALSE),"0") -> 0 | W24: 0 | X24: 0
A25: 13-A1 | B25: E8 | C25: Lighting and Controls (Interior and Exterior) | J25: 12 | K25: 0 | L25: 0 | M25: 0 | N25: 0 | O25: 0 | P25: 0 | Q25: 0 | R25: 0 | S25: 12 | T25: 0 | U25: 0 | V25: =IFERROR(VLOOKUP($A$5,'Equipment List Template'!$1:$1048576,30,FALSE),"0") -> 0 | W25: 0 | X25: 0
B26: E9 | C26: Unique Electrical System | J26: 0 | K26: 0 | L26: 0 | M26: 0 | N26: 0 | O26: 0 | P26: 0 | Q26: 0 | R26: 0 | S26: 0 | T26: 0 | V26: 0 | W26: 0
A27: 13-A1 | B27: L1 | C27: Life Safety Systems | J27: 0 | K27: 0 | L27: 0 | M27: 3 | N27: 0 | O27: 0 | P27: 1 | Q27: 0 | R27: 0 | S27: 4 | T27: 4 | U27: 0 | V27: =IFERROR(VLOOKUP($A$5,'Equipment List Template'!$1:$1048576,32,FALSE),"0") -> 2 | W27: 0 | X27: 8
A28: 13-A1 | B28: L2 | C28: Reduced Pressure Backflow Preventer(s) | J28: 0 | K28: 0 | L28: 0 | M28: 0 | N28: 0 | O28: 0 | P28: 1 | Q28: 0 | R28: 0 | S28: 1 | T28: 1 | U28: 0 | V28: =IFERROR(VLOOKUP($A$5,'Equipment List Template'!$1:$1048576,33,FALSE),"0") -> 2 | W28: 0 | X28: 2
A29: 13-A1 | B29: P1 | C29: Boiler (Condensing) | J29: 8 | K29: 0 | L29: 0 | M29: 3 | N29: 0 | O29: 0 | P29: 1 | Q29: 0 | R29: 0 | S29: 12 | T29: 12 | U29: 0 | V29: =IFERROR(VLOOKUP($A$5,'Equipment List Template'!$1:$1048576,34,FALSE),"0") -> 1 | W29: 0 | X29: 12
A30: 13-A1 | B30: P2 | C30: Domestic Water Heater (Gas-Fired, Condensing) | J30: 0 | K30: 0 | L30: 0 | M30: 0 | N30: 0 | O30: 0 | P30: 1 | Q30: 0 | R30: 0 | S30: 1 | T30: 0 | U30: 0 | V30: =IFERROR(VLOOKUP($A$5,'Equipment List Template'!$1:$1048576,35,FALSE),"0") -> 0 | W30: 0 | X30: 0
A31: 13-A1 | B31: P3 | C31: Domestic Water Heater (Electric, Non- Condensing) | J31: 0 | K31: 0 | L31: 0 | M31: 0 | N31: 0 | O31: 0 | P31: 1 | Q31: 0 | R31: 0 | S31: 1 | T31: 1 | U31: 0 | V31: =IFERROR(VLOOKUP($A$5,'Equipment List Template'!$1:$1048576,36,FALSE),"0") -> 1 | W31: 0 | X31: 1
A32: 13-A1 | B32: P4 | C32: Boiler (Steam, low pressure) | J32: 0 | K32: 0 | L32: 0 | M32: 3 | N32: 0 | O32: 0 | P32: 1 | Q32: 0 | R32: 0 | S32: 4 | T32: 0 | U32: 0 | V32: =IFERROR(VLOOKUP($A$5,'Equipment List Template'!$1:$1048576,37,FALSE),"0") -> 0 | W32: 0 | X32: 0
A33: 13-A1 | B33: P5 | C33: Steam System | J33: 8 | K33: 0 | L33: 0 | M33: 3 | N33: 0 | O33: 0 | P33: 1 | Q33: 0 | R33: 0 | S33: 12 | T33: 0 | U33: 0 | V33: =IFERROR(VLOOKUP($A$5,'Equipment List Template'!$1:$1048576,38,FALSE),"0") -> 0 | W33: 0 | X33: 0
A34: 13-A1 | B34: P6 | C34: Pneumatic Compressor System | J34: 11 | K34: 0 | L34: 0 | M34: 0 | N34: 0 | O34: 0 | P34: 1 | Q34: 0 | R34: 0 | S34: 12 | T34: 0 | U34: 0 | V34: =IFERROR(VLOOKUP($A$5,'Equipment List Template'!$1:$1048576,39,FALSE),"0") -> 0 | W34: 0 | X34: 0
B35: P7 | C35: Unique Plumbing System | J35: 0 | K35: 0 | L35: 0 | M35: 0 | N35: 0 | O35: 0 | P35: 0 | Q35: 0 | R35: 0 | S35: 0 | T35: 0 | U35: 0 | V35: 0 | W35: 0
A36: 13-A1 | B36: R1 | C36: Rounds and Readings | D36: =IFERROR(IF(VLOOKUP($A36,'Equipment List Template'!$1:$1048576,41,FALSE)=248,248,0),0) -> 248 | E36: 0 | F36: =+E36*D36 -> 0 | G36: =IFERROR(IF(VLOOKUP($A36,'Equipment List Template'!$1:$1048576,41,FALSE)=40,40,0),0) -> 0 | H36: 0 | I36: =+H36*G36 -> 0 | J36: 12 | K36: 0 | L36: 0 | S36: =+$J36+$M36+$P36+D36+G36 -> 260 | T36: 260 | U36: =+R36+O36+L36+I36+F36 -> 0 | V36: 1 | W36: =+U36*V36 -> 0 | X36: 260
A37: =$B$2 -> 13-A1 | B37: V1 | C37: Vertical Transportation | J37: 8 | K37: 0 | L37: =+K37*J37 -> 0 | M37: 3 | N37: 0 | O37: =+N37*M37 -> 0 | P37: 1 | Q37: 0 | R37: =+Q37*P37 -> 0 | S37: =+$J37+$M37+$P37+D37+G37 -> 12 | T37: =IF($V37>0,$S37,0) -> 12 | U37: =+R37+O37+L37 -> 0 | V37: =IFERROR(VLOOKUP($A$5,'Equipment List Template'!$1:$1048576,42,FALSE),"0") -> 1 | W37: =+U37*V37 -> 0 | X37: =$T37*$V37 -> 12
A38: 13-A1 | B38: W1 | C38: Water Treatment | D38: =IFERROR(IF(VLOOKUP($A38,'Equipment List Template'!$1:$1048576,43,FALSE)=248,260,0),0) -> 260 | E38: 0 | F38: =+E38*D38 -> 0 | S38: 260 | T38: 260 | U38: =+R38+O38+L38+I38+F38 -> 0 | V38: 1 | W38: =+U38*V38 -> 0 | X38: 260
A39: 13-A1 | B39: B1 | C39: Building Exterior / Hardscape (Monthly) | J39: 12 | K39: 0 | L39: =+K39*J39 -> 0 | S39: 12 | T39: 0 | U39: 0 | V39: =IFERROR(VLOOKUP($A$5,'Equipment List Template'!$1:$1048576,44,FALSE),"0") -> 0 | W39: 0 | X39: 0
A40: 13-A1 | B40: F1 | C40: Fountain Maintenance (Monthly) | J40: 12 | K40: 0 | L40: =+K40*J40 -> 0 | S40: 12 | T40: 0 | U40: 0 | V40: =IFERROR(VLOOKUP($A$5,'Equipment List Template'!$1:$1048576,45,FALSE),"0") -> 0 | W40: 0 | X40: 0
A41: 13-A1 | B41: F2 | C41: Above-Ground/Underground Fuel Storage Tanks (Quarterly) If applicable | M41: 4 | N41: 0 | O41: =+N41*M41 -> 0 | S41: 4 | T41: 0 | U41: 0 | V41: =IFERROR(VLOOKUP($A$5,'Equipment List Template'!$1:$1048576,46,FALSE),"0") -> 0 | W41: 0 | X41: 0
A42: 13-A1 | B42: G1 | C42: Landscape Maintenance * | G42: 40 | H42: 0 | I42: =+H42*G42 -> 0 | S42: 40 | T42: 40 | U42: 0 | V42: =IFERROR(VLOOKUP($A$5,'Equipment List Template'!$1:$1048576,47,FALSE),"0") -> 1 | W42: 0 | X42: 40
B43: PC1 | C43: Pest Control (Monthly) | J43: 12 | K43: 0 | L43: =+K43*J43 -> 0 | S43: 12 | T43: 12 | U43: 0 | V43: 1 | W43: 0 | X43: 12
B44: PV1 | C44: Photovoltaic (PV) System | P44: 1 | Q44: 0 | R44: =+Q44*P44 -> 0 | S44: 1 | T44: 0 | U44: 0 | V44: 0 | W44: =+U44*V44 -> 0
A45: 13-A1 | B45: C1 | C45: Account Management and Supervision (Monthly) | J45: 12 | K45: 0 | L45: =+K45*J45 -> 0 | S45: 12 | T45: 12 | U45: 0 | V45: 1 | W45: 0 | X45: 12
A46: 13-A1 | B46: C2 | C46: Fee (Monthly) | J46: 12 | K46: 0 | L46: =+K46*J46 -> 0 | S46: 12 | T46: 12 | U46: 0 | V46: 1 | W46: 0 | X46: 12
Q47: JCC ID | R47: =B2 -> 13-A1 | U47: Total | W47: =SUM(W5:W46) -> 0
B48: S1 | C48: Snow Removal - (crew hourly rate) | D48: 0 | U48: Total # of PM's | W48: =SUM($X$5:$X$46) -> 1007
B49: I1 | C49: Unclogging Blocked Toilet - In-custody cell (labor-only) | D49: 0
B50: I2 | C50: Unclogging Blocked Toilet - Public/Court Staff (labor-only) | D50: 0
B51: I3 | C51: Clean up & Disposal of Biological Waste Event | D51: 0
B52: I4 | C52: Clean up & Disposal of Biological Waste Labor Rate | D52: 0
B53: Hr 1 | C53: Hourly Rate (All Labor categories) | D53: 0
B54: M1 | C54: Markup on Materials (Percentage) | D54: 0
B55: Sub1 | C55: Markup on Subcontractors/Third-Parties (Percentage) | D55: 0
B57: * Landscape Maintenance varies by location on the number of weeks per year it can be preformed. For the purpose of the RFP, all facilities are pre-established at 40 weeks of service. The actual amount paid by facility will be based upon the actual weeks that service has been performed, validated and invoiced.

Sheet 13-D1
B1: JCC ID | C1: Facility Name | D1: Address | F1: City / Town | H1: Zip Code | J1: County | L1: Region | N1: RFP | P1: Proposer
B2: 13-D1 | C2: =IFERROR(VLOOKUP($B$2,'Equipment List Template'!$1:$1048576,2,FALSE),"") -> 13-D1 Winterhaven Court | D2: =IFERROR(VLOOKUP($B$2,'Equipment List Template'!$1:$1048576,3,FALSE),"") -> 2124 Winterhaven Dr. | F2: =IFERROR(VLOOKUP($B$2,'Equipment List Template'!$1:$1048576,4,FALSE),"") -> Winterhaven | H2: =IFERROR(VLOOKUP($B$2,'Equipment List Template'!$1:$1048576,5,FALSE),"") -> 92283 | J2: =IFERROR(VLOOKUP($B$2,'Equipment List Template'!$1:$1048576,6,FALSE),"") -> Imperial | L2: =IFERROR(VLOOKUP($B$2,'Equipment List Template'!$1:$1048576,7,FALSE),"") -> SRO | N2: ='Summary Pricing Sheet'!B2 -> RFP-FS-SP-2019-03-JP | P2: ='Summary Pricing Sheet'!B3 -> Firm Name TBD
D3: Daily Activity | G3: Weekly Activity | J3: Monthly Activity | M3: Quarterly Activity | P3: Annual Activity | U3: Summary | AG3: System | AH3: Access | AI3: HVAC | AU3: Electrical | BD3: Life Safety | BF3: Plumbing | BM3: Building Systems | BV3: Corporate | BY3: Fixed Price - Facility Total Annual Cost Year 1 | CA3: Unit Pricing
B4: System ID | C4: Subsystem | D4: Quantity | E4: Cost | F4: Daily Total | G4: Quantity | H4: Cost | I4: Weekly Total | J4: Monthly Quantity | K4: Cost | L4: Monthly Total | M4: Quarterly Quantity | N4: Cost | O4: Quarterly Total | P4: Annual Quantity | Q4: Cost | R4: Annual PM Total | T4: Number of PM's | U4: Annual Cost | V4: Quantity | W4: Total Annual Cost | AG4: Subsystem | AH4: Access Doors, Gates, Sally Port | AI4: Air Cooled DX (Split System) | AJ4: Air Handling Unit (Air Cooled DX / Package) | AK4: Air-Cooled Chiller | AL4: Centrifugal Chiller | AM4: Cooling Tower (Induced Draft) | AN4: Ice Chiller Tank | AO4: Geothermal System | AP4: Water Source Heat Pump | AQ4: Fan Coil System | AR4: Supply / Return Fan and Exhaust | AS4: Evaporative and Spot Coolers (swamp coolers; spot cooler) | AT4: Unique HVAC System | AU4: Electrical Panels | AV4: Emergency Generator | AW4: Motor Control Center | AX4: Automatic Transfer Switch | AY4: Building Automated Systems (BAS) | AZ4: Transformer (Dry-Type) | BA4: Uninterruptible Power Supply (UPS) | BB4: Lighting and Controls (Interior and Exterior) | BC4: Unique Electrical System | BD4: Life Safety Systems | BE4: Reduced Pressure Backflow Preventer(s) | BF4: Boiler (Condensing) | BG4: Domestic Water Heater (Gas-Fired, Condensing) | BH4: Domestic Water Heater (Electric, Non- Condensing) | BI4: Boiler (Steam, low pressure) | BJ4: Steam System | BK4: Pneumatic Compressor System | BL4: Unique Plumbing System | BM4: Rounds and Readings | BN4: Vertical Transportation | BO4: Water Treatment | BP4: Building Exterior / Hardscape (Monthly) | BQ4: Fountain Maintenance (Monthly) | BR4: Above-Ground/Underground Fuel Storage Tanks (Quarterly) If applicable | BS4: Landscape Maintenance * | BT4: Pest Control (Monthly) | BU4: Photovoltaic (PV) System | BV4: Account Management and Supervision (Monthly) | BW4: Fee (Monthly) | CA4: Snow Removal - (crew hourly rate) | CB4: Unclogging Blocked Toilet - In-custody holding cell (labor) | CC4: Unclogging Blocked Toilet - Public/Court Staff (labor) | CD4: Clean up & Disposal of Biological Waste Event | CE4: Clean up & Disposal of Biological Waste Labor Rate | CF4: Hourly Rate | CG4: Markup on Materials | CH4: Markup on Subcontractors/Third-Parties
A5: =$B$2 -> 13-D1 | B5: A1 | C5: Access Doors, Gates, Sally Port | J5: 11 | K5: 0 | L5: =+K5*J5 -> 0 | M5: 0 | N5: 0 | O5: =+N5*M5 -> 0 | P5: 1 | Q5: 0 | R5: =+Q5*P5 -> 0 | S5: =+$J5+$M5+$P5 -> 12 | T5: =IF($V5>0,$S5,0) -> 0 | U5: =+R5+O5+L5+I5+F5 -> 0 | V5: =IFERROR(VLOOKUP($A$5,'Equipment List Template'!$1:$1048576,10,FALSE),"0") -> 0 | W5: =+U5*V5 -> 0 | X5: =$T5*$V5 -> 0 | Z5: JCC ID | AA5: Facility Name | AB5: Address | AC5: City / Town | AD5: County | AE5: Region | AF5: Region | AG5: System ID | AH5: A1 | AI5: H1 | AJ5: H2 | AK5: H3 | AL5: H4 | AM5: H5 | AN5: H6 | AO5: H7 | AP5: H8 | AQ5: H9 | AR5: H10 | AS5: H11 | AT5: H12 | AU5: E1 | AV5: E2 | AW5: E3 | AX5: E4 | AY5: E5 | AZ5: E6 | BA5: E7 | BB5: E8 | BC5: E9 | BD5: L1 | BE5: L2 | BF5: P1 | BG5: P2 | BH5: P3 | BI5: P4 | BJ5: P5 | BK5: P6 | BL5: P7 | BM5: R1 | BN5: V1 | BO5: W1 | BP5: B1 | BQ5: F1 | BR5: F2 | BS5: G1 | BT5: PC1 | BU5: PV1 | BV5: C1 | BW5: C2 | CA5: S1 | CB5: I1 | CC5: I2 | CD5: I3 | CE5: I4 | CF5: Hr 1 | CG5: M1 | CH5: Sub1
A6: =$B$2 -> 13-D1 | B6: H1 | C6: Air Cooled DX (Split System) | J6: 0 | K6: 0 | L6: =+K6*J6 -> 0 | M6: 3 | N6: 0 | O6: =+N6*M6 -> 0 | P6: 1 | Q6: 0 | R6: =+Q6*P6 -> 0 | S6: =+$J6+$M6+$P6 -> 4 | T6: =IF($V6>0,$S6,0) -> 4 | U6: =+R6+O6+L6+I6+F6 -> 0 | V6: =IFERROR(VLOOKUP($A$5,'Equipment List Template'!$1:$1048576,11,FALSE),"0") -> 2 | W6: =+U6*V6 -> 0 | X6: =$T6*$V6 -> 8 | Z6: =B2 -> 13-D1 | AA6: =IFERROR(VLOOKUP($Z$6,'Equipment List Template'!$1:$1048576,2,FALSE),"") -> 13-D1 Winterhaven Court | AB6: =IFERROR(VLOOKUP($Z$6,'Equipment List Template'!$1:$1048576,3,FALSE),"") -> 2124 Winterhaven Dr. | AC6: =IFERROR(VLOOKUP($Z$6,'Equipment List Template'!$1:$1048576,4,FALSE),"") -> Winterhaven | AD6: =IFERROR(VLOOKUP($Z$6,'Equipment List Template'!$1:$1048576,5,FALSE),"") -> 92283 | AE6: =IFERROR(VLOOKUP($Z$6,'Equipment List Template'!$1:$1048576,6,FALSE),"") -> Imperial | AF6: =IFERROR(VLOOKUP($Z$6,'Equipment List Template'!$1:$1048576,7,FALSE),"") -> SRO | AH6: =+$W5 -> 0 | AI6: =+$W6 -> 0 | AJ6: =+$W7 -> 0 | AK6: =+$W8 -> 0 | AL6: =+$W9 -> 0 | AM6: =+$W10 -> 0 | AN6: =+$W11 -> 0 | AO6: =+$W12 -> 0 | AP6: =+$W13 -> 0 | AQ6: =+$W14 -> 0 | AR6: =+$W15 -> 0 | AS6: =+$W16 -> 0 | AT6: =+$W17 -> 0 | AU6: =+$W18 -> 0 | AV6: =+$W19 -> 0 | AW6: =+$W20 -> 0 | AX6: =+$W21 -> 0 | AY6: =+$W22 -> 0 | AZ6: =+$W23 -> 0 | BA6: =+$W24 -> 0 | BB6: =+$W25 -> 0 | BC6: =+$W26 -> 0 | BD6: =+$W27 -> 0 | BE6: =+$W28 -> 0 | BF6: =+$W29 -> 0 | BG6: =+$W30 -> 0 | BH6: =+$W31 -> 0 | BI6: =+$W32 -> 0 | BJ6: =+$W33 -> 0 | BK6: =+$W34 -> 0 | BL6: =+$W35 -> 0 | BM6: =+$W36 -> 0 | BN6: =+$W37 -> 0 | BO6: =+$W38 -> 0 | BP6: =+$W39 -> 0 | BQ6: =+$W40 -> 0 | BR6: =+$W41 -> 0 | BS6: =+$W42 -> 0 | BT6: =+$W43 -> 0 | BU6: =+$W44 -> 0 | BV6: =+$W45 -> 0 | BW6: =+$W46 -> 0 | BY6: =+$W47 -> 0 | CA6: =+$D48 -> 0 | CB6: =+$D49 -> 0 | CC6: =+$D50 -> 0 | CD6: =+$D51 -> 0 | CE6: =+$D52 -> 0 | CF6: =+$D53 -> 0 | CG6: =+$D54 -> 0 | CH6: =+$D55 -> 0
A7: 13-D1 | B7: H2 | C7: Air Handling Unit (Air Cooled DX / Package) | J7: 0 | K7: 0 | L7: 0 | M7: 3 | N7: 0 | O7: 0 | P7: 1 | Q7: 0 | R7: 0 | S7: 4 | T7: 0 | U7: 0 | V7: =IFERROR(VLOOKUP($A$5,'Equipment List Template'!$1:$1048576,12,FALSE),"0") -> 0 | W7: =+U7*V7 -> 0 | X7: 0
A8: 13-D1 | B8: H3 | C8: Air-Cooled Chiller | J8: 11 | K8: 0 | L8: 0 | M8: 0 | N8: 0 | O8: 0 | P8: 1 | Q8: 0 | R8: 0 | S8: 12 | T8: 0 | U8: 0 | V8: =IFERROR(VLOOKUP($A$5,'Equipment List Template'!$1:$1048576,13,FALSE),"0") -> 0 | W8: 0 | X8: 0
A9: 13-D1 | B9: H4 | C9: Centrifugal Chiller | J9: 11 | K9: 0 | L9: 0 | M9: 0 | N9: 0 | O9: 0 | P9: 1 | Q9: 0 | R9: 0 | S9: 12 | T9: 0 | U9: 0 | V9: =IFERROR(VLOOKUP($A$5,'Equipment List Template'!$1:$1048576,14,FALSE),"0") -> 0 | W9: 0 | X9: 0
A10: 13-D1 | B10: H5 | C10: Cooling Tower (Induced Draft) | J10: 8 | K10: 0 | L10: 0 | M10: 3 | N10: 0 | O10: 0 | P10: 1 | Q10: 0 | R10: 0 | S10: 12 | T10: 0 | U10: 0 | V10: =IFERROR(VLOOKUP($A$5,'Equipment List Template'!$1:$1048576,15,FALSE),"0") -> 0 | W10: 0 | X10: 0
A11: 13-D1 | B11: H6 | C11: Ice Chiller Tank | J11: 8 | K11: 0 | L11: 0 | M11: 3 | N11: 0 | O11: 0 | P11: 1 | Q11: 0 | R11: 0 | S11: 12 | T11: 0 | U11: 0 | V11: =IFERROR(VLOOKUP($A$5,'Equipment List Template'!$1:$1048576,16,FALSE),"0") -> 0 | W11: 0 | X11: 0
A12: 13-D1 | B12: H7 | C12: Geothermal System | J12: 11 | K12: 0 | L12: 0 | M12: 0 | N12: 0 | O12: 0 | P12: 1 | Q12: 0 | R12: 0 | S12: 12 | T12: 0 | U12: 0 | V12: =IFERROR(VLOOKUP($A$5,'Equipment List Template'!$1:$1048576,17,FALSE),"0") -> 0 | W12: 0 | X12: 0
A13: 13-D1 | B13: H8 | C13: Water Source Heat Pump | J13: 8 | K13: 0 | L13: 0 | M13: 3 | N13: 0 | O13: 0 | P13: 1 | Q13: 0 | R13: 0 | S13: 12 | T13: 0 | U13: 0 | V13: =IFERROR(VLOOKUP($A$5,'Equipment List Template'!$1:$1048576,18,FALSE),"0") -> 0 | W13: 0 | X13: 0
A14: 13-D1 | B14: H9 | C14: Fan Coil System | J14: 0 | K14: 0 | L14: 0 | M14: 3 | N14: 0 | O14: 0 | P14: 1 | Q14: 0 | R14: 0 | S14: 4 | T14: 0 | U14: 0 | V14: =IFERROR(VLOOKUP($A$5,'Equipment List Template'!$1:$1048576,19,FALSE),"0") -> 0 | W14: 0 | X14: 0
A15: 13-D1 | B15: H10 | C15: Supply / Return Fan and Exhaust | J15: 0 | K15: 0 | L15: 0 | M15: 3 | N15: 0 | O15: 0 | P15: 1 | Q15: 0 | R15: 0 | S15: 4 | T15: 0 | U15: 0 | V15: =IFERROR(VLOOKUP($A$5,'Equipment List Template'!$1:$1048576,20,FALSE),"0") -> 0 | W15: 0 | X15: 0
A16: 13-D1 | B16: H11 | C16: Evaporative and Spot Coolers (swamp coolers; spot cooler) | J16: 8 | K16: 0 | L16: 0 | M16: 3 | N16: 0 | O16: 0 | P16: 1 | Q16: 0 | R16: 0 | S16: 12 | T16: 0 | U16: 0 | V16: =IFERROR(VLOOKUP($A$5,'Equipment List Template'!$1:$1048576,21,FALSE),"0") -> 0 | W16: 0 | X16: 0
B17: H12 | C17: Unique HVAC System | J17: 0 | K17: 0 | L17: 0 | M17: 0 | N17: 0 | O17: 0 | P17: 0 | Q17: 0 | R17: 0 | S17: 0 | T17: 0 | V17: 0 | W17: 0
A18: 13-D1 | B18: E1 | C18: Electrical Panels | J18: 0 | K18: 0 | L18: 0 | M18: 3 | N18: 0 | O18: 0 | P18: 1 | Q18: 0 | R18: 0 | S18: 4 | T18: 4 | U18: 0 | V18: =IFERROR(VLOOKUP($A$5,'Equipment List Template'!$1:$1048576,23,FALSE),"0") -> 1 | W18: 0 | X18: 4
A19: 13-D1 | B19: E2 | C19: Emergency Generator | J19: 8 | K19: 0 | L19: 0 | M19: 3 | N19: 0 | O19: 0 | P19: 1 | Q19: 0 | R19: 0 | S19: 12 | T19: 0 | U19: 0 | V19: =IFERROR(VLOOKUP($A$5,'Equipment List Template'!$1:$1048576,24,FALSE),"0") -> 0 | W19: 0 | X19: 0
A20: 13-D1 | B20: E3 | C20: Motor Control Center | J20: 0 | K20: 0 | L20: 0 | M20: 3 | N20: 0 | O20: 0 | P20: 1 | Q20: 0 | R20: 0 | S20: 4 | T20: 0 | U20: 0 | V20: =IFERROR(VLOOKUP($A$5,'Equipment List Template'!$1:$1048576,25,FALSE),"0") -> 0 | W20: 0 | X20: 0
A21: 13-D1 | B21: E4 | C21: Automatic Transfer Switch | J21: 8 | K21: 0 | L21: 0 | M21: 3 | N21: 0 | O21: 0 | P21: 1 | Q21: 0 | R21: 0 | S21: 12 | T21: 0 | U21: 0 | V21: =IFERROR(VLOOKUP($A$5,'Equipment List Template'!$1:$1048576,26,FALSE),"0") -> 0 | W21: 0 | X21: 0
A22: 13-D1 | B22: E5 | C22: Building Automated Systems (BAS) | J22: 0 | K22: 0 | L22: 0 | M22: 0 | N22: 0 | O22: 0 | P22: 1 | Q22: 0 | R22: 0 | S22: 1 | T22: 0 | U22: 0 | V22: =IFERROR(VLOOKUP($A$5,'Equipment List Template'!$1:$1048576,27,FALSE),"0") -> 0 | W22: 0 | X22: 0
A23: 13-D1 | B23: E6 | C23: Transformer (Dry-Type) | J23: 0 | K23: 0 | L23: 0 | M23: 3 | N23: 0 | O23: 0 | P23: 1 | Q23: 0 | R23: 0 | S23: 4 | T23: 0 | U23: 0 | V23: =IFERROR(VLOOKUP($A$5,'Equipment List Template'!$1:$1048576,28,FALSE),"0") -> 0 | W23: 0 | X23: 0
A24: 13-D1 | B24: E7 | C24: Uninterruptible Power Supply (UPS) | J24: 0 | K24: 0 | L24: 0 | M24: 0 | N24: 0 | O24: 0 | P24: 1 | Q24: 0 | R24: 0 | S24: 1 | T24: 0 | U24: 0 | V24: =IFERROR(VLOOKUP($A$5,'Equipment List Template'!$1:$1048576,29,FALSE),"0") -> 0 | W24: 0 | X24: 0
A25: 13-D1 | B25: E8 | C25: Lighting and Controls (Interior and Exterior) | J25: 12 | K25: 0 | L25: 0 | M25: 0 | N25: 0 | O25: 0 | P25: 0 | Q25: 0 | R25: 0 | S25: 12 | T25: 0 | U25: 0 | V25: =IFERROR(VLOOKUP($A$5,'Equipment List Template'!$1:$1048576,30,FALSE),"0") -> 0 | W25: 0 | X25: 0
B26: E9 | C26: Unique Electrical System | J26: 0 | K26: 0 | L26: 0 | M26: 0 | N26: 0 | O26: 0 | P26: 0 | Q26: 0 | R26: 0 | S26: 0 | T26: 0 | V26: 0 | W26: 0
A27: 13-D1 | B27: L1 | C27: Life Safety Systems | J27: 0 | K27: 0 | L27: 0 | M27: 3 | N27: 0 | O27: 0 | P27: 1 | Q27: 0 | R27: 0 | S27: 4 | T27: 4 | U27: 0 | V27: =IFERROR(VLOOKUP($A$5,'Equipment List Template'!$1:$1048576,32,FALSE),"0") -> 2 | W27: 0 | X27: 8
A28: 13-D1 | B28: L2 | C28: Reduced Pressure Backflow Preventer(s) | J28: 0 | K28: 0 | L28: 0 | M28: 0 | N28: 0 | O28: 0 | P28: 1 | Q28: 0 | R28: 0 | S28: 1 | T28: 0 | U28: 0 | V28: =IFERROR(VLOOKUP($A$5,'Equipment List Template'!$1:$1048576,33,FALSE),"0") -> 0 | W28: 0 | X28: 0
A29: 13-D1 | B29: P1 | C29: Boiler (Condensing) | J29: 8 | K29: 0 | L29: 0 | M29: 3 | N29: 0 | O29: 0 | P29: 1 | Q29: 0 | R29: 0 | S29: 12 | T29: 0 | U29: 0 | V29: =IFERROR(VLOOKUP($A$5,'Equipment List Template'!$1:$1048576,34,FALSE),"0") -> 0 | W29: 0 | X29: 0
A30: 13-D1 | B30: P2 | C30: Domestic Water Heater (Gas-Fired, Condensing) | J30: 0 | K30: 0 | L30: 0 | M30: 0 | N30: 0 | O30: 0 | P30: 1 | Q30: 0 | R30: 0 | S30: 1 | T30: 0 | U30: 0 | V30: =IFERROR(VLOOKUP($A$5,'Equipment List Template'!$1:$1048576,35,FALSE),"0") -> 0 | W30: 0 | X30: 0
A31: 13-D1 | B31: P3 | C31: Domestic Water Heater (Electric, Non- Condensing) | J31: 0 | K31: 0 | L31: 0 | M31: 0 | N31: 0 | O31: 0 | P31: 1 | Q31: 0 | R31: 0 | S31: 1 | T31: 0 | U31: 0 | V31: =IFERROR(VLOOKUP($A$5,'Equipment List Template'!$1:$1048576,36,FALSE),"0") -> 0 | W31: 0 | X31: 0
A32: 13-D1 | B32: P4 | C32: Boiler (Steam, low pressure) | J32: 0 | K32: 0 | L32: 0 | M32: 3 | N32: 0 | O32: 0 | P32: 1 | Q32: 0 | R32: 0 | S32: 4 | T32: 0 | U32: 0 | V32: =IFERROR(VLOOKUP($A$5,'Equipment List Template'!$1:$1048576,37,FALSE),"0") -> 0 | W32: 0 | X32: 0
A33: 13-D1 | B33: P5 | C33: Steam System | J33: 8 | K33: 0 | L33: 0 | M33: 3 | N33: 0 | O33: 0 | P33: 1 | Q33: 0 | R33: 0 | S33: 12 | T33: 0 | U33: 0 | V33: =IFERROR(VLOOKUP($A$5,'Equipment List Template'!$1:$1048576,38,FALSE),"0") -> 0 | W33: 0 | X33: 0
A34: 13-D1 | B34: P6 | C34: Pneumatic Compressor System | J34: 11 | K34: 0 | L34: 0 | M34: 0 | N34: 0 | O34: 0 | P34: 1 | Q34: 0 | R34: 0 | S34: 12 | T34: 0 | U34: 0 | V34: =IFERROR(VLOOKUP($A$5,'Equipment List Template'!$1:$1048576,39,FALSE),"0") -> 0 | W34: 0 | X34: 0
B35: P7 | C35: Unique Plumbing System | J35: 0 | K35: 0 | L35: 0 | M35: 0 | N35: 0 | O35: 0 | P35: 0 | Q35: 0 | R35: 0 | S35: 0 | T35: 0 | U35: 0 | V35: 0 | W35: 0
A36: 13-D1 | B36: R1 | C36: Rounds and Readings | D36: =IFERROR(IF(VLOOKUP($A36,'Equipment List Template'!$1:$1048576,41,FALSE)=248,248,0),0) -> 0 | E36: 0 | F36: =+E36*D36 -> 0 | G36: =IFERROR(IF(VLOOKUP($A36,'Equipment List Template'!$1:$1048576,41,FALSE)=40,40,0),0) -> 40 | H36: 0 | I36: =+H36*G36 -> 0 | J36: 12 | K36: 0 | L36: 0 | S36: =+$J36+$M36+$P36+D36+G36 -> 52 | T36: 52 | U36: =+R36+O36+L36+I36+F36 -> 0 | V36: 1 | W36: =+U36*V36 -> 0 | X36: 52
A37: =$B$2 -> 13-D1 | B37: V1 | C37: Vertical Transportation | J37: 8 | K37: 0 | L37: =+K37*J37 -> 0 | M37: 3 | N37: 0 | O37: =+N37*M37 -> 0 | P37: 1 | Q37: 0 | R37: =+Q37*P37 -> 0 | S37: =+$J37+$M37+$P37+D37+G37 -> 12 | T37: =IF($V37>0,$S37,0) -> 0 | U37: =+R37+O37+L37 -> 0 | V37: =IFERROR(VLOOKUP($A$5,'Equipment List Template'!$1:$1048576,42,FALSE),"0") -> 0 | W37: =+U37*V37 -> 0 | X37: =$T37*$V37 -> 0
A38: 13-D1 | B38: W1 | C38: Water Treatment | D38: =IFERROR(IF(VLOOKUP($A38,'Equipment List Template'!$1:$1048576,43,FALSE)=248,260,0),0) -> 0 | E38: 0 | F38: =+E38*D38 -> 0 | S38: 0 | T38: 0 | U38: =+R38+O38+L38+I38+F38 -> 0 | V38: 1 | W38: =+U38*V38 -> 0 | X38: 0
A39: 13-D1 | B39: B1 | C39: Building Exterior / Hardscape (Monthly) | J39: 12 | K39: 0 | L39: =+K39*J39 -> 0 | S39: 12 | T39: 0 | U39: 0 | V39: =IFERROR(VLOOKUP($A$5,'Equipment List Template'!$1:$1048576,44,FALSE),"0") -> 0 | W39: 0 | X39: 0
A40: 13-D1 | B40: F1 | C40: Fountain Maintenance (Monthly) | J40: 12 | K40: 0 | L40: =+K40*J40 -> 0 | S40: 12 | T40: 0 | U40: 0 | V40: =IFERROR(VLOOKUP($A$5,'Equipment List Template'!$1:$1048576,45,FALSE),"0") -> 0 | W40: 0 | X40: 0
A41: 13-D1 | B41: F2 | C41: Above-Ground/Underground Fuel Storage Tanks (Quarterly) If applicable | M41: 4 | N41: 0 | O41: =+N41*M41 -> 0 | S41: 4 | T41: 0 | U41: 0 | V41: =IFERROR(VLOOKUP($A$5,'Equipment List Template'!$1:$1048576,46,FALSE),"0") -> 0 | W41: 0 | X41: 0
A42: 13-D1 | B42: G1 | C42: Landscape Maintenance * | G42: 40 | H42: 0 | I42: =+H42*G42 -> 0 | S42: 40 | T42: 40 | U42: 0 | V42: =IFERROR(VLOOKUP($A$5,'Equipment List Template'!$1:$1048576,47,FALSE),"0") -> 1 | W42: 0 | X42: 40
B43: PC1 | C43: Pest Control (Monthly) | J43: 12 | K43: 0 | L43: =+K43*J43 -> 0 | S43: =+$J43+$M43+$P43+D43+G43 -> 12 | T43: =IF($V43>0,$S43,0) -> 12 | U43: =+R43+O43+L43+I43+F43 -> 0 | V43: 1 | W43: =+U43*V43 -> 0 | X43: =$T43*$V43 -> 12
B44: PV1 | C44: Photovoltaic (PV) System | P44: 1 | Q44: 0 | R44: =+Q44*P44 -> 0 | S44: 1 | T44: 0 | U44: 0 | V44: 0 | W44: 0
A45: =$B$2 -> 13-D1 | B45: C1 | C45: Account Management and Supervision (Monthly) | J45: 12 | K45: 0 | L45: =+K45*J45 -> 0 | S45: 12 | T45: 12 | U45: 0 | V45: 1 | W45: 0 | X45: 12
A46: 13-D1 | B46: C2 | C46: Fee (Monthly) | J46: 12 | K46: 0 | L46: =+K46*J46 -> 0 | S46: 12 | T46: 12 | U46: 0 | V46: 1 | W46: 0 | X46: 12
Q47: JCC ID | R47: =B2 -> 13-D1 | U47: Total | W47: =SUM(W5:W46) -> 0
B48: S1 | C48: Snow Removal - (crew hourly rate) | D48: 0 | U48: Total # of PM's | W48: =SUM($X$5:$X$46) -> 148
B49: I1 | C49: Unclogging Blocked Toilet - In-custody cell (labor-only) | D49: 0
B50: I2 | C50: Unclogging Blocked Toilet - Public/Court Staff (labor-only) | D50: 0
B51: I3 | C51: Clean up & Disposal of Biological Waste Event | D51: 0
B52: I4 | C52: Clean up & Disposal of Biological Waste Labor Rate | D52: 0
B53: Hr 1 | C53: Hourly Rate (All Labor categories) | D53: 0
B54: M1 | C54: Markup on Materials (Percentage) | D54: 0
B55: Sub1 | C55: Markup on Subcontractors/Third-Parties (Percentage) | D55: 0
B57: * Landscape Maintenance varies by location on the number of weeks per year it can be preformed. For the purpose of the RFP, all facilities are pre-established at 40 weeks of service. The actual amount paid by facility will be based upon the actual weeks that service has been performed, validated and invoiced.

Sheet 15-A1
B1: JCC ID | C1: Facility Name | D1: Address | F1: City / Town | H1: Zip Code | J1: County | L1: Region | N1: RFP | P1: Proposer
B2: 15-A1 | C2: =IFERROR(VLOOKUP($B$2,'Equipment List Template'!$1:$1048576,2,FALSE),"") -> Bakersfield Superior Court | D2: =IFERROR(VLOOKUP($B$2,'Equipment List Template'!$1:$1048576,3,FALSE),"") -> 1315 Truxtun Ave, 1661 L Street | F2: =IFERROR(VLOOKUP($B$2,'Equipment List Template'!$1:$1048576,4,FALSE),"") -> Bakersfield | H2: =IFERROR(VLOOKUP($B$2,'Equipment List Template'!$1:$1048576,5,FALSE),"") -> 93301 | J2: =IFERROR(VLOOKUP($B$2,'Equipment List Template'!$1:$1048576,6,FALSE),"") -> Kern | L2: =IFERROR(VLOOKUP($B$2,'Equipment List Template'!$1:$1048576,7,FALSE),"") -> SRO | N2: ='Summary Pricing Sheet'!B2 -> RFP-FS-SP-2019-03-JP | P2: ='Summary Pricing Sheet'!B3 -> Firm Name TBD
D3: Daily Activity | G3: Weekly Activity | J3: Monthly Activity | M3: Quarterly Activity | P3: Annual Activity | U3: Summary | AG3: System | AH3: Access | AI3: HVAC | AU3: Electrical | BD3: Life Safety | BF3: Plumbing | BM3: Building Systems | BV3: Corporate | BY3: Fixed Price - Facility Total Annual Cost Year 1 | CA3: Unit Pricing
B4: System ID | C4: Subsystem | D4: Quantity | E4: Cost | F4: Daily Total | G4: Quantity | H4: Cost | I4: Weekly Total | J4: Monthly Quantity | K4: Cost | L4: Monthly Total | M4: Quarterly Quantity | N4: Cost | O4: Quarterly Total | P4: Annual Quantity | Q4: Cost | R4: Annual PM Total | T4: Number of PM's | U4: Annual Cost | V4: Quantity | W4: Total Annual Cost | AG4: Subsystem | AH4: Access Doors, Gates, Sally Port | AI4: Air Cooled DX (Split System) | AJ4: Air Handling Unit (Air Cooled DX / Package) | AK4: Air-Cooled Chiller | AL4: Centrifugal Chiller | AM4: Cooling Tower (Induced Draft) | AN4: Ice Chiller Tank | AO4: Geothermal System | AP4: Water Source Heat Pump | AQ4: Fan Coil System | AR4: Supply / Return Fan and Exhaust | AS4: Evaporative and Spot Coolers (swamp coolers; spot cooler) | AT4: Unique HVAC System | AU4: Electrical Panels | AV4: Emergency Generator | AW4: Motor Control Center | AX4: Automatic Transfer Switch | AY4: Building Automated Systems (BAS) | AZ4: Transformer (Dry-Type) | BA4: Uninterruptible Power Supply (UPS) | BB4: Lighting and Controls (Interior and Exterior) | BC4: Unique Electrical System | BD4: Life Safety Systems | BE4: Reduced Pressure Backflow Preventer(s) | BF4: Boiler (Condensing) | BG4: Domestic Water Heater (Gas-Fired, Condensing) | BH4: Domestic Water Heater (Electric, Non- Condensing) | BI4: Boiler (Steam, low pressure) | BJ4: Steam System | BK4: Pneumatic Compressor System | BL4: Unique Plumbing System | BM4: Rounds and Readings | BN4: Vertical Transportation | BO4: Water Treatment | BP4: Building Exterior / Hardscape (Monthly) | BQ4: Fountain Maintenance (Monthly) | BR4: Above-Ground/Underground Fuel Storage Tanks (Quarterly) If applicable | BS4: Landscape Maintenance * | BT4: Pest Control (Monthly) | BU4: Photovoltaic (PV) System | BV4: Account Management and Supervision (Monthly) | BW4: Fee (Monthly) | CA4: Snow Removal - (crew hourly rate) | CB4: Unclogging Blocked Toilet - In-custody holding cell (labor) | CC4: Unclogging Blocked Toilet - Public/Court Staff (labor) | CD4: Clean up & Disposal of Biological Waste Event | CE4: Clean up & Disposal of Biological Waste Labor Rate | CF4: Hourly Rate | CG4: Markup on Materials | CH4: Markup on Subcontractors/Third-Parties
A5: =$B$2 -> 15-A1 | B5: A1 | C5: Access Doors, Gates, Sally Port | J5: 11 | K5: 0 | L5: =+K5*J5 -> 0 | M5: 0 | N5: 0 | O5: =+N5*M5 -> 0 | P5: 1 | Q5: 0 | R5: =+Q5*P5 -> 0 | S5: =+$J5+$M5+$P5 -> 12 | T5: =IF($V5>0,$S5,0) -> 12 | U5: =+R5+O5+L5+I5+F5 -> 0 | V5: =IFERROR(VLOOKUP($A$5,'Equipment List Template'!$1:$1048576,10,FALSE),"0") -> 5 | W5: =+U5*V5 -> 0 | X5: =$T5*$V5 -> 60 | Z5: JCC ID | AA5: Facility Name | AB5: Address | AC5: City / Town | AD5: County | AE5: Region | AF5: Region | AG5: System ID | AH5: A1 | AI5: H1 | AJ5: H2 | AK5: H3 | AL5: H4 | AM5: H5 | AN5: H6 | AO5: H7 | AP5: H8 | AQ5: H9 | AR5: H10 | AS5: H11 | AT5: H12 | AU5: E1 | AV5: E2 | AW5: E3 | AX5: E4 | AY5: E5 | AZ5: E6 | BA5: E7 | BB5: E8 | BC5: E9 | BD5: L1 | BE5: L2 | BF5: P1 | BG5: P2 | BH5: P3 | BI5: P4 | BJ5: P5 | BK5: P6 | BL5: P7 | BM5: R1 | BN5: V1 | BO5: W1 | BP5: B1 | BQ5: F1 | BR5: F2 | BS5: G1 | BT5: PC1 | BU5: PV1 | BV5: C1 | BW5: C2 | CA5: S1 | CB5: I1 | CC5: I2 | CD5: I3 | CE5: I4 | CF5: Hr 1 | CG5: M1 | CH5: Sub1
A6: =$B$2 -> 15-A1 | B6: H1 | C6: Air Cooled DX (Split System) | J6: 0 | K6: 0 | L6: =+K6*J6 -> 0 | M6: 3 | N6: 0 | O6: =+N6*M6 -> 0 | P6: 1 | Q6: 0 | R6: =+Q6*P6 -> 0 | S6: =+$J6+$M6+$P6 -> 4 | T6: =IF($V6>0,$S6,0) -> 4 | U6: =+R6+O6+L6+I6+F6 -> 0 | V6: =IFERROR(VLOOKUP($A$5,'Equipment List Template'!$1:$1048576,11,FALSE),"0") -> 4 | W6: =+U6*V6 -> 0 | X6: =$T6*$V6 -> 16 | Z6: =B2 -> 15-A1 | AA6: =IFERROR(VLOOKUP($Z$6,'Equipment List Template'!$1:$1048576,2,FALSE),"") -> Bakersfield Superior Court | AB6: =IFERROR(VLOOKUP($Z$6,'Equipment List Template'!$1:$1048576,3,FALSE),"") -> 1315 Truxtun Ave, 1661 L Street | AC6: =IFERROR(VLOOKUP($Z$6,'Equipment List Template'!$1:$1048576,4,FALSE),"") -> Bakersfield | AD6: =IFERROR(VLOOKUP($Z$6,'Equipment List Template'!$1:$1048576,5,FALSE),"") -> 93301 | AE6: =IFERROR(VLOOKUP($Z$6,'Equipment List Template'!$1:$1048576,6,FALSE),"") -> Kern | AF6: =IFERROR(VLOOKUP($Z$6,'Equipment List Template'!$1:$1048576,7,FALSE),"") -> SRO | AH6: =+$W5 -> 0 | AI6: =+$W6 -> 0 | AJ6: =+$W7 -> 0 | AK6: =+$W8 -> 0 | AL6: =+$W9 -> 0 | AM6: =+$W10 -> 0 | AN6: =+$W11 -> 0 | AO6: =+$W12 -> 0 | AP6: =+$W13 -> 0 | AQ6: =+$W14 -> 0 | AR6: =+$W15 -> 0 | AS6: =+$W16 -> 0 | AT6: =+$W17 -> 0 | AU6: =+$W18 -> 0 | AV6: =+$W19 -> 0 | AW6: =+$W20 -> 0 | AX6: =+$W21 -> 0 | AY6: =+$W22 -> 0 | AZ6: =+$W23 -> 0 | BA6: =+$W24 -> 0 | BB6: =+$W25 -> 0 | BC6: =+$W26 -> 0 | BD6: =+$W27 -> 0 | BE6: =+$W28 -> 0 | BF6: =+$W29 -> 0 | BG6: =+$W30 -> 0 | BH6: =+$W31 -> 0 | BI6: =+$W32 -> 0 | BJ6: =+$W33 -> 0 | BK6: =+$W34 -> 0 | BL6: =+$W35 -> 0 | BM6: =+$W36 -> 0 | BN6: =+$W37 -> 0 | BO6: =+$W38 -> 0 | BP6: =+$W39 -> 0 | BQ6: =+$W40 -> 0 | BR6: =+$W41 -> 0 | BS6: =+$W42 -> 0 | BT6: =+$W43 -> 0 | BU6: =+$W44 -> 0 | BV6: =+$W45 -> 0 | BW6: =+$W46 -> 0 | BY6: =+$W47 -> 0 | CA6: =+$D48 -> 0 | CB6: =+$D49 -> 0 | CC6: =+$D50 -> 0 | CD6: =+$D51 -> 0 | CE6: =+$D52 -> 0 | CF6: =+$D53 -> 0 | CG6: =+$D54 -> 0 | CH6: =+$D55 -> 0
A7: 15-A1 | B7: H2 | C7: Air Handling Unit (Air Cooled DX / Package) | J7: 0 | K7: 0 | L7: 0 | M7: 3 | N7: 0 | O7: 0 | P7: 1 | Q7: 0 | R7: 0 | S7: 4 | T7: 4 | U7: 0 | V7: =IFERROR(VLOOKUP($A$5,'Equipment List Template'!$1:$1048576,12,FALSE),"0") -> 10 | W7: =+U7*V7 -> 0 | X7: 40
A8: 15-A1 | B8: H3 | C8: Air-Cooled Chiller | J8: 11 | K8: 0 | L8: 0 | M8: 0 | N8: 0 | O8: 0 | P8: 1 | Q8: 0 | R8: 0 | S8: 12 | T8: 0 | U8: 0 | V8: =IFERROR(VLOOKUP($A$5,'Equipment List Template'!$1:$1048576,13,FALSE),"0") -> 0 | W8: 0 | X8: 0
A9: 15-A1 | B9: H4 | C9: Centrifugal Chiller | J9: 11 | K9: 0 | L9: 0 | M9: 0 | N9: 0 | O9: 0 | P9: 1 | Q9: 0 | R9: 0 | S9: 12 | T9: 12 | U9: 0 | V9: =IFERROR(VLOOKUP($A$5,'Equipment List Template'!$1:$1048576,14,FALSE),"0") -> 1 | W9: 0 | X9: 12
A10: 15-A1 | B10: H5 | C10: Cooling Tower (Induced Draft) | J10: 8 | K10: 0 | L10: 0 | M10: 3 | N10: 0 | O10: 0 | P10: 1 | Q10: 0 | R10: 0 | S10: 12 | T10: 0 | U10: 0 | V10: =IFERROR(VLOOKUP($A$5,'Equipment List Template'!$1:$1048576,15,FALSE),"0") -> 0 | W10: 0 | X10: 0
A11: 15-A1 | B11: H6 | C11: Ice Chiller Tank | J11: 8 | K11: 0 | L11: 0 | M11: 3 | N11: 0 | O11: 0 | P11: 1 | Q11: 0 | R11: 0 | S11: 12 | T11: 0 | U11: 0 | V11: =IFERROR(VLOOKUP($A$5,'Equipment List Template'!$1:$1048576,16,FALSE),"0") -> 0 | W11: 0 | X11: 0
A12: 15-A1 | B12: H7 | C12: Geothermal System | J12: 11 | K12: 0 | L12: 0 | M12: 0 | N12: 0 | O12: 0 | P12: 1 | Q12: 0 | R12: 0 | S12: 12 | T12: 0 | U12: 0 | V12: =IFERROR(VLOOKUP($A$5,'Equipment List Template'!$1:$1048576,17,FALSE),"0") -> 0 | W12: 0 | X12: 0
A13: 15-A1 | B13: H8 | C13: Water Source Heat Pump | J13: 8 | K13: 0 | L13: 0 | M13: 3 | N13: 0 | O13: 0 | P13: 1 | Q13: 0 | R13: 0 | S13: 12 | T13: 0 | U13: 0 | V13: =IFERROR(VLOOKUP($A$5,'Equipment List Template'!$1:$1048576,18,FALSE),"0") -> 0 | W13: 0 | X13: 0
A14: 15-A1 | B14: H9 | C14: Fan Coil System | J14: 0 | K14: 0 | L14: 0 | M14: 3 | N14: 0 | O14: 0 | P14: 1 | Q14: 0 | R14: 0 | S14: 4 | T14: 0 | U14: 0 | V14: =IFERROR(VLOOKUP($A$5,'Equipment List Template'!$1:$1048576,19,FALSE),"0") -> 0 | W14: 0 | X14: 0
A15: 15-A1 | B15: H10 | C15: Supply / Return Fan and Exhaust | J15: 0 | K15: 0 | L15: 0 | M15: 3 | N15: 0 | O15: 0 | P15: 1 | Q15: 0 | R15: 0 | S15: 4 | T15: 4 | U15: 0 | V15: =IFERROR(VLOOKUP($A$5,'Equipment List Template'!$1:$1048576,20,FALSE),"0") -> 9 | W15: 0 | X15: 36
A16: 15-A1 | B16: H11 | C16: Evaporative and Spot Coolers (swamp coolers; spot cooler) | J16: 8 | K16: 0 | L16: 0 | M16: 3 | N16: 0 | O16: 0 | P16: 1 | Q16: 0 | R16: 0 | S16: 12 | T16: 0 | U16: 0 | V16: =IFERROR(VLOOKUP($A$5,'Equipment List Template'!$1:$1048576,21,FALSE),"0") -> 0 | W16: 0 | X16: 0
B17: H12 | C17: Unique HVAC System | J17: 0 | K17: 0 | L17: 0 | M17: 0 | N17: 0 | O17: 0 | P17: 0 | Q17: 0 | R17: 0 | S17: 0 | T17: 0 | V17: 0 | W17: 0
A18: 15-A1 | B18: E1 | C18: Electrical Panels | J18: 0 | K18: 0 | L18: 0 | M18: 3 | N18: 0 | O18: 0 | P18: 1 | Q18: 0 | R18: 0 | S18: 4 | T18: 4 | U18: 0 | V18: =IFERROR(VLOOKUP($A$5,'Equipment List Template'!$1:$1048576,23,FALSE),"0") -> 1 | W18: 0 | X18: 4
A19: 15-A1 | B19: E2 | C19: Emergency Generator | J19: 8 | K19: 0 | L19: 0 | M19: 3 | N19: 0 | O19: 0 | P19: 1 | Q19: 0 | R19: 0 | S19: 12 | T19: 12 | U19: 0 | V19: =IFERROR(VLOOKUP($A$5,'Equipment List Template'!$1:$1048576,24,FALSE),"0") -> 1 | W19: 0 | X19: 12
A20: 15-A1 | B20: E3 | C20: Motor Control Center | J20: 0 | K20: 0 | L20: 0 | M20: 3 | N20: 0 | O20: 0 | P20: 1 | Q20: 0 | R20: 0 | S20: 4 | T20: 4 | U20: 0 | V20: =IFERROR(VLOOKUP($A$5,'Equipment List Template'!$1:$1048576,25,FALSE),"0") -> 3 | W20: 0 | X20: 12
A21: 15-A1 | B21: E4 | C21: Automatic Transfer Switch | J21: 8 | K21: 0 | L21: 0 | M21: 3 | N21: 0 | O21: 0 | P21: 1 | Q21: 0 | R21: 0 | S21: 12 | T21: 12 | U21: 0 | V21: =IFERROR(VLOOKUP($A$5,'Equipment List Template'!$1:$1048576,26,FALSE),"0") -> 1 | W21: 0 | X21: 12
A22: 15-A1 | B22: E5 | C22: Building Automated Systems (BAS) | J22: 0 | K22: 0 | L22: 0 | M22: 0 | N22: 0 | O22: 0 | P22: 1 | Q22: 0 | R22: 0 | S22: 1 | T22: 0 | U22: 0 | V22: =IFERROR(VLOOKUP($A$5,'Equipment List Template'!$1:$1048576,27,FALSE),"0") -> 0 | W22: 0 | X22: 0
A23: 15-A1 | B23: E6 | C23: Transformer (Dry-Type) | J23: 0 | K23: 0 | L23: 0 | M23: 3 | N23: 0 | O23: 0 | P23: 1 | Q23: 0 | R23: 0 | S23: 4 | T23: 0 | U23: 0 | V23: =IFERROR(VLOOKUP($A$5,'Equipment List Template'!$1:$1048576,28,FALSE),"0") -> 0 | W23: 0 | X23: 0
A24: 15-A1 | B24: E7 | C24: Uninterruptible Power Supply (UPS) | J24: 0 | K24: 0 | L24: 0 | M24: 0 | N24: 0 | O24: 0 | P24: 1 | Q24: 0 | R24: 0 | S24: 1 | T24: 0 | U24: 0 | V24: =IFERROR(VLOOKUP($A$5,'Equipment List Template'!$1:$1048576,29,FALSE),"0") -> 0 | W24: 0 | X24: 0
A25: 15-A1 | B25: E8 | C25: Lighting and Controls (Interior and Exterior) | J25: 12 | K25: 0 | L25: 0 | M25: 0 | N25: 0 | O25: 0 | P25: 0 | Q25: 0 | R25: 0 | S25: 12 | T25: 0 | U25: 0 | V25: =IFERROR(VLOOKUP($A$5,'Equipment List Template'!$1:$1048576,30,FALSE),"0") -> 0 | W25: 0 | X25: 0
B26: E9 | C26: Unique Electrical System | J26: 0 | K26: 0 | L26: 0 | M26: 0 | N26: 0 | O26: 0 | P26: 0 | Q26: 0 | R26: 0 | S26: 0 | T26: 0 | V26: 0 | W26: 0
A27: 15-A1 | B27: L1 | C27: Life Safety Systems | J27: 0 | K27: 0 | L27: 0 | M27: 3 | N27: 0 | O27: 0 | P27: 1 | Q27: 0 | R27: 0 | S27: 4 | T27: 4 | U27: 0 | V27: =IFERROR(VLOOKUP($A$5,'Equipment List Template'!$1:$1048576,32,FALSE),"0") -> 9 | W27: 0 | X27: 36
A28: 15-A1 | B28: L2 | C28: Reduced Pressure Backflow Preventer(s) | J28: 0 | K28: 0 | L28: 0 | M28: 0 | N28: 0 | O28: 0 | P28: 1 | Q28: 0 | R28: 0 | S28: 1 | T28: 1 | U28: 0 | V28: =IFERROR(VLOOKUP($A$5,'Equipment List Template'!$1:$1048576,33,FALSE),"0") -> 2 | W28: 0 | X28: 2
A29: 15-A1 | B29: P1 | C29: Boiler (Condensing) | J29: 8 | K29: 0 | L29: 0 | M29: 3 | N29: 0 | O29: 0 | P29: 1 | Q29: 0 | R29: 0 | S29: 12 | T29: 0 | U29: 0 | V29: =IFERROR(VLOOKUP($A$5,'Equipment List Template'!$1:$1048576,34,FALSE),"0") -> 0 | W29: 0 | X29: 0
A30: 15-A1 | B30: P2 | C30: Domestic Water Heater (Gas-Fired, Condensing) | J30: 0 | K30: 0 | L30: 0 | M30: 0 | N30: 0 | O30: 0 | P30: 1 | Q30: 0 | R30: 0 | S30: 1 | T30: 0 | U30: 0 | V30: =IFERROR(VLOOKUP($A$5,'Equipment List Template'!$1:$1048576,35,FALSE),"0") -> 0 | W30: 0 | X30: 0
A31: 15-A1 | B31: P3 | C31: Domestic Water Heater (Electric, Non- Condensing) | J31: 0 | K31: 0 | L31: 0 | M31: 0 | N31: 0 | O31: 0 | P31: 1 | Q31: 0 | R31: 0 | S31: 1 | T31: 0 | U31: 0 | V31: =IFERROR(VLOOKUP($A$5,'Equipment List Template'!$1:$1048576,36,FALSE),"0") -> 0 | W31: 0 | X31: 0
A32: 15-A1 | B32: P4 | C32: Boiler (Steam, low pressure) | J32: 0 | K32: 0 | L32: 0 | M32: 3 | N32: 0 | O32: 0 | P32: 1 | Q32: 0 | R32: 0 | S32: 4 | T32: 0 | U32: 0 | V32: =IFERROR(VLOOKUP($A$5,'Equipment List Template'!$1:$1048576,37,FALSE),"0") -> 0 | W32: 0 | X32: 0
A33: 15-A1 | B33: P5 | C33: Steam System | J33: 8 | K33: 0 | L33: 0 | M33: 3 | N33: 0 | O33: 0 | P33: 1 | Q33: 0 | R33: 0 | S33: 12 | T33: 0 | U33: 0 | V33: =IFERROR(VLOOKUP($A$5,'Equipment List Template'!$1:$1048576,38,FALSE),"0") -> 0 | W33: 0 | X33: 0
A34: 15-A1 | B34: P6 | C34: Pneumatic Compressor System | J34: 11 | K34: 0 | L34: 0 | M34: 0 | N34: 0 | O34: 0 | P34: 1 | Q34: 0 | R34: 0 | S34: 12 | T34: 0 | U34: 0 | V34: =IFERROR(VLOOKUP($A$5,'Equipment List Template'!$1:$1048576,39,FALSE),"0") -> 0 | W34: 0 | X34: 0
B35: P7 | C35: Unique Plumbing System | J35: 0 | K35: 0 | L35: 0 | M35: 0 | N35: 0 | O35: 0 | P35: 0 | Q35: 0 | R35: 0 | S35: 0 | T35: 0 | U35: 0 | V35: 0 | W35: 0
A36: 15-A1 | B36: R1 | C36: Rounds and Readings | D36: =IFERROR(IF(VLOOKUP($A36,'Equipment List Template'!$1:$1048576,41,FALSE)=248,248,0),0) -> 248 | E36: 0 | F36: =+E36*D36 -> 0 | G36: =IFERROR(IF(VLOOKUP($A36,'Equipment List Template'!$1:$1048576,41,FALSE)=40,40,0),0) -> 0 | H36: 0 | I36: =+H36*G36 -> 0 | J36: 12 | K36: 0 | L36: 0 | S36: =+$J36+$M36+$P36+D36+G36 -> 260 | T36: 260 | U36: =+R36+O36+L36+I36+F36 -> 0 | V36: 1 | W36: =+U36*V36 -> 0 | X36: 260
A37: =$B$2 -> 15-A1 | B37: V1 | C37: Vertical Transportation | J37: 8 | K37: 0 | L37: =+K37*J37 -> 0 | M37: 3 | N37: 0 | O37: =+N37*M37 -> 0 | P37: 1 | Q37: 0 | R37: =+Q37*P37 -> 0 | S37: =+$J37+$M37+$P37+D37+G37 -> 12 | T37: =IF($V37>0,$S37,0) -> 12 | U37: =+R37+O37+L37 -> 0 | V37: =IFERROR(VLOOKUP($A$5,'Equipment List Template'!$1:$1048576,42,FALSE),"0") -> 9 | W37: =+U37*V37 -> 0 | X37: =$T37*$V37 -> 108
A38: 15-A1 | B38: W1 | C38: Water Treatment | D38: =IFERROR(IF(VLOOKUP($A38,'Equipment List Template'!$1:$1048576,43,FALSE)=248,260,0),0) -> 260 | E38: 0 | F38: =+E38*D38 -> 0 | S38: 260 | T38: 260 | U38: =+R38+O38+L38+I38+F38 -> 0 | V38: 1 | W38: =+U38*V38 -> 0 | X38: 260
A39: 15-A1 | B39: B1 | C39: Building Exterior / Hardscape (Monthly) | J39: 12 | K39: 0 | L39: =+K39*J39 -> 0 | S39: 12 | T39: 12 | U39: 0 | V39: =IFERROR(VLOOKUP($A$5,'Equipment List Template'!$1:$1048576,44,FALSE),"0") -> 1 | W39: 0 | X39: 12
A40: 15-A1 | B40: F1 | C40: Fountain Maintenance (Monthly) | J40: 12 | K40: 0 | L40: =+K40*J40 -> 0 | S40: 12 | T40: 0 | U40: 0 | V40: =IFERROR(VLOOKUP($A$5,'Equipment List Template'!$1:$1048576,45,FALSE),"0") -> 0 | W40: 0 | X40: 0
A41: 15-A1 | B41: F2 | C41: Above-Ground/Underground Fuel Storage Tanks (Quarterly) If applicable | M41: 4 | N41: 0 | O41: =+N41*M41 -> 0 | S41: 4 | T41: 0 | U41: 0 | V41: =IFERROR(VLOOKUP($A$5,'Equipment List Template'!$1:$1048576,46,FALSE),"0") -> 0 | W41: 0 | X41: 0
A42: 15-A1 | B42: G1 | C42: Landscape Maintenance * | G42: 40 | H42: 0 | I42: =+H42*G42 -> 0 | S42: 40 | T42: 40 | U42: 0 | V42: =IFERROR(VLOOKUP($A$5,'Equipment List Template'!$1:$1048576,47,FALSE),"0") -> 1 | W42: 0 | X42: 40
B43: PC1 | C43: Pest Control (Monthly) | J43: 12 | K43: 0 | L43: =+K43*J43 -> 0 | S43: =+$J43+$M43+$P43+D43+G43 -> 12 | T43: =IF($V43>0,$S43,0) -> 12 | U43: =+R43+O43+L43+I43+F43 -> 0 | V43: 1 | W43: =+U43*V43 -> 0 | X43: =$T43*$V43 -> 12
B44: PV1 | C44: Photovoltaic (PV) System | P44: 1 | Q44: 0 | R44: =+Q44*P44 -> 0 | S44: 1 | T44: 0 | U44: 0 | V44: 0 | W44: 0
A45: =$B$2 -> 15-A1 | B45: C1 | C45: Account Management and Supervision (Monthly) | J45: 12 | K45: 0 | L45: =+K45*J45 -> 0 | S45: 12 | T45: 12 | U45: 0 | V45: 1 | W45: 0 | X45: 12
A46: 15-A1 | B46: C2 | C46: Fee (Monthly) | J46: 12 | K46: 0 | L46: =+K46*J46 -> 0 | S46: 12 | T46: 12 | U46: 0 | V46: 1 | W46: 0 | X46: 12
Q47: JCC ID | R47: =B2 -> 15-A1 | U47: Total | W47: =SUM(W5:W46) -> 0
B48: S1 | C48: Snow Removal - (crew hourly rate) | D48: 0 | U48: Total # of PM's | W48: =SUM($X$5:$X$46) -> 958
B49: I1 | C49: Unclogging Blocked Toilet - In-custody cell (labor-only) | D49: 0
B50: I2 | C50: Unclogging Blocked Toilet - Public/Court Staff (labor-only) | D50: 0
B51: I3 | C51: Clean up & Disposal of Biological Waste Event | D51: 0
B52: I4 | C52: Clean up & Disposal of Biological Waste Labor Rate | D52: 0
B53: Hr 1 | C53: Hourly Rate (All Labor categories) | D53: 0
B54: M1 | C54: Markup on Materials (Percentage) | D54: 0
B55: Sub1 | C55: Markup on Subcontractors/Third-Parties (Percentage) | D55: 0
B57: * Landscape Maintenance varies by location on the number of weeks per year it can be preformed. For the purpose of the RFP, all facilities are pre-established at 40 weeks of service. The actual amount paid by facility will be based upon the actual weeks that service has been performed, validated and invoiced.

Sheet 15-A2
B1: JCC ID | C1: Facility Name | D1: Address | F1: City / Town | H1: Zip Code | J1: County | L1: Region | N1: RFP | P1: Proposer
B2: 15-A2 | C2: =IFERROR(VLOOKUP($B$2,'Equipment List Template'!$1:$1048576,2,FALSE),"") -> Bakersfield Superior Court Modular | D2: =IFERROR(VLOOKUP($B$2,'Equipment List Template'!$1:$1048576,3,FALSE),"") -> 1415 Truxtun Avenue | F2: =IFERROR(VLOOKUP($B$2,'Equipment List Template'!$1:$1048576,4,FALSE),"") -> Bakersfield | H2: =IFERROR(VLOOKUP($B$2,'Equipment List Template'!$1:$1048576,5,FALSE),"") -> 93301 | J2: =IFERROR(VLOOKUP($B$2,'Equipment List Template'!$1:$1048576,6,FALSE),"") -> Kern | L2: =IFERROR(VLOOKUP($B$2,'Equipment List Template'!$1:$1048576,7,FALSE),"") -> SRO | N2: ='Summary Pricing Sheet'!B2 -> RFP-FS-SP-2019-03-JP | P2: ='Summary Pricing Sheet'!B3 -> Firm Name TBD
D3: Daily Activity | G3: Weekly Activity | J3: Monthly Activity | M3: Quarterly Activity | P3: Annual Activity | U3: Summary | AG3: System | AH3: Access | AI3: HVAC | AU3: Electrical | BD3: Life Safety | BF3: Plumbing | BM3: Building Systems | BV3: Corporate | BY3: Fixed Price - Facility Total Annual Cost Year 1 | CA3: Unit Pricing
